Workbook

Sheet INTRO
B2: Airfield Capacity Estimation using Spreadsheet Models
B4: Protection Password = pass | G4: Caution: Do NOT change the password if you choose to unlock the models as the password is embedded in the macro codes.
B6: Use the spreadsheet model to quickly estimate airfield capacities for Arrivals only, Departures only and Mixed Operations.
B8: Runway Model Options | F8: ENTER OR ADJUST MODEL INPUTS | M8: INPUTS | O8: Inactive | P8: Light Green fill, with Bold Green text
M9: (Inactive input cells are only in the fleet mix section)
B11: Single Runway | F11: OBSERVE AND EVALUATE OUTPUTS | M11: OUTPUTS | O11: Blue fill, with Bold White text
B14: Dual Parallel Runways | F14: USE RESET BUTTON TO RETURN MAIN INPUTS TO DEFAULT SETTINGS | M14: Reset Inputs | O14: Grey fill, with Red text
F15: (Not all inputs are reset; specific observable inputs such as exits selection, runway crossings,etc... or OUTPUT selections are not reset)
F17: Calculated/Linked Values & Descriptions have white backgrounds | M17: Calculated Values | O17: Linked Values
B18: Dual Intersecting Runways
F19: Comments are attached to Input descriptions to provide understanding/definitions to input titles
B21: MODEL CAPACITY ESTIMATION PROCESS
B22: Base Model Configurations assume adequate length and width for commercial aircraft
B24: (1) | C24: Calculates Arrival to Arrival minimum separation based on
D25: (fleet mix averages, approach speeds, minimum separation behind specific aircraft, and operating buffers)
B26: (2) | C26: Calculates Arrivals Only (Arrival priority) Capacity based on
D27: (average Arrival to Arrival separation times)
B28: (3) | C28: Calculates Departure to Departure minimum separation based on
D29: (fleet mix averages, separation behind specific aircraft, and operating buffers)
B30: (4) | C30: Calculates Departures only (Departure priority) Capacity based on
D31: (average Departure to Departure separation times)
B32: (5) | C32: Calculates minimum time requirement to introduce departures between a pair of arrivals based on
D33: (minimum runway occupancy times, minimum Arrival to Departure spacing, and approach speeds)
B34: (6) | C34: Calculates Interleaved Departure Capacity based on
D35: (average Arrival to Arrival separation and interleaved departure time requirements)
B37: Base Default Assumptions/Default Input Settings:
C38: -Continual supply of aircraft in fleet mix
C39: -Full Parallel Taxiway is available
D40: -Lack of Full Parallel Taxiway will add dectuctions and lower the capacity estimate
D41: (e.g. Partial Taxiway, Turn-arounds only)
C42: -Four or more runway exits (including head and tail exits) are available
D43: -Fewer exits will add deductions and lower the capacity estimate
C44: -Seven aircraft classes/groups are used for aircraft designation in fleet mix
D45: -Small-Single, Small-Twin, Small-Plus, Large-Turboprop, Large-Jet, Large-757 and Heavy
C46: -Restorable default settings for the following inputs are incorporated
D47: Departure to Arrival Separtation distance (nm)
D48: Common Approach Length (nm)
D49: Arrival to Arrival Separation Minimums (nm)
D50: Arrival to Arrival Separation Standard Deviation (seconds)
D51: Departure to Departure Separation Minimums (seconds)
D52: Departure to Departure Separation Standard Deviation (seconds)
D53: Average Arrival Runway Occupancy Time (AROT) for each aircraft group (seconds)
D54: Average Approach Speed for each aircraft group (knots)
D55: Touch and Go activity (%)
D56: Capacity Impact due to Runway Crossing Requirements (seconds to Arr:Arr Separation)
D57: Capacity Impact due to lack of Radar Control Tower (%)
D58: Departure Hold Buffer (seconds)
D59: Arrival to Arrival Separation Buffer (Gap Spacing Buffer) (seconds)
D60: Average aircraft acceleration (ft/sec/sec)
D61: Average aircraft deceleration (ft/sec/sec)
B63: TROUBLE WITH MACROS: | E63: If you are having trouble getting the 'Reset Inputs' to work and are getting a debugging window pop up you may
E64: need to deselect a VBA reference box titled "MISSING: SOLVER.XLAM". To get to the VBA References option in Excel
E65: hit (Alt + F11) and then choose the Tools drop down menu and then select References.
B67: Base calculations used in the models follow similar methodolgy and logic as in the FAA Airfield Capacity Model (ACM)
B69: Default Settings for Arrival to Arrival Separations and Departure to Departure Separations source:
C70: FAA Report No. FAA-EM-78-8A " Parameters of Future ATC Systems Relating to Airport Capacity/Delay", June 1978

Sheet Runway Layouts

Sheet Lookup Table
C1: Aircraft Fleet | G1: New Aircraft Group Mix Percentages | O1: Hourly Capacity | S1: Annual
A2: General Runway-Use Configurations | C2: Mix Index | G2: A | H2: B | I2: C | J2: C | K2: C | L2: C | M2: D | O2: Operations/Hour | S2: Service Volume
C3: % (C + 3D) | G3: S-S | H3: S-T | I3: S+ | J3: L-TP | K3: L-J | L3: L-757 | M3: H | O3: VFR | Q3: IFR | S3: Operations/Year
A4: 1.) | U4: Cw | V4: D * H | W4: old values | X4: % TNG
C5: 0 | D5: to | E5: 20 | G5: 1 | H5: 0 | I5: 0 | J5: 0 | K5: 0 | L5: 0 | M5: 0 | N5: =SUM(I5:L5)+3*M5 -> 0 | O5: 90 | P5: 64 | Q5: 66 | S5: =ROUND(U5*V5,-3) -> 223000 | U5: 85.6 | V5: =9*290 -> 2610 | W5: 230000 | X5: 0.5
C6: 21 | D6: to | E6: 50 | G6: 0.25 | H6: 0.5 | I6: 0.25 | J6: 0 | K6: 0 | L6: 0 | M6: 0 | N6: =SUM(I6:L6)+3*M6 -> 0.25 | O6: 74 | P6: 70 | Q6: 62 | S6: =ROUND(U6*V6,-3) -> 213000 | U6: 71 | V6: =10*300 -> 3000 | W6: 195000 | X6: 0.4
C7: 51 | D7: to | E7: 80 | G7: 0.05 | H7: 0.2 | I7: 0.2 | J7: 0.25 | K7: 0.25 | L7: 0.05 | M7: 0 | N7: =SUM(I7:L7)+3*M7 -> 0.75 | O7: 63 | P7: 50 | Q7: 56 | S7: 206000 | U7: 60.5 | V7: =11*310 -> 3410 | W7: 205000 | X7: 0.2
C8: 81 | D8: to | E8: 120 | G8: 0 | H8: 0.05 | I8: 0.1 | J8: 0.1 | K8: 0.65 | L8: 0.05 | M8: 0.05 | N8: =SUM(I8:L8)+3*M8 -> 1.05 | O8: 62 | P8: 50 | Q8: 50 | S8: 209000 | U8: 54.5 | V8: =12*320 -> 3840 | W8: 210000
C9: 121 | D9: to | E9: 180 | G9: 0 | H9: 0 | I9: 0.05 | J9: 0.05 | K9: 0.55 | L9: 0.05 | M9: 0.3 | N9: =SUM(I9:L9)+3*M9 -> 1.6 | O9: 60 | Q9: 48 | S9: 225000 | U9: 52.5 | V9: =13*330 -> 4290 | W9: 240000
A10: 2.)
C11: 0 | D11: to | E11: 20 | G11: 1 | H11: 0 | I11: 0 | J11: 0 | K11: 0 | L11: 0 | M11: 0 | N11: =SUM(I11:L11)+3*M11 -> 0 | O11: 180 | P11: 64 | Q11: 66 | S11: =ROUND(U11*V11,-3) -> 378000 | U11: 144.9 | V11: =9*290 -> 2610 | W11: 355000 | X11: 0.5
C12: 21 | D12: to | E12: 50 | G12: 0.25 | H12: 0.5 | I12: 0.25 | J12: 0 | K12: 0 | L12: 0 | M12: 0 | N12: =SUM(I12:L12)+3*M12 -> 0.25 | O12: 144 | Q12: 62 | S12: 275000 | U12: 91.5 | V12: =10*300 -> 3000 | W12: 275000 | X12: 0.4
C13: 51 | D13: to | E13: 80 | G13: 0.05 | H13: 0.2 | I13: 0.2 | J13: 0.25 | K13: 0.25 | L13: 0.05 | M13: 0 | N13: =SUM(I13:L13)+3*M13 -> 0.75 | O13: 104 | Q13: 56 | S13: 242000 | U13: 70.9 | V13: =11*310 -> 3410 | W13: 260000 | X13: 0.2
C14: 81 | D14: to | E14: 120 | G14: 0 | H14: 0.05 | I14: 0.1 | J14: 0.1 | K14: 0.65 | L14: 0.05 | M14: 0.05 | N14: =SUM(I14:L14)+3*M14 -> 1.05 | O14: 96 | Q14: 84 | S14: 352000 | U14: 91.7 | V14: =12*320 -> 3840 | W14: 285000
C15: 121 | D15: to | E15: 180 | G15: 0 | H15: 0 | I15: 0.05 | J15: 0.05 | K15: 0.55 | L15: 0.05 | M15: 0.3 | N15: =SUM(I15:L15)+3*M15 -> 1.6 | O15: 88 | Q15: 72 | S15: 353000 | U15: 82.3 | V15: =13*330 -> 4290 | W15: 340000
A16: 3.)
C17: 0 | D17: to | E17: 20 | G17: 1 | H17: 0 | I17: 0 | J17: 0 | K17: 0 | L17: 0 | M17: 0 | N17: =SUM(I17:L17)+3*M17 -> 0 | O17: 180 | Q17: 80 | S17: =ROUND(U17*V17,-3) -> 389000 | U17: 149.2 | V17: =9*290 -> 2610 | W17: 355000 | X17: 0.5
C18: 21 | D18: to | E18: 50 | G18: 0.25 | H18: 0.5 | I18: 0.25 | J18: 0 | K18: 0 | L18: 0 | M18: 0 | N18: =SUM(I18:L18)+3*M18 -> 0.25 | O18: 152 | Q18: 76 | S18: 386000 | U18: 128.6 | V18: =10*300 -> 3000 | W18: 285000 | X18: 0.4
C19: 51 | D19: to | E19: 80 | G19: 0.05 | H19: 0.2 | I19: 0.2 | J19: 0.25 | K19: 0.25 | L19: 0.05 | M19: 0 | N19: =SUM(I19:L19)+3*M19 -> 0.75 | O19: 128 | Q19: 76 | S19: 314000 | U19: 92.1 | V19: =11*310 -> 3410 | W19: 275000 | X19: 0.2
C20: 81 | D20: to | E20: 120 | G20: 0 | H20: 0.05 | I20: 0.1 | J20: 0.1 | K20: 0.65 | L20: 0.05 | M20: 0.05 | N20: =SUM(I20:L20)+3*M20 -> 1.05 | O20: 124 | Q20: 84 | S20: 380000 | U20: 99 | V20: =12*320 -> 3840 | W20: 300000
C21: 121 | D21: to | E21: 180 | G21: 0 | H21: 0 | I21: 0.05 | J21: 0.05 | K21: 0.55 | L21: 0.05 | M21: 0.3 | N21: =SUM(I21:L21)+3*M21 -> 1.6 | O21: 120 | Q21: 76 | S21: 385000 | U21: 89.7 | V21: =13*330 -> 4290 | W21: 365000
A22: 4.)
C23: 0 | D23: to | E23: 20 | G23: 1 | H23: 0 | I23: 0 | J23: 0 | K23: 0 | L23: 0 | M23: 0 | O23: =O17 -> 180 | Q23: 132 | S23: =ROUND(U23*V23,-3) -> 447000 | U23: 171.1 | V23: =9*290 -> 2610 | W23: 370000 | X23: 0.5
C24: 21 | D24: to | E24: 50 | G24: 0.25 | H24: 0.5 | I24: 0.25 | J24: 0 | K24: 0 | L24: 0 | M24: 0 | O24: =O18 -> 152 | Q24: 124 | S24: 435000 | U24: 145 | V24: =10*300 -> 3000 | W24: 320000 | X24: 0.4
C25: 51 | D25: to | E25: 80 | G25: 0.05 | H25: 0.2 | I25: 0.2 | J25: 0.25 | K25: 0.25 | L25: 0.05 | M25: 0 | O25: 128 | Q25: 112 | S25: 417000 | U25: 122.3 | V25: =11*310 -> 3410 | W25: 305000 | X25: 0.2
C26: 81 | D26: to | E26: 120 | G26: 0 | H26: 0.05 | I26: 0.1 | J26: 0.1 | K26: 0.65 | L26: 0.05 | M26: 0.05 | O26: 124 | Q26: 100 | S26: 419000 | U26: 109 | V26: =12*320 -> 3840 | W26: 315000
C27: 121 | D27: to | E27: 180 | G27: 0 | H27: 0 | I27: 0.05 | J27: 0.05 | K27: 0.55 | L27: 0.05 | M27: 0.3 | O27: 120 | Q27: 96 | S27: 450000 | U27: 105 | V27: =13*330 -> 4290 | W27: 370000
A28: 5.)
C29: 0 | D29: to | E29: 20 | G29: 1 | H29: 0 | I29: 0 | J29: 0 | K29: 0 | L29: 0 | M29: 0 | O29: 94 | Q29: 66 | S29: =ROUND(U29*V29,-3) -> 232000 | U29: 88.9 | V29: =9*290 -> 2610 | W29: 230000 | X29: 0.5
C30: 21 | D30: to | E30: 50 | G30: 0.25 | H30: 0.5 | I30: 0.25 | J30: 0 | K30: 0 | L30: 0 | M30: 0 | O30: 86 | Q30: 62 | S30: 224000 | U30: 74.7 | V30: =10*300 -> 3000 | W30: 200000 | X30: 0.4
C31: 51 | D31: to | E31: 80 | G31: 0.05 | H31: 0.2 | I31: 0.2 | J31: 0.25 | K31: 0.25 | L31: 0.05 | M31: 0 | O31: 74 | Q31: 56 | S31: 214000 | U31: 62.8 | V31: =11*310 -> 3410 | W31: 215000 | X31: 0.2
C32: 81 | D32: to | E32: 120 | G32: 0 | H32: 0.05 | I32: 0.1 | J32: 0.1 | K32: 0.65 | L32: 0.05 | M32: 0.05 | O32: 84 | Q32: 62 | S32: 270000 | U32: 70.3 | V32: =12*320 -> 3840 | W32: 225000
C33: 121 | D33: to | E33: 180 | G33: 0 | H33: 0 | I33: 0.05 | J33: 0.05 | K33: 0.55 | L33: 0.05 | M33: 0.3 | O33: 82 | Q33: 62 | S33: 298000 | U33: 69.5 | V33: =13*330 -> 4290 | W33: 265000

Sheet ASV Estimate
B2: Annual Service Volume Estimation (ASV)
K3: 0 | L3: Calculated Cells
B4: Use the capacities determined in the capacity model to estimate ASV | K4: 0 | L4: Input Cells
K5: 0 | L5: Linked Cells (within this worksheet)
B6: ASV Calculations: | C6: {D * H * Cw = ASV} | E6: D Factor | F6: H Factor | G6: Cw | H6: ASV | K6: 150000 | L6: Output Cells
E7: 290 | F7: 9 | G7: =K25 -> 58.02 | H7: =ROUND($E7*$F7*G7,-2) -> 151400
B9: D = Annual Demand/Avg. Peak Month Daily Demand
B10: H = Avg. Peak Month Daily Demand/Avg. Peak Hour Demand
B12: Fleet Mix Index | C12: 21-50 | E12: (C+3D)% | F12: =IF(C12=L16,1,IF(C12=M16,2,3)) -> 2
C13: (C = Large Aircraft (i.e. Large-TP + Large-Jet + Large-757), D = Heavy Aircraft)
B14: Weighted Average Capacity Calculations: | J14: Weighting Factors
B15: Runway use / weather | C15: Hourly Capacity | D15: % Occurrence | E15: % Max Capacity | F15: Weighting Factor | G15: P*C*W | H15: P*W | K15: VMC Mix | L15: IMC Mix Indexes
B16: VMC (Optimal) | C16: 60 | D16: 0.91 | E16: =C16/MAX($C$16:$C$20) -> 1 | F16: =IF(E23=B51,1,(IF(E16>=0.91,1,IF(E16>=0.81,5,IF(E16>=0.66,15,IF(E16>=0.51,20,25)))))) -> 1 | G16: =C16*D16*F16 -> 54.6 | H16: =D16*F16 -> 0.91 | J16: % of Max Cap | K16: 0 - 180 | L16: 0-20 | M16: 21-50 | N16: 51-180
B17: IMC (Instrument) | C17: 38 | D17: 0.09 | E17: =C17/MAX($C$16:$C$20) -> 0.6333333333 | F17: =IF($E$23=$B$51,1,IF(E17>=0.91,1,IF(E17>=0.81,INDEX($L$18:$N$21,1,$F$12),IF(E17>=0.66,INDEX($L$18:$N$21,2,$F$12),IF(E17>=0.51,INDEX($L$18:$N$21,3,$F$12),INDEX($L$18:N24,4,$F$12)))))) -> 1 | G17: =C17*D17*F17 -> 3.42 | H17: =D17*F17 -> 0.09 | J17: 91+ | K17: 1 | L17: 1 | M17: 1 | N17: 1
B18: other 1 | E18: =C18/MAX($C$16:$C$20) -> 0 | F18: =IF($E$23=$B$51,1,IF(E18>=0.91,1,IF(E18>=0.81,INDEX($L$18:$N$21,1,$F$12),IF(E18>=0.66,INDEX($L$18:$N$21,2,$F$12),IF(E18>=0.51,INDEX($L$18:$N$21,3,$F$12),INDEX($L$18:N25,4,$F$12)))))) -> 1 | G18: =C18*D18*F18 -> 0 | H18: =D18*F18 -> 0 | J18: 81 - 90 | K18: 5 | L18: 1 | M18: 3 | N18: 5
B19: other 2 | E19: =C19/MAX($C$16:$C$20) -> 0 | F19: =IF($E$23=$B$51,1,IF(E19>=0.91,1,IF(E19>=0.81,INDEX($L$18:$N$21,1,$F$12),IF(E19>=0.66,INDEX($L$18:$N$21,2,$F$12),IF(E19>=0.51,INDEX($L$18:$N$21,3,$F$12),INDEX($F$31:H37,4,$F$12)))))) -> 1 | G19: =C19*D19*F19 -> 0 | H19: =D19*F19 -> 0 | J19: 66 - 80 | K19: 15 | L19: 2 | M19: 8 | N19: 15
B20: other 3 | E20: =C20/MAX($C$16:$C$20) -> 0 | F20: =IF($E$23=$B$51,1,IF(E20>=0.91,1,IF(E20>=0.81,INDEX($L$18:$N$21,1,$F$12),IF(E20>=0.66,INDEX($L$18:$N$21,2,$F$12),IF(E20>=0.51,INDEX($L$18:$N$21,3,$F$12),INDEX($F$31:H38,4,$F$12)))))) -> 1 | G20: =C20*D20*F20 -> 0 | H20: =D20*F20 -> 0 | J20: 51 - 65 | K20: 20 | L20: 3 | M20: 12 | N20: 20
C21: (C) | D21: (P) | F21: (W) | J21: 0 - 50 | K21: 25 | L21: 4 | M21: 16 | N21: 25
E23: Weighting Factors NOT USED
J24: Above Table is from AC 150/5060-5, Airport Capacity and Delay Table 3-1
D25: =SUM(D16:D20) -> 1 | G25: =SUM(G16:G24) -> 58.02 | H25: =SUM(H16:H24) -> 1 | J25: Cw = | K25: =G25/H25 -> 58.02
B49: Save
B50: Weighting Factors USED
B51: Weighting Factors NOT USED

Sheet Single Model
F2: SPREADSHEET CAPACITY MODEL - SINGLE RUNWAY
B4: INPUTS | K4: OUTPUTS
B6: Meteorological Conditions | C6: VMC, % Occurrence | E6: 0.5 | F6: IMC, % Occurrence | I6: =1-E6 -> 0.5 | P6: VMC | Q6: IMC | R6: Average
K7: Arrivals Only Capacity | P7: =MIN($E$26,$E$27)*((3600-$I$26)/'Single Work Tab'!K77)*IF($C$28="NO",0.9,1) -> 36.68215434 | Q7: =MIN($E$26,$E$27)*ROUND((3600-$I$26)/'Single Work Tab'!K97,0)*IF($C$28="NO",0.9,1) -> 28 | R7: ='Single Model'!E6*P7+'Single Model'!I6*Q7 -> 32.34107717
B8: VMC-Departure-Arrival Separation | C8: 2 | D8: nm | E8: Arrival - Arrival Std. Dev. | H8: 18 | I8: sec | K8: Arrivals Capacity (including TNG's) | P8: =P7*I11 -> 36.68215434 | Q8: =Q7*I11 -> 28 | R8: ='Single Model'!E6*P8+'Single Model'!I6*Q8 -> 32.34107717
B9: IMC-Departure-Arrival Separation | C9: 2 | D9: nm | E9: Departure ROT Std. Dev. | H9: 6 | I9: sec | K9: Departures Only Capacity | P9: =(3600-$I$26)/'Single Work Tab'!K87 -> 51.06382979 | Q9: =(3600-$I$26)/'Single Work Tab'!K107 -> 48.7804878 | R9: ='Single Model'!E6*P9+'Single Model'!I6*Q9 -> 49.9221588
B10: Length of Common Approach | C10: 7 | D10: nm | E10: Z-Value, 95% Confidence | H10: 1.645 | I10: ------------ | K10: Mixed Ops - Departure Capacity (including TNG's) | P10: ='Single Work Tab'!L135+P8-P7 -> 10.63782476 | Q10: ='Single Work Tab'!L145+Q8-Q7 -> 29.60406801 | R10: ='Single Model'!E6*P10+'Single Model'!I6*Q10 -> 20.12094639
B11: Operations Assumption on Touch -N- Go's | D11: 0 | E11: T-Factor (Touch-N-Go's) | I11: =IF(D11>5%,(1+D11)*0.93,1) -> 1 | K11: Total Mixed Operations Capacity | P11: =P8+P10 -> 47.3199791 | Q11: =Q8+Q10 -> 57.60406801 | R11: ='Single Model'!E6*P11+'Single Model'!I6*Q11 -> 52.46202356
D12: a | K12: Arrivals Percentage | P12: =(IF(P7>P8,P7,P8)/P11) -> 0.7751937984 | Q12: =(IF(Q7>Q8,Q7,Q8)/Q11) -> 0.4860767818 | R12: =(IF(R7>R8,R7,R8))/R11 -> 0.6164664452
B13: Aircraft Classification | C13: Small - S | D13: Small - T | E13: Small + | F13: Large-TP | G13: Large-Jet | H13: Large-757 | I13: Heavy
B14: New Category | M14: Pareto Frontier Chart Selection | P14: IMC
B15: Previous FAA Category | C15: A | D15: B | E15: C | F15: C | G15: C | H15: C | I15: D | Q15: =P14&" Arrival -Departure Capacity Frontier" -> IMC Arrival -Departure Capacity Frontier
B16: Maximum Gross Takeoff Weight (MTOW) | C16: Less than 12,500 lbs (Single Engine) | D16: Less than 12,500 lbs (Twin Engine) | E16: Between 12,500 lbs and 41,000 lbs | F16: Between 41,000 lbs and 255,000 lbs | G16: Between 41,000 lbs and 300,000 lbs | H16: Boeing 757 Series | I16: More than 300,000 lbs | K16: Save - Used for Graphing only! | Q16: Used in Graph
B17: Operating Fleet Mix | C17: Enter the actual or expected % share for each aircraft class | I17: =IF('Single Model'!J18<>100%,"(ADJUST VALUES)","") ->  | K17: Departures | L17: Arrivals | M17: Departures | N17: Arrivals | O17: Departures | P17: Arrivals
B18: Share Allocations | C18: 0 | D18: 0 | E18: 0.2 | F18: 0.3 | G18: 0.3 | H18: 0.1 | I18: 0.1 | J18: =SUM('Single Model'!C18:I18) -> 1 | K18: 0 | L18: ='Single Work Tab'!$K$79 -> 36.68215434 | M18: 0 | N18: ='Single Work Tab'!$K$99 -> 27.66735328 | O18: 0 | P18: =E6*L18+I6*N18 -> 32.17475381 | Q18: =0 -> 0 | R18: =IF($P$14="VMC",L18,IF($P$14="IMC",N18,P18)) -> 27.66735328
K19: =P10 -> 10.63782476 | L19: =IF($P$7>$P$8,$P$7,$P$8) -> 36.68215434 | M19: =Q10 -> 29.60406801 | N19: =IF($Q$7>$Q$8,$Q$7,$Q$8) -> 28 | O19: =R10 -> 20.12094639 | P19: =IF($R$7>$R$8,$R$7,$R$8) -> 32.34107717 | Q19: =IF(P14="VMC",K19,IF(P14="IMC",M19,O19)) -> 29.60406801 | R19: =IF($P$14="VMC",L19,IF($P$14="IMC",N19,P19)) -> 28
B20: Arrival Runway Occupancy Time | C20: Enter the estimated time from touchdown to runway exit | K20: =P9 -> 51.06382979 | L20: 0 | M20: =Q9 -> 48.7804878 | N20: 0 | O20: =R9 -> 49.9221588 | P20: 0 | Q20: =IF(P14="VMC",K20,IF(P14="IMC",M20,O20)) -> 48.7804878 | R20: 0
B21: Time in Seconds | C21: 32 | D21: 40 | E21: 42 | F21: 45 | G21: 46 | H21: 51 | I21: 55 | K21: VMC | M21: IMC | O21: Average
B23: Average Approach Speeds | C23: Enter the average suggested manufacturers final approach speed under normal conditions
B24: Velocity in Knots | C24: 90 | D24: 100 | E24: 120 | F24: 130 | G24: 135 | H24: 140 | I24: 150
B26: Runway Exit Availability | C26: Excellent or Default | E26: =IF(C26=$B$174,F174,(IF(C26=$B$175,F175,(IF(C26=$B$176,F176,F177))))) -> 1 | F26: Runway Crossing Delay ? | H26: No | I26: =IF(H26="Yes",(H28*H27),0) -> 0
B27: Full Parallel Taxiway | C27: Full Taxiway | E27: =IF(C27=$B$188,1,(IF(C27=$B$189,0.8,0.5))) -> 1 | F27: Average Crossing Delay | H27: 30 | I27: sec
B28: Airport Traffic Control Tower | C28: Yes | E28: Availability | F28: Crossings during Peak Hour | H28: 20 | I28: Frequency
F29: Use Advanced Features to change ATC procedures and adjust Arrival/Departure mix and priority
B32: Arrival Gap Spacing Buffer | C32: 0 | D32: sec | E32: <----OR----> | F32: Arrival Gap Spacing Buffer | H32: 0 | I32: nmiles | K32: Method #1 for adjusting Arrival/Departure Mix (Gap Spacing)
B33: Departure Hold Buffer | C33: 0 | D33: sec | H33: =IF(AND(C32>0,H32>0),"Use EITHER Time Spacing OR Distance Spacing!","") ->  | K33: Gap Spacing allows more time between arrival pairs to permit more than one departure between pairs.
B35: Arrival-Arrival Separation Requirements | D35: Distance in Nautical Miles (nm) | K35: Method #2 for adjusting Arrival/Departure Mix (Variable Airfield Operations)
B36: Trailing Aircraft | C36: Leading Aircraft | D36: VMC | E36: IMC | K36: Variable operations permits operating with different capacties (e.g. Departure Priority, and Mixed)
B37: Small-S --- Heavy | C37: Small-S, Small-T | D37: 1.9 | E37: 3 | F37: 2.5 | G37: Alternate IMC Minimum | K37: for portions of the design hour.
B38: Small-S --- Small+ | C38: Small + | D38: 1.9 | E38: 3 | F38: 2.5 | G38: If Observed AROT < 50 Seconds,
B39: Large --- Heavy | C39: Small + | D39: 1.9 | E39: 3 | F39: 2.5 | G39: 2.5 nm can be used in place of 3.0 nm
B40: Small-S --- Small+ | C40: Large-TP, Jet | D40: 2.7 | E40: 4
B41: Large --- Heavy | C41: Large-TP, Jet | D41: 1.9 | E41: 3 | F41: 2.5 | K41: Arrival Percentage Variance (Portion of Capacity Hour in Mixed/Arr. Priority/Dep. Priority)
B42: Small-S --- Small+ | C42: Large-757 | D42: 3.7 | E42: 5 | K42: VMC Allocations | M42: 0 | N42: Mixed Operations | Q42: =M42*60 -> 0 | R42: min
B43: Large --- Heavy | C43: Large-757 | D43: 2.7 | E43: 4 | K43: =IF(SUM(M42:M44)<>100%,"ADJUST ALLOCATIONS","") ->  | M43: 0.5 | N43: Arrivals Only | Q43: =M43*60 -> 30 | R43: min
B44: Small-S --- Small-T | C44: Heavy | D44: 4.6 | E44: 6 | M44: 0.5 | N44: Departures Only | Q44: =M44*60 -> 30 | R44: min
B45: Small + --- 757 | C45: Heavy | D45: 3.6 | E45: 5 | M45: =SUM(M42:M44) -> 1 | N45: Total | Q45: =SUM(Q42:Q44) -> 60 | R45: min
B46: Heavy | C46: Heavy | D46: 2.7 | E46: 4 | K46: Calc. % Arr | L46: =Q47/Q49 -> 0.4180493809 | M46: =(Q42/60)*P8 -> 0 | N46: Arrivals (Mixed) | R46: Average
M47: =(Q43/60)*P7 -> 18.34107717 | N47: Arrivals (Only) | Q47: =M46+M47 -> 18.34107717 | R47: Arrivals
B48: Departure - Departure Separation Requirements | D48: Time in Seconds | M48: =(Q42/60)*P10 -> 0 | N48: Departures (Mixed) | Q48: =M48+M49 -> 25.53191489 | R48: Departures
B49: Trailing Aircraft | C49: Leading Aircraft | D49: VMC | E49: IMC | M49: =(Q44/60)*P9 -> 25.53191489 | N49: Departures (Only) | Q49: =Q48+Q47 -> 43.87299206 | R49: Total
B50: Small-S --- Small + | C50: Small-S- Small + | D50: 35 | E50: 60
B51: Large -TP --- Large 757 | C51: Small-S- Small + | D51: 45 | E51: 60
B52: Heavy | C52: Small-S- Small + | D52: 50 | E52: 60
B53: Small-S --- Small+ | C53: Large TP, Large Jet | D53: 80 | E53: 80
B54: Large --- Heavy | C54: Large TP, Large Jet | D54: 60 | E54: 60
B55: Small-S --- Large Jet | C55: Large 757, Heavy | D55: 120 | E55: 120
B56: Large 757, Heavy | C56: Large 757, Heavy | D56: 90 | E56: 90
F173: Final Calculated E-Factor Values)
B174: Excellent or Default | C174: 1 | D174: reduction factor | F174: 1
B175: Good (2-3 Exits) | C175: 0.85 | D175: 0.98 | F175: =C175+IF((SUM($E$18:$H$18)+3*$I$18)>80%,1,((SUM($E$18:$H$18)+3*$I$18)/80%))*(D175-C175) -> 0.98
B176: Poor (1 Exit) | C176: 0.7 | D176: 0.8 | F176: =C176+IF((SUM($E$18:$H$18)+3*$I$18)>80%,1,((SUM($E$18:$H$18)+3*$I$18)/80%))*(D176-C176) -> 0.8
B177: Insufficient (No Exits) | C177: 0.62 | D177: 0.75 | F177: =C177+IF((SUM($E$18:$H$18)+3*$I$18)>80%,1,((SUM($E$18:$H$18)+3*$I$18)/80%))*(D177-C177) -> 0.75
B181: Yes
B182: No
B184: VMC
B185: IMC
B186: Average
B188: Full Taxiway
B189: Partial Taxiway
B190: No Taxiway

Sheet Dual Model
G2: SPREADSHEET CAPACITY MODEL - DUAL PARALLEL RUNWAYS
B4: INPUTS | K4: OUTPUTS
B6: Meteorological Conditions | C6: VMC, % Occurrence | E6: 0.9 | F6: IMC, % Occurrence | I6: =1-E6 -> 0.1 | K6: Runway Allocations | P6: VMC | Q6: IMC | R6: Average
K7: Arrivals only capacity (Rnwy 1) | P7: =$E$30*ROUND(INDEX('Dual Lookup'!$C$5:$J$9,1,'Dual Model'!$C$8),0)*IF($C$32="No",0.9,1) -> 37 | Q7: =$E$30*ROUND(INDEX('Dual Lookup'!$C$15:$J$19,1,'Dual Model'!$C$8),0)*IF($C$32="No",0.9,1) -> 28 | R7: ='Dual Model'!$E$6*P7+'Dual Model'!$I$6*Q7 -> 36.1
B8: Runway Scenario Selection | C8: 8 | D8: <--- Select a Dual Parallel Runway Scenario in cell C8 | K8: Arrivals capacity (Rnwy 1) (inc. TNGs) | P8: =($I$15)*P7 -> 37 | Q8: =($I$15)*Q7 -> 28 | R8: ='Dual Model'!$E$6*P8+'Dual Model'!$I$6*Q8 -> 36.1
B9: Divergent Departure Routes | C9: Yes | D9: 15 deg or more | E9: Runway 1 Operations | G9: =VLOOKUP($C$8,$L$152:$R$159,6,FALSE) -> Mixed Operations | K9: Mixed Departures Capacity (Rnwy 1) (inc. TNGs) | P9: =ROUND(INDEX('Dual Lookup'!$C$5:$J$9,2,'Dual Model'!$C$8),0)+(D15*P8) -> 7 | Q9: =ROUND(INDEX('Dual Lookup'!$C$15:$J$19,2,'Dual Model'!$C$8),0)+(D15*Q8) -> 31 | R9: ='Dual Model'!$E$6*P9+'Dual Model'!$I$6*Q9 -> 9.4
B10: Runway Separation Distance | C10: 750 | D10: ft | E10: Runway 2 Operations | G10: =VLOOKUP($C$8,$L$152:$R$159,7,FALSE) -> Mixed Operations | K10: Arrivals only capacity (Rnwy 2) | P10: =ROUND(INDEX('Dual Lookup'!$C$5:$J$9,3,'Dual Model'!$C$8),0)*$E$30*IF($C$32="No",0.9,1) -> 37 | Q10: =ROUND(INDEX('Dual Lookup'!$C$15:$J$19,3,'Dual Model'!$C$8),0)*$E$30*IF($C$32="No",0.9,1) -> 28 | R10: ='Dual Model'!$E$6*P10+'Dual Model'!$I$6*Q10 -> 36.1
K11: Arrivals capacity (Rnwy 2) (inc. TNGs) | P11: =($I$15)*P10 -> 37 | Q11: =($I$15)*Q10 -> 28 | R11: ='Dual Model'!$E$6*P11+'Dual Model'!$I$6*Q11 -> 36.1
B12: VMC-Departure-Arrival Separation | C12: 2 | D12: nm | E12: Arrival - Arrival Std. Dev. | H12: 18 | I12: sec | K12: Mixed Departures Capacity (Rnwy 2) (inc. TNGs) | P12: =ROUND(INDEX('Dual Lookup'!$C$5:$J$9,4,'Dual Model'!$C$8),0)+(D15*P11) -> 7 | Q12: =ROUND(INDEX('Dual Lookup'!$C$15:$J$19,4,'Dual Model'!$C$8),0)+(D15*Q11) -> 31 | R12: ='Dual Model'!$E$6*P12+'Dual Model'!$I$6*Q12 -> 9.4
B13: IMC-Departure-Arrival Separation | C13: 2 | D13: nm | E13: Departure ROT Std. Dev. | H13: 6 | I13: sec | K13: Departures only capacity (Rnwy 2) | P13: =INDEX('Dual Lookup'!$C$5:$J$10,5,'Dual Model'!$C$8) -> 0 | Q13: =ROUND(INDEX('Dual Lookup'!$C$15:$J$19,5,'Dual Model'!$C$8),0) -> 0 | R13: ='Dual Model'!$E$6*P13+'Dual Model'!$I$6*Q13 -> 0
B14: Length of Common Approach | C14: 7 | D14: nm | E14: Z-Value, 95% Confidence | H14: 1.645 | I14: ------------ | K14: Total Arrivals & Departures Capacity | P14: =IF(P13>0,P13,P12+MAX(P10:P11))+(P9+MAX(P7:P8)) -> 88 | Q14: =IF(Q13>0,Q13,Q12+MAX(Q10:Q11))+(Q9+MAX(Q7:Q8)) -> 118 | R14: ='Dual Model'!$E$6*P14+'Dual Model'!$I$6*Q14 -> 91
B15: Operations Assumption on Touch -N- Go's | D15: 0 | E15: T-Factor (Touch-N-Go's) | I15: =IF(D15>5%,(1+D15)*0.93,1) -> 1 | K15: Arrivals Percentage | P15: =(IF(P8>P7,P8,P7)+IF(P11>P10,P11,P10))/P14 -> 0.8409090909 | Q15: =(IF(Q8>Q7,Q8,Q7)+IF(Q11>Q10,Q11,Q10))/Q14 -> 0.4745762712 | R15: =(IF(R8>R7,R8,R7)+IF(R11>R10,R11,R10))/R14 -> 0.7934065934
B17: Aircraft Classification | C17: Small - S | D17: Small - T | E17: Small + | F17: Large-TP | G17: Large-Jet | H17: Large-757 | I17: Heavy
B18: New Category
B19: Previous FAA Category | C19: A | D19: B | E19: C | F19: C | G19: C | H19: C | I19: D
B20: Maximum Gross Takeoff Weight (MTOW) | C20: Less than 12,500 lbs (Single Engine) | D20: Less than 12,500 lbs (Twin Engine) | E20: Between 12,500 lbs and 41,000 lbs | F20: Between 41,000 lbs and 255,000 lbs | G20: Between 41,000 lbs and 300,000 lbs | H20: Boeing 757 Series | I20: More than 300,000 lbs
B21: Operating Fleet Mix | C21: Enter the actual or expected % share for each aircraft class | I21: =IF('Dual Model'!J22<>100%,"(ADJUST VALUES)","") -> 
B22: Share Allocations | C22: 0 | D22: 0.1 | E22: 0 | F22: 0.3 | G22: 0.5 | H22: 0.05 | I22: 0.05 | J22: =SUM('Dual Model'!C22:I22) -> 1
B24: Arrival Runway Occupancy Time | C24: Enter the estimated time from touchdown to runway exit
B25: Time in Seconds | C25: 32 | D25: 40 | E25: 42 | F25: 45 | G25: 46 | H25: 51 | I25: 55
B27: Average Approach Speeds | C27: Enter the average suggested manufacturers final approach speed under normal conditions
B28: Velocity in Knots | C28: 90 | D28: 100 | E28: 120 | F28: 130 | G28: 135 | H28: 140 | I28: 150
B30: Runway Exit Availability | C30: Excellent (4 or more Exits) | E30: =IF($C$30=$B$161,$F$161,(IF($C$30=$B$162,$F$162,(IF($C$30=$B$163,$F$163,$F$164))))) -> 1 | F30: Runway Crossing Delay ? | H30: No | I30: =IF(H30="Yes",(H31*H32),0) -> 0
B31: Full Parallel Taxiway | C31: Full Taxiway | E31: 1 | F31: Average Crossing Delay | H31: 0 | I31: sec
B32: Airport Traffic Control Tower | C32: Yes | E32: Availability | F32: Crossings during Peak Hour | H32: 0 | I32: Frequency
F33: Use Advanced Features to change ATC procedures and adjust Arrival/Departure mix and priority
B36: Arrival Gap Spacing Buffer | C36: 0 | D36: sec | E36: <----OR----> | F36: Arrival Gap Spacing Buffer | H36: 0 | I36: nmiles | K36: Method #1 for adjusting Arrival/Departure Mix (Gap Spacing)
B37: Departure Hold Buffer | C37: 10 | D37: sec | F37: Diagonal Separation Allowed | H37: 1.5 | I37: nmiles | K37: Gap Spacing allows more time between arrival pairs to permit more than one departure between pairs.
B39: Arrival-Arrival Separation Requirements | D39: Distance in Nautical Miles (nm) | K39: Method #2 for adjusting Arrival/Departure Mix (Variable Airfield Operations)
B40: Trailing Aircraft | D40: VMC | E40: IMC | K40: Variable operations permits operating with different capacties (e.g. Departure Priority, and Mixed)
B41: Small-S --- Heavy | C41: Small-S, Small-T | D41: 1.9 | E41: 3 | F41: 2.5 | G41: Alternate IMC Minimum | K41: for portions of the design hour.
B42: Small-S --- Small+ | C42: Small + | D42: 1.9 | E42: 3 | F42: 2.5 | G42: If Observed AROT < 50 Seconds,
B43: Large --- Heavy | C43: Small + | D43: 1.9 | E43: 3 | F43: 2.5 | G43: 2.5 nm can be used in place of 3.0 nm
B44: Small-S --- Small+ | C44: Large-TP, Jet | D44: 2.7 | E44: 4
B45: Large --- Heavy | C45: Large-TP, Jet | D45: 1.9 | E45: 3 | F45: 2.5
B46: Small-S --- Small+ | C46: Large-757 | D46: 3.7 | E46: 5 | K46: Arrival Percentage Variance (Portion of Capacity Hour in Mixed/Arr. Priority/Dep. Priority)
B47: Large --- Heavy | C47: Large-757 | D47: 2.7 | E47: 4 | K47: VMC Allocations | M47: 1 | N47: Mixed Operations | Q47: =M47*60 -> 60 | R47: min
B48: Small-S --- Small-T | C48: Heavy | D48: 4.6 | E48: 6 | K48: =IF(SUM(M47:M49)<>100%,"ADJUST ALLOCATIONS","") ->  | M48: 0 | N48: Arrivals Only | Q48: =M48*60 -> 0 | R48: min
B49: Small + --- 757 | C49: Heavy | D49: 3.6 | E49: 5 | M49: 0 | N49: Departures Only | Q49: =M49*60 -> 0 | R49: min
B50: Heavy | C50: Heavy | D50: 2.7 | E50: 4 | M50: =SUM(M47:M49) -> 1 | N50: Total | Q50: =SUM(Q47:Q49) -> 60 | R50: min
K51: Calc. % Arr | L51: =Q52/Q54 -> 0.8409090909 | M51: =(Q47/60)*(P8+P11) -> 74 | N51: Arrivals (Mixed) | R51: Average
B52: Departure - Departure Separation Requirements | D52: Time in Seconds | M52: =(Q48/60)*(P7+P10) -> 0 | N52: Arrivals (Only) | Q52: =M52+M51 -> 74 | R52: Arrivals
B53: Trailing Aircraft | C53: Leading Aircraft | D53: VMC | E53: IMC | M53: =(Q47/60)*(P12+P9) -> 14 | N53: Departures (Mixed) | Q53: =M53+M54 -> 14 | R53: Departures
B54: Small-S --- Small + | C54: Small-S- Small + | D54: 35 | E54: 60 | M54: =(Q49/60)*P13 -> 0 | N54: Departures (Only) | Q54: =Q53+Q52 -> 88 | R54: Total
B55: Large -TP --- Large 757 | C55: Small-S- Small + | D55: 45 | E55: 60
B56: Heavy | C56: Small-S- Small + | D56: 50 | E56: 60
B57: Small-S --- Small+ | C57: Large TP, Large Jet | D57: 80 | E57: 80
B58: Large --- Heavy | C58: Large TP, Large Jet | D58: 60 | E58: 60
B59: Small-S --- Large Jet | C59: Large 757, Heavy | D59: 120 | E59: 120
B60: Large 757, Heavy | C60: Large 757, Heavy | D60: 90 | E60: 90
L152: 1 | M152: Dependent, Arr-Only (1), Dep-Only (2) | Q152: Arrivals Only | R152: Departures Only | S152: tabs 1 and 2
L153: 2 | M153: Independent, Arr-Only (1), Dep-Only (2) | Q153: Arrivals Only | R153: Departures Only | S153: tabs 1 and 2
B154: =MAX(P12:P13) -> 7 | C154: =MAX(Q12:Q13) -> 31 | L154: 3 | M154: Dependent, Mixed (1), Dep-Only (2) | Q154: Mixed Operations | R154: Departures Only | S154: tabs 3 and 4
L155: 4 | M155: Independent, Mixed (1), Dep-Only (2) | Q155: Mixed Operations | R155: Departures Only | S155: tabs 1 and 2
B156: ="VMC-Arrivals = "&IF($C$10<2500,"Dependent","Independent") -> VMC-Arrivals = Dependent | L156: 5 | M156: Dependent, Mixed (1), Arr-Only (2) | Q156: Mixed Operations | R156: Arrivals Only | S156: tabs 3 and 4
B157: ="VMC-Departures = "&IF($C$10<700,"Dependent","Independent") -> VMC-Departures = Independent | L157: 6 | M157: Independent, Mixed (1), Arr-Only (2) | Q157: Mixed Operations | R157: Arrivals Only | S157: tabs 1 and 2
B158: ="IMC-Arrivals = "&IF(AND($C$32="Yes",$C$10>3399),"Independent",IF(AND($C$32="No",$C$10>4299),"Independent","Dependent")) -> IMC-Arrivals = Dependent | L158: 7 | M158: Dependent, Mixed (1), Mixed (2) | Q158: Mixed Operations | R158: Mixed Operations
B159: ="IMC-Departures = "&IF($C$10<2500,"Dependent","Independent") -> IMC-Departures = Dependent | L159: 8 | M159: Independent, Mixed (1), Mixed (2) | Q159: Mixed Operations | R159: Mixed Operations
F160: Final Calculated E-Factor Values)
B161: Excellent (4 or more Exits) | C161: 1 | D161: reduction factor | F161: 1 | M161: Yes
B162: Good (2-3 Exits) | C162: 0.85 | D162: 0.98 | F162: =C162+IF((SUM($E$22:$H$22)+3*$I$22)>80%,1,((SUM($E$22:$H$22)+3*$I$22)/80%))*(D162-C162) -> 0.98 | M162: No
B163: Poor (1 Exit) | C163: 0.7 | D163: 0.8 | F163: =C163+IF((SUM($E$22:$H$22)+3*$I$22)>80%,1,((SUM($E$22:$H$22)+3*$I$22)/80%))*(D163-C163) -> 0.8
B164: Insufficient (No Exits) | C164: 0.62 | D164: 0.75 | F164: =C164+IF((SUM($E$22:$H$22)+3*$I$22)>80%,1,((SUM($E$22:$H$22)+3*$I$22)/80%))*(D164-C164) -> 0.75 | M164: Arrivals Only
M165: Mixed Operations
M166: Departures Only
B168: Yes
B169: No
B171: VMC
B172: IMC
B173: Average
B175: Full Taxiway
B176: Partial Taxiway
B177: No Taxiway
B180: 1.5
B181: 2
B182: 3

Sheet Intersecting Model
D2: =IF(C8=8,"SEE DUAL MODEL WITH DIAGONAL APPROACH","") ->  | F2: SPREADSHEET CAPACITY MODEL - DUAL INTERSECTING RUNWAYS
B4: INPUTS | K4: OUTPUTS
B6: Meteorological Conditions | C6: VMC, % Occurrence | E6: 0.9 | F6: IMC, % Occurrence | I6: =1-E6 -> 0.1 | K6: Runway Allocations | P6: VFR | Q6: IFR | R6: Average
K7: Arrivals only capacity (Rnwy 1) | P7: =ROUND(INDEX('Dual Lookup'!$C$26:$J$31,1,'Intersecting Model'!$C$8),0)*E33*IF($C$35="No",0.9,1) -> 29.6 | Q7: =ROUND(INDEX('Dual Lookup'!$C$36:$J$41,1,'Intersecting Model'!$C$8),0)*E33*IF($C$35="No",0.9,1) -> 22.4 | R7: ='Intersecting Model'!E6*P7+'Intersecting Model'!I6*Q7 -> 28.88
B8: Runway Scenario Selection | C8: 3 | D8: <--- Select an Intersecting Runway Scenario in cell C8 | K8: Arrivals capacity (Rnwy 1) (inc. TNGs) | P8: =$I$18*P7 -> 29.6 | Q8: =$I$18*Q7 -> 22.4 | R8: ='Intersecting Model'!E6*P8+'Intersecting Model'!I6*Q8 -> 28.88
B9: Distance to Intersection (Rnwy 1) | C9: 1200 | D9: ft | E9: Runway 1 (Operations) | G9: =VLOOKUP($C$8,$L$160:$R$167,4,FALSE) -> Arrivals Only | K9: Mixed Departures Capacity (Rnwy 1) (inc. TNGs) | P9: =ROUND(INDEX('Dual Lookup'!$C$26:$J$31,2,'Intersecting Model'!$C$8),0)+(P8*D18) -> 0 | Q9: =ROUND(INDEX('Dual Lookup'!$C$36:$J$41,2,'Intersecting Model'!$C$8),0)+(Q8*D18) -> 0 | R9: ='Intersecting Model'!E6*P9+'Intersecting Model'!I6*Q9 -> 0
B10: Distance to Intersection (Rnwy 2) | C10: 2000 | D10: ft | E10: Runway 2 (Operations) | G10: =VLOOKUP($C$8,$L$160:$R$167,5,FALSE) -> Departures Only | K10: Arrivals only capacity (Rnwy 2) | P10: =ROUND(INDEX('Dual Lookup'!$C$26:$J$31,3,'Intersecting Model'!$C$8),0)*E33*IF($C$35="No",0.9,1) -> 0 | Q10: =ROUND(INDEX('Dual Lookup'!$C$36:$J$41,3,'Intersecting Model'!$C$8),0)*E33*IF($C$35="No",0.9,1) -> 0 | R10: ='Intersecting Model'!E6*P10+'Intersecting Model'!I6*Q10 -> 0
B11: Is Rnwy 1 departure in Rnwy 2 RSA ? | C11: No | E11: Divergent Departure Routes | H11: Yes | K11: Arrivals capacity (Rnwy 2) (inc. TNGs) | P11: =$I$18*P10 -> 0 | Q11: =$I$18*Q10 -> 0 | R11: ='Intersecting Model'!E6*P11+'Intersecting Model'!I6*Q11 -> 0
B12: Is Rnwy 1 departure in Rnwy 2 RPZ? | C12: Yes | E12: Arrivals Deceleration Rate (avg.) | H12: 5.3 | I12: ft/sec/sec | K12: Mixed Departures Capacity (Rnwy 2) (inc. TNGs) | P12: =ROUND(INDEX('Dual Lookup'!$C$26:$J$30,4,'Intersecting Model'!$C$8),0)+(P11*D18) -> 0 | Q12: =ROUND(INDEX('Dual Lookup'!$C$36:$J$40,4,'Intersecting Model'!$C$8),0)+(Q11*D18) -> 0 | R12: ='Intersecting Model'!E6*P12+'Intersecting Model'!I6*Q12 -> 0
B13: Potential In-air conflict at Intersection | C13: No | E13: Departures Acceleration Rate (avg.) | H13: 8 | I13: ft/sec/sec | K13: Departures only capacity (Rnwy 2) | P13: =ROUND(INDEX('Dual Lookup'!$C$26:$J$31,5,'Intersecting Model'!$C$8),0) -> 41 | Q13: =ROUND(INDEX('Dual Lookup'!$C$36:$J$41,5,'Intersecting Model'!$C$8),0) -> 31 | R13: ='Intersecting Model'!E6*P13+'Intersecting Model'!I6*Q13 -> 40
K14: Total Arrivals & Departures Capacity | P14: =IF(P13>0,P13,P12+MAX(P10:P11))+(P9+MAX(P7:P8)) -> 70.6 | Q14: =IF(Q13>0,Q13,Q12+MAX(Q10:Q11))+(Q9+MAX(Q7:Q8)) -> 53.4 | R14: ='Intersecting Model'!E6*P14+'Intersecting Model'!I6*Q14 -> 68.88
B15: VMC-Departure-Arrival Separation | C15: 2 | D15: nm | E15: Arrival -Arrival Std. Dev. | H15: 18 | I15: sec | K15: Arrivals Percentage | P15: =(IF(P8>P7,P8,P7)+IF(P11>P10,P11,P10))/P14 -> 0.4192634561 | Q15: =(IF(Q8>Q7,Q8,Q7)+IF(Q11>Q10,Q11,Q10))/Q14 -> 0.4194756554 | R15: =(IF(R8>R7,R8,R7)+IF(R11>R10,R11,R10))/R14 -> 0.4192799071
B16: IMC-Departure-Arrival Separation | C16: 2 | D16: nm | E16: Departure Release Std. Dev. | H16: 6 | I16: sec
B17: Length of Common Approach | C17: 7 | D17: nm | E17: Z-Value, 95% Confidence | H17: 1.645 | I17: ------------
B18: Operations Assumption on Touch -N- Go's | D18: 0 | E18: T-Factor (Touch-N-Go's) | I18: =IF(D18>5%,(1+D18)*0.93,1) -> 1
B20: Aircraft Classification
B21: New Category | C21: Small - S | D21: Small - T | E21: Small + | F21: Large-TP | G21: Large-Jet | H21: Large-757 | I21: Heavy
B22: Previous FAA Category | C22: A | D22: B | E22: C | F22: C | G22: C | H22: C | I22: D
B23: Maximum Gross Takeoff Weight (MTOW) | C23: Less than 12,500 lbs (Single Engine) | D23: Less than 12,500 lbs (Twin Engine) | E23: Between 12,500 lbs and 41,000 lbs | F23: Between 41,000 lbs and 255,000 lbs | G23: Between 41,000 lbs and 300,000 lbs | H23: Boeing 757 Series | I23: More than 300,000 lbs
B24: Operating Fleet Mix | C24: Enter the actual or expected % share for each aircraft class | I24: =IF('Intersecting Model'!J25<>100%,"(ADJUST VALUES)","") -> 
B25: Share Allocations | C25: 0 | D25: 0.1 | E25: 0 | F25: 0.3 | G25: 0.5 | H25: 0.05 | I25: 0.05 | J25: =SUM('Intersecting Model'!C25:I25) -> 1
B27: Arrival Runway Occupancy Time | C27: Enter the estimated time from touchdown to runway exit
B28: Time in Seconds | C28: 32 | D28: 40 | E28: 42 | F28: 45 | G28: 46 | H28: 51 | I28: 55
B30: Average Approach Speeds | C30: Enter the average suggested manufacturers final approach speed under normal conditions
B31: Velocity in Knots | C31: 90 | D31: 100 | E31: 120 | F31: 130 | G31: 135 | H31: 140 | I31: 150
B33: Runway Exit Availability | C33: Poor (1 Exit) | E33: =IF($C$33=$B$162,$G$163,(IF($C$33=$B$163,$G$164,(IF($C$33=$B$164,$G$165,$G$166))))) -> 0.8 | F33: Runway Crossing Demand | H33: No | I33: =IF(H33="Yes",(H34*H35),0) -> 0
B34: Full Parallel Taxiway | C34: Full Taxiway | E34: 1 | F34: Average Crossing Delay | H34: 0 | I34: sec
B35: Airport Traffic Control Tower | C35: Yes | E35: Availability | F35: Crossings during Peak Hour | H35: 0 | I35: Frequency
F36: Use Advanced Features to change ATC procedures and adjust Arrival/Departure mix and priority
B39: Arrival Gap Spacing Buffer | C39: 0 | D39: sec | E39: <----OR----> | F39: Arrival Spacing Buffer | H39: 0 | I39: nmiles | K39: Method #1 for adjusting Arrival/Departure Mix (Gap Spacing)
B40: Departure Hold Buffer | C40: 10 | D40: sec | K40: Gap Spacing allows more time between arrival pairs to permit more than one departure between pairs.
B42: Arrival-Arrival Separation Requirements | D42: Distance in Nautical Miles (nm) | K42: Method #2 for adjusting Arrival/Departure Mix (Variable Airfield Operations)
B43: Trailing Aircraft | C43: Leading Aircraft | D43: VMC | E43: IMC | K43: Variable operations permits operating with different capacties (e.g. Departure Priority, and Mixed)
B44: Small-S --- Heavy | C44: Small-S, Small-T | D44: 1.9 | E44: 3 | F44: 2.5 | G44: Alternate IMC Minimum | K44: for portions of the design hour.
B45: Small-S --- Small+ | C45: Small + | D45: 1.9 | E45: 3 | F45: 2.5 | G45: If Observed AROT < 50 Seconds,
B46: Large --- Heavy | C46: Small + | D46: 1.9 | E46: 3 | F46: 2.5 | G46: 2.5 nm can be used in place of 3.0 nm
B47: Small-S --- Small+ | C47: Large-TP, Jet | D47: 2.7 | E47: 4
B48: Large --- Heavy | C48: Large-TP, Jet | D48: 1.9 | E48: 3 | F48: 2.5
B49: Small-S --- Small+ | C49: Large-757 | D49: 3.7 | E49: 5 | K49: Arrival Percentage Variance (Portion of Capacity Hour in Mixed/Arr. Priority/Dep. Priority)
B50: Large --- Heavy | C50: Large-757 | D50: 2.7 | E50: 4 | K50: VMC Allocations | M50: 0.5 | N50: Mixed Operations | Q50: =M50*60 -> 30 | R50: min
B51: Small-S --- Small-T | C51: Heavy | D51: 4.6 | E51: 6 | K51: =IF(SUM(M50:M52)<>100%,"ADJUST ALLOCATIONS","") ->  | M51: 0.5 | N51: Arrivals Only | Q51: =M51*60 -> 30 | R51: min
B52: Small + --- 757 | C52: Heavy | D52: 3.6 | E52: 5 | M52: 0 | N52: Departures Only | Q52: =M52*60 -> 0 | R52: min
B53: Heavy | C53: Heavy | D53: 2.7 | E53: 4 | M53: =SUM(M50:M52) -> 1 | N53: Total | Q53: =SUM(Q50:Q52) -> 60 | R53: min
D54: 2 | K54: Calc. % Arr | L54: =Q55/Q57 -> 1 | M54: =(Q50/60)*(P8+P11) -> 14.8 | N54: Arrivals (Mixed) | R54: Average
B55: Departure - Departure Separation Requirements | D55: Time in Seconds | M55: =(Q51/60)*(P7+P10) -> 14.8 | N55: Arrivals (Only) | Q55: =M55+M54 -> 29.6 | R55: Arrivals
B56: Trailing Aircraft | C56: Leading Aircraft | D56: VMC | E56: IMC | M56: =(Q50/60)*(P12+P9) -> 0 | N56: Departures (Mixed) | Q56: =M56+M57 -> 0 | R56: Departures
B57: Small-S --- Small + | C57: Small-S- Small + | D57: 35 | E57: 60 | M57: =(Q52/60)*P13 -> 0 | N57: Departures (Only) | Q57: =Q56+Q55 -> 29.6 | R57: Total
B58: Large -TP --- Large 757 | C58: Small-S- Small + | D58: 45 | E58: 60
B59: Heavy | C59: Small-S- Small + | D59: 50 | E59: 60
B60: Small-S --- Small+ | C60: Large TP, Large Jet | D60: 80 | E60: 80
B61: Large --- Heavy | C61: Large TP, Large Jet | D61: 60 | E61: 60
B62: Small-S --- Large Jet | C62: Large 757, Heavy | D62: 120 | E62: 120
B63: Large 757, Heavy | C63: Large 757, Heavy | D63: 90 | E63: 90
M156: VMC
M157: IMC
M158: Average
O159: 1 | P159: 2
L160: 1 | M160: Close Intersecting | O160: Arrivals Only | P160: Departures Only
L161: 2 | M161: Close Intersecting | O161: Mixed Operations | P161: Departures Only
B162: Excellent (4 or more Exits) | G162: Final Calculated E-Factor Values) | L162: 3 | M162: Far Intersecting | O162: Arrivals Only | P162: Departures Only
B163: Good (2-3 Exits) | D163: 1 | E163: reduction factor | G163: 1 | L163: 4 | M163: Far Intersecting | O163: Mixed Operations | P163: Departures Only
B164: Poor (1 Exit) | D164: 0.85 | E164: 0.98 | G164: =D164+IF((SUM($E$25:$H$25)+3*$I$25)>80%,1,((SUM($E$25:$H$25)+3*$I$25)/80%))*(E164-D164) -> 0.98 | L164: 5 | M164: Open Converging | O164: Arrivals Only | P164: Departures Only
B165: Insufficient (No Exits) | D165: 0.7 | E165: 0.8 | G165: =D165+IF((SUM($E$25:$H$25)+3*$I$25)>80%,1,((SUM($E$25:$H$25)+3*$I$25)/80%))*(E165-D165) -> 0.8 | L165: 6 | M165: Open Converging | O165: Mixed Operations | P165: Departures Only
D166: 0.62 | E166: 0.75 | G166: =D166+IF((SUM($E$25:$H$25)+3*$I$25)>80%,1,((SUM($E$25:$H$25)+3*$I$25)/80%))*(E166-D166) -> 0.75 | L166: 7 | M166: Open Diverging | O166: Arrivals Only | P166: Departures Only
B167: Full Taxiway | L167: 8 | M167: Open Diverging | O167: Mixed Operations | P167: Departures Only
B168: Partial Taxiway
B169: No Taxiway | M169: Yes
M170: No
B171: Yes
B172: No | M172: Arrivals Only
M173: Mixed Operations
M174: Departures Only
M176: Exit Before intersection
M177: Exit After intersection

Sheet Single Work Tab (hidden)
B1: Single Model Worksheet with working Calculated Values
B3: Arrivals Pairing Probability Matrix | D3: (chance of landing behind an aircraft from each class) | K3: 0 | L3: Calculated Cells
C4: Small - S | D4: Small - T | E4: Small + | F4: Large-TP | G4: Large-Jet | H4: Large-757 | I4: Heavy | K4: 0 | L4: Linked Input Cells
B5: Small - S | C5: ='Single Model'!$C18*'Single Model'!C18 -> 0 | D5: ='Single Model'!$C18*'Single Model'!D18 -> 0 | E5: ='Single Model'!$C18*'Single Model'!E18 -> 0 | F5: ='Single Model'!$C18*'Single Model'!F18 -> 0 | G5: ='Single Model'!$C18*'Single Model'!G18 -> 0 | H5: ='Single Model'!$C18*'Single Model'!H18 -> 0 | I5: ='Single Model'!$C18*'Single Model'!I18 -> 0 | K5: 0 | L5: Linked Cells (within this worksheet)
B6: Small - T | C6: ='Single Model'!$D18*'Single Model'!C18 -> 0 | D6: ='Single Model'!$D18*'Single Model'!D18 -> 0 | E6: ='Single Model'!$D18*'Single Model'!E18 -> 0 | F6: ='Single Model'!$D18*'Single Model'!F18 -> 0 | G6: ='Single Model'!$D18*'Single Model'!G18 -> 0 | H6: ='Single Model'!$D18*'Single Model'!H18 -> 0 | I6: ='Single Model'!$D18*'Single Model'!I18 -> 0
B7: Small + | C7: ='Single Model'!$E18*'Single Model'!C18 -> 0 | D7: ='Single Model'!$E18*'Single Model'!D18 -> 0 | E7: ='Single Model'!$E18*'Single Model'!E18 -> 0.04 | F7: ='Single Model'!$E18*'Single Model'!F18 -> 0.06 | G7: ='Single Model'!$E18*'Single Model'!G18 -> 0.06 | H7: ='Single Model'!$E18*'Single Model'!H18 -> 0.02 | I7: ='Single Model'!$E18*'Single Model'!I18 -> 0.02
B8: Large-TP | C8: ='Single Model'!$F18*'Single Model'!C18 -> 0 | D8: ='Single Model'!$F18*'Single Model'!D18 -> 0 | E8: ='Single Model'!$F18*'Single Model'!E18 -> 0.06 | F8: ='Single Model'!$F18*'Single Model'!F18 -> 0.09 | G8: ='Single Model'!$F18*'Single Model'!G18 -> 0.09 | H8: ='Single Model'!$F18*'Single Model'!H18 -> 0.03 | I8: ='Single Model'!$F18*'Single Model'!I18 -> 0.03
B9: Large-Jet | C9: ='Single Model'!$G18*'Single Model'!C18 -> 0 | D9: ='Single Model'!$G18*'Single Model'!D18 -> 0 | E9: ='Single Model'!$G18*'Single Model'!E18 -> 0.06 | F9: ='Single Model'!$G18*'Single Model'!F18 -> 0.09 | G9: ='Single Model'!$G18*'Single Model'!G18 -> 0.09 | H9: ='Single Model'!$G18*'Single Model'!H18 -> 0.03 | I9: ='Single Model'!$G18*'Single Model'!I18 -> 0.03
B10: Large-757 | C10: ='Single Model'!$H18*'Single Model'!C18 -> 0 | D10: ='Single Model'!$H18*'Single Model'!D18 -> 0 | E10: ='Single Model'!$H18*'Single Model'!E18 -> 0.02 | F10: ='Single Model'!$H18*'Single Model'!F18 -> 0.03 | G10: ='Single Model'!$H18*'Single Model'!G18 -> 0.03 | H10: ='Single Model'!$H18*'Single Model'!H18 -> 0.01 | I10: ='Single Model'!$H18*'Single Model'!I18 -> 0.01 | J10: Summary Check
B11: Heavy | C11: ='Single Model'!$I18*'Single Model'!C18 -> 0 | D11: ='Single Model'!$I18*'Single Model'!D18 -> 0 | E11: ='Single Model'!$I18*'Single Model'!E18 -> 0.02 | F11: ='Single Model'!$I18*'Single Model'!F18 -> 0.03 | G11: ='Single Model'!$I18*'Single Model'!G18 -> 0.03 | H11: ='Single Model'!$I18*'Single Model'!H18 -> 0.01 | I11: ='Single Model'!$I18*'Single Model'!I18 -> 0.01 | J11: Total = | K11: =SUM(C5:I11) -> 1
B13: VMC Required Separation for arrivals following an aircraft from each class | F13: Distance in Nautical Miles | K13: Average separation for TNGs
C14: Small - S | D14: Small - T | E14: Small + | F14: Large-TP | G14: Large-Jet | H14: Large-757 | I14: Heavy | K14: =SUMPRODUCT($C$5:$C$11,K15:K21)+SUMPRODUCT($D$5:$D$11,L15:L21)+SUMPRODUCT($E$5:$E$11,M15:M21)+SUMPRODUCT($F$5:$F$11,N15:N21)+SUMPRODUCT($G$5:$G$11,O15:O21)+SUMPRODUCT($H$5:$H$11,P15:P21)+SUMPRODUCT($I$5:$I$11,Q15:Q21) -> 61.91410989 | L14: seconds
B15: Small - S | C15: ='Single Model'!D37+'Single Model'!$H$32 -> 1.9 | D15: =$C$15 -> 1.9 | E15: 1.9 | F15: 1.9 | G15: 1.9 | H15: 1.9 | I15: 1.9 | K15: =C15*3600/'Single Model'!C$24 -> 76 | L15: =D15*3600/'Single Model'!D$24 -> 68.4 | M15: =E15*3600/'Single Model'!E$24 -> 57 | N15: =F15*3600/'Single Model'!F$24 -> 52.61538462 | O15: =G15*3600/'Single Model'!G$24 -> 50.66666667 | P15: =H15*3600/'Single Model'!H$24 -> 48.85714286 | Q15: =I15*3600/'Single Model'!I$24 -> 45.6
B16: Small - T | C16: =$C$15 -> 1.9 | D16: 1.9 | E16: 1.9 | F16: 1.9 | G16: 1.9 | H16: 1.9 | I16: 1.9 | K16: =C16*3600/'Single Model'!C$24 -> 76 | L16: =D16*3600/'Single Model'!D$24 -> 68.4 | M16: =E16*3600/'Single Model'!E$24 -> 57 | N16: =F16*3600/'Single Model'!F$24 -> 52.61538462 | O16: =G16*3600/'Single Model'!G$24 -> 50.66666667 | P16: =H16*3600/'Single Model'!H$24 -> 48.85714286 | Q16: =I16*3600/'Single Model'!I$24 -> 45.6
B17: Small + | C17: ='Single Model'!D38+'Single Model'!$H$32 -> 1.9 | D17: =$C$17 -> 1.9 | E17: =$C$17 -> 1.9 | F17: ='Single Model'!D39+'Single Model'!$H$32 -> 1.9 | G17: =$F$17 -> 1.9 | H17: =$F$17 -> 1.9 | I17: =$F$17 -> 1.9 | K17: =C17*3600/'Single Model'!C$24 -> 76 | L17: =D17*3600/'Single Model'!D$24 -> 68.4 | M17: =E17*3600/'Single Model'!E$24 -> 57 | N17: =F17*3600/'Single Model'!F$24 -> 52.61538462 | O17: =G17*3600/'Single Model'!G$24 -> 50.66666667 | P17: =H17*3600/'Single Model'!H$24 -> 48.85714286 | Q17: =I17*3600/'Single Model'!I$24 -> 45.6
B18: Large-TP | C18: ='Single Model'!$D$40+'Single Model'!$H$32 -> 2.7 | D18: =$C$18 -> 2.7 | E18: =$C$18 -> 2.7 | F18: ='Single Model'!D41+'Single Model'!$H$32 -> 1.9 | G18: =$F$18 -> 1.9 | H18: 1.9 | I18: 1.9 | K18: =C18*3600/'Single Model'!C$24 -> 108 | L18: =D18*3600/'Single Model'!D$24 -> 97.2 | M18: =E18*3600/'Single Model'!E$24 -> 81 | N18: =F18*3600/'Single Model'!F$24 -> 52.61538462 | O18: =G18*3600/'Single Model'!G$24 -> 50.66666667 | P18: =H18*3600/'Single Model'!H$24 -> 48.85714286 | Q18: =I18*3600/'Single Model'!I$24 -> 45.6
B19: Large-Jet | C19: ='Single Model'!$D$40+'Single Model'!$H$32 -> 2.7 | D19: =$C$19 -> 2.7 | E19: =$C$19 -> 2.7 | F19: =$F$18 -> 1.9 | G19: 1.9 | H19: 1.9 | I19: 1.9 | K19: =C19*3600/'Single Model'!C$24 -> 108 | L19: =D19*3600/'Single Model'!D$24 -> 97.2 | M19: =E19*3600/'Single Model'!E$24 -> 81 | N19: =F19*3600/'Single Model'!F$24 -> 52.61538462 | O19: =G19*3600/'Single Model'!G$24 -> 50.66666667 | P19: =H19*3600/'Single Model'!H$24 -> 48.85714286 | Q19: =I19*3600/'Single Model'!I$24 -> 45.6
B20: Large-757 | C20: ='Single Model'!D42+'Single Model'!H32 -> 3.7 | D20: =$C$20 -> 3.7 | E20: =$C$20 -> 3.7 | F20: ='Single Model'!D43+'Single Model'!$H$32 -> 2.7 | G20: =$F$20 -> 2.7 | H20: =$F$20 -> 2.7 | I20: =$F$20 -> 2.7 | K20: =C20*3600/'Single Model'!C$24 -> 148 | L20: =D20*3600/'Single Model'!D$24 -> 133.2 | M20: =E20*3600/'Single Model'!E$24 -> 111 | N20: =F20*3600/'Single Model'!F$24 -> 74.76923077 | O20: =G20*3600/'Single Model'!G$24 -> 72 | P20: =H20*3600/'Single Model'!H$24 -> 69.42857143 | Q20: =I20*3600/'Single Model'!I$24 -> 64.8
B21: Heavy | C21: ='Single Model'!D44+'Single Model'!$H$32 -> 4.6 | D21: =$C$21 -> 4.6 | E21: ='Single Model'!D45+'Single Model'!$H$32 -> 3.6 | F21: =$E$21 -> 3.6 | G21: =$E$21 -> 3.6 | H21: =$E$21 -> 3.6 | I21: ='Single Model'!D46+'Single Model'!$H$32 -> 2.7 | K21: =C21*3600/'Single Model'!C$24 -> 184 | L21: =D21*3600/'Single Model'!D$24 -> 165.6 | M21: =E21*3600/'Single Model'!E$24 -> 108 | N21: =F21*3600/'Single Model'!F$24 -> 99.69230769 | O21: =G21*3600/'Single Model'!G$24 -> 96 | P21: =H21*3600/'Single Model'!H$24 -> 92.57142857 | Q21: =I21*3600/'Single Model'!I$24 -> 64.8
B23: IMC Required Separation for arrivals following an aircraft from each class | F23: Distance in Nautical Miles
C24: Small - S | D24: Small - T | E24: Small + | F24: Large-TP | G24: Large-Jet | H24: Large-757 | I24: Heavy | K24: =SUMPRODUCT($C$5:$C$11,K25:K31)+SUMPRODUCT($D$5:$D$11,L25:L31)+SUMPRODUCT($E$5:$E$11,M25:M31)+SUMPRODUCT($F$5:$F$11,N25:N31)+SUMPRODUCT($G$5:$G$11,O25:O31)+SUMPRODUCT($H$5:$H$11,P25:P31)+SUMPRODUCT($I$5:$I$11,Q25:Q31) -> 93.9810989 | L24: seconds
B25: Small - S | C25: ='Single Model'!$E$37+'Single Model'!$H$32 -> 3 | D25: =$C$25 -> 3 | E25: 3 | F25: 3 | G25: =$C$25 -> 3 | H25: 3 | I25: 3 | K25: =C25*3600/'Single Model'!C$24 -> 120 | L25: =D25*3600/'Single Model'!D$24 -> 108 | M25: =E25*3600/'Single Model'!E$24 -> 90 | N25: =F25*3600/'Single Model'!F$24 -> 83.07692308 | O25: =G25*3600/'Single Model'!G$24 -> 80 | P25: =H25*3600/'Single Model'!H$24 -> 77.14285714 | Q25: =I25*3600/'Single Model'!I$24 -> 72
B26: Small - T | C26: =$C$25 -> 3 | D26: 3 | E26: 3 | F26: 3 | G26: =$C$25 -> 3 | H26: 3 | I26: 3 | K26: =C26*3600/'Single Model'!C$24 -> 120 | L26: =D26*3600/'Single Model'!D$24 -> 108 | M26: =E26*3600/'Single Model'!E$24 -> 90 | N26: =F26*3600/'Single Model'!F$24 -> 83.07692308 | O26: =G26*3600/'Single Model'!G$24 -> 80 | P26: =H26*3600/'Single Model'!H$24 -> 77.14285714 | Q26: =I26*3600/'Single Model'!I$24 -> 72
B27: Small + | C27: ='Single Model'!$E$38+'Single Model'!$H$32 -> 3 | D27: =$C$27 -> 3 | E27: =$C$27 -> 3 | F27: ='Single Model'!$E$39+'Single Model'!$H$32 -> 3 | G27: =$F$27 -> 3 | H27: =$F$27 -> 3 | I27: =$F$27 -> 3 | K27: =C27*3600/'Single Model'!C$24 -> 120 | L27: =D27*3600/'Single Model'!D$24 -> 108 | M27: =E27*3600/'Single Model'!E$24 -> 90 | N27: =F27*3600/'Single Model'!F$24 -> 83.07692308 | O27: =G27*3600/'Single Model'!G$24 -> 80 | P27: =H27*3600/'Single Model'!H$24 -> 77.14285714 | Q27: =I27*3600/'Single Model'!I$24 -> 72
B28: Large-TP | C28: ='Single Model'!E40+'Single Model'!$H$32 -> 4 | D28: =$C$28 -> 4 | E28: =$C$28 -> 4 | F28: ='Single Model'!$E$41+'Single Model'!$H$32 -> 3 | G28: =$F$28 -> 3 | H28: 3 | I28: 3 | K28: =C28*3600/'Single Model'!C$24 -> 160 | L28: =D28*3600/'Single Model'!D$24 -> 144 | M28: =E28*3600/'Single Model'!E$24 -> 120 | N28: =F28*3600/'Single Model'!F$24 -> 83.07692308 | O28: =G28*3600/'Single Model'!G$24 -> 80 | P28: =H28*3600/'Single Model'!H$24 -> 77.14285714 | Q28: =I28*3600/'Single Model'!I$24 -> 72
B29: Large-Jet | C29: ='Single Model'!E40+'Single Model'!$H$32 -> 4 | D29: =$C$29 -> 4 | E29: =$C$29 -> 4 | F29: =$F$28 -> 3 | G29: 3 | H29: 3 | I29: 3 | K29: =C29*3600/'Single Model'!C$24 -> 160 | L29: =D29*3600/'Single Model'!D$24 -> 144 | M29: =E29*3600/'Single Model'!E$24 -> 120 | N29: =F29*3600/'Single Model'!F$24 -> 83.07692308 | O29: =G29*3600/'Single Model'!G$24 -> 80 | P29: =H29*3600/'Single Model'!H$24 -> 77.14285714 | Q29: =I29*3600/'Single Model'!I$24 -> 72
B30: Large-757 | C30: ='Single Model'!E42+'Single Model'!$H$32 -> 5 | D30: =$C$30 -> 5 | E30: =$C$30 -> 5 | F30: ='Single Model'!E43+'Single Model'!$H$32 -> 4 | G30: =$F$30 -> 4 | H30: =$F$30 -> 4 | I30: =$F$30 -> 4 | K30: =C30*3600/'Single Model'!C$24 -> 200 | L30: =D30*3600/'Single Model'!D$24 -> 180 | M30: =E30*3600/'Single Model'!E$24 -> 150 | N30: =F30*3600/'Single Model'!F$24 -> 110.7692308 | O30: =G30*3600/'Single Model'!G$24 -> 106.6666667 | P30: =H30*3600/'Single Model'!H$24 -> 102.8571429 | Q30: =I30*3600/'Single Model'!I$24 -> 96
B31: Heavy | C31: ='Single Model'!E44+'Single Model'!$H$32 -> 6 | D31: =$C$31 -> 6 | E31: ='Single Model'!E45+'Single Model'!$H$32 -> 5 | F31: =$E$31 -> 5 | G31: =$E$31 -> 5 | H31: =$E$31 -> 5 | I31: ='Single Model'!E46+'Single Model'!$H$32 -> 4 | K31: =C31*3600/'Single Model'!C$24 -> 240 | L31: =D31*3600/'Single Model'!D$24 -> 216 | M31: =E31*3600/'Single Model'!E$24 -> 150 | N31: =F31*3600/'Single Model'!F$24 -> 138.4615385 | O31: =G31*3600/'Single Model'!G$24 -> 133.3333333 | P31: =H31*3600/'Single Model'!H$24 -> 128.5714286 | Q31: =I31*3600/'Single Model'!I$24 -> 96
B33: VMC Required Separation for departures following an aircraft from each class | F33: Time in seconds
C34: Small - S | D34: Small - T | E34: Small + | F34: Large-TP | G34: Large-Jet | H34: Large-757 | I34: Heavy
B35: Small - S | C35: ='Single Model'!$D$50+'Single Model'!$C$33 -> 35 | D35: =$C$35 -> 35 | E35: =$C$35 -> 35 | F35: ='Single Model'!$D$51+'Single Model'!$C$33 -> 45 | G35: =$F$35 -> 45 | H35: 45 | I35: ='Single Model'!$D$52+'Single Model'!$C$33 -> 50
B36: Small - T | C36: =$C$35 -> 35 | D36: 35 | E36: 35 | F36: =$F$35 -> 45 | G36: 45 | H36: 45 | I36: =$I$35 -> 50
B37: Small + | C37: 35 | D37: 35 | E37: 35 | F37: =$F$35 -> 45 | G37: 45 | H37: 45 | I37: =$I$35 -> 50
B38: Large-TP | C38: ='Single Model'!$D$53+'Single Model'!$C$33 -> 80 | D38: =$C$38 -> 80 | E38: =$C$38 -> 80 | F38: ='Single Model'!$D$54+'Single Model'!$C$33 -> 60 | G38: =$F$38 -> 60 | H38: 60 | I38: 60
B39: Large-Jet | C39: =$C$38 -> 80 | D39: =$C$38 -> 80 | E39: =$C$38 -> 80 | F39: =$F$38 -> 60 | G39: 60 | H39: 60 | I39: 60
B40: Large-757 | C40: =$C$41 -> 120 | D40: 120 | E40: 120 | F40: 120 | G40: 120 | H40: 120 | I40: =$I$41 -> 90
B41: Heavy | C41: ='Single Model'!$D$55+'Single Model'!$C$33 -> 120 | D41: =$C$41 -> 120 | E41: =$C$41 -> 120 | F41: =$C$41 -> 120 | G41: =$C$41 -> 120 | H41: =$C$41 -> 120 | I41: ='Single Model'!$D$56+'Single Model'!$C$33 -> 90
B43: IMC Required Separation for departures following an aircraft from each class | F43: Time in seconds
C44: Small - S | D44: Small - T | E44: Small + | F44: Large-TP | G44: Large-Jet | H44: Large-757 | I44: Heavy
B45: Small - S | C45: ='Single Model'!$E$50+'Single Model'!$C$33 -> 60 | D45: =$C$45 -> 60 | E45: =$C$45 -> 60 | F45: ='Single Model'!$E$51+'Single Model'!$C$33 -> 60 | G45: =$C$45 -> 60 | H45: =$C$45 -> 60 | I45: ='Single Model'!$E$52+'Single Model'!$C$33 -> 60
B46: Small - T | C46: =$C$45 -> 60 | D46: =$C$46 -> 60 | E46: 60 | F46: 60 | G46: 60 | H46: 60 | I46: 60
B47: Small + | C47: =$C$45 -> 60 | D47: =$C$47 -> 60 | E47: 60 | F47: 60 | G47: 60 | H47: 60 | I47: 60
B48: Large-TP | C48: ='Single Model'!$E$53+'Single Model'!$C$33 -> 80 | D48: =$C$48 -> 80 | E48: 80 | F48: ='Single Model'!E54+'Single Model'!$C$33 -> 60 | G48: =$F$48 -> 60 | H48: 60 | I48: 60
B49: Large-Jet | C49: 80 | D49: 80 | E49: 80 | F49: =$F$48 -> 60 | G49: 60 | H49: 60 | I49: 60
B50: Large-757 | C50: =$C$51 -> 120 | D50: 120 | E50: 120 | F50: 120 | G50: 120 | H50: 120 | I50: =$I$51 -> 90
B51: Heavy | C51: ='Single Model'!E55+'Single Model'!$C$33 -> 120 | D51: =$C$51 -> 120 | E51: =$C$51 -> 120 | F51: =$C$51 -> 120 | G51: =$C$51 -> 120 | H51: =$C$51 -> 120 | I51: ='Single Model'!E56+'Single Model'!$C$33 -> 90
B54: VMC Required Separation for arrivals following an aircraft from each class | F54: Time in Seconds
C55: Small - S | D55: Small - T | E55: Small + | F55: Large-TP | G55: Large-Jet | H55: Large-757 | I55: Heavy
B56: Small - S | C56: =MAXA(3600*C15/('Single Model'!$C$24)+'Single Model'!$H$10*'Single Model'!$H$8+MAXA(0,'Single Model'!$C$10*3600*(1/'Single Model'!$C$24-1/'Single Model'!$C$24)),'Single Model'!$C$21+'Single Model'!$H$10*SQRT('Single Model'!$H$8^2+'Single Model'!$H$9^2))+'Single Model'!$C$32 -> 105.61 | D56: =MAXA(3600*D15/('Single Model'!$D$24)+'Single Model'!$H$10*'Single Model'!$H$8+MAXA(0,'Single Model'!$C$10*3600*(1/'Single Model'!$D$24-1/'Single Model'!$C$24)),'Single Model'!$C$21+'Single Model'!$H$10*SQRT('Single Model'!$H$8^2+'Single Model'!$H$9^2))+'Single Model'!$C$32 -> 98.01 | E56: =MAXA(3600*E15/('Single Model'!$E$24)+'Single Model'!$H$10*'Single Model'!$H$8+MAXA(0,'Single Model'!$C$10*3600*(1/'Single Model'!$E$24-1/'Single Model'!$C$24)),'Single Model'!$C$21+'Single Model'!$H$10*SQRT('Single Model'!$H$8^2+'Single Model'!$H$9^2))+'Single Model'!$C$32 -> 86.61 | F56: =MAXA(3600*F15/('Single Model'!$F$24)+'Single Model'!$H$10*'Single Model'!$H$8+MAXA(0,'Single Model'!$C$10*3600*(1/'Single Model'!$F$24-1/'Single Model'!$C$24)),'Single Model'!$C$21+'Single Model'!$H$10*SQRT('Single Model'!$H$8^2+'Single Model'!$H$9^2))+'Single Model'!$C$32 -> 82.22538462 | G56: =MAXA(3600*G15/('Single Model'!$G$24)+'Single Model'!$H$10*'Single Model'!$H$8+MAXA(0,'Single Model'!$C$10*3600*(1/'Single Model'!$G$24-1/'Single Model'!$C$24)),'Single Model'!$C$21+'Single Model'!$H$10*SQRT('Single Model'!$H$8^2+'Single Model'!$H$9^2))+'Single Model'!$C$32 -> 80.27666667 | H56: =MAXA(3600*H15/('Single Model'!$H$24)+'Single Model'!$H$10*'Single Model'!$H$8+MAXA(0,'Single Model'!$C$10*3600*(1/'Single Model'!$H$24-1/'Single Model'!$C$24)),'Single Model'!$C$21+'Single Model'!$H$10*SQRT('Single Model'!$H$8^2+'Single Model'!$H$9^2))+'Single Model'!$C$32 -> 78.46714286 | I56: =MAXA(3600*I15/('Single Model'!$I$24)+'Single Model'!$H$10*'Single Model'!$H$8+MAXA(0,'Single Model'!$C$10*3600*(1/'Single Model'!$I$24-1/'Single Model'!$C$24)),'Single Model'!$C$21+'Single Model'!$H$10*SQRT('Single Model'!$H$8^2+'Single Model'!$H$9^2))+'Single Model'!$C$32 -> 75.21
B57: Small - T | C57: =MAXA(3600*C16/('Single Model'!$C$24)+'Single Model'!$H$10*'Single Model'!$H$8+MAXA(0,'Single Model'!$C$10*3600*(1/'Single Model'!$C$24-1/'Single Model'!$D$24)),'Single Model'!$D$21+'Single Model'!$H$10*SQRT('Single Model'!$H$8^2+'Single Model'!$H$9^2))+'Single Model'!$C$32 -> 133.61 | D57: =MAXA(3600*D16/('Single Model'!$D$24)+'Single Model'!$H$10*'Single Model'!$H$8+MAXA(0,'Single Model'!$C$10*3600*(1/'Single Model'!$D$24-1/'Single Model'!$D$24)),'Single Model'!$D$21+'Single Model'!$H$10*SQRT('Single Model'!$H$8^2+'Single Model'!$H$9^2))+'Single Model'!$C$32 -> 98.01 | E57: =MAXA(3600*E16/('Single Model'!$E$24)+'Single Model'!$H$10*'Single Model'!$H$8+MAXA(0,'Single Model'!$C$10*3600*(1/'Single Model'!$E$24-1/'Single Model'!$D$24)),'Single Model'!$D$21+'Single Model'!$H$10*SQRT('Single Model'!$H$8^2+'Single Model'!$H$9^2))+'Single Model'!$C$32 -> 86.61 | F57: =MAXA(3600*F16/('Single Model'!$F$24)+'Single Model'!$H$10*'Single Model'!$H$8+MAXA(0,'Single Model'!$C$10*3600*(1/'Single Model'!$F$24-1/'Single Model'!$D$24)),'Single Model'!$D$21+'Single Model'!$H$10*SQRT('Single Model'!$H$8^2+'Single Model'!$H$9^2))+'Single Model'!$C$32 -> 82.22538462 | G57: =MAXA(3600*G16/('Single Model'!$G$24)+'Single Model'!$H$10*'Single Model'!$H$8+MAXA(0,'Single Model'!$C$10*3600*(1/'Single Model'!$G$24-1/'Single Model'!$D$24)),'Single Model'!$D$21+'Single Model'!$H$10*SQRT('Single Model'!$H$8^2+'Single Model'!$H$9^2))+'Single Model'!$C$32 -> 80.27666667 | H57: =MAXA(3600*H16/('Single Model'!$H$24)+'Single Model'!$H$10*'Single Model'!$H$8+MAXA(0,'Single Model'!$C$10*3600*(1/'Single Model'!$H$24-1/'Single Model'!$D$24)),'Single Model'!$D$21+'Single Model'!$H$10*SQRT('Single Model'!$H$8^2+'Single Model'!$H$9^2))+'Single Model'!$C$32 -> 78.46714286 | I57: =MAXA(3600*I16/('Single Model'!$I$24)+'Single Model'!$H$10*'Single Model'!$H$8+MAXA(0,'Single Model'!$C$10*3600*(1/'Single Model'!$I$24-1/'Single Model'!$D$24)),'Single Model'!$D$21+'Single Model'!$H$10*SQRT('Single Model'!$H$8^2+'Single Model'!$H$9^2))+'Single Model'!$C$32 -> 75.21
B58: Small + | C58: =MAXA(3600*C17/('Single Model'!$C$24)+'Single Model'!$H$10*'Single Model'!$H$8+MAXA(0,'Single Model'!$C$10*3600*(1/'Single Model'!$C$24-1/'Single Model'!$E$24)),'Single Model'!$E$21+'Single Model'!$H$10*SQRT('Single Model'!$H$8^2+'Single Model'!$H$9^2))+'Single Model'!$C$32 -> 175.61 | D58: =MAXA(3600*D17/('Single Model'!$D$24)+'Single Model'!$H$10*'Single Model'!$H$8+MAXA(0,'Single Model'!$C$10*3600*(1/'Single Model'!$D$24-1/'Single Model'!$E$24)),'Single Model'!$E$21+'Single Model'!$H$10*SQRT('Single Model'!$H$8^2+'Single Model'!$H$9^2))+'Single Model'!$C$32 -> 140.01 | E58: =MAXA(3600*E17/('Single Model'!$E$24)+'Single Model'!$H$10*'Single Model'!$H$8+MAXA(0,'Single Model'!$C$10*3600*(1/'Single Model'!$E$24-1/'Single Model'!$E$24)),'Single Model'!$E$21+'Single Model'!$H$10*SQRT('Single Model'!$H$8^2+'Single Model'!$H$9^2))+'Single Model'!$C$32 -> 86.61 | F58: =MAXA(3600*F17/('Single Model'!$F$24)+'Single Model'!$H$10*'Single Model'!$H$8+MAXA(0,'Single Model'!$C$10*3600*(1/'Single Model'!$F$24-1/'Single Model'!$E$24)),'Single Model'!$E$21+'Single Model'!$H$10*SQRT('Single Model'!$H$8^2+'Single Model'!$H$9^2))+'Single Model'!$C$32 -> 82.22538462 | G58: =MAXA(3600*G17/('Single Model'!$G$24)+'Single Model'!$H$10*'Single Model'!$H$8+MAXA(0,'Single Model'!$C$10*3600*(1/'Single Model'!$G$24-1/'Single Model'!$E$24)),'Single Model'!$E$21+'Single Model'!$H$10*SQRT('Single Model'!$H$8^2+'Single Model'!$H$9^2))+'Single Model'!$C$32 -> 80.27666667 | H58: =MAXA(3600*H17/('Single Model'!$H$24)+'Single Model'!$H$10*'Single Model'!$H$8+MAXA(0,'Single Model'!$C$10*3600*(1/'Single Model'!$H$24-1/'Single Model'!$E$24)),'Single Model'!$E$21+'Single Model'!$H$10*SQRT('Single Model'!$H$8^2+'Single Model'!$H$9^2))+'Single Model'!$C$32 -> 78.46714286 | I58: =MAXA(3600*I17/('Single Model'!$I$24)+'Single Model'!$H$10*'Single Model'!$H$8+MAXA(0,'Single Model'!$C$10*3600*(1/'Single Model'!$I$24-1/'Single Model'!$E$24)),'Single Model'!$E$21+'Single Model'!$H$10*SQRT('Single Model'!$H$8^2+'Single Model'!$H$9^2))+'Single Model'!$C$32 -> 75.21
B59: Large-TP | C59: =MAXA(3600*C18/('Single Model'!$C$24)+'Single Model'!$H$10*'Single Model'!$H$8+MAXA(0,'Single Model'!$C$10*3600*(1/'Single Model'!$C$24-1/'Single Model'!$F$24)),'Single Model'!$F$21+'Single Model'!$H$10*SQRT('Single Model'!$H$8^2+'Single Model'!$H$9^2))+'Single Model'!$C$32 -> 223.7638462 | D59: =MAXA(3600*D18/('Single Model'!$D$24)+'Single Model'!$H$10*'Single Model'!$H$8+MAXA(0,'Single Model'!$C$10*3600*(1/'Single Model'!$D$24-1/'Single Model'!$F$24)),'Single Model'!$F$21+'Single Model'!$H$10*SQRT('Single Model'!$H$8^2+'Single Model'!$H$9^2))+'Single Model'!$C$32 -> 184.9638462 | E59: =MAXA(3600*E18/('Single Model'!$E$24)+'Single Model'!$H$10*'Single Model'!$H$8+MAXA(0,'Single Model'!$C$10*3600*(1/'Single Model'!$E$24-1/'Single Model'!$F$24)),'Single Model'!$F$21+'Single Model'!$H$10*SQRT('Single Model'!$H$8^2+'Single Model'!$H$9^2))+'Single Model'!$C$32 -> 126.7638462 | F59: =MAXA(3600*F18/('Single Model'!$F$24)+'Single Model'!$H$10*'Single Model'!$H$8+MAXA(0,'Single Model'!$C$10*3600*(1/'Single Model'!$F$24-1/'Single Model'!$F$24)),'Single Model'!$F$21+'Single Model'!$H$10*SQRT('Single Model'!$H$8^2+'Single Model'!$H$9^2))+'Single Model'!$C$32 -> 82.22538462 | G59: =MAXA(3600*G18/('Single Model'!$G$24)+'Single Model'!$H$10*'Single Model'!$H$8+MAXA(0,'Single Model'!$C$10*3600*(1/'Single Model'!$G$24-1/'Single Model'!$F$24)),'Single Model'!$F$21+'Single Model'!$H$10*SQRT('Single Model'!$H$8^2+'Single Model'!$H$9^2))+'Single Model'!$C$32 -> 80.27666667 | H59: =MAXA(3600*H18/('Single Model'!$H$24)+'Single Model'!$H$10*'Single Model'!$H$8+MAXA(0,'Single Model'!$C$10*3600*(1/'Single Model'!$H$24-1/'Single Model'!$F$24)),'Single Model'!$F$21+'Single Model'!$H$10*SQRT('Single Model'!$H$8^2+'Single Model'!$H$9^2))+'Single Model'!$C$32 -> 78.46714286 | I59: =MAXA(3600*I18/('Single Model'!$I$24)+'Single Model'!$H$10*'Single Model'!$H$8+MAXA(0,'Single Model'!$C$10*3600*(1/'Single Model'!$I$24-1/'Single Model'!$F$24)),'Single Model'!$F$21+'Single Model'!$H$10*SQRT('Single Model'!$H$8^2+'Single Model'!$H$9^2))+'Single Model'!$C$32 -> 76.21168051
B60: Large-Jet | C60: =MAXA(3600*C19/('Single Model'!C$24)+'Single Model'!$H$10*'Single Model'!$H$8+MAXA(0,'Single Model'!$C$10*3600*(1/'Single Model'!C$24-1/'Single Model'!$G$24)),'Single Model'!$G$21+'Single Model'!$H$10*SQRT('Single Model'!$H$8^2+'Single Model'!$H$9^2))+'Single Model'!$C$32 -> 230.9433333 | D60: =MAXA(3600*D19/('Single Model'!D$24)+'Single Model'!$H$10*'Single Model'!$H$8+MAXA(0,'Single Model'!$C$10*3600*(1/'Single Model'!D$24-1/'Single Model'!$G$24)),'Single Model'!$G$21+'Single Model'!$H$10*SQRT('Single Model'!$H$8^2+'Single Model'!$H$9^2))+'Single Model'!$C$32 -> 192.1433333 | E60: =MAXA(3600*E19/('Single Model'!E$24)+'Single Model'!$H$10*'Single Model'!$H$8+MAXA(0,'Single Model'!$C$10*3600*(1/'Single Model'!E$24-1/'Single Model'!$G$24)),'Single Model'!$G$21+'Single Model'!$H$10*SQRT('Single Model'!$H$8^2+'Single Model'!$H$9^2))+'Single Model'!$C$32 -> 133.9433333 | F60: =MAXA(3600*F19/('Single Model'!F$24)+'Single Model'!$H$10*'Single Model'!$H$8+MAXA(0,'Single Model'!$C$10*3600*(1/'Single Model'!F$24-1/'Single Model'!$G$24)),'Single Model'!$G$21+'Single Model'!$H$10*SQRT('Single Model'!$H$8^2+'Single Model'!$H$9^2))+'Single Model'!$C$32 -> 89.40487179 | G60: =MAXA(3600*G19/('Single Model'!G$24)+'Single Model'!$H$10*'Single Model'!$H$8+MAXA(0,'Single Model'!$C$10*3600*(1/'Single Model'!G$24-1/'Single Model'!$G$24)),'Single Model'!$G$21+'Single Model'!$H$10*SQRT('Single Model'!$H$8^2+'Single Model'!$H$9^2))+'Single Model'!$C$32 -> 80.27666667 | H60: =MAXA(3600*H19/('Single Model'!H$24)+'Single Model'!$H$10*'Single Model'!$H$8+MAXA(0,'Single Model'!$C$10*3600*(1/'Single Model'!H$24-1/'Single Model'!$G$24)),'Single Model'!$G$21+'Single Model'!$H$10*SQRT('Single Model'!$H$8^2+'Single Model'!$H$9^2))+'Single Model'!$C$32 -> 78.46714286 | I60: =MAXA(3600*I19/('Single Model'!I$24)+'Single Model'!$H$10*'Single Model'!$H$8+MAXA(0,'Single Model'!$C$10*3600*(1/'Single Model'!I$24-1/'Single Model'!$G$24)),'Single Model'!$G$21+'Single Model'!$H$10*SQRT('Single Model'!$H$8^2+'Single Model'!$H$9^2))+'Single Model'!$C$32 -> 77.21168051
B61: Large-757 | C61: =MAXA(3600*C20/('Single Model'!$C$24)+'Single Model'!$H$10*'Single Model'!$H$8+MAXA(0,'Single Model'!$C$10*3600*(1/'Single Model'!$C$24-1/'Single Model'!$H$24)),'Single Model'!$H$21+'Single Model'!$H$10*SQRT('Single Model'!$H$8^2+'Single Model'!$H$9^2))+'Single Model'!$C$32 -> 277.61 | D61: =MAXA(3600*D20/('Single Model'!$D$24)+'Single Model'!$H$10*'Single Model'!$H$8+MAXA(0,'Single Model'!$C$10*3600*(1/'Single Model'!$D$24-1/'Single Model'!$H$24)),'Single Model'!$H$21+'Single Model'!$H$10*SQRT('Single Model'!$H$8^2+'Single Model'!$H$9^2))+'Single Model'!$C$32 -> 234.81 | E61: =MAXA(3600*E20/('Single Model'!$E$24)+'Single Model'!$H$10*'Single Model'!$H$8+MAXA(0,'Single Model'!$C$10*3600*(1/'Single Model'!$E$24-1/'Single Model'!$H$24)),'Single Model'!$H$21+'Single Model'!$H$10*SQRT('Single Model'!$H$8^2+'Single Model'!$H$9^2))+'Single Model'!$C$32 -> 170.61 | F61: =MAXA(3600*F20/('Single Model'!$F$24)+'Single Model'!$H$10*'Single Model'!$H$8+MAXA(0,'Single Model'!$C$10*3600*(1/'Single Model'!$F$24-1/'Single Model'!$H$24)),'Single Model'!$H$21+'Single Model'!$H$10*SQRT('Single Model'!$H$8^2+'Single Model'!$H$9^2))+'Single Model'!$C$32 -> 118.2253846 | G61: =MAXA(3600*G20/('Single Model'!$G$24)+'Single Model'!$H$10*'Single Model'!$H$8+MAXA(0,'Single Model'!$C$10*3600*(1/'Single Model'!$G$24-1/'Single Model'!$H$24)),'Single Model'!$H$21+'Single Model'!$H$10*SQRT('Single Model'!$H$8^2+'Single Model'!$H$9^2))+'Single Model'!$C$32 -> 108.2766667 | H61: =MAXA(3600*H20/('Single Model'!$H$24)+'Single Model'!$H$10*'Single Model'!$H$8+MAXA(0,'Single Model'!$C$10*3600*(1/'Single Model'!$H$24-1/'Single Model'!$H$24)),'Single Model'!$H$21+'Single Model'!$H$10*SQRT('Single Model'!$H$8^2+'Single Model'!$H$9^2))+'Single Model'!$C$32 -> 99.03857143 | I61: =MAXA(3600*I20/('Single Model'!$I$24)+'Single Model'!$H$10*'Single Model'!$H$8+MAXA(0,'Single Model'!$C$10*3600*(1/'Single Model'!$I$24-1/'Single Model'!$H$24)),'Single Model'!$H$21+'Single Model'!$H$10*SQRT('Single Model'!$H$8^2+'Single Model'!$H$9^2))+'Single Model'!$C$32 -> 94.41
B62: Heavy | C62: =MAXA(3600*C21/('Single Model'!$C$24)+'Single Model'!$H$10*'Single Model'!$H$8+MAXA(0,'Single Model'!$C$10*3600*(1/'Single Model'!$C$24-1/'Single Model'!$I$24)),'Single Model'!$I$21+'Single Model'!$H$10*SQRT('Single Model'!$H$8^2+'Single Model'!$H$9^2))+'Single Model'!$C$32 -> 325.61 | D62: =MAXA(3600*D21/('Single Model'!$D$24)+'Single Model'!$H$10*'Single Model'!$H$8+MAXA(0,'Single Model'!$C$10*3600*(1/'Single Model'!$D$24-1/'Single Model'!$I$24)),'Single Model'!$I$21+'Single Model'!$H$10*SQRT('Single Model'!$H$8^2+'Single Model'!$H$9^2))+'Single Model'!$C$32 -> 279.21 | E62: =MAXA(3600*E21/('Single Model'!$E$24)+'Single Model'!$H$10*'Single Model'!$H$8+MAXA(0,'Single Model'!$C$10*3600*(1/'Single Model'!$E$24-1/'Single Model'!$I$24)),'Single Model'!$I$21+'Single Model'!$H$10*SQRT('Single Model'!$H$8^2+'Single Model'!$H$9^2))+'Single Model'!$C$32 -> 179.61 | F62: =MAXA(3600*F21/('Single Model'!$F$24)+'Single Model'!$H$10*'Single Model'!$H$8+MAXA(0,'Single Model'!$C$10*3600*(1/'Single Model'!$F$24-1/'Single Model'!$I$24)),'Single Model'!$I$21+'Single Model'!$H$10*SQRT('Single Model'!$H$8^2+'Single Model'!$H$9^2))+'Single Model'!$C$32 -> 155.1484615 | G62: =MAXA(3600*G21/('Single Model'!$G$24)+'Single Model'!$H$10*'Single Model'!$H$8+MAXA(0,'Single Model'!$C$10*3600*(1/'Single Model'!$G$24-1/'Single Model'!$I$24)),'Single Model'!$I$21+'Single Model'!$H$10*SQRT('Single Model'!$H$8^2+'Single Model'!$H$9^2))+'Single Model'!$C$32 -> 144.2766667 | H62: =MAXA(3600*H21/('Single Model'!$H$24)+'Single Model'!$H$10*'Single Model'!$H$8+MAXA(0,'Single Model'!$C$10*3600*(1/'Single Model'!$H$24-1/'Single Model'!$I$24)),'Single Model'!$I$21+'Single Model'!$H$10*SQRT('Single Model'!$H$8^2+'Single Model'!$H$9^2))+'Single Model'!$C$32 -> 134.1814286 | I62: =MAXA(3600*I21/('Single Model'!$I$24)+'Single Model'!$H$10*'Single Model'!$H$8+MAXA(0,'Single Model'!$C$10*3600*(1/'Single Model'!$I$24-1/'Single Model'!$I$24)),'Single Model'!$I$21+'Single Model'!$H$10*SQRT('Single Model'!$H$8^2+'Single Model'!$H$9^2))+'Single Model'!$C$32 -> 94.41
B64: IMC Required Separation for arrivals following an aircraft from each class | F64: Time in Seconds
C65: Small - S | D65: Small - T | E65: Small + | F65: Large-TP | G65: Large-Jet | H65: Large-757 | I65: Heavy
B66: Small - S | C66: =MAXA(3600*C25/('Single Model'!$C$24)+'Single Model'!$H$10*'Single Model'!$H$8+MAXA(0,'Single Model'!$C$10*3600*(1/'Single Model'!$C$24-1/'Single Model'!$C$24)),'Single Model'!$C$21+'Single Model'!$H$10*SQRT('Single Model'!$H$8^2+'Single Model'!$H$9^2))+'Single Model'!$C$32 -> 149.61 | D66: =MAXA(3600*D25/('Single Model'!$D$24)+'Single Model'!$H$10*'Single Model'!$H$8+MAXA(0,'Single Model'!$C$10*3600*(1/'Single Model'!$D$24-1/'Single Model'!$C$24)),'Single Model'!$C$21+'Single Model'!$H$10*SQRT('Single Model'!$H$8^2+'Single Model'!$H$9^2))+'Single Model'!$C$32 -> 137.61 | E66: =MAXA(3600*E25/('Single Model'!$E$24)+'Single Model'!$H$10*'Single Model'!$H$8+MAXA(0,'Single Model'!$C$10*3600*(1/'Single Model'!$E$24-1/'Single Model'!$C$24)),'Single Model'!$C$21+'Single Model'!$H$10*SQRT('Single Model'!$H$8^2+'Single Model'!$H$9^2))+'Single Model'!$C$32 -> 119.61 | F66: =MAXA(3600*F25/('Single Model'!$F$24)+'Single Model'!$H$10*'Single Model'!$H$8+MAXA(0,'Single Model'!$C$10*3600*(1/'Single Model'!$F$24-1/'Single Model'!$C$24)),'Single Model'!$C$21+'Single Model'!$H$10*SQRT('Single Model'!$H$8^2+'Single Model'!$H$9^2))+'Single Model'!$C$32 -> 112.6869231 | G66: =MAXA(3600*G25/('Single Model'!$G$24)+'Single Model'!$H$10*'Single Model'!$H$8+MAXA(0,'Single Model'!$C$10*3600*(1/'Single Model'!$G$24-1/'Single Model'!$C$24)),'Single Model'!$C$21+'Single Model'!$H$10*SQRT('Single Model'!$H$8^2+'Single Model'!$H$9^2))+'Single Model'!$C$32 -> 109.61 | H66: =MAXA(3600*H25/('Single Model'!$H$24)+'Single Model'!$H$10*'Single Model'!$H$8+MAXA(0,'Single Model'!$C$10*3600*(1/'Single Model'!$H$24-1/'Single Model'!$C$24)),'Single Model'!$C$21+'Single Model'!$H$10*SQRT('Single Model'!$H$8^2+'Single Model'!$H$9^2))+'Single Model'!$C$32 -> 106.7528571 | I66: =MAXA(3600*I25/('Single Model'!$I$24)+'Single Model'!$H$10*'Single Model'!$H$8+MAXA(0,'Single Model'!$C$10*3600*(1/'Single Model'!$I$24-1/'Single Model'!$C$24)),'Single Model'!$C$21+'Single Model'!$H$10*SQRT('Single Model'!$H$8^2+'Single Model'!$H$9^2))+'Single Model'!$C$32 -> 101.61
B67: Small - T | C67: =MAXA(3600*C26/('Single Model'!$C$24)+'Single Model'!$H$10*'Single Model'!$H$8+MAXA(0,'Single Model'!$C$10*3600*(1/'Single Model'!$C$24-1/'Single Model'!$D$24)),'Single Model'!$D$21+'Single Model'!$H$10*SQRT('Single Model'!$H$8^2+'Single Model'!$H$9^2))+'Single Model'!$C$32 -> 177.61 | D67: =MAXA(3600*D26/('Single Model'!$D$24)+'Single Model'!$H$10*'Single Model'!$H$8+MAXA(0,'Single Model'!$C$10*3600*(1/'Single Model'!$D$24-1/'Single Model'!$D$24)),'Single Model'!$D$21+'Single Model'!$H$10*SQRT('Single Model'!$H$8^2+'Single Model'!$H$9^2))+'Single Model'!$C$32 -> 137.61 | E67: =MAXA(3600*E26/('Single Model'!$E$24)+'Single Model'!$H$10*'Single Model'!$H$8+MAXA(0,'Single Model'!$C$10*3600*(1/'Single Model'!$E$24-1/'Single Model'!$D$24)),'Single Model'!$D$21+'Single Model'!$H$10*SQRT('Single Model'!$H$8^2+'Single Model'!$H$9^2))+'Single Model'!$C$32 -> 119.61 | F67: =MAXA(3600*F26/('Single Model'!$F$24)+'Single Model'!$H$10*'Single Model'!$H$8+MAXA(0,'Single Model'!$C$10*3600*(1/'Single Model'!$F$24-1/'Single Model'!$D$24)),'Single Model'!$D$21+'Single Model'!$H$10*SQRT('Single Model'!$H$8^2+'Single Model'!$H$9^2))+'Single Model'!$C$32 -> 112.6869231 | G67: =MAXA(3600*G26/('Single Model'!$G$24)+'Single Model'!$H$10*'Single Model'!$H$8+MAXA(0,'Single Model'!$C$10*3600*(1/'Single Model'!$G$24-1/'Single Model'!$D$24)),'Single Model'!$D$21+'Single Model'!$H$10*SQRT('Single Model'!$H$8^2+'Single Model'!$H$9^2))+'Single Model'!$C$32 -> 109.61 | H67: =MAXA(3600*H26/('Single Model'!$H$24)+'Single Model'!$H$10*'Single Model'!$H$8+MAXA(0,'Single Model'!$C$10*3600*(1/'Single Model'!$H$24-1/'Single Model'!$D$24)),'Single Model'!$D$21+'Single Model'!$H$10*SQRT('Single Model'!$H$8^2+'Single Model'!$H$9^2))+'Single Model'!$C$32 -> 106.7528571 | I67: =MAXA(3600*I26/('Single Model'!$I$24)+'Single Model'!$H$10*'Single Model'!$H$8+MAXA(0,'Single Model'!$C$10*3600*(1/'Single Model'!$I$24-1/'Single Model'!$D$24)),'Single Model'!$D$21+'Single Model'!$H$10*SQRT('Single Model'!$H$8^2+'Single Model'!$H$9^2))+'Single Model'!$C$32 -> 101.61
B68: Small + | C68: =MAXA(3600*C27/('Single Model'!$C$24)+'Single Model'!$H$10*'Single Model'!$H$8+MAXA(0,'Single Model'!$C$10*3600*(1/'Single Model'!$C$24-1/'Single Model'!$E$24)),'Single Model'!$E$21+'Single Model'!$H$10*SQRT('Single Model'!$H$8^2+'Single Model'!$H$9^2))+'Single Model'!$C$32 -> 219.61 | D68: =MAXA(3600*D27/('Single Model'!$D$24)+'Single Model'!$H$10*'Single Model'!$H$8+MAXA(0,'Single Model'!$C$10*3600*(1/'Single Model'!$D$24-1/'Single Model'!$E$24)),'Single Model'!$E$21+'Single Model'!$H$10*SQRT('Single Model'!$H$8^2+'Single Model'!$H$9^2))+'Single Model'!$C$32 -> 179.61 | E68: =MAXA(3600*E27/('Single Model'!$E$24)+'Single Model'!$H$10*'Single Model'!$H$8+MAXA(0,'Single Model'!$C$10*3600*(1/'Single Model'!$E$24-1/'Single Model'!$E$24)),'Single Model'!$E$21+'Single Model'!$H$10*SQRT('Single Model'!$H$8^2+'Single Model'!$H$9^2))+'Single Model'!$C$32 -> 119.61 | F68: =MAXA(3600*F27/('Single Model'!$F$24)+'Single Model'!$H$10*'Single Model'!$H$8+MAXA(0,'Single Model'!$C$10*3600*(1/'Single Model'!$F$24-1/'Single Model'!$E$24)),'Single Model'!$E$21+'Single Model'!$H$10*SQRT('Single Model'!$H$8^2+'Single Model'!$H$9^2))+'Single Model'!$C$32 -> 112.6869231 | G68: =MAXA(3600*G27/('Single Model'!$G$24)+'Single Model'!$H$10*'Single Model'!$H$8+MAXA(0,'Single Model'!$C$10*3600*(1/'Single Model'!$G$24-1/'Single Model'!$E$24)),'Single Model'!$E$21+'Single Model'!$H$10*SQRT('Single Model'!$H$8^2+'Single Model'!$H$9^2))+'Single Model'!$C$32 -> 109.61 | H68: =MAXA(3600*H27/('Single Model'!$H$24)+'Single Model'!$H$10*'Single Model'!$H$8+MAXA(0,'Single Model'!$C$10*3600*(1/'Single Model'!$H$24-1/'Single Model'!$E$24)),'Single Model'!$E$21+'Single Model'!$H$10*SQRT('Single Model'!$H$8^2+'Single Model'!$H$9^2))+'Single Model'!$C$32 -> 106.7528571 | I68: =MAXA(3600*I27/('Single Model'!$I$24)+'Single Model'!$H$10*'Single Model'!$H$8+MAXA(0,'Single Model'!$C$10*3600*(1/'Single Model'!$I$24-1/'Single Model'!$E$24)),'Single Model'!$E$21+'Single Model'!$H$10*SQRT('Single Model'!$H$8^2+'Single Model'!$H$9^2))+'Single Model'!$C$32 -> 101.61
B69: Large-TP | C69: =MAXA(3600*C28/('Single Model'!$C$24)+'Single Model'!$H$10*'Single Model'!$H$8+MAXA(0,'Single Model'!$C$10*3600*(1/'Single Model'!$C$24-1/'Single Model'!$F$24)),'Single Model'!$F$21+'Single Model'!$H$10*SQRT('Single Model'!$H$8^2+'Single Model'!$H$9^2))+'Single Model'!$C$32 -> 275.7638462 | D69: =MAXA(3600*D28/('Single Model'!$D$24)+'Single Model'!$H$10*'Single Model'!$H$8+MAXA(0,'Single Model'!$C$10*3600*(1/'Single Model'!$D$24-1/'Single Model'!$F$24)),'Single Model'!$F$21+'Single Model'!$H$10*SQRT('Single Model'!$H$8^2+'Single Model'!$H$9^2))+'Single Model'!$C$32 -> 231.7638462 | E69: =MAXA(3600*E28/('Single Model'!$E$24)+'Single Model'!$H$10*'Single Model'!$H$8+MAXA(0,'Single Model'!$C$10*3600*(1/'Single Model'!$E$24-1/'Single Model'!$F$24)),'Single Model'!$F$21+'Single Model'!$H$10*SQRT('Single Model'!$H$8^2+'Single Model'!$H$9^2))+'Single Model'!$C$32 -> 165.7638462 | F69: =MAXA(3600*F28/('Single Model'!$F$24)+'Single Model'!$H$10*'Single Model'!$H$8+MAXA(0,'Single Model'!$C$10*3600*(1/'Single Model'!$F$24-1/'Single Model'!$F$24)),'Single Model'!$F$21+'Single Model'!$H$10*SQRT('Single Model'!$H$8^2+'Single Model'!$H$9^2))+'Single Model'!$C$32 -> 112.6869231 | G69: =MAXA(3600*G28/('Single Model'!$G$24)+'Single Model'!$H$10*'Single Model'!$H$8+MAXA(0,'Single Model'!$C$10*3600*(1/'Single Model'!$G$24-1/'Single Model'!$F$24)),'Single Model'!$F$21+'Single Model'!$H$10*SQRT('Single Model'!$H$8^2+'Single Model'!$H$9^2))+'Single Model'!$C$32 -> 109.61 | H69: =MAXA(3600*H28/('Single Model'!$H$24)+'Single Model'!$H$10*'Single Model'!$H$8+MAXA(0,'Single Model'!$C$10*3600*(1/'Single Model'!$H$24-1/'Single Model'!$F$24)),'Single Model'!$F$21+'Single Model'!$H$10*SQRT('Single Model'!$H$8^2+'Single Model'!$H$9^2))+'Single Model'!$C$32 -> 106.7528571 | I69: =MAXA(3600*I28/('Single Model'!$I$24)+'Single Model'!$H$10*'Single Model'!$H$8+MAXA(0,'Single Model'!$C$10*3600*(1/'Single Model'!$I$24-1/'Single Model'!$F$24)),'Single Model'!$F$21+'Single Model'!$H$10*SQRT('Single Model'!$H$8^2+'Single Model'!$H$9^2))+'Single Model'!$C$32 -> 101.61
B70: Large-Jet | C70: =MAXA(3600*C29/('Single Model'!C$24)+'Single Model'!$H$10*'Single Model'!$H$8+MAXA(0,'Single Model'!$C$10*3600*(1/'Single Model'!C$24-1/'Single Model'!$G$24)),'Single Model'!$G$21+'Single Model'!$H$10*SQRT('Single Model'!$H$8^2+'Single Model'!$H$9^2))+'Single Model'!$C$32 -> 282.9433333 | D70: =MAXA(3600*D29/('Single Model'!D$24)+'Single Model'!$H$10*'Single Model'!$H$8+MAXA(0,'Single Model'!$C$10*3600*(1/'Single Model'!D$24-1/'Single Model'!$G$24)),'Single Model'!$G$21+'Single Model'!$H$10*SQRT('Single Model'!$H$8^2+'Single Model'!$H$9^2))+'Single Model'!$C$32 -> 238.9433333 | E70: =MAXA(3600*E29/('Single Model'!E$24)+'Single Model'!$H$10*'Single Model'!$H$8+MAXA(0,'Single Model'!$C$10*3600*(1/'Single Model'!E$24-1/'Single Model'!$G$24)),'Single Model'!$G$21+'Single Model'!$H$10*SQRT('Single Model'!$H$8^2+'Single Model'!$H$9^2))+'Single Model'!$C$32 -> 172.9433333 | F70: =MAXA(3600*F29/('Single Model'!F$24)+'Single Model'!$H$10*'Single Model'!$H$8+MAXA(0,'Single Model'!$C$10*3600*(1/'Single Model'!F$24-1/'Single Model'!$G$24)),'Single Model'!$G$21+'Single Model'!$H$10*SQRT('Single Model'!$H$8^2+'Single Model'!$H$9^2))+'Single Model'!$C$32 -> 119.8664103 | G70: =MAXA(3600*G29/('Single Model'!G$24)+'Single Model'!$H$10*'Single Model'!$H$8+MAXA(0,'Single Model'!$C$10*3600*(1/'Single Model'!G$24-1/'Single Model'!$G$24)),'Single Model'!$G$21+'Single Model'!$H$10*SQRT('Single Model'!$H$8^2+'Single Model'!$H$9^2))+'Single Model'!$C$32 -> 109.61 | H70: =MAXA(3600*H29/('Single Model'!H$24)+'Single Model'!$H$10*'Single Model'!$H$8+MAXA(0,'Single Model'!$C$10*3600*(1/'Single Model'!H$24-1/'Single Model'!$G$24)),'Single Model'!$G$21+'Single Model'!$H$10*SQRT('Single Model'!$H$8^2+'Single Model'!$H$9^2))+'Single Model'!$C$32 -> 106.7528571 | I70: =MAXA(3600*I29/('Single Model'!I$24)+'Single Model'!$H$10*'Single Model'!$H$8+MAXA(0,'Single Model'!$C$10*3600*(1/'Single Model'!I$24-1/'Single Model'!$G$24)),'Single Model'!$G$21+'Single Model'!$H$10*SQRT('Single Model'!$H$8^2+'Single Model'!$H$9^2))+'Single Model'!$C$32 -> 101.61
B71: Large-757 | C71: =MAXA(3600*C30/('Single Model'!$C$24)+'Single Model'!$H$10*'Single Model'!$H$8+MAXA(0,'Single Model'!$C$10*3600*(1/'Single Model'!$C$24-1/'Single Model'!$H$24)),'Single Model'!$H$21+'Single Model'!$H$10*SQRT('Single Model'!$H$8^2+'Single Model'!$H$9^2))+'Single Model'!$C$32 -> 329.61 | D71: =MAXA(3600*D30/('Single Model'!$D$24)+'Single Model'!$H$10*'Single Model'!$H$8+MAXA(0,'Single Model'!$C$10*3600*(1/'Single Model'!$D$24-1/'Single Model'!$H$24)),'Single Model'!$H$21+'Single Model'!$H$10*SQRT('Single Model'!$H$8^2+'Single Model'!$H$9^2))+'Single Model'!$C$32 -> 281.61 | E71: =MAXA(3600*E30/('Single Model'!$E$24)+'Single Model'!$H$10*'Single Model'!$H$8+MAXA(0,'Single Model'!$C$10*3600*(1/'Single Model'!$E$24-1/'Single Model'!$H$24)),'Single Model'!$H$21+'Single Model'!$H$10*SQRT('Single Model'!$H$8^2+'Single Model'!$H$9^2))+'Single Model'!$C$32 -> 209.61 | F71: =MAXA(3600*F30/('Single Model'!$F$24)+'Single Model'!$H$10*'Single Model'!$H$8+MAXA(0,'Single Model'!$C$10*3600*(1/'Single Model'!$F$24-1/'Single Model'!$H$24)),'Single Model'!$H$21+'Single Model'!$H$10*SQRT('Single Model'!$H$8^2+'Single Model'!$H$9^2))+'Single Model'!$C$32 -> 154.2253846 | G71: =MAXA(3600*G30/('Single Model'!G$24)+'Single Model'!$H$10*'Single Model'!$H$8+MAXA(0,'Single Model'!$C$10*3600*(1/'Single Model'!G$24-1/'Single Model'!$H$24)),'Single Model'!$H$21+'Single Model'!$H$10*SQRT('Single Model'!$H$8^2+'Single Model'!$H$9^2))+'Single Model'!$C$32 -> 142.9433333 | H71: =MAXA(3600*H30/('Single Model'!$H$24)+'Single Model'!$H$10*'Single Model'!$H$8+MAXA(0,'Single Model'!$C$10*3600*(1/'Single Model'!$H$24-1/'Single Model'!$H$24)),'Single Model'!$H$21+'Single Model'!$H$10*SQRT('Single Model'!$H$8^2+'Single Model'!$H$9^2))+'Single Model'!$C$32 -> 132.4671429 | I71: =MAXA(3600*I30/('Single Model'!$I$24)+'Single Model'!$H$10*'Single Model'!$H$8+MAXA(0,'Single Model'!$C$10*3600*(1/'Single Model'!$I$24-1/'Single Model'!$H$24)),'Single Model'!$H$21+'Single Model'!$H$10*SQRT('Single Model'!$H$8^2+'Single Model'!$H$9^2))+'Single Model'!$C$32 -> 125.61
B72: Heavy | C72: =MAXA(3600*C31/('Single Model'!$C$24)+'Single Model'!$H$10*'Single Model'!$H$8+MAXA(0,'Single Model'!$C$10*3600*(1/'Single Model'!$C$24-1/'Single Model'!$I$24)),'Single Model'!$I$21+'Single Model'!$H$10*SQRT('Single Model'!$H$8^2+'Single Model'!$H$9^2))+'Single Model'!$C$32 -> 381.61 | D72: =MAXA(3600*D31/('Single Model'!$D$24)+'Single Model'!$H$10*'Single Model'!$H$8+MAXA(0,'Single Model'!$C$10*3600*(1/'Single Model'!$D$24-1/'Single Model'!$I$24)),'Single Model'!$I$21+'Single Model'!$H$10*SQRT('Single Model'!$H$8^2+'Single Model'!$H$9^2))+'Single Model'!$C$32 -> 329.61 | E72: =MAXA(3600*E31/('Single Model'!$E$24)+'Single Model'!$H$10*'Single Model'!$H$8+MAXA(0,'Single Model'!$C$10*3600*(1/'Single Model'!$E$24-1/'Single Model'!$I$24)),'Single Model'!$I$21+'Single Model'!$H$10*SQRT('Single Model'!$H$8^2+'Single Model'!$H$9^2))+'Single Model'!$C$32 -> 221.61 | F72: =MAXA(3600*F31/('Single Model'!$F$24)+'Single Model'!$H$10*'Single Model'!$H$8+MAXA(0,'Single Model'!$C$10*3600*(1/'Single Model'!$F$24-1/'Single Model'!$I$24)),'Single Model'!$I$21+'Single Model'!$H$10*SQRT('Single Model'!$H$8^2+'Single Model'!$H$9^2))+'Single Model'!$C$32 -> 193.9176923 | G72: =MAXA(3600*G31/('Single Model'!G$24)+'Single Model'!$H$10*'Single Model'!$H$8+MAXA(0,'Single Model'!$C$10*3600*(1/'Single Model'!G$24-1/'Single Model'!$I$24)),'Single Model'!$I$21+'Single Model'!$H$10*SQRT('Single Model'!$H$8^2+'Single Model'!$H$9^2))+'Single Model'!$C$32 -> 181.61 | H72: =MAXA(3600*H31/('Single Model'!$H$24)+'Single Model'!$H$10*'Single Model'!$H$8+MAXA(0,'Single Model'!$C$10*3600*(1/'Single Model'!$H$24-1/'Single Model'!$I$24)),'Single Model'!$I$21+'Single Model'!$H$10*SQRT('Single Model'!$H$8^2+'Single Model'!$H$9^2))+'Single Model'!$C$32 -> 170.1814286 | I72: =MAXA(3600*I31/('Single Model'!$I$24)+'Single Model'!$H$10*'Single Model'!$H$8+MAXA(0,'Single Model'!$C$10*3600*(1/'Single Model'!$I$24-1/'Single Model'!$I$24)),'Single Model'!$I$21+'Single Model'!$H$10*SQRT('Single Model'!$H$8^2+'Single Model'!$H$9^2))+'Single Model'!$C$32 -> 125.61
B74: VMC Average time between Arrivals | F74: Time in Seconds
C75: Small - S | D75: Small - T | E75: Small + | F75: Large-TP | G75: Large-Jet | H75: Large-757 | I75: Heavy
B76: Small - S | C76: =C5*C56 -> 0 | D76: 0 | E76: 0 | F76: =F5*F56 -> 0 | G76: =G5*G56 -> 0 | H76: =H5*H56 -> 0 | I76: 0 | K76: Average VMC Arr. -Arr. separation
B77: Small - T | C77: 0 | D77: 0 | E77: 0 | F77: 0 | G77: 0 | H77: 0 | I77: 0 | K77: =SUM($C$76:$I$82) -> 98.14036457 | L77: seconds
B78: Small + | C78: 0 | D78: 0 | E78: 3.4644 | F78: 4.933523077 | G78: 4.8166 | H78: 1.569342857 | I78: 1.5042 | K78: =SUM($C$76:$I$82)-'Single Model'!$C$32 -> 98.14036457 | L78: NO gap spacing buffer (Use for Pure AP)
B79: Large-TP | C79: 0 | D79: 0 | E79: 7.605830769 | F79: 7.400284615 | G79: 7.2249 | H79: 2.354014286 | I79: 2.286350415 | K79: =3600/K78 -> 36.68215434
B80: Large-Jet | C80: 0 | D80: 0 | E80: 8.0366 | F80: 8.046438462 | G80: 7.2249 | H80: 2.354014286 | I80: 2.316350415
B81: Large-757 | C81: 0 | D81: 0 | E81: 3.4122 | F81: 3.546761538 | G81: 3.2483 | H81: =H10*H61 -> 0.9903857143 | I81: =I10*I61 -> 0.9441
B82: Heavy | C82: 0 | D82: 0 | E82: 3.5922 | F82: 4.654453846 | G82: 4.3283 | H82: =H11*H62 -> 1.341814286 | I82: =I11*I62 -> 0.9441
B84: VMC Average time between Departures | F84: Time in Seconds
C85: Small - S | D85: Small - T | E85: Small + | F85: Large-TP | G85: Large-Jet | H85: Large-757 | I85: Heavy
B86: Small - S | C86: =C5*C35 -> 0 | D86: =D5*D35 -> 0 | E86: 0 | F86: 0 | G86: 0 | H86: 0 | I86: 0 | K86: Average VMC Dep.-Dep. separation
B87: Small - T | C87: 0 | D87: 0 | E87: 0 | F87: 0 | G87: 0 | H87: 0 | I87: 0 | K87: =SUM($C$86:$I$92) -> 70.5 | L87: seconds
B88: Small + | C88: 0 | D88: 0 | E88: 1.4 | F88: 2.7 | G88: 2.7 | H88: 0.9 | I88: 1
B89: Large-TP | C89: 0 | D89: 0 | E89: 4.8 | F89: 5.4 | G89: 5.4 | H89: 1.8 | I89: 1.8
B90: Large-Jet | C90: 0 | D90: 0 | E90: 4.8 | F90: 5.4 | G90: 5.4 | H90: 1.8 | I90: 1.8
B91: Large-757 | C91: 0 | D91: 0 | E91: 2.4 | F91: 3.6 | G91: 3.6 | H91: 1.2 | I91: 0.9
B92: Heavy | C92: 0 | D92: 0 | E92: 2.4 | F92: 3.6 | G92: 3.6 | H92: 1.2 | I92: 0.9
B94: IMC Average time between Arrivals | F94: Time in Seconds
C95: Small - S | D95: Small - T | E95: Small + | F95: Large-TP | G95: Large-Jet | H95: Large-757 | I95: Heavy
B96: Small - S | C96: =C5*C66 -> 0 | D96: 0 | E96: 0 | F96: 0 | G96: 0 | H96: 0 | I96: 0 | K96: Average IMC Arr. -Arr. separation
B97: Small - T | C97: 0 | D97: 0 | E97: 0 | F97: 0 | G97: 0 | H97: 0 | I97: 0 | K97: =SUM(C96:I102) -> 130.1172527 | L97: seconds
B98: Small + | C98: 0 | D98: 0 | E98: 4.7844 | F98: 6.761215385 | G98: 6.5766 | H98: 2.135057143 | I98: 2.0322 | K98: =SUM($C$96:$I$102)-'Single Model'!$C$32 -> 130.1172527 | L98: NO gap spacing buffer (Use for Pure AP)
B99: Large-TP | C99: 0 | D99: 0 | E99: 9.945830769 | F99: 10.14182308 | G99: 9.8649 | H99: 3.202585714 | I99: 3.0483 | K99: =3600/K98 -> 27.66735328
B100: Large-Jet | C100: 0 | D100: 0 | E100: 10.3766 | F100: 10.78797692 | G100: 9.8649 | H100: 3.202585714 | I100: 3.0483
B101: Large-757 | C101: 0 | D101: 0 | E101: 4.1922 | F101: 4.626761538 | G101: 4.2883 | H101: 1.324671429 | I101: 1.2561
B102: Heavy | C102: 0 | D102: 0 | E102: 4.4322 | F102: 5.817530769 | G102: 5.4483 | H102: 1.701814286 | I102: 1.2561
B104: IMC Average time between Departures | F104: Time in Seconds
C105: Small - S | D105: Small - T | E105: Small + | F105: Large-TP | G105: Large-Jet | H105: Large-757 | I105: Heavy
B106: Small - S | C106: =C5*C45 -> 0 | D106: 0 | E106: 0 | F106: 0 | G106: 0 | H106: 0 | I106: 0 | K106: Average IMC Dep.-Dep. separation
B107: Small - T | C107: 0 | D107: 0 | E107: 0 | F107: 0 | G107: 0 | H107: 0 | I107: 0 | K107: =SUM(C106:I112) -> 73.8 | L107: seconds
B108: Small + | C108: 0 | D108: 0 | E108: 2.4 | F108: 3.6 | G108: 3.6 | H108: 1.2 | I108: 1.2
B109: Large-TP | C109: 0 | D109: 0 | E109: 4.8 | F109: 5.4 | G109: 5.4 | H109: 1.8 | I109: 1.8
B110: Large-Jet | C110: 0 | D110: 0 | E110: 4.8 | F110: 5.4 | G110: 5.4 | H110: 1.8 | I110: 1.8
B111: Large-757 | C111: 0 | D111: 0 | E111: 2.4 | F111: 3.6 | G111: 3.6 | H111: =H10*H50 -> 1.2 | I111: =I10*I50 -> 0.9
B112: Heavy | C112: 0 | D112: 0 | E112: 2.4 | F112: 3.6 | G112: 3.6 | H112: =H11*H51 -> 1.2 | I112: =I11*I51 -> 0.9
B114: VMC Average Time Required for Departure between Arrivals | F114: Time in Seconds
C115: Small - S | D115: Small - T | E115: Small + | F115: Large-TP | G115: Large-Jet | H115: Large-757 | I115: Heavy
B116: Small - S | C116: ='Single Model'!$C$21+MAXA((3600*'Single Model'!$C$8/('Single Model'!C$24)),C$155) -> 112 | D116: ='Single Model'!$C$21+MAXA((3600*'Single Model'!$C$8/('Single Model'!D$24)),D$155) -> 104 | E116: ='Single Model'!$C$21+MAXA((3600*'Single Model'!$C$8/('Single Model'!E$24)),E$155) -> 92 | F116: ='Single Model'!$C$21+MAXA((3600*'Single Model'!$C$8/('Single Model'!F$24)),F$155) -> 87.38461538 | G116: ='Single Model'!$C$21+MAXA((3600*'Single Model'!$C$8/('Single Model'!G$24)),G$155) -> 85.33333333 | H116: ='Single Model'!$C$21+MAXA((3600*'Single Model'!$C$8/('Single Model'!H$24)),H$155) -> 83.42857143 | I116: ='Single Model'!$C$21+MAXA((3600*'Single Model'!$C$8/('Single Model'!I$24)),I$155) -> 83
B117: Small - T | C117: ='Single Model'!$D$21+MAXA((3600*'Single Model'!$C$8/('Single Model'!C$24)),C$155) -> 120 | D117: ='Single Model'!$D$21+MAXA((3600*'Single Model'!$C$8/('Single Model'!D$24)),D$155) -> 112 | E117: ='Single Model'!$D$21+MAXA((3600*'Single Model'!$C$8/('Single Model'!E$24)),E$155) -> 100 | F117: ='Single Model'!$D$21+MAXA((3600*'Single Model'!$C$8/('Single Model'!F$24)),F$155) -> 95.38461538 | G117: ='Single Model'!$D$21+MAXA((3600*'Single Model'!$C$8/('Single Model'!G$24)),G$155) -> 93.33333333 | H117: ='Single Model'!$D$21+MAXA((3600*'Single Model'!$C$8/('Single Model'!H$24)),H$155) -> 91.42857143 | I117: ='Single Model'!$D$21+MAXA((3600*'Single Model'!$C$8/('Single Model'!I$24)),I$155) -> 91
B118: Small + | C118: ='Single Model'!$E$21+MAXA((3600*'Single Model'!$C$8/('Single Model'!C$24)),C$155) -> 122 | D118: ='Single Model'!$E$21+MAXA((3600*'Single Model'!$C$8/('Single Model'!D$24)),D$155) -> 114 | E118: ='Single Model'!$E$21+MAXA((3600*'Single Model'!$C$8/('Single Model'!E$24)),E$155) -> 102 | F118: ='Single Model'!$E$21+MAXA((3600*'Single Model'!$C$8/('Single Model'!F$24)),F$155) -> 97.38461538 | G118: ='Single Model'!$E$21+MAXA((3600*'Single Model'!$C$8/('Single Model'!G$24)),G$155) -> 95.33333333 | H118: ='Single Model'!$E$21+MAXA((3600*'Single Model'!$C$8/('Single Model'!H$24)),H$155) -> 93.42857143 | I118: ='Single Model'!$E$21+MAXA((3600*'Single Model'!$C$8/('Single Model'!I$24)),I$155) -> 93
B119: Large-TP | C119: ='Single Model'!$F$21+MAXA((3600*'Single Model'!$C$8/('Single Model'!C$24)),C$155) -> 125 | D119: ='Single Model'!$F$21+MAXA((3600*'Single Model'!$C$8/('Single Model'!D$24)),D$155) -> 117 | E119: ='Single Model'!$F$21+MAXA((3600*'Single Model'!$C$8/('Single Model'!E$24)),E$155) -> 105 | F119: ='Single Model'!$F$21+MAXA((3600*'Single Model'!$C$8/('Single Model'!F$24)),F$155) -> 100.3846154 | G119: ='Single Model'!$F$21+MAXA((3600*'Single Model'!$C$8/('Single Model'!G$24)),G$155) -> 98.33333333 | H119: ='Single Model'!$F$21+MAXA((3600*'Single Model'!$C$8/('Single Model'!H$24)),H$155) -> 96.42857143 | I119: ='Single Model'!$F$21+MAXA((3600*'Single Model'!$C$8/('Single Model'!I$24)),I$155) -> 96
B120: Large-Jet | C120: ='Single Model'!$G$21+MAXA((3600*'Single Model'!$C$8/('Single Model'!C$24)),C$155) -> 126 | D120: ='Single Model'!$G$21+MAXA((3600*'Single Model'!$C$8/('Single Model'!D$24)),D$155) -> 118 | E120: ='Single Model'!$G$21+MAXA((3600*'Single Model'!$C$8/('Single Model'!E$24)),E$155) -> 106 | F120: ='Single Model'!$G$21+MAXA((3600*'Single Model'!$C$8/('Single Model'!F$24)),F$155) -> 101.3846154 | G120: ='Single Model'!$G$21+MAXA((3600*'Single Model'!$C$8/('Single Model'!G$24)),G$155) -> 99.33333333 | H120: ='Single Model'!$G$21+MAXA((3600*'Single Model'!$C$8/('Single Model'!H$24)),H$155) -> 97.42857143 | I120: ='Single Model'!$G$21+MAXA((3600*'Single Model'!$C$8/('Single Model'!I$24)),I$155) -> 97
B121: Large-757 | C121: ='Single Model'!$H$21+MAXA((3600*'Single Model'!$C$8/('Single Model'!C$24)),C$155) -> 131 | D121: ='Single Model'!$H$21+MAXA((3600*'Single Model'!$C$8/('Single Model'!D$24)),D$155) -> 123 | E121: ='Single Model'!$H$21+MAXA((3600*'Single Model'!$C$8/('Single Model'!E$24)),E$155) -> 111 | F121: ='Single Model'!$H$21+MAXA((3600*'Single Model'!$C$8/('Single Model'!F$24)),F$155) -> 106.3846154 | G121: ='Single Model'!$H$21+MAXA((3600*'Single Model'!$C$8/('Single Model'!G$24)),G$155) -> 104.3333333 | H121: ='Single Model'!$H$21+MAXA((3600*'Single Model'!$C$8/('Single Model'!H$24)),H$155) -> 102.4285714 | I121: ='Single Model'!$H$21+MAXA((3600*'Single Model'!$C$8/('Single Model'!I$24)),I$155) -> 102
B122: Heavy | C122: ='Single Model'!$I$21+MAXA((3600*'Single Model'!$C$8/('Single Model'!C$24)),C$155) -> 135 | D122: ='Single Model'!$I$21+MAXA((3600*'Single Model'!$C$8/('Single Model'!D$24)),D$155) -> 127 | E122: ='Single Model'!$I$21+MAXA((3600*'Single Model'!$C$8/('Single Model'!E$24)),E$155) -> 115 | F122: ='Single Model'!$I$21+MAXA((3600*'Single Model'!$C$8/('Single Model'!F$24)),F$155) -> 110.3846154 | G122: ='Single Model'!$I$21+MAXA((3600*'Single Model'!$C$8/('Single Model'!G$24)),G$155) -> 108.3333333 | H122: ='Single Model'!$I$21+MAXA((3600*'Single Model'!$C$8/('Single Model'!H$24)),H$155) -> 106.4285714 | I122: ='Single Model'!$I$21+MAXA((3600*'Single Model'!$C$8/('Single Model'!I$24)),I$155) -> 106
B124: IMC Average Time Required for Departure between Arrivals | F124: Time in Seconds
C125: Small - S | D125: Small - T | E125: Small + | F125: Large-TP | G125: Large-Jet | H125: Large-757 | I125: Heavy
B126: Small - S | C126: ='Single Model'!$C$21+MAXA((3600*'Single Model'!$C$9/('Single Model'!C$24)),C$155) -> 112 | D126: ='Single Model'!$C$21+MAXA((3600*'Single Model'!$C$9/('Single Model'!D$24)),D$155) -> 104 | E126: ='Single Model'!$C$21+MAXA((3600*'Single Model'!$C$9/('Single Model'!E$24)),E$155) -> 92 | F126: ='Single Model'!$C$21+MAXA((3600*'Single Model'!$C$9/('Single Model'!F$24)),F$155) -> 87.38461538 | G126: ='Single Model'!$C$21+MAXA((3600*'Single Model'!$C$9/('Single Model'!G$24)),G$155) -> 85.33333333 | H126: ='Single Model'!$C$21+MAXA((3600*'Single Model'!$C$9/('Single Model'!H$24)),H$155) -> 83.42857143 | I126: ='Single Model'!$C$21+MAXA((3600*'Single Model'!$C$9/('Single Model'!I$24)),I$155) -> 83
B127: Small - T | C127: ='Single Model'!$D$21+MAXA((3600*'Single Model'!$C$9/('Single Model'!C$24)),C$155) -> 120 | D127: ='Single Model'!$D$21+MAXA((3600*'Single Model'!$C$9/('Single Model'!D$24)),D$155) -> 112 | E127: ='Single Model'!$D$21+MAXA((3600*'Single Model'!$C$9/('Single Model'!E$24)),E$155) -> 100 | F127: ='Single Model'!$D$21+MAXA((3600*'Single Model'!$C$9/('Single Model'!F$24)),F$155) -> 95.38461538 | G127: ='Single Model'!$D$21+MAXA((3600*'Single Model'!$C$9/('Single Model'!G$24)),G$155) -> 93.33333333 | H127: ='Single Model'!$D$21+MAXA((3600*'Single Model'!$C$9/('Single Model'!H$24)),H$155) -> 91.42857143 | I127: ='Single Model'!$D$21+MAXA((3600*'Single Model'!$C$9/('Single Model'!I$24)),I$155) -> 91
B128: Small + | C128: ='Single Model'!$E$21+MAXA((3600*'Single Model'!$C$9/('Single Model'!C$24)),C$155) -> 122 | D128: ='Single Model'!$E$21+MAXA((3600*'Single Model'!$C$9/('Single Model'!D$24)),D$155) -> 114 | E128: ='Single Model'!$E$21+MAXA((3600*'Single Model'!$C$9/('Single Model'!E$24)),E$155) -> 102 | F128: ='Single Model'!$E$21+MAXA((3600*'Single Model'!$C$9/('Single Model'!F$24)),F$155) -> 97.38461538 | G128: ='Single Model'!$E$21+MAXA((3600*'Single Model'!$C$9/('Single Model'!G$24)),G$155) -> 95.33333333 | H128: ='Single Model'!$E$21+MAXA((3600*'Single Model'!$C$9/('Single Model'!H$24)),H$155) -> 93.42857143 | I128: ='Single Model'!$E$21+MAXA((3600*'Single Model'!$C$9/('Single Model'!I$24)),I$155) -> 93
B129: Large-TP | C129: ='Single Model'!$F$21+MAXA((3600*'Single Model'!$C$9/('Single Model'!C$24)),C$155) -> 125 | D129: ='Single Model'!$F$21+MAXA((3600*'Single Model'!$C$9/('Single Model'!D$24)),D$155) -> 117 | E129: ='Single Model'!$F$21+MAXA((3600*'Single Model'!$C$9/('Single Model'!E$24)),E$155) -> 105 | F129: ='Single Model'!$F$21+MAXA((3600*'Single Model'!$C$9/('Single Model'!F$24)),F$155) -> 100.3846154 | G129: ='Single Model'!$F$21+MAXA((3600*'Single Model'!$C$9/('Single Model'!G$24)),G$155) -> 98.33333333 | H129: ='Single Model'!$F$21+MAXA((3600*'Single Model'!$C$9/('Single Model'!H$24)),H$155) -> 96.42857143 | I129: ='Single Model'!$F$21+MAXA((3600*'Single Model'!$C$9/('Single Model'!I$24)),I$155) -> 96
B130: Large-Jet | C130: ='Single Model'!$G$21+MAXA((3600*'Single Model'!$C$9/('Single Model'!C$24)),C$155) -> 126 | D130: ='Single Model'!$G$21+MAXA((3600*'Single Model'!$C$9/('Single Model'!D$24)),D$155) -> 118 | E130: ='Single Model'!$G$21+MAXA((3600*'Single Model'!$C$9/('Single Model'!E$24)),E$155) -> 106 | F130: ='Single Model'!$G$21+MAXA((3600*'Single Model'!$C$9/('Single Model'!F$24)),F$155) -> 101.3846154 | G130: ='Single Model'!$G$21+MAXA((3600*'Single Model'!$C$9/('Single Model'!G$24)),G$155) -> 99.33333333 | H130: ='Single Model'!$G$21+MAXA((3600*'Single Model'!$C$9/('Single Model'!H$24)),H$155) -> 97.42857143 | I130: ='Single Model'!$G$21+MAXA((3600*'Single Model'!$C$9/('Single Model'!I$24)),I$155) -> 97
B131: Large-757 | C131: ='Single Model'!$H$21+MAXA((3600*'Single Model'!$C$9/('Single Model'!C$24)),C$155) -> 131 | D131: ='Single Model'!$H$21+MAXA((3600*'Single Model'!$C$9/('Single Model'!D$24)),D$155) -> 123 | E131: ='Single Model'!$H$21+MAXA((3600*'Single Model'!$C$9/('Single Model'!E$24)),E$155) -> 111 | F131: ='Single Model'!$H$21+MAXA((3600*'Single Model'!$C$9/('Single Model'!F$24)),F$155) -> 106.3846154 | G131: ='Single Model'!$H$21+MAXA((3600*'Single Model'!$C$9/('Single Model'!G$24)),G$155) -> 104.3333333 | H131: ='Single Model'!$H$21+MAXA((3600*'Single Model'!$C$9/('Single Model'!H$24)),H$155) -> 102.4285714 | I131: ='Single Model'!$H$21+MAXA((3600*'Single Model'!$C$9/('Single Model'!I$24)),I$155) -> 102
B132: Heavy | C132: ='Single Model'!$I$21+MAXA((3600*'Single Model'!$C$9/('Single Model'!C$24)),C$155) -> 135 | D132: ='Single Model'!$I$21+MAXA((3600*'Single Model'!$C$9/('Single Model'!D$24)),D$155) -> 127 | E132: ='Single Model'!$I$21+MAXA((3600*'Single Model'!$C$9/('Single Model'!E$24)),E$155) -> 115 | F132: ='Single Model'!$I$21+MAXA((3600*'Single Model'!$C$9/('Single Model'!F$24)),F$155) -> 110.3846154 | G132: ='Single Model'!$I$21+MAXA((3600*'Single Model'!$C$9/('Single Model'!G$24)),G$155) -> 108.3333333 | H132: ='Single Model'!$I$21+MAXA((3600*'Single Model'!$C$9/('Single Model'!H$24)),H$155) -> 106.4285714 | I132: ='Single Model'!$I$21+MAXA((3600*'Single Model'!$C$9/('Single Model'!I$24)),I$155) -> 106
B134: VMC Average Required for Departure between Arrivals | F134: Time in Seconds | K134: Departures between Arrivals in VMC
C135: Small - S | D135: Small - T | E135: Small + | F135: Large-TP | G135: Large-Jet | H135: Large-757 | I135: Heavy | K135: =SUMPRODUCT(K136:K142,C5:C11)+SUMPRODUCT(L136:L142,D5:D11)+SUMPRODUCT(M136:M142,E5:E11)+SUMPRODUCT(N136:N142,F5:F11)+SUMPRODUCT(P136:P142,H5:H11)+SUMPRODUCT(Q136:Q142,I5:I11)+SUMPRODUCT(O136:O142,G5:G11) -> 0.29 | L135: =K135*(3600-'Single Model'!$I$26)/K77 -> 10.63782476
B136: Small - S | C136: =C56-C116 -> -6.39 | D136: -5.99 | E136: -5.39 | F136: -5.159230769 | G136: -5.056666667 | H136: -4.961428571 | I136: -7.79 | K136: =IF(C136>=0,TRUNC(C136/$K$87,0)+1,0) -> 0 | L136: 0 | M136: 0 | N136: 0 | O136: 0 | P136: 0 | Q136: 0
B137: Small - T | C137: 13.61 | D137: -13.99 | E137: -13.39 | F137: -13.15923077 | G137: -13.05666667 | H137: -12.96142857 | I137: -15.79 | K137: 1 | L137: 0 | M137: 0 | N137: 0 | O137: 0 | P137: 0 | Q137: 0
B138: Small + | C138: 53.61 | D138: 26.01 | E138: -15.39 | F138: -15.15923077 | G138: -15.05666667 | H138: -14.96142857 | I138: -17.79 | K138: 1 | L138: 1 | M138: 0 | N138: 0 | O138: 0 | P138: 0 | Q138: 0
B139: Large-TP | C139: 98.76384615 | D139: 67.96384615 | E139: 21.76384615 | F139: -18.15923077 | G139: -18.05666667 | H139: -17.96142857 | I139: -19.78831949 | K139: 2 | L139: 1 | M139: 1 | N139: 0 | O139: 0 | P139: 0 | Q139: 0
B140: Large-Jet | C140: 104.9433333 | D140: 74.14333333 | E140: 27.94333333 | F140: -11.97974359 | G140: -19.05666667 | H140: -18.96142857 | I140: -19.78831949 | K140: 2 | L140: 2 | M140: 1 | N140: 0 | O140: 0 | P140: =IF(G140>=0,TRUNC(G140/$K$87,0)+1,0) -> 0 | Q140: =IF(H140>=0,TRUNC(H140/$K$87,0)+1,0) -> 0
B141: Large-757 | C141: 146.61 | D141: 111.81 | E141: 59.61 | F141: 11.84076923 | G141: 3.943333333 | H141: =H61-H121 -> -3.39 | I141: =I61-I121 -> -7.59 | K141: 3 | L141: 2 | M141: 1 | N141: 1 | O141: 1 | P141: =IF(H141>=0,TRUNC(H141/$K$87,0)+1,0) -> 0 | Q141: =IF(I141>=0,TRUNC(I141/$K$87,0)+1,0) -> 0
B142: Heavy | C142: 190.61 | D142: 152.21 | E142: 64.61 | F142: 44.76384615 | G142: 35.94333333 | H142: =H62-H122 -> 27.75285714 | I142: =I62-I122 -> -11.59 | K142: 3 | L142: 3 | M142: 1 | N142: 1 | O142: 1 | P142: =IF(H142>=0,TRUNC(H142/$K$87,0)+1,0) -> 1 | Q142: =IF(I142>=0,TRUNC(I142/$K$87,0)+1,0) -> 0
B144: IMC Average Required for Departure between Arrivals | F144: Time in Seconds | K144: Departures between Arrivals in IMC
C145: Small - S | D145: Small - T | E145: Small + | F145: Large-TP | G145: Large-Jet | H145: Large-757 | I145: Heavy | K145: =SUMPRODUCT(K146:K152,C5:C11)+SUMPRODUCT(L146:L152,D5:D11)+SUMPRODUCT(M146:M152,E5:E11)+SUMPRODUCT(N146:N152,F5:F11)+SUMPRODUCT(P146:P152,H5:H11)+SUMPRODUCT(Q146:Q152,I5:I11)+SUMPRODUCT(O146:O152,G5:G11) -> 1.07 | L145: =K145*(3600-'Single Model'!$I$26)/K97 -> 29.60406801
B146: Small - S | C146: =C66-C126 -> 37.61 | D146: 33.61 | E146: 27.61 | F146: 25.30230769 | G146: 24.27666667 | H146: 23.32428571 | I146: 18.61 | K146: =IF(C146>=0,TRUNC(C146/$K$107,0)+1,0) -> 1 | L146: 1 | M146: 1 | N146: 1 | O146: 1 | P146: 1 | Q146: 1
B147: Small - T | C147: 57.61 | D147: 25.61 | E147: 19.61 | F147: 17.30230769 | G147: 16.27666667 | H147: 15.32428571 | I147: 10.61 | K147: 1 | L147: 1 | M147: 1 | N147: 1 | O147: 1 | P147: 1 | Q147: 1
B148: Small + | C148: 97.61 | D148: 65.61 | E148: 17.61 | F148: 15.30230769 | G148: 14.27666667 | H148: 13.32428571 | I148: 8.61 | K148: 2 | L148: 1 | M148: 1 | N148: 1 | O148: 1 | P148: 1 | Q148: 1
B149: Large-TP | C149: 150.7638462 | D149: 114.7638462 | E149: 60.76384615 | F149: 12.30230769 | G149: 11.27666667 | H149: 10.32428571 | I149: 5.61 | K149: 3 | L149: 2 | M149: 1 | N149: 1 | O149: 1 | P149: 1 | Q149: 1
B150: Large-Jet | C150: 156.9433333 | D150: 120.9433333 | E150: 66.94333333 | F150: 18.48179487 | G150: 10.27666667 | H150: 9.324285714 | I150: 4.61 | K150: 3 | L150: 2 | M150: 1 | N150: 1 | O150: 1 | P150: =IF(G150>=0,TRUNC(G150/$K$107,0)+1,0) -> 1 | Q150: =IF(H150>=0,TRUNC(H150/$K$107,0)+1,0) -> 1
B151: Large-757 | C151: 198.61 | D151: 158.61 | E151: 98.61 | F151: 47.84076923 | G151: 38.61 | H151: 30.03857143 | I151: 23.61 | K151: 3 | L151: 3 | M151: 2 | N151: 1 | O151: 1 | P151: =IF(H151>=0,TRUNC(H151/$K$107,0)+1,0) -> 1 | Q151: =IF(I151>=0,TRUNC(I151/$K$107,0)+1,0) -> 1
B152: Heavy | C152: 246.61 | D152: 202.61 | E152: 106.61 | F152: 83.53307692 | G152: 73.27666667 | H152: 63.75285714 | I152: 19.61 | K152: 4 | L152: 3 | M152: 2 | N152: 2 | O152: 1 | P152: =IF(H152>=0,TRUNC(H152/$K$107,0)+1,0) -> 1 | Q152: =IF(I152>=0,TRUNC(I152/$K$107,0)+1,0) -> 1
C154: Small - S | D154: Small - T | E154: Small + | F154: Large-TP | G154: Large-Jet | H154: Large-757 | I154: Heavy
B155: Average Dep. Runway Occ. Times (sec) | C155: 34 | D155: 42 | E155: 34 | F155: 34 | G155: 46 | H155: 38 | I155: 51
C157: linked to all work tabs
C159: 23 | D159: 22 | E159: 27 | F159: 30 | G159: 34 | H159: 38 | I159: 39

Sheet Default Values1 (hidden)
A1: SAVE!!! | B1: These default values and cell links are used when the Reset Inputs Button on the model is chosen.
B3: Default Variable Description | D3: Value | E3: Cell Location for RESET BUTTON
A4: v1 | B4: VMC-Arrival/Departure Separation | D4: 2 | E4: =CELL("address",'Single Model'!C8) -> '[Planilla-Runway capacity (2).xlsm]Single Model'!$C$8
A5: v2 | B5: IMC-Arrival/Departure Separation | D5: 2 | E5: =CELL("address",'Single Model'!C9) -> '[Planilla-Runway capacity (2).xlsm]Single Model'!$C$9
A6: v3 | B6: Length of Common Approach | D6: 7 | E6: =CELL("address",'Single Model'!C10) -> '[Planilla-Runway capacity (2).xlsm]Single Model'!$C$10
A7: v4 | B7: Arrival - Arrival Std. Dev. | D7: 18 | E7: =CELL("address",'Single Model'!H8) -> '[Planilla-Runway capacity (2).xlsm]Single Model'!$H$8
A8: v5 | B8: Departure ROT Std. Dev. | D8: 6 | E8: =CELL("address",'Single Model'!H9) -> '[Planilla-Runway capacity (2).xlsm]Single Model'!$H$9
A9: v6 | B9: Z-Value, 95% Confidence Level (5% miss) | D9: 1.645 | E9: =CELL("address",'Single Model'!H10) -> '[Planilla-Runway capacity (2).xlsm]Single Model'!$H$10
A10: v7 | B10: AROT, Small-S | D10: 32 | E10: =CELL("address",'Single Model'!C21) -> '[Planilla-Runway capacity (2).xlsm]Single Model'!$C$21
A11: v8 | B11: AROT, Small-T | D11: 40 | E11: =CELL("address",'Single Model'!D21) -> '[Planilla-Runway capacity (2).xlsm]Single Model'!$D$21
A12: v9 | B12: AROT, Small+ | D12: 42 | E12: =CELL("address",'Single Model'!E21) -> '[Planilla-Runway capacity (2).xlsm]Single Model'!$E$21
A13: v10 | B13: AROT, Large-TP | D13: 45 | E13: =CELL("address",'Single Model'!F21) -> '[Planilla-Runway capacity (2).xlsm]Single Model'!$F$21
A14: v11 | B14: AROT, Large-Jet | D14: 46 | E14: =CELL("address",'Single Model'!G21) -> '[Planilla-Runway capacity (2).xlsm]Single Model'!$G$21
A15: v12 | B15: AROT, Large-757 | D15: 51 | E15: =CELL("address",'Single Model'!H21) -> '[Planilla-Runway capacity (2).xlsm]Single Model'!$H$21
A16: v13 | B16: AROT, Heavy | D16: 55 | E16: =CELL("address",'Single Model'!I21) -> '[Planilla-Runway capacity (2).xlsm]Single Model'!$I$21
A17: v14 | B17: Avg. Approach Speed, Small-S | D17: 90 | E17: =CELL("address",'Single Model'!C24) -> '[Planilla-Runway capacity (2).xlsm]Single Model'!$C$24
A18: v15 | B18: Avg. Approach Speed, Small-T | D18: 100 | E18: =CELL("address",'Single Model'!D24) -> '[Planilla-Runway capacity (2).xlsm]Single Model'!$D$24
A19: v16 | B19: Avg. Approach Speed, Small+ | D19: 120 | E19: =CELL("address",'Single Model'!E24) -> '[Planilla-Runway capacity (2).xlsm]Single Model'!$E$24
A20: v17 | B20: Avg. Approach Speed, Large-TP | D20: 130 | E20: =CELL("address",'Single Model'!F24) -> '[Planilla-Runway capacity (2).xlsm]Single Model'!$F$24
A21: v18 | B21: Avg. Approach Speed, Large-Jet | D21: 135 | E21: =CELL("address",'Single Model'!G24) -> '[Planilla-Runway capacity (2).xlsm]Single Model'!$G$24
A22: v19 | B22: Avg. Approach Speed, Large-757 | D22: 140 | E22: =CELL("address",'Single Model'!H24) -> '[Planilla-Runway capacity (2).xlsm]Single Model'!$H$24
A23: v20 | B23: Avg. Approach Speed, Heavy | D23: 150 | E23: =CELL("address",'Single Model'!I24) -> '[Planilla-Runway capacity (2).xlsm]Single Model'!$I$24
A24: v21 | B24: Gap Spacing Buffer (sec) | D24: 0 | E24: =CELL("address",'Single Model'!C32) -> '[Planilla-Runway capacity (2).xlsm]Single Model'!$C$32
A25: v22 | B25: Departure Hold Buffer (sec) | D25: 10 | E25: =CELL("address",'Single Model'!C33) -> '[Planilla-Runway capacity (2).xlsm]Single Model'!$C$33
A26: v23 | B26: Gap Spacing Buffer (nm) | D26: 0 | E26: =CELL("address",'Single Model'!H32) -> '[Planilla-Runway capacity (2).xlsm]Single Model'!$H$32
B27: Trailing Aircraft | C27: Leading Aircraft | D27: VMC
A28: v24 | B28: Small-S --- Heavy | C28: Small-S, Small-T | D28: 1.9 | E28: =CELL("address",'Single Model'!D37) -> '[Planilla-Runway capacity (2).xlsm]Single Model'!$D$37
A29: v25 | B29: Small-S --- Small+ | C29: Small + | D29: 1.9 | E29: =CELL("address",'Single Model'!D38) -> '[Planilla-Runway capacity (2).xlsm]Single Model'!$D$38
A30: v26 | B30: Large --- Heavy | C30: Small + | D30: 1.9 | E30: =CELL("address",'Single Model'!D39) -> '[Planilla-Runway capacity (2).xlsm]Single Model'!$D$39
A31: v27 | B31: Small-S --- Small+ | C31: Large-TP, Jet | D31: 2.7 | E31: =CELL("address",'Single Model'!D40) -> '[Planilla-Runway capacity (2).xlsm]Single Model'!$D$40
A32: v28 | B32: Large --- Heavy | C32: Large-TP, Jet | D32: 1.9 | E32: =CELL("address",'Single Model'!D41) -> '[Planilla-Runway capacity (2).xlsm]Single Model'!$D$41
A33: v29 | B33: Small-S --- Small+ | C33: Large-757 | D33: 3.7 | E33: =CELL("address",'Single Model'!D42) -> '[Planilla-Runway capacity (2).xlsm]Single Model'!$D$42
A34: v30 | B34: Large --- Heavy | C34: Large-757 | D34: 2.7 | E34: =CELL("address",'Single Model'!D43) -> '[Planilla-Runway capacity (2).xlsm]Single Model'!$D$43
A35: v31 | B35: Small-S --- Small-T | C35: Heavy | D35: 4.6 | E35: =CELL("address",'Single Model'!D44) -> '[Planilla-Runway capacity (2).xlsm]Single Model'!$D$44
A36: v32 | B36: Small + --- 757 | C36: Heavy | D36: 3.6 | E36: =CELL("address",'Single Model'!D45) -> '[Planilla-Runway capacity (2).xlsm]Single Model'!$D$45
A37: v33 | B37: Heavy | C37: Heavy | D37: 2.7 | E37: =CELL("address",'Single Model'!D46) -> '[Planilla-Runway capacity (2).xlsm]Single Model'!$D$46
B38: Trailing Aircraft | C38: Leading Aircraft | D38: IMC
A39: v34 | B39: Small-S --- Heavy | C39: Small-S, Small-T | D39: 3 | E39: =CELL("address",'Single Model'!E37) -> '[Planilla-Runway capacity (2).xlsm]Single Model'!$E$37
A40: v35 | B40: Small-S --- Small+ | C40: Small + | D40: 3 | E40: =CELL("address",'Single Model'!E38) -> '[Planilla-Runway capacity (2).xlsm]Single Model'!$E$38
A41: v36 | B41: Large --- Heavy | C41: Small + | D41: 3 | E41: =CELL("address",'Single Model'!E39) -> '[Planilla-Runway capacity (2).xlsm]Single Model'!$E$39
A42: v37 | B42: Small-S --- Small+ | C42: Large-TP, Jet | D42: 4 | E42: =CELL("address",'Single Model'!E40) -> '[Planilla-Runway capacity (2).xlsm]Single Model'!$E$40
A43: v38 | B43: Large --- Heavy | C43: Large-TP, Jet | D43: 3 | E43: =CELL("address",'Single Model'!E41) -> '[Planilla-Runway capacity (2).xlsm]Single Model'!$E$41
A44: v39 | B44: Small-S --- Small+ | C44: Large-757 | D44: 5 | E44: =CELL("address",'Single Model'!E42) -> '[Planilla-Runway capacity (2).xlsm]Single Model'!$E$42
A45: v40 | B45: Large --- Heavy | C45: Large-757 | D45: 4 | E45: =CELL("address",'Single Model'!E43) -> '[Planilla-Runway capacity (2).xlsm]Single Model'!$E$43
A46: v41 | B46: Small-S --- Small-T | C46: Heavy | D46: 6 | E46: =CELL("address",'Single Model'!E44) -> '[Planilla-Runway capacity (2).xlsm]Single Model'!$E$44
A47: v42 | B47: Small + --- 757 | C47: Heavy | D47: 5 | E47: =CELL("address",'Single Model'!E45) -> '[Planilla-Runway capacity (2).xlsm]Single Model'!$E$45
A48: v43 | B48: Heavy | C48: Heavy | D48: 4 | E48: =CELL("address",'Single Model'!E46) -> '[Planilla-Runway capacity (2).xlsm]Single Model'!$E$46
B49: Trailing Aircraft | C49: Leading Aircraft | D49: VMC
A50: v44 | B50: Small-S --- Small + | C50: Small-S- Small + | D50: 35 | E50: =CELL("address",'Single Model'!D50) -> '[Planilla-Runway capacity (2).xlsm]Single Model'!$D$50
A51: v45 | B51: Large -TP --- Large 757 | C51: Small-S- Small + | D51: 45 | E51: =CELL("address",'Single Model'!D51) -> '[Planilla-Runway capacity (2).xlsm]Single Model'!$D$51
A52: v46 | B52: Heavy | C52: Small-S- Small + | D52: 50 | E52: =CELL("address",'Single Model'!D52) -> '[Planilla-Runway capacity (2).xlsm]Single Model'!$D$52
A53: v47 | B53: Small-S --- Small+ | C53: Large TP, Large Jet | D53: 80 | E53: =CELL("address",'Single Model'!D53) -> '[Planilla-Runway capacity (2).xlsm]Single Model'!$D$53
A54: v48 | B54: Large --- Heavy | C54: Large TP, Large Jet | D54: 60 | E54: =CELL("address",'Single Model'!D54) -> '[Planilla-Runway capacity (2).xlsm]Single Model'!$D$54
A55: v49 | B55: Small-S --- Large Jet | C55: Large 757, Heavy | D55: 120 | E55: =CELL("address",'Single Model'!D55) -> '[Planilla-Runway capacity (2).xlsm]Single Model'!$D$55
A56: v50 | B56: Large 757, Heavy | C56: Large 757, Heavy | D56: 90 | E56: =CELL("address",'Single Model'!D56) -> '[Planilla-Runway capacity (2).xlsm]Single Model'!$D$56
B57: Trailing Aircraft | C57: Leading Aircraft | D57: IMC
A58: v51 | B58: Small-S --- Small + | C58: Small-S- Small + | D58: 60 | E58: =CELL("address",'Single Model'!E50) -> '[Planilla-Runway capacity (2).xlsm]Single Model'!$E$50
A59: v52 | B59: Large -TP --- Large 757 | C59: Small-S- Small + | D59: 60 | E59: =CELL("address",'Single Model'!E51) -> '[Planilla-Runway capacity (2).xlsm]Single Model'!$E$51
A60: v53 | B60: Heavy | C60: Small-S- Small + | D60: 60 | E60: =CELL("address",'Single Model'!E52) -> '[Planilla-Runway capacity (2).xlsm]Single Model'!$E$52
A61: v54 | B61: Small-S --- Small+ | C61: Large TP, Large Jet | D61: 80 | E61: =CELL("address",'Single Model'!E53) -> '[Planilla-Runway capacity (2).xlsm]Single Model'!$E$53
A62: v55 | B62: Large --- Heavy | C62: Large TP, Large Jet | D62: 60 | E62: =CELL("address",'Single Model'!E54) -> '[Planilla-Runway capacity (2).xlsm]Single Model'!$E$54
A63: v56 | B63: Small-S --- Large Jet | C63: Large 757, Heavy | D63: 120 | E63: =CELL("address",'Single Model'!E55) -> '[Planilla-Runway capacity (2).xlsm]Single Model'!$E$55
A64: v57 | B64: Large 757, Heavy | C64: Large 757, Heavy | D64: 90 | E64: =CELL("address",'Single Model'!E56) -> '[Planilla-Runway capacity (2).xlsm]Single Model'!$E$56
A66: v58 | B66: % Touch and Go | D66: 0 | E66: =CELL("address",'Single Model'!D11) -> '[Planilla-Runway capacity (2).xlsm]Single Model'!$D$11

Sheet Dual Work Tab (1) (hidden)
B1: Dual Model Worksheet #1 with working Calculated Values
B3: Arrivals Pairing Probability Matrix | D3: (chance of landing behind an aircraft from each class) | K3: 0 | L3: Calculated Cells
C4: Small - S | D4: Small - T | E4: Small + | F4: Large-TP | G4: Large-Jet | H4: Large-757 | I4: Heavy | K4: 0 | L4: Linked Input Cells
B5: Small - S | C5: ='Dual Model'!$C22*'Dual Model'!C22 -> 0 | D5: ='Dual Model'!$C22*'Dual Model'!D22 -> 0 | E5: ='Dual Model'!$C22*'Dual Model'!E22 -> 0 | F5: ='Dual Model'!$C22*'Dual Model'!F22 -> 0 | G5: ='Dual Model'!$C22*'Dual Model'!G22 -> 0 | H5: ='Dual Model'!$C22*'Dual Model'!H22 -> 0 | I5: ='Dual Model'!$C22*'Dual Model'!I22 -> 0 | K5: 0 | L5: Linked Cells (within this worksheet)
B6: Small - T | C6: ='Dual Model'!$D22*'Dual Model'!C22 -> 0 | D6: ='Dual Model'!$D22*'Dual Model'!D22 -> 0.01 | E6: ='Dual Model'!$D22*'Dual Model'!E22 -> 0 | F6: ='Dual Model'!$D22*'Dual Model'!F22 -> 0.03 | G6: ='Dual Model'!$D22*'Dual Model'!G22 -> 0.05 | H6: ='Dual Model'!$D22*'Dual Model'!H22 -> 0.005 | I6: ='Dual Model'!$D22*'Dual Model'!I22 -> 0.005
B7: Small + | C7: ='Dual Model'!$E22*'Dual Model'!C22 -> 0 | D7: ='Dual Model'!$E22*'Dual Model'!D22 -> 0 | E7: ='Dual Model'!$E22*'Dual Model'!E22 -> 0 | F7: ='Dual Model'!$E22*'Dual Model'!F22 -> 0 | G7: ='Dual Model'!$E22*'Dual Model'!G22 -> 0 | H7: ='Dual Model'!$E22*'Dual Model'!H22 -> 0 | I7: ='Dual Model'!$E22*'Dual Model'!I22 -> 0
B8: Large-TP | C8: ='Dual Model'!$F22*'Dual Model'!C22 -> 0 | D8: ='Dual Model'!$F22*'Dual Model'!D22 -> 0.03 | E8: ='Dual Model'!$F22*'Dual Model'!E22 -> 0 | F8: ='Dual Model'!$F22*'Dual Model'!F22 -> 0.09 | G8: ='Dual Model'!$F22*'Dual Model'!G22 -> 0.15 | H8: ='Dual Model'!$F22*'Dual Model'!H22 -> 0.015 | I8: ='Dual Model'!$F22*'Dual Model'!I22 -> 0.015
B9: Large-Jet | C9: ='Dual Model'!$G22*'Dual Model'!C22 -> 0 | D9: ='Dual Model'!$G22*'Dual Model'!D22 -> 0.05 | E9: ='Dual Model'!$G22*'Dual Model'!E22 -> 0 | F9: ='Dual Model'!$G22*'Dual Model'!F22 -> 0.15 | G9: ='Dual Model'!$G22*'Dual Model'!G22 -> 0.25 | H9: ='Dual Model'!$G22*'Dual Model'!H22 -> 0.025 | I9: ='Dual Model'!$G22*'Dual Model'!I22 -> 0.025
B10: Large-757 | C10: ='Dual Model'!$H22*'Dual Model'!C22 -> 0 | D10: ='Dual Model'!$H22*'Dual Model'!D22 -> 0.005 | E10: ='Dual Model'!$H22*'Dual Model'!E22 -> 0 | F10: ='Dual Model'!$H22*'Dual Model'!F22 -> 0.015 | G10: ='Dual Model'!$H22*'Dual Model'!G22 -> 0.025 | H10: ='Dual Model'!$H22*'Dual Model'!H22 -> 0.0025 | I10: ='Dual Model'!$H22*'Dual Model'!I22 -> 0.0025 | J10: Summary Check
B11: Heavy | C11: ='Dual Model'!$I22*'Dual Model'!C22 -> 0 | D11: ='Dual Model'!$I22*'Dual Model'!D22 -> 0.005 | E11: ='Dual Model'!$I22*'Dual Model'!E22 -> 0 | F11: ='Dual Model'!$I22*'Dual Model'!F22 -> 0.015 | G11: ='Dual Model'!$I22*'Dual Model'!G22 -> 0.025 | H11: ='Dual Model'!$I22*'Dual Model'!H22 -> 0.0025 | I11: ='Dual Model'!$I22*'Dual Model'!I22 -> 0.0025 | J11: Total = | K11: =SUM(C5:I11) -> 1
B13: VMC Required Separation for arrivals following an aircraft from each class | F13: Distance in Nautical Miles
C14: Small - S | D14: Small - T | E14: Small + | F14: Large-TP | G14: Large-Jet | H14: Large-757 | I14: Heavy
B15: Small - S | C15: ='Dual Model'!D41+'Dual Model'!$H$36 -> 1.9 | D15: =$C$15 -> 1.9 | E15: 1.9 | F15: 1.9 | G15: 1.9 | H15: 1.9 | I15: 1.9
B16: Small - T | C16: =$C$15 -> 1.9 | D16: 1.9 | E16: 1.9 | F16: 1.9 | G16: 1.9 | H16: 1.9 | I16: 1.9
B17: Small + | C17: ='Dual Model'!D42+'Dual Model'!$H$36 -> 1.9 | D17: =$C$17 -> 1.9 | E17: =$C$17 -> 1.9 | F17: ='Dual Model'!D43+'Dual Model'!$H$36 -> 1.9 | G17: =$F$17 -> 1.9 | H17: =$F$17 -> 1.9 | I17: =$F$17 -> 1.9
B18: Large-TP | C18: ='Dual Model'!D44+'Dual Model'!$H$36 -> 2.7 | D18: =$C$18 -> 2.7 | E18: =$C$18 -> 2.7 | F18: ='Dual Model'!D45+'Dual Model'!$H$36 -> 1.9 | G18: =$F$18 -> 1.9 | H18: 1.9 | I18: 1.9
B19: Large-Jet | C19: ='Dual Model'!D44+'Dual Model'!$H$36 -> 2.7 | D19: =$C$18 -> 2.7 | E19: =$C$18 -> 2.7 | F19: ='Dual Model'!D45+'Dual Model'!$H$36 -> 1.9 | G19: 1.9 | H19: 1.9 | I19: 1.9
B20: Large-757 | C20: ='Dual Model'!D46+'Dual Model'!$H$36 -> 3.7 | D20: =$C$20 -> 3.7 | E20: =$C$20 -> 3.7 | F20: ='Dual Model'!D47+'Dual Model'!$H$36 -> 2.7 | G20: =$F$20 -> 2.7 | H20: =$F$20 -> 2.7 | I20: =$F$20 -> 2.7
B21: Heavy | C21: ='Dual Model'!D48+'Dual Model'!$H$36 -> 4.6 | D21: =$C$21 -> 4.6 | E21: ='Dual Model'!D49+'Dual Model'!$H$36 -> 3.6 | F21: =$E$21 -> 3.6 | G21: =E21 -> 3.6 | H21: =F21 -> 3.6 | I21: ='Dual Model'!D50+'Dual Model'!$H$36 -> 2.7
B23: IMC Required Separation for arrivals following an aircraft from each class | F23: Distance in Nautical Miles
C24: Small - S | D24: Small - T | E24: Small + | F24: Large-TP | G24: Large-Jet | H24: Large-757 | I24: Heavy
B25: Small - S | C25: ='Dual Model'!E41+'Dual Model'!$H$36 -> 3 | D25: =$C$25 -> 3 | E25: 3 | F25: 3 | G25: 3 | H25: 3 | I25: 3
B26: Small - T | C26: =$C$25 -> 3 | D26: 3 | E26: 3 | F26: 3 | G26: 3 | H26: 3 | I26: 3
B27: Small + | C27: ='Dual Model'!E42+'Dual Model'!$H$36 -> 3 | D27: =$C$27 -> 3 | E27: =$C$27 -> 3 | F27: ='Dual Model'!E43+'Dual Model'!$H$36 -> 3 | G27: =$F$27 -> 3 | H27: =$F$27 -> 3 | I27: =$F$27 -> 3
B28: Large-TP | C28: ='Dual Model'!E44+'Dual Model'!$H$36 -> 4 | D28: =$C$28 -> 4 | E28: =$C$28 -> 4 | F28: ='Dual Model'!E45+'Dual Model'!$H$36 -> 3 | G28: =$F$28 -> 3 | H28: 3 | I28: 3
B29: Large-Jet | C29: ='Dual Model'!E44+'Dual Model'!$H$36 -> 4 | D29: =$C$28 -> 4 | E29: =$C$28 -> 4 | F29: ='Dual Model'!E45+'Dual Model'!$H$36 -> 3 | G29: 3 | H29: 3 | I29: 3
B30: Large-757 | C30: ='Dual Model'!E46+'Dual Model'!$H$36 -> 5 | D30: =$C$30 -> 5 | E30: =$C$30 -> 5 | F30: ='Dual Model'!E47+'Dual Model'!$H$36 -> 4 | G30: =$F$30 -> 4 | H30: =$F$30 -> 4 | I30: =$F$30 -> 4
B31: Heavy | C31: ='Dual Model'!E48+'Dual Model'!$H$36 -> 6 | D31: =$C$31 -> 6 | E31: ='Dual Model'!E49+'Dual Model'!$H$36 -> 5 | F31: =$E$31 -> 5 | G31: =$E$31 -> 5 | H31: =$E$31 -> 5 | I31: ='Dual Model'!E50+'Dual Model'!$H$36 -> 4
B33: VMC Required Separation for departures following an aircraft from each class | F33: Time in seconds
C34: Small - S | D34: Small - T | E34: Small + | F34: Large-TP | G34: Large-Jet | H34: Large-757 | I34: Heavy
B35: Small - S | C35: ='Dual Model'!$D$54+'Dual Model'!$C$37 -> 45 | D35: =$C$35 -> 45 | E35: =$C$35 -> 45 | F35: ='Dual Model'!$D$55+'Dual Model'!$C$37 -> 55 | G35: =$F$35 -> 55 | H35: 55 | I35: ='Dual Model'!$D$56+'Dual Model'!$C$37 -> 60
B36: Small - T | C36: =$C$35 -> 45 | D36: 45 | E36: 45 | F36: =$F$35 -> 55 | G36: 55 | H36: 55 | I36: =$I$35 -> 60
B37: Small + | C37: 45 | D37: 45 | E37: 45 | F37: =$F$35 -> 55 | G37: 55 | H37: 55 | I37: =$I$35 -> 60
B38: Large-TP | C38: ='Dual Model'!$D$57+'Dual Model'!$C$37 -> 90 | D38: =$C$38 -> 90 | E38: 90 | F38: ='Dual Model'!$D$58+'Dual Model'!$C$37 -> 70 | G38: =$F$38 -> 70 | H38: 70 | I38: 70
B39: Large-Jet | C39: =$C$38 -> 90 | D39: 90 | E39: 90 | F39: =$F$38 -> 70 | G39: 70 | H39: 70 | I39: 70
B40: Large-757 | C40: =$C$38 -> 90 | D40: 90 | E40: 90 | F40: =$F$38 -> 70 | G40: 70 | H40: 70 | I40: 70
B41: Heavy | C41: ='Dual Model'!$D$59+'Dual Model'!$C$37 -> 130 | D41: =$C$41 -> 130 | E41: =$C$41 -> 130 | F41: =$C$41 -> 130 | G41: =$C$41 -> 130 | H41: =$C$41 -> 130 | I41: ='Dual Model'!$D$60+'Dual Model'!$C$37 -> 100
B43: IMC Required Separation for departures following an aircraft from each class | F43: Time in seconds
C44: Small - S | D44: Small - T | E44: Small + | F44: Large-TP | G44: Large-Jet | H44: Large-757 | I44: Heavy
B45: Small - S | C45: ='Dual Model'!$E$54+'Dual Model'!$C$37 -> 70 | D45: =$C$45 -> 70 | E45: 70 | F45: ='Dual Model'!$E$55+'Dual Model'!$C$37 -> 70 | G45: =$F$45 -> 70 | H45: 70 | I45: ='Dual Model'!$E$56+'Dual Model'!$C$37 -> 70
B46: Small - T | C46: =$C$45 -> 70 | D46: 70 | E46: 70 | F46: =$F$45 -> 70 | G46: 70 | H46: 70 | I46: =$I$45 -> 70
B47: Small + | C47: =$C$45 -> 70 | D47: 70 | E47: 70 | F47: =$F$45 -> 70 | G47: 70 | H47: 70 | I47: =$I$45 -> 70
B48: Large-TP | C48: ='Dual Model'!$E$57+'Dual Model'!$C$37 -> 90 | D48: =$C$48 -> 90 | E48: 90 | F48: ='Dual Model'!$E$58+'Dual Model'!$C$37 -> 70 | G48: =$F$48 -> 70 | H48: 70 | I48: 70
B49: Large-Jet | C49: =$C$48 -> 90 | D49: 90 | E49: 90 | F49: =$F$48 -> 70 | G49: 70 | H49: 70 | I49: 70
B50: Large-757 | C50: =$C$48 -> 90 | D50: 90 | E50: 90 | F50: =$F$48 -> 70 | G50: 70 | H50: 70 | I50: 70
B51: Heavy | C51: ='Dual Model'!$E$59+'Dual Model'!$C$37 -> 130 | D51: =$C$51 -> 130 | E51: =$C$51 -> 130 | F51: =$C$51 -> 130 | G51: =$C$51 -> 130 | H51: =$C$51 -> 130 | I51: ='Dual Model'!$E$60+'Dual Model'!$C$37 -> 100
B54: VMC Required Separation for arrivals following an aircraft from each class | F54: Time in Seconds
C55: Small - S | D55: Small - T | E55: Small + | F55: Large-TP | G55: Large-Jet | H55: Large-757 | I55: Heavy
B56: Small - S | C56: =MAXA(3600*C15/('Dual Model'!$C$28)+'Dual Model'!$H$14*'Dual Model'!$H$12+MAXA(0,'Dual Model'!$C$14*3600*(1/'Dual Model'!$C$28-1/'Dual Model'!$C$28)),'Dual Model'!$C$25+'Dual Model'!$H$14*SQRT('Dual Model'!$H$12^2+'Dual Model'!$H$13^2))+'Dual Model'!$C$36 -> 105.61 | D56: =MAXA(3600*D15/('Dual Model'!$D$28)+'Dual Model'!$H$14*'Dual Model'!$H$12+MAXA(0,'Dual Model'!$C$14*3600*(1/'Dual Model'!$D$28-1/'Dual Model'!$C$28)),'Dual Model'!$C$25+'Dual Model'!$H$14*SQRT('Dual Model'!$H$12^2+'Dual Model'!$H$13^2))+'Dual Model'!$C$36 -> 98.01 | E56: =MAXA(3600*E15/('Dual Model'!$E$28)+'Dual Model'!$H$14*'Dual Model'!$H$12+MAXA(0,'Dual Model'!$C$14*3600*(1/'Dual Model'!$E$28-1/'Dual Model'!$C$28)),'Dual Model'!$C$25+'Dual Model'!$H$14*SQRT('Dual Model'!$H$12^2+'Dual Model'!$H$13^2))+'Dual Model'!$C$36 -> 86.61 | F56: =MAXA(3600*F15/('Dual Model'!$F$28)+'Dual Model'!$H$14*'Dual Model'!$H$12+MAXA(0,'Dual Model'!$C$14*3600*(1/'Dual Model'!$F$28-1/'Dual Model'!$C$28)),'Dual Model'!$C$25+'Dual Model'!$H$14*SQRT('Dual Model'!$H$12^2+'Dual Model'!$H$13^2))+'Dual Model'!$C$36 -> 82.22538462 | G56: =MAXA(3600*G15/('Dual Model'!$G$28)+'Dual Model'!$H$14*'Dual Model'!$H$12+MAXA(0,'Dual Model'!$C$14*3600*(1/'Dual Model'!$G$28-1/'Dual Model'!$C$28)),'Dual Model'!$C$25+'Dual Model'!$H$14*SQRT('Dual Model'!$H$12^2+'Dual Model'!$H$13^2))+'Dual Model'!$C$36 -> 80.27666667 | H56: =MAXA(3600*H15/('Dual Model'!$H$28)+'Dual Model'!$H$14*'Dual Model'!$H$12+MAXA(0,'Dual Model'!$C$14*3600*(1/'Dual Model'!$H$28-1/'Dual Model'!$C$28)),'Dual Model'!$C$25+'Dual Model'!$H$14*SQRT('Dual Model'!$H$12^2+'Dual Model'!$H$13^2))+'Dual Model'!$C$36 -> 78.46714286 | I56: =MAXA(3600*I15/('Dual Model'!$I$28)+'Dual Model'!$H$14*'Dual Model'!$H$12+MAXA(0,'Dual Model'!$C$14*3600*(1/'Dual Model'!$I$28-1/'Dual Model'!$C$28)),'Dual Model'!$C$25+'Dual Model'!$H$14*SQRT('Dual Model'!$H$12^2+'Dual Model'!$H$13^2))+'Dual Model'!$C$36 -> 75.21
B57: Small - T | C57: =MAXA(3600*C16/('Dual Model'!$C$28)+'Dual Model'!$H$14*'Dual Model'!$H$12+MAXA(0,'Dual Model'!$C$14*3600*(1/'Dual Model'!$C$28-1/'Dual Model'!$D$28)),'Dual Model'!$D$25+'Dual Model'!$H$14*SQRT('Dual Model'!$H$12^2+'Dual Model'!$H$13^2))+'Dual Model'!$C$36 -> 133.61 | D57: =MAXA(3600*D16/('Dual Model'!$D$28)+'Dual Model'!$H$14*'Dual Model'!$H$12+MAXA(0,'Dual Model'!$C$14*3600*(1/'Dual Model'!$D$28-1/'Dual Model'!$D$28)),'Dual Model'!$D$25+'Dual Model'!$H$14*SQRT('Dual Model'!$H$12^2+'Dual Model'!$H$13^2))+'Dual Model'!$C$36 -> 98.01 | E57: =MAXA(3600*E16/('Dual Model'!$E$28)+'Dual Model'!$H$14*'Dual Model'!$H$12+MAXA(0,'Dual Model'!$C$14*3600*(1/'Dual Model'!$E$28-1/'Dual Model'!$D$28)),'Dual Model'!$D$25+'Dual Model'!$H$14*SQRT('Dual Model'!$H$12^2+'Dual Model'!$H$13^2))+'Dual Model'!$C$36 -> 86.61 | F57: =MAXA(3600*F16/('Dual Model'!$F$28)+'Dual Model'!$H$14*'Dual Model'!$H$12+MAXA(0,'Dual Model'!$C$14*3600*(1/'Dual Model'!$F$28-1/'Dual Model'!$D$28)),'Dual Model'!$D$25+'Dual Model'!$H$14*SQRT('Dual Model'!$H$12^2+'Dual Model'!$H$13^2))+'Dual Model'!$C$36 -> 82.22538462 | G57: =MAXA(3600*G16/('Dual Model'!$G$28)+'Dual Model'!$H$14*'Dual Model'!$H$12+MAXA(0,'Dual Model'!$C$14*3600*(1/'Dual Model'!$G$28-1/'Dual Model'!$D$28)),'Dual Model'!$D$25+'Dual Model'!$H$14*SQRT('Dual Model'!$H$12^2+'Dual Model'!$H$13^2))+'Dual Model'!$C$36 -> 80.27666667 | H57: =MAXA(3600*H16/('Dual Model'!$H$28)+'Dual Model'!$H$14*'Dual Model'!$H$12+MAXA(0,'Dual Model'!$C$14*3600*(1/'Dual Model'!$H$28-1/'Dual Model'!$D$28)),'Dual Model'!$D$25+'Dual Model'!$H$14*SQRT('Dual Model'!$H$12^2+'Dual Model'!$H$13^2))+'Dual Model'!$C$36 -> 78.46714286 | I57: =MAXA(3600*I16/('Dual Model'!$I$28)+'Dual Model'!$H$14*'Dual Model'!$H$12+MAXA(0,'Dual Model'!$C$14*3600*(1/'Dual Model'!$I$28-1/'Dual Model'!$D$28)),'Dual Model'!$D$25+'Dual Model'!$H$14*SQRT('Dual Model'!$H$12^2+'Dual Model'!$H$13^2))+'Dual Model'!$C$36 -> 75.21
B58: Small + | C58: =MAXA(3600*C17/('Dual Model'!$C$28)+'Dual Model'!$H$14*'Dual Model'!$H$12+MAXA(0,'Dual Model'!$C$14*3600*(1/'Dual Model'!$C$28-1/'Dual Model'!$E$28)),'Dual Model'!$E$25+'Dual Model'!$H$14*SQRT('Dual Model'!$H$12^2+'Dual Model'!$H$13^2))+'Dual Model'!$C$36 -> 175.61 | D58: =MAXA(3600*D17/('Dual Model'!$D$28)+'Dual Model'!$H$14*'Dual Model'!$H$12+MAXA(0,'Dual Model'!$C$14*3600*(1/'Dual Model'!$D$28-1/'Dual Model'!$E$28)),'Dual Model'!$E$25+'Dual Model'!$H$14*SQRT('Dual Model'!$H$12^2+'Dual Model'!$H$13^2))+'Dual Model'!$C$36 -> 140.01 | E58: =MAXA(3600*E17/('Dual Model'!$E$28)+'Dual Model'!$H$14*'Dual Model'!$H$12+MAXA(0,'Dual Model'!$C$14*3600*(1/'Dual Model'!$E$28-1/'Dual Model'!$E$28)),'Dual Model'!$E$25+'Dual Model'!$H$14*SQRT('Dual Model'!$H$12^2+'Dual Model'!$H$13^2))+'Dual Model'!$C$36 -> 86.61 | F58: =MAXA(3600*F17/('Dual Model'!$F$28)+'Dual Model'!$H$14*'Dual Model'!$H$12+MAXA(0,'Dual Model'!$C$14*3600*(1/'Dual Model'!$F$28-1/'Dual Model'!$E$28)),'Dual Model'!$E$25+'Dual Model'!$H$14*SQRT('Dual Model'!$H$12^2+'Dual Model'!$H$13^2))+'Dual Model'!$C$36 -> 82.22538462 | G58: =MAXA(3600*G17/('Dual Model'!$G$28)+'Dual Model'!$H$14*'Dual Model'!$H$12+MAXA(0,'Dual Model'!$C$14*3600*(1/'Dual Model'!$G$28-1/'Dual Model'!$E$28)),'Dual Model'!$E$25+'Dual Model'!$H$14*SQRT('Dual Model'!$H$12^2+'Dual Model'!$H$13^2))+'Dual Model'!$C$36 -> 80.27666667 | H58: =MAXA(3600*H17/('Dual Model'!$H$28)+'Dual Model'!$H$14*'Dual Model'!$H$12+MAXA(0,'Dual Model'!$C$14*3600*(1/'Dual Model'!$H$28-1/'Dual Model'!$E$28)),'Dual Model'!$E$25+'Dual Model'!$H$14*SQRT('Dual Model'!$H$12^2+'Dual Model'!$H$13^2))+'Dual Model'!$C$36 -> 78.46714286 | I58: =MAXA(3600*I17/('Dual Model'!$I$28)+'Dual Model'!$H$14*'Dual Model'!$H$12+MAXA(0,'Dual Model'!$C$14*3600*(1/'Dual Model'!$I$28-1/'Dual Model'!$E$28)),'Dual Model'!$E$25+'Dual Model'!$H$14*SQRT('Dual Model'!$H$12^2+'Dual Model'!$H$13^2))+'Dual Model'!$C$36 -> 75.21
B59: Large-TP | C59: =MAXA(3600*C18/('Dual Model'!$C$28)+'Dual Model'!$H$14*'Dual Model'!$H$12+MAXA(0,'Dual Model'!$C$14*3600*(1/'Dual Model'!$C$28-1/'Dual Model'!$F$28)),'Dual Model'!$F$25+'Dual Model'!$H$14*SQRT('Dual Model'!$H$12^2+'Dual Model'!$H$13^2))+'Dual Model'!$C$36 -> 223.7638462 | D59: =MAXA(3600*D18/('Dual Model'!$D$28)+'Dual Model'!$H$14*'Dual Model'!$H$12+MAXA(0,'Dual Model'!$C$14*3600*(1/'Dual Model'!$D$28-1/'Dual Model'!$F$28)),'Dual Model'!$F$25+'Dual Model'!$H$14*SQRT('Dual Model'!$H$12^2+'Dual Model'!$H$13^2))+'Dual Model'!$C$36 -> 184.9638462 | E59: =MAXA(3600*E18/('Dual Model'!$E$28)+'Dual Model'!$H$14*'Dual Model'!$H$12+MAXA(0,'Dual Model'!$C$14*3600*(1/'Dual Model'!$E$28-1/'Dual Model'!$F$28)),'Dual Model'!$F$25+'Dual Model'!$H$14*SQRT('Dual Model'!$H$12^2+'Dual Model'!$H$13^2))+'Dual Model'!$C$36 -> 126.7638462 | F59: =MAXA(3600*F18/('Dual Model'!$F$28)+'Dual Model'!$H$14*'Dual Model'!$H$12+MAXA(0,'Dual Model'!$C$14*3600*(1/'Dual Model'!$F$28-1/'Dual Model'!$F$28)),'Dual Model'!$F$25+'Dual Model'!$H$14*SQRT('Dual Model'!$H$12^2+'Dual Model'!$H$13^2))+'Dual Model'!$C$36 -> 82.22538462 | G59: =MAXA(3600*G18/('Dual Model'!$G$28)+'Dual Model'!$H$14*'Dual Model'!$H$12+MAXA(0,'Dual Model'!$C$14*3600*(1/'Dual Model'!$G$28-1/'Dual Model'!$F$28)),'Dual Model'!$F$25+'Dual Model'!$H$14*SQRT('Dual Model'!$H$12^2+'Dual Model'!$H$13^2))+'Dual Model'!$C$36 -> 80.27666667 | H59: =MAXA(3600*H18/('Dual Model'!$H$28)+'Dual Model'!$H$14*'Dual Model'!$H$12+MAXA(0,'Dual Model'!$C$14*3600*(1/'Dual Model'!$H$28-1/'Dual Model'!$F$28)),'Dual Model'!$F$25+'Dual Model'!$H$14*SQRT('Dual Model'!$H$12^2+'Dual Model'!$H$13^2))+'Dual Model'!$C$36 -> 78.46714286 | I59: =MAXA(3600*I18/('Dual Model'!$I$28)+'Dual Model'!$H$14*'Dual Model'!$H$12+MAXA(0,'Dual Model'!$C$14*3600*(1/'Dual Model'!$I$28-1/'Dual Model'!$F$28)),'Dual Model'!$F$25+'Dual Model'!$H$14*SQRT('Dual Model'!$H$12^2+'Dual Model'!$H$13^2))+'Dual Model'!$C$36 -> 76.21168051
B60: Large-Jet | C60: =MAXA(3600*C19/('Dual Model'!$C$28)+'Dual Model'!$H$14*'Dual Model'!$H$12+MAXA(0,'Dual Model'!$C$14*3600*(1/'Dual Model'!$C$28-1/'Dual Model'!$G$28)),'Dual Model'!$G$25+'Dual Model'!$H$14*SQRT('Dual Model'!$H$12^2+'Dual Model'!$H$13^2))+'Dual Model'!$C$36 -> 230.9433333 | D60: =MAXA(3600*D19/('Dual Model'!$D$28)+'Dual Model'!$H$14*'Dual Model'!$H$12+MAXA(0,'Dual Model'!$C$14*3600*(1/'Dual Model'!$D$28-1/'Dual Model'!$G$28)),'Dual Model'!$G$25+'Dual Model'!$H$14*SQRT('Dual Model'!$H$12^2+'Dual Model'!$H$13^2))+'Dual Model'!$C$36 -> 192.1433333 | E60: =MAXA(3600*E19/('Dual Model'!$E$28)+'Dual Model'!$H$14*'Dual Model'!$H$12+MAXA(0,'Dual Model'!$C$14*3600*(1/'Dual Model'!$E$28-1/'Dual Model'!$G$28)),'Dual Model'!$G$25+'Dual Model'!$H$14*SQRT('Dual Model'!$H$12^2+'Dual Model'!$H$13^2))+'Dual Model'!$C$36 -> 133.9433333 | F60: =MAXA(3600*F19/('Dual Model'!$F$28)+'Dual Model'!$H$14*'Dual Model'!$H$12+MAXA(0,'Dual Model'!$C$14*3600*(1/'Dual Model'!$F$28-1/'Dual Model'!$G$28)),'Dual Model'!$G$25+'Dual Model'!$H$14*SQRT('Dual Model'!$H$12^2+'Dual Model'!$H$13^2))+'Dual Model'!$C$36 -> 89.40487179 | G60: =MAXA(3600*G19/('Dual Model'!$G$28)+'Dual Model'!$H$14*'Dual Model'!$H$12+MAXA(0,'Dual Model'!$C$14*3600*(1/'Dual Model'!$G$28-1/'Dual Model'!$G$28)),'Dual Model'!$G$25+'Dual Model'!$H$14*SQRT('Dual Model'!$H$12^2+'Dual Model'!$H$13^2))+'Dual Model'!$C$36 -> 80.27666667 | H60: =MAXA(3600*H19/('Dual Model'!$H$28)+'Dual Model'!$H$14*'Dual Model'!$H$12+MAXA(0,'Dual Model'!$C$14*3600*(1/'Dual Model'!$H$28-1/'Dual Model'!$G$28)),'Dual Model'!$G$25+'Dual Model'!$H$14*SQRT('Dual Model'!$H$12^2+'Dual Model'!$H$13^2))+'Dual Model'!$C$36 -> 78.46714286 | I60: =MAXA(3600*I19/('Dual Model'!$I$28)+'Dual Model'!$H$14*'Dual Model'!$H$12+MAXA(0,'Dual Model'!$C$14*3600*(1/'Dual Model'!$I$28-1/'Dual Model'!$G$28)),'Dual Model'!$G$25+'Dual Model'!$H$14*SQRT('Dual Model'!$H$12^2+'Dual Model'!$H$13^2))+'Dual Model'!$C$36 -> 77.21168051
B61: Large-757 | C61: =MAXA(3600*C20/('Dual Model'!$C$28)+'Dual Model'!$H$14*'Dual Model'!$H$12+MAXA(0,'Dual Model'!$C$14*3600*(1/'Dual Model'!$C$28-1/'Dual Model'!$H$28)),'Dual Model'!$H$25+'Dual Model'!$H$14*SQRT('Dual Model'!$H$12^2+'Dual Model'!$H$13^2))+'Dual Model'!$C$36 -> 277.61 | D61: =MAXA(3600*D20/('Dual Model'!$D$28)+'Dual Model'!$H$14*'Dual Model'!$H$12+MAXA(0,'Dual Model'!$C$14*3600*(1/'Dual Model'!$D$28-1/'Dual Model'!$H$28)),'Dual Model'!$H$25+'Dual Model'!$H$14*SQRT('Dual Model'!$H$12^2+'Dual Model'!$H$13^2))+'Dual Model'!$C$36 -> 234.81 | E61: =MAXA(3600*E20/('Dual Model'!$E$28)+'Dual Model'!$H$14*'Dual Model'!$H$12+MAXA(0,'Dual Model'!$C$14*3600*(1/'Dual Model'!$E$28-1/'Dual Model'!$H$28)),'Dual Model'!$H$25+'Dual Model'!$H$14*SQRT('Dual Model'!$H$12^2+'Dual Model'!$H$13^2))+'Dual Model'!$C$36 -> 170.61 | F61: =MAXA(3600*F20/('Dual Model'!$F$28)+'Dual Model'!$H$14*'Dual Model'!$H$12+MAXA(0,'Dual Model'!$C$14*3600*(1/'Dual Model'!$F$28-1/'Dual Model'!$H$28)),'Dual Model'!$H$25+'Dual Model'!$H$14*SQRT('Dual Model'!$H$12^2+'Dual Model'!$H$13^2))+'Dual Model'!$C$36 -> 118.2253846 | G61: =MAXA(3600*G20/('Dual Model'!$G$28)+'Dual Model'!$H$14*'Dual Model'!$H$12+MAXA(0,'Dual Model'!$C$14*3600*(1/'Dual Model'!$G$28-1/'Dual Model'!$H$28)),'Dual Model'!$H$25+'Dual Model'!$H$14*SQRT('Dual Model'!$H$12^2+'Dual Model'!$H$13^2))+'Dual Model'!$C$36 -> 108.2766667 | H61: =MAXA(3600*H20/('Dual Model'!$H$28)+'Dual Model'!$H$14*'Dual Model'!$H$12+MAXA(0,'Dual Model'!$C$14*3600*(1/'Dual Model'!$H$28-1/'Dual Model'!$H$28)),'Dual Model'!$H$25+'Dual Model'!$H$14*SQRT('Dual Model'!$H$12^2+'Dual Model'!$H$13^2))+'Dual Model'!$C$36 -> 99.03857143 | I61: =MAXA(3600*I20/('Dual Model'!$I$28)+'Dual Model'!$H$14*'Dual Model'!$H$12+MAXA(0,'Dual Model'!$C$14*3600*(1/'Dual Model'!$I$28-1/'Dual Model'!$H$28)),'Dual Model'!$H$25+'Dual Model'!$H$14*SQRT('Dual Model'!$H$12^2+'Dual Model'!$H$13^2))+'Dual Model'!$C$36 -> 94.41
B62: Heavy | C62: =MAXA(3600*C21/('Dual Model'!$C$28)+'Dual Model'!$H$14*'Dual Model'!$H$12+MAXA(0,'Dual Model'!$C$14*3600*(1/'Dual Model'!$C$28-1/'Dual Model'!$I$28)),'Dual Model'!$I$25+'Dual Model'!$H$14*SQRT('Dual Model'!$H$12^2+'Dual Model'!$H$13^2))+'Dual Model'!$C$36 -> 325.61 | D62: =MAXA(3600*D21/('Dual Model'!$D$28)+'Dual Model'!$H$14*'Dual Model'!$H$12+MAXA(0,'Dual Model'!$C$14*3600*(1/'Dual Model'!$D$28-1/'Dual Model'!$I$28)),'Dual Model'!$I$25+'Dual Model'!$H$14*SQRT('Dual Model'!$H$12^2+'Dual Model'!$H$13^2))+'Dual Model'!$C$36 -> 279.21 | E62: =MAXA(3600*E21/('Dual Model'!$E$28)+'Dual Model'!$H$14*'Dual Model'!$H$12+MAXA(0,'Dual Model'!$C$14*3600*(1/'Dual Model'!$E$28-1/'Dual Model'!$I$28)),'Dual Model'!$I$25+'Dual Model'!$H$14*SQRT('Dual Model'!$H$12^2+'Dual Model'!$H$13^2))+'Dual Model'!$C$36 -> 179.61 | F62: =MAXA(3600*F21/('Dual Model'!$F$28)+'Dual Model'!$H$14*'Dual Model'!$H$12+MAXA(0,'Dual Model'!$C$14*3600*(1/'Dual Model'!$F$28-1/'Dual Model'!$I$28)),'Dual Model'!$I$25+'Dual Model'!$H$14*SQRT('Dual Model'!$H$12^2+'Dual Model'!$H$13^2))+'Dual Model'!$C$36 -> 155.1484615 | G62: =MAXA(3600*G21/('Dual Model'!$G$28)+'Dual Model'!$H$14*'Dual Model'!$H$12+MAXA(0,'Dual Model'!$C$14*3600*(1/'Dual Model'!$G$28-1/'Dual Model'!$I$28)),'Dual Model'!$I$25+'Dual Model'!$H$14*SQRT('Dual Model'!$H$12^2+'Dual Model'!$H$13^2))+'Dual Model'!$C$36 -> 144.2766667 | H62: =MAXA(3600*H21/('Dual Model'!$H$28)+'Dual Model'!$H$14*'Dual Model'!$H$12+MAXA(0,'Dual Model'!$C$14*3600*(1/'Dual Model'!$H$28-1/'Dual Model'!$I$28)),'Dual Model'!$I$25+'Dual Model'!$H$14*SQRT('Dual Model'!$H$12^2+'Dual Model'!$H$13^2))+'Dual Model'!$C$36 -> 134.1814286 | I62: =MAXA(3600*I21/('Dual Model'!$I$28)+'Dual Model'!$H$14*'Dual Model'!$H$12+MAXA(0,'Dual Model'!$C$14*3600*(1/'Dual Model'!$I$28-1/'Dual Model'!$I$28)),'Dual Model'!$I$25+'Dual Model'!$H$14*SQRT('Dual Model'!$H$12^2+'Dual Model'!$H$13^2))+'Dual Model'!$C$36 -> 94.41
B64: IMC Required Separation for arrivals following an aircraft from each class | F64: Time in Seconds
C65: Small - S | D65: Small - T | E65: Small + | F65: Large-TP | G65: Large-Jet | H65: Large-757 | I65: Heavy
B66: Small - S | C66: =MAXA(3600*C25/('Dual Model'!$C$28)+'Dual Model'!$H$14*'Dual Model'!$H$12+MAXA(0,'Dual Model'!$C$14*3600*(1/'Dual Model'!$C$28-1/'Dual Model'!$C$28)),'Dual Model'!$C$25+'Dual Model'!$H$14*SQRT('Dual Model'!$H$12^2+'Dual Model'!$H$13^2))+'Dual Model'!$C$36 -> 149.61 | D66: =MAXA(3600*D25/('Dual Model'!$D$28)+'Dual Model'!$H$14*'Dual Model'!$H$12+MAXA(0,'Dual Model'!$C$14*3600*(1/'Dual Model'!$D$28-1/'Dual Model'!$C$28)),'Dual Model'!$C$25+'Dual Model'!$H$14*SQRT('Dual Model'!$H$12^2+'Dual Model'!$H$13^2))+'Dual Model'!$C$36 -> 137.61 | E66: =MAXA(3600*E25/('Dual Model'!$E$28)+'Dual Model'!$H$14*'Dual Model'!$H$12+MAXA(0,'Dual Model'!$C$14*3600*(1/'Dual Model'!$E$28-1/'Dual Model'!$C$28)),'Dual Model'!$C$25+'Dual Model'!$H$14*SQRT('Dual Model'!$H$12^2+'Dual Model'!$H$13^2))+'Dual Model'!$C$36 -> 119.61 | F66: =MAXA(3600*F25/('Dual Model'!$F$28)+'Dual Model'!$H$14*'Dual Model'!$H$12+MAXA(0,'Dual Model'!$C$14*3600*(1/'Dual Model'!$F$28-1/'Dual Model'!$C$28)),'Dual Model'!$C$25+'Dual Model'!$H$14*SQRT('Dual Model'!$H$12^2+'Dual Model'!$H$13^2))+'Dual Model'!$C$36 -> 112.6869231 | G66: =MAXA(3600*G25/('Dual Model'!$G$28)+'Dual Model'!$H$14*'Dual Model'!$H$12+MAXA(0,'Dual Model'!$C$14*3600*(1/'Dual Model'!$G$28-1/'Dual Model'!$C$28)),'Dual Model'!$C$25+'Dual Model'!$H$14*SQRT('Dual Model'!$H$12^2+'Dual Model'!$H$13^2))+'Dual Model'!$C$36 -> 109.61 | H66: =MAXA(3600*H25/('Dual Model'!$H$28)+'Dual Model'!$H$14*'Dual Model'!$H$12+MAXA(0,'Dual Model'!$C$14*3600*(1/'Dual Model'!$H$28-1/'Dual Model'!$C$28)),'Dual Model'!$C$25+'Dual Model'!$H$14*SQRT('Dual Model'!$H$12^2+'Dual Model'!$H$13^2))+'Dual Model'!$C$36 -> 106.7528571 | I66: =MAXA(3600*I25/('Dual Model'!$I$28)+'Dual Model'!$H$14*'Dual Model'!$H$12+MAXA(0,'Dual Model'!$C$14*3600*(1/'Dual Model'!$I$28-1/'Dual Model'!$C$28)),'Dual Model'!$C$25+'Dual Model'!$H$14*SQRT('Dual Model'!$H$12^2+'Dual Model'!$H$13^2))+'Dual Model'!$C$36 -> 101.61
B67: Small - T | C67: =MAXA(3600*C26/('Dual Model'!$C$28)+'Dual Model'!$H$14*'Dual Model'!$H$12+MAXA(0,'Dual Model'!$C$14*3600*(1/'Dual Model'!$C$28-1/'Dual Model'!$D$28)),'Dual Model'!$D$25+'Dual Model'!$H$14*SQRT('Dual Model'!$H$12^2+'Dual Model'!$H$13^2))+'Dual Model'!$C$36 -> 177.61 | D67: =MAXA(3600*D26/('Dual Model'!$D$28)+'Dual Model'!$H$14*'Dual Model'!$H$12+MAXA(0,'Dual Model'!$C$14*3600*(1/'Dual Model'!$D$28-1/'Dual Model'!$D$28)),'Dual Model'!$D$25+'Dual Model'!$H$14*SQRT('Dual Model'!$H$12^2+'Dual Model'!$H$13^2))+'Dual Model'!$C$36 -> 137.61 | E67: =MAXA(3600*E26/('Dual Model'!$E$28)+'Dual Model'!$H$14*'Dual Model'!$H$12+MAXA(0,'Dual Model'!$C$14*3600*(1/'Dual Model'!$E$28-1/'Dual Model'!$D$28)),'Dual Model'!$D$25+'Dual Model'!$H$14*SQRT('Dual Model'!$H$12^2+'Dual Model'!$H$13^2))+'Dual Model'!$C$36 -> 119.61 | F67: =MAXA(3600*F26/('Dual Model'!$F$28)+'Dual Model'!$H$14*'Dual Model'!$H$12+MAXA(0,'Dual Model'!$C$14*3600*(1/'Dual Model'!$F$28-1/'Dual Model'!$D$28)),'Dual Model'!$D$25+'Dual Model'!$H$14*SQRT('Dual Model'!$H$12^2+'Dual Model'!$H$13^2))+'Dual Model'!$C$36 -> 112.6869231 | G67: =MAXA(3600*G26/('Dual Model'!$G$28)+'Dual Model'!$H$14*'Dual Model'!$H$12+MAXA(0,'Dual Model'!$C$14*3600*(1/'Dual Model'!$G$28-1/'Dual Model'!$D$28)),'Dual Model'!$D$25+'Dual Model'!$H$14*SQRT('Dual Model'!$H$12^2+'Dual Model'!$H$13^2))+'Dual Model'!$C$36 -> 109.61 | H67: =MAXA(3600*H26/('Dual Model'!$H$28)+'Dual Model'!$H$14*'Dual Model'!$H$12+MAXA(0,'Dual Model'!$C$14*3600*(1/'Dual Model'!$H$28-1/'Dual Model'!$D$28)),'Dual Model'!$C$25+'Dual Model'!$H$14*SQRT('Dual Model'!$H$12^2+'Dual Model'!$H$13^2))+'Dual Model'!$C$36 -> 106.7528571 | I67: =MAXA(3600*I26/('Dual Model'!$I$28)+'Dual Model'!$H$14*'Dual Model'!$H$12+MAXA(0,'Dual Model'!$C$14*3600*(1/'Dual Model'!$I$28-1/'Dual Model'!$D$28)),'Dual Model'!$D$25+'Dual Model'!$H$14*SQRT('Dual Model'!$H$12^2+'Dual Model'!$H$13^2))+'Dual Model'!$C$36 -> 101.61
B68: Small + | C68: =MAXA(3600*C27/('Dual Model'!$C$28)+'Dual Model'!$H$14*'Dual Model'!$H$12+MAXA(0,'Dual Model'!$C$14*3600*(1/'Dual Model'!$C$28-1/'Dual Model'!$E$28)),'Dual Model'!$E$25+'Dual Model'!$H$14*SQRT('Dual Model'!$H$12^2+'Dual Model'!$H$13^2))+'Dual Model'!$C$36 -> 219.61 | D68: =MAXA(3600*D27/('Dual Model'!$D$28)+'Dual Model'!$H$14*'Dual Model'!$H$12+MAXA(0,'Dual Model'!$C$14*3600*(1/'Dual Model'!$D$28-1/'Dual Model'!$E$28)),'Dual Model'!$E$25+'Dual Model'!$H$14*SQRT('Dual Model'!$H$12^2+'Dual Model'!$H$13^2))+'Dual Model'!$C$36 -> 179.61 | E68: =MAXA(3600*E27/('Dual Model'!$E$28)+'Dual Model'!$H$14*'Dual Model'!$H$12+MAXA(0,'Dual Model'!$C$14*3600*(1/'Dual Model'!$E$28-1/'Dual Model'!$E$28)),'Dual Model'!$E$25+'Dual Model'!$H$14*SQRT('Dual Model'!$H$12^2+'Dual Model'!$H$13^2))+'Dual Model'!$C$36 -> 119.61 | F68: =MAXA(3600*F27/('Dual Model'!$F$28)+'Dual Model'!$H$14*'Dual Model'!$H$12+MAXA(0,'Dual Model'!$C$14*3600*(1/'Dual Model'!$F$28-1/'Dual Model'!$E$28)),'Dual Model'!$E$25+'Dual Model'!$H$14*SQRT('Dual Model'!$H$12^2+'Dual Model'!$H$13^2))+'Dual Model'!$C$36 -> 112.6869231 | G68: =MAXA(3600*G27/('Dual Model'!$G$28)+'Dual Model'!$H$14*'Dual Model'!$H$12+MAXA(0,'Dual Model'!$C$14*3600*(1/'Dual Model'!$G$28-1/'Dual Model'!$E$28)),'Dual Model'!$E$25+'Dual Model'!$H$14*SQRT('Dual Model'!$H$12^2+'Dual Model'!$H$13^2))+'Dual Model'!$C$36 -> 109.61 | H68: =MAXA(3600*H27/('Dual Model'!$H$28)+'Dual Model'!$H$14*'Dual Model'!$H$12+MAXA(0,'Dual Model'!$C$14*3600*(1/'Dual Model'!$H$28-1/'Dual Model'!$E$28)),'Dual Model'!$C$25+'Dual Model'!$H$14*SQRT('Dual Model'!$H$12^2+'Dual Model'!$H$13^2))+'Dual Model'!$C$36 -> 106.7528571 | I68: =MAXA(3600*I27/('Dual Model'!$I$28)+'Dual Model'!$H$14*'Dual Model'!$H$12+MAXA(0,'Dual Model'!$C$14*3600*(1/'Dual Model'!$I$28-1/'Dual Model'!$E$28)),'Dual Model'!$E$25+'Dual Model'!$H$14*SQRT('Dual Model'!$H$12^2+'Dual Model'!$H$13^2))+'Dual Model'!$C$36 -> 101.61
B69: Large-TP | C69: =MAXA(3600*C28/('Dual Model'!$C$28)+'Dual Model'!$H$14*'Dual Model'!$H$12+MAXA(0,'Dual Model'!$C$14*3600*(1/'Dual Model'!$C$28-1/'Dual Model'!$F$28)),'Dual Model'!$F$25+'Dual Model'!$H$14*SQRT('Dual Model'!$H$12^2+'Dual Model'!$H$13^2))+'Dual Model'!$C$36 -> 275.7638462 | D69: =MAXA(3600*D28/('Dual Model'!$D$28)+'Dual Model'!$H$14*'Dual Model'!$H$12+MAXA(0,'Dual Model'!$C$14*3600*(1/'Dual Model'!$D$28-1/'Dual Model'!$F$28)),'Dual Model'!$F$25+'Dual Model'!$H$14*SQRT('Dual Model'!$H$12^2+'Dual Model'!$H$13^2))+'Dual Model'!$C$36 -> 231.7638462 | E69: =MAXA(3600*E28/('Dual Model'!$E$28)+'Dual Model'!$H$14*'Dual Model'!$H$12+MAXA(0,'Dual Model'!$C$14*3600*(1/'Dual Model'!$E$28-1/'Dual Model'!$F$28)),'Dual Model'!$F$25+'Dual Model'!$H$14*SQRT('Dual Model'!$H$12^2+'Dual Model'!$H$13^2))+'Dual Model'!$C$36 -> 165.7638462 | F69: =MAXA(3600*F28/('Dual Model'!$F$28)+'Dual Model'!$H$14*'Dual Model'!$H$12+MAXA(0,'Dual Model'!$C$14*3600*(1/'Dual Model'!$F$28-1/'Dual Model'!$F$28)),'Dual Model'!$F$25+'Dual Model'!$H$14*SQRT('Dual Model'!$H$12^2+'Dual Model'!$H$13^2))+'Dual Model'!$C$36 -> 112.6869231 | G69: =MAXA(3600*G28/('Dual Model'!$G$28)+'Dual Model'!$H$14*'Dual Model'!$H$12+MAXA(0,'Dual Model'!$C$14*3600*(1/'Dual Model'!$G$28-1/'Dual Model'!$F$28)),'Dual Model'!$F$25+'Dual Model'!$H$14*SQRT('Dual Model'!$H$12^2+'Dual Model'!$H$13^2))+'Dual Model'!$C$36 -> 109.61 | H69: =MAXA(3600*H28/('Dual Model'!$H$28)+'Dual Model'!$H$14*'Dual Model'!$H$12+MAXA(0,'Dual Model'!$C$14*3600*(1/'Dual Model'!$H$28-1/'Dual Model'!$F$28)),'Dual Model'!$C$25+'Dual Model'!$H$14*SQRT('Dual Model'!$H$12^2+'Dual Model'!$H$13^2))+'Dual Model'!$C$36 -> 106.7528571 | I69: =MAXA(3600*I28/('Dual Model'!$I$28)+'Dual Model'!$H$14*'Dual Model'!$H$12+MAXA(0,'Dual Model'!$C$14*3600*(1/'Dual Model'!$I$28-1/'Dual Model'!$F$28)),'Dual Model'!$F$25+'Dual Model'!$H$14*SQRT('Dual Model'!$H$12^2+'Dual Model'!$H$13^2))+'Dual Model'!$C$36 -> 101.61
B70: Large-Jet | C70: =MAXA(3600*C29/('Dual Model'!$C$28)+'Dual Model'!$H$14*'Dual Model'!$H$12+MAXA(0,'Dual Model'!$C$14*3600*(1/'Dual Model'!$C$28-1/'Dual Model'!$G$28)),'Dual Model'!$G$25+'Dual Model'!$H$14*SQRT('Dual Model'!$H$12^2+'Dual Model'!$H$13^2))+'Dual Model'!$C$36 -> 282.9433333 | D70: =MAXA(3600*D29/('Dual Model'!$D$28)+'Dual Model'!$H$14*'Dual Model'!$H$12+MAXA(0,'Dual Model'!$C$14*3600*(1/'Dual Model'!$D$28-1/'Dual Model'!$G$28)),'Dual Model'!$G$25+'Dual Model'!$H$14*SQRT('Dual Model'!$H$12^2+'Dual Model'!$H$13^2))+'Dual Model'!$C$36 -> 238.9433333 | E70: =MAXA(3600*E29/('Dual Model'!$E$28)+'Dual Model'!$H$14*'Dual Model'!$H$12+MAXA(0,'Dual Model'!$C$14*3600*(1/'Dual Model'!$E$28-1/'Dual Model'!$G$28)),'Dual Model'!$G$25+'Dual Model'!$H$14*SQRT('Dual Model'!$H$12^2+'Dual Model'!$H$13^2))+'Dual Model'!$C$36 -> 172.9433333 | F70: =MAXA(3600*F29/('Dual Model'!$F$28)+'Dual Model'!$H$14*'Dual Model'!$H$12+MAXA(0,'Dual Model'!$C$14*3600*(1/'Dual Model'!$F$28-1/'Dual Model'!$G$28)),'Dual Model'!$G$25+'Dual Model'!$H$14*SQRT('Dual Model'!$H$12^2+'Dual Model'!$H$13^2))+'Dual Model'!$C$36 -> 119.8664103 | G70: =MAXA(3600*G29/('Dual Model'!$G$28)+'Dual Model'!$H$14*'Dual Model'!$H$12+MAXA(0,'Dual Model'!$C$14*3600*(1/'Dual Model'!$G$28-1/'Dual Model'!$G$28)),'Dual Model'!$G$25+'Dual Model'!$H$14*SQRT('Dual Model'!$H$12^2+'Dual Model'!$H$13^2))+'Dual Model'!$C$36 -> 109.61 | H70: =MAXA(3600*H29/('Dual Model'!$H$28)+'Dual Model'!$H$14*'Dual Model'!$H$12+MAXA(0,'Dual Model'!$C$14*3600*(1/'Dual Model'!$H$28-1/'Dual Model'!$G$28)),'Dual Model'!$C$25+'Dual Model'!$H$14*SQRT('Dual Model'!$H$12^2+'Dual Model'!$H$13^2))+'Dual Model'!$C$36 -> 106.7528571 | I70: =MAXA(3600*I29/('Dual Model'!$I$28)+'Dual Model'!$H$14*'Dual Model'!$H$12+MAXA(0,'Dual Model'!$C$14*3600*(1/'Dual Model'!$I$28-1/'Dual Model'!$G$28)),'Dual Model'!$G$25+'Dual Model'!$H$14*SQRT('Dual Model'!$H$12^2+'Dual Model'!$H$13^2))+'Dual Model'!$C$36 -> 101.61
B71: Large-757 | C71: =MAXA(3600*C30/('Dual Model'!$C$28)+'Dual Model'!$H$14*'Dual Model'!$H$12+MAXA(0,'Dual Model'!$C$14*3600*(1/'Dual Model'!$C$28-1/'Dual Model'!$H$28)),'Dual Model'!$G$25+'Dual Model'!$H$14*SQRT('Dual Model'!$H$12^2+'Dual Model'!$H$13^2))+'Dual Model'!$C$36 -> 329.61 | D71: =MAXA(3600*D30/('Dual Model'!$D$28)+'Dual Model'!$H$14*'Dual Model'!$H$12+MAXA(0,'Dual Model'!$C$14*3600*(1/'Dual Model'!$D$28-1/'Dual Model'!$H$28)),'Dual Model'!$G$25+'Dual Model'!$H$14*SQRT('Dual Model'!$H$12^2+'Dual Model'!$H$13^2))+'Dual Model'!$C$36 -> 281.61 | E71: =MAXA(3600*E30/('Dual Model'!$E$28)+'Dual Model'!$H$14*'Dual Model'!$H$12+MAXA(0,'Dual Model'!$C$14*3600*(1/'Dual Model'!$E$28-1/'Dual Model'!$H$28)),'Dual Model'!$G$25+'Dual Model'!$H$14*SQRT('Dual Model'!$H$12^2+'Dual Model'!$H$13^2))+'Dual Model'!$C$36 -> 209.61 | F71: =MAXA(3600*F30/('Dual Model'!$F$28)+'Dual Model'!$H$14*'Dual Model'!$H$12+MAXA(0,'Dual Model'!$C$14*3600*(1/'Dual Model'!$F$28-1/'Dual Model'!$H$28)),'Dual Model'!$G$25+'Dual Model'!$H$14*SQRT('Dual Model'!$H$12^2+'Dual Model'!$H$13^2))+'Dual Model'!$C$36 -> 154.2253846 | G71: =MAXA(3600*G30/('Dual Model'!$G$28)+'Dual Model'!$H$14*'Dual Model'!$H$12+MAXA(0,'Dual Model'!$C$14*3600*(1/'Dual Model'!$G$28-1/'Dual Model'!$H$28)),'Dual Model'!$G$25+'Dual Model'!$H$14*SQRT('Dual Model'!$H$12^2+'Dual Model'!$H$13^2))+'Dual Model'!$C$36 -> 142.9433333 | H71: =MAXA(3600*H30/('Dual Model'!$H$28)+'Dual Model'!$H$14*'Dual Model'!$H$12+MAXA(0,'Dual Model'!$C$14*3600*(1/'Dual Model'!$H$28-1/'Dual Model'!$H$28)),'Dual Model'!$C$25+'Dual Model'!$H$14*SQRT('Dual Model'!$H$12^2+'Dual Model'!$H$13^2))+'Dual Model'!$C$36 -> 132.4671429 | I71: =MAXA(3600*I30/('Dual Model'!$I$28)+'Dual Model'!$H$14*'Dual Model'!$H$12+MAXA(0,'Dual Model'!$C$14*3600*(1/'Dual Model'!$I$28-1/'Dual Model'!$H$28)),'Dual Model'!$C$25+'Dual Model'!$H$14*SQRT('Dual Model'!$H$12^2+'Dual Model'!$H$13^2))+'Dual Model'!$C$36 -> 125.61
B72: Heavy | C72: =MAXA(3600*C31/('Dual Model'!$C$28)+'Dual Model'!$H$14*'Dual Model'!$H$12+MAXA(0,'Dual Model'!$C$14*3600*(1/'Dual Model'!$C$28-1/'Dual Model'!$I$28)),'Dual Model'!$I$25+'Dual Model'!$H$14*SQRT('Dual Model'!$H$12^2+'Dual Model'!$H$13^2))+'Dual Model'!$C$36 -> 381.61 | D72: =MAXA(3600*D31/('Dual Model'!$D$28)+'Dual Model'!$H$14*'Dual Model'!$H$12+MAXA(0,'Dual Model'!$C$14*3600*(1/'Dual Model'!$D$28-1/'Dual Model'!$I$28)),'Dual Model'!$I$25+'Dual Model'!$H$14*SQRT('Dual Model'!$H$12^2+'Dual Model'!$H$13^2))+'Dual Model'!$C$36 -> 329.61 | E72: =MAXA(3600*E31/('Dual Model'!$E$28)+'Dual Model'!$H$14*'Dual Model'!$H$12+MAXA(0,'Dual Model'!$C$14*3600*(1/'Dual Model'!$E$28-1/'Dual Model'!$I$28)),'Dual Model'!$I$25+'Dual Model'!$H$14*SQRT('Dual Model'!$H$12^2+'Dual Model'!$H$13^2))+'Dual Model'!$C$36 -> 221.61 | F72: =MAXA(3600*F31/('Dual Model'!$F$28)+'Dual Model'!$H$14*'Dual Model'!$H$12+MAXA(0,'Dual Model'!$C$14*3600*(1/'Dual Model'!$F$28-1/'Dual Model'!$I$28)),'Dual Model'!$I$25+'Dual Model'!$H$14*SQRT('Dual Model'!$H$12^2+'Dual Model'!$H$13^2))+'Dual Model'!$C$36 -> 193.9176923 | G72: =MAXA(3600*G31/('Dual Model'!$G$28)+'Dual Model'!$H$14*'Dual Model'!$H$12+MAXA(0,'Dual Model'!$C$14*3600*(1/'Dual Model'!$G$28-1/'Dual Model'!$I$28)),'Dual Model'!$I$25+'Dual Model'!$H$14*SQRT('Dual Model'!$H$12^2+'Dual Model'!$H$13^2))+'Dual Model'!$C$36 -> 181.61 | H72: =MAXA(3600*H31/('Dual Model'!$H$28)+'Dual Model'!$H$14*'Dual Model'!$H$12+MAXA(0,'Dual Model'!$C$14*3600*(1/'Dual Model'!$H$28-1/'Dual Model'!$I$28)),'Dual Model'!$C$25+'Dual Model'!$H$14*SQRT('Dual Model'!$H$12^2+'Dual Model'!$H$13^2))+'Dual Model'!$C$36 -> 170.1814286 | I72: =MAXA(3600*I31/('Dual Model'!$I$28)+'Dual Model'!$H$14*'Dual Model'!$H$12+MAXA(0,'Dual Model'!$C$14*3600*(1/'Dual Model'!$I$28-1/'Dual Model'!$I$28)),'Dual Model'!$I$25+'Dual Model'!$H$14*SQRT('Dual Model'!$H$12^2+'Dual Model'!$H$13^2))+'Dual Model'!$C$36 -> 125.61
B74: VMC Average time between Arrivals | F74: Time in Seconds
C75: Small - S | D75: Small - T | E75: Small + | F75: Large-TP | G75: Large-Jet | H75: Large-757 | I75: Heavy
B76: Small - S | C76: =C5*C56 -> 0 | D76: =D5*D56 -> 0 | E76: 0 | F76: 0 | G76: 0 | H76: 0 | I76: 0 | K76: Average Arrival separation
B77: Small - T | C77: =C6*C57 -> 0 | D77: 0.9801 | E77: 0 | F77: 2.466761538 | G77: 4.013833333 | H77: 0.3923357143 | I77: 0.37605 | K77: =SUM(C76:I82) -> 96.55863865 | L77: seconds | M77: =(3600-'Dual Model'!$I$30)/K77 -> 37.28304428
B78: Small + | C78: =C7*C58 -> 0 | D78: 0 | E78: 0 | F78: 0 | G78: 0 | H78: 0 | I78: 0
B79: Large-TP | C79: =C8*C59 -> 0 | D79: 5.548915385 | E79: 0 | F79: 7.400284615 | G79: 12.0415 | H79: 1.177007143 | I79: 1.143175208
B80: Large-Jet | C80: =C9*C60 -> 0 | D80: 9.607166667 | E80: 0 | F80: 13.41073077 | G80: 20.06916667 | H80: 1.961678571 | I80: 1.930292013
B81: Large-757 | C81: =C10*C61 -> 0 | D81: 1.17405 | E81: 0 | F81: 1.773380769 | G81: 2.706916667 | H81: 0.2475964286 | I81: 0.236025
B82: Heavy | C82: =C11*C62 -> 0 | D82: 1.39605 | E82: 0 | F82: 2.327226923 | G82: 3.606916667 | H82: 0.3354535714 | I82: 0.236025
B84: VMC Average time between Departures | F84: Time in Seconds
C85: Small - S | D85: Small - T | E85: Small + | F85: Large-TP | G85: Large-Jet | H85: Large-757 | I85: Heavy
B86: Small - S | C86: =C5*C35 -> 0 | D86: =D5*D35 -> 0 | E86: 0 | F86: 0 | G86: 0 | H86: 0 | I86: 0 | K86: Average Departure separation
B87: Small - T | C87: =C6*C36 -> 0 | D87: 0.45 | E87: 0 | F87: 1.65 | G87: 2.75 | H87: 0.275 | I87: 0.3 | K87: =SUM(C86:I92) -> 73.05 | L87: seconds | M87: =(3600-'Dual Model'!$I$30)/K87 -> 49.28131417
B88: Small + | C88: =C7*C37 -> 0 | D88: 0 | E88: 0 | F88: 0 | G88: 0 | H88: 0 | I88: 0
B89: Large-TP | C89: =C8*C38 -> 0 | D89: 2.7 | E89: 0 | F89: 6.3 | G89: 10.5 | H89: 1.05 | I89: 1.05
B90: Large-Jet | C90: =C9*C39 -> 0 | D90: 4.5 | E90: 0 | F90: 10.5 | G90: 17.5 | H90: 1.75 | I90: 1.75
B91: Large-757 | C91: =C10*C40 -> 0 | D91: 0.45 | E91: 0 | F91: 1.05 | G91: 1.75 | H91: 0.175 | I91: 0.175
B92: Heavy | C92: =C11*C41 -> 0 | D92: 0.65 | E92: 0 | F92: 1.95 | G92: 3.25 | H92: 0.325 | I92: 0.25
B94: IMC Average time between Arrivals | F94: Time in Seconds
C95: Small - S | D95: Small - T | E95: Small + | F95: Large-TP | G95: Large-Jet | H95: Large-757 | I95: Heavy
B96: Small - S | C96: =C5*C66 -> 0 | D96: =D5*D66 -> 0 | E96: 0 | F96: 0 | G96: 0 | H96: 0 | I96: 0 | K96: Average Arrival separation
B97: Small - T | C97: =C6*C67 -> 0 | D97: 1.3761 | E97: 0 | F97: 3.380607692 | G97: 5.4805 | H97: 0.5337642857 | I97: 0.50805 | K97: =SUM(C96:I102) -> 128.2561538 | L97: seconds | M97: =(3600-'Dual Model'!$I$30)/K97 -> 28.06882861
B98: Small + | C98: =C7*C68 -> 0 | D98: 0 | E98: 0 | F98: 0 | G98: 0 | H98: 0 | I98: 0
B99: Large-TP | C99: =C8*C69 -> 0 | D99: 6.952915385 | E99: 0 | F99: 10.14182308 | G99: 16.4415 | H99: 1.601292857 | I99: 1.52415
B100: Large-Jet | C100: =C9*C70 -> 0 | D100: 11.94716667 | E100: 0 | F100: 17.97996154 | G100: 27.4025 | H100: 2.668821429 | I100: 2.54025
B101: Large-757 | C101: =C10*C71 -> 0 | D101: 1.40805 | E101: 0 | F101: 2.313380769 | G101: 3.573583333 | H101: 0.3311678571 | I101: 0.314025
B102: Heavy | C102: =C11*C72 -> 0 | D102: 1.64805 | E102: 0 | F102: 2.908765385 | G102: 4.54025 | H102: 0.4254535714 | I102: 0.314025
B104: IMC Average time between Departures | F104: Time in Seconds
C105: Small - S | D105: Small - T | E105: Small + | F105: Large-TP | G105: Large-Jet | H105: Large-757 | I105: Heavy
B106: Small - S | C106: =C5*C45 -> 0 | D106: =D5*D45 -> 0 | E106: 0 | F106: 0 | G106: 0 | H106: 0 | I106: 0 | K106: Average Departure separation
B107: Small - T | C107: =C6*C46 -> 0 | D107: 0.7 | E107: 0 | F107: 2.1 | G107: 3.5 | H107: 0.35 | I107: 0.35 | K107: =SUM(C106:I112) -> 74.625 | L107: seconds | M107: =(3600-'Dual Model'!$I$30)/K107 -> 48.24120603
B108: Small + | C108: =C7*C47 -> 0 | D108: 0 | E108: 0 | F108: 0 | G108: 0 | H108: 0 | I108: 0
B109: Large-TP | C109: =C8*C48 -> 0 | D109: 2.7 | E109: 0 | F109: 6.3 | G109: 10.5 | H109: 1.05 | I109: 1.05
B110: Large-Jet | C110: =C9*C49 -> 0 | D110: 4.5 | E110: 0 | F110: 10.5 | G110: 17.5 | H110: 1.75 | I110: 1.75
B111: Large-757 | C111: =C10*C50 -> 0 | D111: 0.45 | E111: 0 | F111: 1.05 | G111: 1.75 | H111: 0.175 | I111: 0.175
B112: Heavy | C112: =C11*C51 -> 0 | D112: 0.65 | E112: 0 | F112: 1.95 | G112: 3.25 | H112: 0.325 | I112: 0.25
B114: VMC Average Time Required for Departure between Arrivals | F114: Time in Seconds
C115: Small - S | D115: Small - T | E115: Small + | F115: Large-TP | G115: Large-Jet | H115: Large-757 | I115: Heavy | J115: AROT is exluded from the Equation for this layout configuration, Non-simultaneaous runway use
B116: Small - S | C116: =MAXA((3600*'Dual Model'!$C$12/('Dual Model'!C$28)),C$156) -> 80 | D116: =MAXA((3600*'Dual Model'!$C$12/('Dual Model'!D$28)),D$156) -> 72 | E116: =MAXA((3600*'Dual Model'!$C$12/('Dual Model'!E$28)),E$156) -> 60 | F116: =MAXA((3600*'Dual Model'!$C$12/('Dual Model'!F$28)),F$156) -> 55.38461538 | G116: =MAXA((3600*'Dual Model'!$C$12/('Dual Model'!G$28)),G$156) -> 53.33333333 | H116: =MAXA((3600*'Dual Model'!$C$12/('Dual Model'!H$28)),H$156) -> 51.42857143 | I116: =MAXA((3600*'Dual Model'!$C$12/('Dual Model'!I$28)),I$156) -> 51
B117: Small - T | C117: =MAXA((3600*'Dual Model'!$C$12/('Dual Model'!C$28)),C$156) -> 80 | D117: =MAXA((3600*'Dual Model'!$C$12/('Dual Model'!D$28)),D$156) -> 72 | E117: =MAXA((3600*'Dual Model'!$C$12/('Dual Model'!E$28)),E$156) -> 60 | F117: =MAXA((3600*'Dual Model'!$C$12/('Dual Model'!F$28)),F$156) -> 55.38461538 | G117: =MAXA((3600*'Dual Model'!$C$12/('Dual Model'!G$28)),G$156) -> 53.33333333 | H117: =MAXA((3600*'Dual Model'!$C$12/('Dual Model'!H$28)),H$156) -> 51.42857143 | I117: =MAXA((3600*'Dual Model'!$C$12/('Dual Model'!I$28)),I$156) -> 51
B118: Small + | C118: =MAXA((3600*'Dual Model'!$C$12/('Dual Model'!C$28)),C$156) -> 80 | D118: =MAXA((3600*'Dual Model'!$C$12/('Dual Model'!D$28)),D$156) -> 72 | E118: =MAXA((3600*'Dual Model'!$C$12/('Dual Model'!E$28)),E$156) -> 60 | F118: =MAXA((3600*'Dual Model'!$C$12/('Dual Model'!F$28)),F$156) -> 55.38461538 | G118: =MAXA((3600*'Dual Model'!$C$12/('Dual Model'!G$28)),G$156) -> 53.33333333 | H118: =MAXA((3600*'Dual Model'!$C$12/('Dual Model'!H$28)),H$156) -> 51.42857143 | I118: =MAXA((3600*'Dual Model'!$C$12/('Dual Model'!I$28)),I$156) -> 51
B119: Large-TP | C119: =MAXA((3600*'Dual Model'!$C$12/('Dual Model'!C$28)),C$156) -> 80 | D119: =MAXA((3600*'Dual Model'!$C$12/('Dual Model'!D$28)),D$156) -> 72 | E119: =MAXA((3600*'Dual Model'!$C$12/('Dual Model'!E$28)),E$156) -> 60 | F119: =MAXA((3600*'Dual Model'!$C$12/('Dual Model'!F$28)),F$156) -> 55.38461538 | G119: =MAXA((3600*'Dual Model'!$C$12/('Dual Model'!G$28)),G$156) -> 53.33333333 | H119: =MAXA((3600*'Dual Model'!$C$12/('Dual Model'!H$28)),H$156) -> 51.42857143 | I119: =MAXA((3600*'Dual Model'!$C$12/('Dual Model'!I$28)),I$156) -> 51
B120: Large-Jet | C120: =MAXA((3600*'Dual Model'!$C$12/('Dual Model'!C$28)),C$156) -> 80 | D120: =MAXA((3600*'Dual Model'!$C$12/('Dual Model'!D$28)),D$156) -> 72 | E120: =MAXA((3600*'Dual Model'!$C$12/('Dual Model'!E$28)),E$156) -> 60 | F120: =MAXA((3600*'Dual Model'!$C$12/('Dual Model'!F$28)),F$156) -> 55.38461538 | G120: =MAXA((3600*'Dual Model'!$C$12/('Dual Model'!G$28)),G$156) -> 53.33333333 | H120: =MAXA((3600*'Dual Model'!$C$12/('Dual Model'!H$28)),H$156) -> 51.42857143 | I120: =MAXA((3600*'Dual Model'!$C$12/('Dual Model'!I$28)),I$156) -> 51
B121: Large-757 | C121: =MAXA((3600*'Dual Model'!$C$12/('Dual Model'!C$28)),C$156) -> 80 | D121: =MAXA((3600*'Dual Model'!$C$12/('Dual Model'!D$28)),D$156) -> 72 | E121: =MAXA((3600*'Dual Model'!$C$12/('Dual Model'!E$28)),E$156) -> 60 | F121: =MAXA((3600*'Dual Model'!$C$12/('Dual Model'!F$28)),F$156) -> 55.38461538 | G121: =MAXA((3600*'Dual Model'!$C$12/('Dual Model'!G$28)),G$156) -> 53.33333333 | H121: =MAXA((3600*'Dual Model'!$C$12/('Dual Model'!H$28)),H$156) -> 51.42857143 | I121: =MAXA((3600*'Dual Model'!$C$12/('Dual Model'!I$28)),I$156) -> 51
B122: Heavy | C122: =MAXA((3600*'Dual Model'!$C$12/('Dual Model'!C$28)),C$156) -> 80 | D122: =MAXA((3600*'Dual Model'!$C$12/('Dual Model'!D$28)),D$156) -> 72 | E122: =MAXA((3600*'Dual Model'!$C$12/('Dual Model'!E$28)),E$156) -> 60 | F122: =MAXA((3600*'Dual Model'!$C$12/('Dual Model'!F$28)),F$156) -> 55.38461538 | G122: =MAXA((3600*'Dual Model'!$C$12/('Dual Model'!G$28)),G$156) -> 53.33333333 | H122: =MAXA((3600*'Dual Model'!$C$12/('Dual Model'!H$28)),H$156) -> 51.42857143 | I122: =MAXA((3600*'Dual Model'!$C$12/('Dual Model'!I$28)),I$156) -> 51
B124: IMC Average Time Required for Departure between Arrivals | F124: Time in Seconds
C125: Small - S | D125: Small - T | E125: Small + | F125: Large-TP | G125: Large-Jet | H125: Large-757 | I125: Heavy | J125: AROT is exluded from the Equation for this layout configuration, Non-simultaneaous runway use
B126: Small - S | C126: =MAXA((3600*'Dual Model'!$C$13/('Dual Model'!C$28)),C$156) -> 80 | D126: =MAXA((3600*'Dual Model'!$C$13/('Dual Model'!D$28)),D$156) -> 72 | E126: =MAXA((3600*'Dual Model'!$C$13/('Dual Model'!E$28)),E$156) -> 60 | F126: =MAXA((3600*'Dual Model'!$C$13/('Dual Model'!F$28)),F$156) -> 55.38461538 | G126: =MAXA((3600*'Dual Model'!$C$13/('Dual Model'!G$28)),G$156) -> 53.33333333 | H126: =MAXA((3600*'Dual Model'!$C$13/('Dual Model'!H$28)),H$156) -> 51.42857143 | I126: =MAXA((3600*'Dual Model'!$C$13/('Dual Model'!I$28)),I$156) -> 51
B127: Small - T | C127: =MAXA((3600*'Dual Model'!$C$13/('Dual Model'!C$28)),C$156) -> 80 | D127: =MAXA((3600*'Dual Model'!$C$13/('Dual Model'!D$28)),D$156) -> 72 | E127: =MAXA((3600*'Dual Model'!$C$13/('Dual Model'!E$28)),E$156) -> 60 | F127: =MAXA((3600*'Dual Model'!$C$13/('Dual Model'!F$28)),F$156) -> 55.38461538 | G127: =MAXA((3600*'Dual Model'!$C$13/('Dual Model'!G$28)),G$156) -> 53.33333333 | H127: =MAXA((3600*'Dual Model'!$C$13/('Dual Model'!H$28)),H$156) -> 51.42857143 | I127: =MAXA((3600*'Dual Model'!$C$13/('Dual Model'!I$28)),I$156) -> 51
B128: Small + | C128: =MAXA((3600*'Dual Model'!$C$13/('Dual Model'!C$28)),C$156) -> 80 | D128: =MAXA((3600*'Dual Model'!$C$13/('Dual Model'!D$28)),D$156) -> 72 | E128: =MAXA((3600*'Dual Model'!$C$13/('Dual Model'!E$28)),E$156) -> 60 | F128: =MAXA((3600*'Dual Model'!$C$13/('Dual Model'!F$28)),F$156) -> 55.38461538 | G128: =MAXA((3600*'Dual Model'!$C$13/('Dual Model'!G$28)),G$156) -> 53.33333333 | H128: =MAXA((3600*'Dual Model'!$C$13/('Dual Model'!H$28)),H$156) -> 51.42857143 | I128: =MAXA((3600*'Dual Model'!$C$13/('Dual Model'!I$28)),I$156) -> 51
B129: Large-TP | C129: =MAXA((3600*'Dual Model'!$C$13/('Dual Model'!C$28)),C$156) -> 80 | D129: =MAXA((3600*'Dual Model'!$C$13/('Dual Model'!D$28)),D$156) -> 72 | E129: =MAXA((3600*'Dual Model'!$C$13/('Dual Model'!E$28)),E$156) -> 60 | F129: =MAXA((3600*'Dual Model'!$C$13/('Dual Model'!F$28)),F$156) -> 55.38461538 | G129: =MAXA((3600*'Dual Model'!$C$13/('Dual Model'!G$28)),G$156) -> 53.33333333 | H129: =MAXA((3600*'Dual Model'!$C$13/('Dual Model'!H$28)),H$156) -> 51.42857143 | I129: =MAXA((3600*'Dual Model'!$C$13/('Dual Model'!I$28)),I$156) -> 51
B130: Large-Jet | C130: =MAXA((3600*'Dual Model'!$C$13/('Dual Model'!C$28)),C$156) -> 80 | D130: =MAXA((3600*'Dual Model'!$C$13/('Dual Model'!D$28)),D$156) -> 72 | E130: =MAXA((3600*'Dual Model'!$C$13/('Dual Model'!E$28)),E$156) -> 60 | F130: =MAXA((3600*'Dual Model'!$C$13/('Dual Model'!F$28)),F$156) -> 55.38461538 | G130: =MAXA((3600*'Dual Model'!$C$13/('Dual Model'!G$28)),G$156) -> 53.33333333 | H130: =MAXA((3600*'Dual Model'!$C$13/('Dual Model'!H$28)),H$156) -> 51.42857143 | I130: =MAXA((3600*'Dual Model'!$C$13/('Dual Model'!I$28)),I$156) -> 51
B131: Large-757 | C131: =MAXA((3600*'Dual Model'!$C$13/('Dual Model'!C$28)),C$156) -> 80 | D131: =MAXA((3600*'Dual Model'!$C$13/('Dual Model'!D$28)),D$156) -> 72 | E131: =MAXA((3600*'Dual Model'!$C$13/('Dual Model'!E$28)),E$156) -> 60 | F131: =MAXA((3600*'Dual Model'!$C$13/('Dual Model'!F$28)),F$156) -> 55.38461538 | G131: =MAXA((3600*'Dual Model'!$C$13/('Dual Model'!G$28)),G$156) -> 53.33333333 | H131: =MAXA((3600*'Dual Model'!$C$13/('Dual Model'!H$28)),H$156) -> 51.42857143 | I131: =MAXA((3600*'Dual Model'!$C$13/('Dual Model'!I$28)),I$156) -> 51
B132: Heavy | C132: =MAXA((3600*'Dual Model'!$C$13/('Dual Model'!C$28)),C$156) -> 80 | D132: =MAXA((3600*'Dual Model'!$C$13/('Dual Model'!D$28)),D$156) -> 72 | E132: =MAXA((3600*'Dual Model'!$C$13/('Dual Model'!E$28)),E$156) -> 60 | F132: =MAXA((3600*'Dual Model'!$C$13/('Dual Model'!F$28)),F$156) -> 55.38461538 | G132: =MAXA((3600*'Dual Model'!$C$13/('Dual Model'!G$28)),G$156) -> 53.33333333 | H132: =MAXA((3600*'Dual Model'!$C$13/('Dual Model'!H$28)),H$156) -> 51.42857143 | I132: =MAXA((3600*'Dual Model'!$C$13/('Dual Model'!I$28)),I$156) -> 51
B134: VMC Average Required for Departure between Arrivals | F134: Time in Seconds
C135: Small - S | D135: Small - T | E135: Small + | F135: Large-TP | G135: Large-Jet | H135: Large-757 | I135: Heavy | L135: Departures between Arrivals | N135: VMC
B136: Small - S | C136: =C56-C116 -> 25.61 | D136: =D56-D116 -> 26.01 | E136: 26.61 | F136: 26.84076923 | G136: 26.94333333 | H136: 27.03857143 | I136: 24.21 | L136: =SUMPRODUCT(L137:L143,C5:C11)+SUMPRODUCT(M137:M143,D5:D11)+SUMPRODUCT(N137:N143,E5:E11)+SUMPRODUCT(O137:O143,F5:F11)+SUMPRODUCT(P137:P143,G5:G11)+SUMPRODUCT(Q137:Q143,H5:H11)+SUMPRODUCT(R137:R143,I5:I11) -> 1.1425 | M136: =L136*M77 -> 42.59587809
B137: Small - T | C137: =C57-C117 -> 53.61 | D137: 26.01 | E137: 26.61 | F137: 26.84076923 | G137: 26.94333333 | H137: 27.03857143 | I137: 24.21 | L137: =IF(C136>=0,TRUNC(C136/$K$87,0)+1,0) -> 1 | M137: =IF(D136>=0,TRUNC(D136/$K$87,0)+1,0) -> 1 | N137: 1 | O137: 1 | P137: 1 | Q137: 1 | R137: 1
B138: Small + | C138: =C58-C118 -> 95.61 | D138: 68.01 | E138: 26.61 | F138: 26.84076923 | G138: 26.94333333 | H138: 27.03857143 | I138: 24.21 | L138: =IF(C137>=0,TRUNC(C137/$K$87,0)+1,0) -> 1 | M138: =IF(D137>=0,TRUNC(D137/$K$87,0)+1,0) -> 1 | N138: =IF(E137>=0,TRUNC(E137/$K$87,0)+1,0) -> 1 | O138: =IF(F137>=0,TRUNC(F137/$K$87,0)+1,0) -> 1 | P138: =IF(G137>=0,TRUNC(G137/$K$87,0)+1,0) -> 1 | Q138: =IF(H137>=0,TRUNC(H137/$K$87,0)+1,0) -> 1 | R138: =IF(I137>=0,TRUNC(I137/$K$87,0)+1,0) -> 1
B139: Large-TP | C139: =C59-C119 -> 143.7638462 | D139: 112.9638462 | E139: 66.76384615 | F139: 26.84076923 | G139: 26.94333333 | H139: 27.03857143 | I139: 25.21168051 | L139: 2 | M139: 1 | N139: 1 | O139: 1 | P139: 1 | Q139: 1 | R139: 1
B140: Large-Jet | C140: =C60-C120 -> 150.9433333 | D140: 120.1433333 | E140: 73.94333333 | F140: 34.02025641 | G140: 26.94333333 | H140: 27.03857143 | I140: 26.21168051 | L140: 2 | M140: 2 | N140: 1 | O140: 1 | P140: 1 | Q140: 1 | R140: 1
B141: Large-757 | C141: =C61-C121 -> 197.61 | D141: 162.81 | E141: 110.61 | F141: 62.84076923 | G141: 54.94333333 | H141: 47.61 | I141: 43.41 | L141: 3 | M141: 2 | N141: 2 | O141: 1 | P141: 1 | Q141: 1 | R141: 1
B142: Heavy | C142: =C62-C122 -> 245.61 | D142: 207.21 | E142: 119.61 | F142: 99.76384615 | G142: 90.94333333 | H142: 82.75285714 | I142: 43.41 | L142: 3 | M142: 3 | N142: 2 | O142: 1 | P142: 1 | Q142: 1 | R142: 1
L143: 4 | M143: 3 | N143: 2 | O143: 2 | P143: 2 | Q143: 2 | R143: 1
B144: IMC Average Required for Departure between Arrivals | F144: Time in Seconds
C145: Small - S | D145: Small - T | E145: Small + | F145: Large-TP | G145: Large-Jet | H145: Large-757 | I145: Heavy | L145: Departures between Arrivals | N145: IMC
B146: Small - S | C146: =C66-C126 -> 69.61 | D146: =D66-D126 -> 65.61 | E146: 59.61 | F146: 57.30230769 | G146: 56.27666667 | H146: 55.32428571 | I146: 50.61 | L146: =SUMPRODUCT(L147:L153,C5:C11)+SUMPRODUCT(M147:M153,D5:D11)+SUMPRODUCT(N147:N153,E5:E11)+SUMPRODUCT(O147:O153,F5:F11)+SUMPRODUCT(P147:P153,G5:G11)+SUMPRODUCT(Q147:Q153,H5:H11)+SUMPRODUCT(R147:R153,I5:I11) -> 1.27 | M146: =L146*M97 -> 35.64741233
B147: Small - T | C147: =C67-C127 -> 97.61 | D147: 65.61 | E147: 59.61 | F147: 57.30230769 | G147: 56.27666667 | H147: 55.32428571 | I147: 50.61 | L147: =IF(C146>=0,TRUNC(C146/$K$107,0)+1,0) -> 1 | M147: =IF(D146>=0,TRUNC(D146/$K$107,0)+1,0) -> 1 | N147: 1 | O147: 1 | P147: 1 | Q147: 1 | R147: 1
B148: Small + | C148: =C68-C128 -> 139.61 | D148: 107.61 | E148: 59.61 | F148: 57.30230769 | G148: 56.27666667 | H148: 55.32428571 | I148: 50.61 | L148: =IF(C147>=0,TRUNC(C147/$K$107,0)+1,0) -> 2 | M148: =IF(D147>=0,TRUNC(D147/$K$107,0)+1,0) -> 1 | N148: =IF(E147>=0,TRUNC(E147/$K$107,0)+1,0) -> 1 | O148: =IF(F147>=0,TRUNC(F147/$K$107,0)+1,0) -> 1 | P148: =IF(G147>=0,TRUNC(G147/$K$107,0)+1,0) -> 1 | Q148: =IF(H147>=0,TRUNC(H147/$K$107,0)+1,0) -> 1 | R148: =IF(I147>=0,TRUNC(I147/$K$107,0)+1,0) -> 1
B149: Large-TP | C149: =C69-C129 -> 195.7638462 | D149: 159.7638462 | E149: 105.7638462 | F149: 57.30230769 | G149: 56.27666667 | H149: 55.32428571 | I149: 50.61 | L149: 2 | M149: 2 | N149: 1 | O149: 1 | P149: 1 | Q149: 1 | R149: 1
B150: Large-Jet | C150: =C70-C130 -> 202.9433333 | D150: 166.9433333 | E150: 112.9433333 | F150: 64.48179487 | G150: 56.27666667 | H150: 55.32428571 | I150: 50.61 | L150: 3 | M150: 3 | N150: 2 | O150: 1 | P150: 1 | Q150: 1 | R150: 1
B151: Large-757 | C151: =C71-C131 -> 249.61 | D151: 209.61 | E151: 149.61 | F151: 98.84076923 | G151: 89.61 | H151: 81.03857143 | I151: 74.61 | L151: 3 | M151: 3 | N151: 2 | O151: 1 | P151: 1 | Q151: 1 | R151: 1
B152: Heavy | C152: =C72-C132 -> 301.61 | D152: 257.61 | E152: 161.61 | F152: 138.5330769 | G152: 128.2766667 | H152: 118.7528571 | I152: 74.61 | L152: 4 | M152: 3 | N152: 3 | O152: 2 | P152: 2 | Q152: 2 | R152: 1
L153: 5 | M153: 4 | N153: 3 | O153: 2 | P153: 2 | Q153: 2 | R153: 1
C155: Small - S | D155: Small - T | E155: Small + | F155: Large-TP | G155: Large-Jet | H155: Large-757 | I155: Heavy
B156: Average Dep. Runway Occ. Times (sec) | C156: ='Single Work Tab'!$C$155 -> 34 | D156: ='Single Work Tab'!$D$155 -> 42 | E156: ='Single Work Tab'!$E$155 -> 34 | F156: ='Single Work Tab'!$F$155 -> 34 | G156: ='Single Work Tab'!$G$155 -> 46 | H156: ='Single Work Tab'!$H$155 -> 38 | I156: ='Single Work Tab'!$I$155 -> 51
C157: linked to Single Work Tab inputs

Sheet Dual Work Tab (2) (hidden)
B1: Dual Model Worksheet #2 with working Calculated Values
B3: Arrivals Pairing Probability Matrix | D3: (chance of landing behind an aircraft from each class) | K3: 0 | L3: Calculated Cells
C4: Small - S | D4: Small - T | E4: Small + | F4: Large-TP | G4: Large-Jet | H4: Large-757 | I4: Heavy | K4: 0 | L4: Linked Input Cells
B5: Small - S | C5: ='Dual Model'!$C22*'Dual Model'!C22 -> 0 | D5: ='Dual Model'!$C22*'Dual Model'!D22 -> 0 | E5: ='Dual Model'!$C22*'Dual Model'!E22 -> 0 | F5: ='Dual Model'!$C22*'Dual Model'!F22 -> 0 | G5: ='Dual Model'!$C22*'Dual Model'!G22 -> 0 | H5: ='Dual Model'!$C22*'Dual Model'!H22 -> 0 | I5: ='Dual Model'!$C22*'Dual Model'!I22 -> 0 | K5: 0 | L5: Linked Cells (within this worksheet)
B6: Small - T | C6: ='Dual Model'!$D22*'Dual Model'!C22 -> 0 | D6: ='Dual Model'!$D22*'Dual Model'!D22 -> 0.01 | E6: ='Dual Model'!$D22*'Dual Model'!E22 -> 0 | F6: ='Dual Model'!$D22*'Dual Model'!F22 -> 0.03 | G6: ='Dual Model'!$D22*'Dual Model'!G22 -> 0.05 | H6: ='Dual Model'!$D22*'Dual Model'!H22 -> 0.005 | I6: ='Dual Model'!$D22*'Dual Model'!I22 -> 0.005
B7: Small + | C7: ='Dual Model'!$E22*'Dual Model'!C22 -> 0 | D7: ='Dual Model'!$E22*'Dual Model'!D22 -> 0 | E7: ='Dual Model'!$E22*'Dual Model'!E22 -> 0 | F7: ='Dual Model'!$E22*'Dual Model'!F22 -> 0 | G7: ='Dual Model'!$E22*'Dual Model'!G22 -> 0 | H7: ='Dual Model'!$E22*'Dual Model'!H22 -> 0 | I7: ='Dual Model'!$E22*'Dual Model'!I22 -> 0
B8: Large-TP | C8: ='Dual Model'!$F22*'Dual Model'!C22 -> 0 | D8: ='Dual Model'!$F22*'Dual Model'!D22 -> 0.03 | E8: ='Dual Model'!$F22*'Dual Model'!E22 -> 0 | F8: ='Dual Model'!$F22*'Dual Model'!F22 -> 0.09 | G8: ='Dual Model'!$F22*'Dual Model'!G22 -> 0.15 | H8: ='Dual Model'!$F22*'Dual Model'!H22 -> 0.015 | I8: ='Dual Model'!$F22*'Dual Model'!I22 -> 0.015
B9: Large-Jet | C9: ='Dual Model'!$G22*'Dual Model'!C22 -> 0 | D9: ='Dual Model'!$G22*'Dual Model'!D22 -> 0.05 | E9: ='Dual Model'!$G22*'Dual Model'!E22 -> 0 | F9: ='Dual Model'!$G22*'Dual Model'!F22 -> 0.15 | G9: ='Dual Model'!$G22*'Dual Model'!G22 -> 0.25 | H9: ='Dual Model'!$G22*'Dual Model'!H22 -> 0.025 | I9: ='Dual Model'!$G22*'Dual Model'!I22 -> 0.025
B10: Large-757 | C10: ='Dual Model'!$H22*'Dual Model'!C22 -> 0 | D10: ='Dual Model'!$H22*'Dual Model'!D22 -> 0.005 | E10: ='Dual Model'!$H22*'Dual Model'!E22 -> 0 | F10: ='Dual Model'!$H22*'Dual Model'!F22 -> 0.015 | G10: ='Dual Model'!$H22*'Dual Model'!G22 -> 0.025 | H10: ='Dual Model'!$H22*'Dual Model'!H22 -> 0.0025 | I10: ='Dual Model'!$H22*'Dual Model'!I22 -> 0.0025 | J10: Summary Check
B11: Heavy | C11: ='Dual Model'!$I22*'Dual Model'!C22 -> 0 | D11: ='Dual Model'!$I22*'Dual Model'!D22 -> 0.005 | E11: ='Dual Model'!$I22*'Dual Model'!E22 -> 0 | F11: ='Dual Model'!$I22*'Dual Model'!F22 -> 0.015 | G11: ='Dual Model'!$I22*'Dual Model'!G22 -> 0.025 | H11: ='Dual Model'!$I22*'Dual Model'!H22 -> 0.0025 | I11: ='Dual Model'!$I22*'Dual Model'!I22 -> 0.0025 | J11: Total = | K11: =SUM(C5:I11) -> 1
B13: VMC Required Separation for arrivals following an aircraft from each class | F13: Distance in Nautical Miles
C14: Small - S | D14: Small - T | E14: Small + | F14: Large-TP | G14: Large-Jet | H14: Large-757 | I14: Heavy
B15: Small - S | C15: ='Dual Model'!D41+'Dual Model'!$H$36 -> 1.9 | D15: =$C$15 -> 1.9 | E15: 1.9 | F15: 1.9 | G15: 1.9 | H15: 1.9 | I15: 1.9
B16: Small - T | C16: =$C$15 -> 1.9 | D16: 1.9 | E16: 1.9 | F16: 1.9 | G16: 1.9 | H16: 1.9 | I16: 1.9
B17: Small + | C17: ='Dual Model'!D42+'Dual Model'!$H$36 -> 1.9 | D17: =$C$17 -> 1.9 | E17: =$C$17 -> 1.9 | F17: ='Dual Model'!D43+'Dual Model'!$H$36 -> 1.9 | G17: =$F$17 -> 1.9 | H17: =$F$17 -> 1.9 | I17: =$F$17 -> 1.9
B18: Large-TP | C18: ='Dual Model'!D44+'Dual Model'!$H$36 -> 2.7 | D18: =$C$18 -> 2.7 | E18: =$C$18 -> 2.7 | F18: ='Dual Model'!D45+'Dual Model'!$H$36 -> 1.9 | G18: =$F$18 -> 1.9 | H18: =$F$18 -> 1.9 | I18: =$F$18 -> 1.9
B19: Large-Jet | C19: ='Dual Model'!D44+'Dual Model'!$H$36 -> 2.7 | D19: =$C$19 -> 2.7 | E19: =$C$19 -> 2.7 | F19: ='Dual Model'!D45+'Dual Model'!$H$36 -> 1.9 | G19: =$F$19 -> 1.9 | H19: =$F$19 -> 1.9 | I19: =$F$19 -> 1.9
B20: Large-757 | C20: ='Dual Model'!D46+'Dual Model'!$H$36 -> 3.7 | D20: =$C$20 -> 3.7 | E20: =$C$20 -> 3.7 | F20: ='Dual Model'!D47+'Dual Model'!$H$36 -> 2.7 | G20: =$F$20 -> 2.7 | H20: =$F$20 -> 2.7 | I20: =$F$20 -> 2.7
B21: Heavy | C21: ='Dual Model'!D48+'Dual Model'!$H$36 -> 4.6 | D21: =$C$21 -> 4.6 | E21: ='Dual Model'!D49+'Dual Model'!$H$36 -> 3.6 | F21: =$E$21 -> 3.6 | G21: =E21 -> 3.6 | H21: =$E$21 -> 3.6 | I21: ='Dual Model'!D50+'Dual Model'!$H$36 -> 2.7
B23: IMC Required Separation for arrivals following an aircraft from each class | F23: Distance in Nautical Miles
C24: Small - S | D24: Small - T | E24: Small + | F24: Large-TP | G24: Large-Jet | H24: Large-757 | I24: Heavy
B25: Small - S | C25: ='Dual Model'!E41+'Dual Model'!$H$36 -> 3 | D25: =$C$25 -> 3 | E25: 3 | F25: 3 | G25: 3 | H25: 3 | I25: 3
B26: Small - T | C26: =$C$25 -> 3 | D26: 3 | E26: 3 | F26: 3 | G26: 3 | H26: 3 | I26: 3
B27: Small + | C27: ='Dual Model'!E42+'Dual Model'!$H$36 -> 3 | D27: =$C$27 -> 3 | E27: =$C$27 -> 3 | F27: ='Dual Model'!E43+'Dual Model'!$H$36 -> 3 | G27: =$F$27 -> 3 | H27: =$F$27 -> 3 | I27: =$F$27 -> 3
B28: Large-TP | C28: ='Dual Model'!E44+'Dual Model'!$H$36 -> 4 | D28: =$C$28 -> 4 | E28: =$C$28 -> 4 | F28: ='Dual Model'!E45+'Dual Model'!$H$36 -> 3 | G28: =$F$28 -> 3 | H28: 3 | I28: 3
B29: Large-Jet | C29: ='Dual Model'!E44+'Dual Model'!$H$36 -> 4 | D29: =$C$28 -> 4 | E29: =$C$28 -> 4 | F29: ='Dual Model'!E45+'Dual Model'!$H$36 -> 3 | G29: 3 | H29: 3 | I29: 3
B30: Large-757 | C30: ='Dual Model'!E46+'Dual Model'!$H$36 -> 5 | D30: =$C$30 -> 5 | E30: =$C$30 -> 5 | F30: ='Dual Model'!E47+'Dual Model'!$H$36 -> 4 | G30: =$F$30 -> 4 | H30: =$F$30 -> 4 | I30: =$F$30 -> 4
B31: Heavy | C31: ='Dual Model'!E48+'Dual Model'!$H$36 -> 6 | D31: =$C$31 -> 6 | E31: ='Dual Model'!E49+'Dual Model'!$H$36 -> 5 | F31: =$E$31 -> 5 | G31: =$E$31 -> 5 | H31: =$E$31 -> 5 | I31: ='Dual Model'!E50+'Dual Model'!$H$36 -> 4
B33: VMC Required Separation for departures following an aircraft from each class | F33: Time in seconds
C34: Small - S | D34: Small - T | E34: Small + | F34: Large-TP | G34: Large-Jet | H34: Large-757 | I34: Heavy
B35: Small - S | C35: ='Dual Model'!$D$54+'Dual Model'!$C$37 -> 45 | D35: =$C$35 -> 45 | E35: =$C$35 -> 45 | F35: ='Dual Model'!$D$55+'Dual Model'!$C$37 -> 55 | G35: =$F$35 -> 55 | H35: 55 | I35: ='Dual Model'!$D$56+'Dual Model'!$C$37 -> 60
B36: Small - T | C36: =$C$35 -> 45 | D36: 45 | E36: 45 | F36: =$F$35 -> 55 | G36: 55 | H36: 55 | I36: =$I$35 -> 60
B37: Small + | C37: 45 | D37: 45 | E37: 45 | F37: =$F$35 -> 55 | G37: 55 | H37: 55 | I37: =$I$35 -> 60
B38: Large-TP | C38: ='Dual Model'!$D$57+'Dual Model'!$C$37 -> 90 | D38: =$C$38 -> 90 | E38: =$C$38 -> 90 | F38: ='Dual Model'!$D$58+'Dual Model'!$C$37 -> 70 | G38: =$F$38 -> 70 | H38: 70 | I38: 70
B39: Large-Jet | C39: =$C$38 -> 90 | D39: =$C$38 -> 90 | E39: =$C$38 -> 90 | F39: =$F$38 -> 70 | G39: 70 | H39: 70 | I39: 70
B40: Large-757 | C40: =$C$41 -> 130 | D40: 130 | E40: 130 | F40: 130 | G40: 130 | H40: 130 | I40: =$I$41 -> 100
B41: Heavy | C41: ='Dual Model'!$D$59+'Dual Model'!$C$37 -> 130 | D41: =$C$41 -> 130 | E41: =$C$41 -> 130 | F41: =$C$41 -> 130 | G41: =$C$41 -> 130 | H41: =$C$41 -> 130 | I41: ='Dual Model'!$D$60+'Dual Model'!$C$37 -> 100
B43: IMC Required Separation for departures following an aircraft from each class | F43: Time in seconds
C44: Small - S | D44: Small - T | E44: Small + | F44: Large-TP | G44: Large-Jet | H44: Large-757 | I44: Heavy
B45: Small - S | C45: ='Dual Model'!$E$54+'Dual Model'!$C$37 -> 70 | D45: =$C$45 -> 70 | E45: 70 | F45: ='Dual Model'!$E$55+'Dual Model'!$C$37 -> 70 | G45: =$F$45 -> 70 | H45: 70 | I45: ='Dual Model'!$E$56+'Dual Model'!$C$37 -> 70
B46: Small - T | C46: =$C$45 -> 70 | D46: 70 | E46: 70 | F46: =$F$45 -> 70 | G46: 70 | H46: 70 | I46: =$I$45 -> 70
B47: Small + | C47: =$C$45 -> 70 | D47: 70 | E47: 70 | F47: =$F$45 -> 70 | G47: 70 | H47: 70 | I47: =$I$45 -> 70
B48: Large-TP | C48: ='Dual Model'!$E$57+'Dual Model'!$C$37 -> 90 | D48: =$C$48 -> 90 | E48: =$C$48 -> 90 | F48: ='Dual Model'!$E$58+'Dual Model'!$C$37 -> 70 | G48: =$F$48 -> 70 | H48: 70 | I48: 70
B49: Large-Jet | C49: =$C$48 -> 90 | D49: =$C$48 -> 90 | E49: =$C$48 -> 90 | F49: =$F$48 -> 70 | G49: 70 | H49: 70 | I49: 70
B50: Large-757 | C50: =$C$51 -> 130 | D50: 130 | E50: 130 | F50: 130 | G50: 130 | H50: 130 | I50: =$I$51 -> 100
B51: Heavy | C51: ='Dual Model'!$E$59+'Dual Model'!$C$37 -> 130 | D51: =$C$51 -> 130 | E51: =$C$51 -> 130 | F51: =$C$51 -> 130 | G51: =$C$51 -> 130 | H51: =$C$51 -> 130 | I51: ='Dual Model'!$E$60+'Dual Model'!$C$37 -> 100
B54: VMC Required Separation for arrivals following an aircraft from each class | F54: Time in Seconds
C55: Small - S | D55: Small - T | E55: Small + | F55: Large-TP | G55: Large-Jet | H55: Large-757 | I55: Heavy
B56: Small - S | C56: =MAXA(3600*C15/('Dual Model'!$C$28)+'Dual Model'!$H$14*'Dual Model'!$H$12+MAXA(0,'Dual Model'!$C$14*3600*(1/'Dual Model'!$C$28-1/'Dual Model'!$C$28)),'Dual Model'!$C$25+'Dual Model'!$H$14*SQRT('Dual Model'!$H$12^2+'Dual Model'!$H$13^2))+'Dual Model'!$C$36 -> 105.61 | D56: =MAXA(3600*D15/('Dual Model'!$D$28)+'Dual Model'!$H$14*'Dual Model'!$H$12+MAXA(0,'Dual Model'!$C$14*3600*(1/'Dual Model'!$D$28-1/'Dual Model'!$C$28)),'Dual Model'!$C$25+'Dual Model'!$H$14*SQRT('Dual Model'!$H$12^2+'Dual Model'!$H$13^2))+'Dual Model'!$C$36 -> 98.01 | E56: =MAXA(3600*E15/('Dual Model'!$E$28)+'Dual Model'!$H$14*'Dual Model'!$H$12+MAXA(0,'Dual Model'!$C$14*3600*(1/'Dual Model'!$E$28-1/'Dual Model'!$C$28)),'Dual Model'!$C$25+'Dual Model'!$H$14*SQRT('Dual Model'!$H$12^2+'Dual Model'!$H$13^2))+'Dual Model'!$C$36 -> 86.61 | F56: =MAXA(3600*F15/('Dual Model'!$F$28)+'Dual Model'!$H$14*'Dual Model'!$H$12+MAXA(0,'Dual Model'!$C$14*3600*(1/'Dual Model'!$F$28-1/'Dual Model'!$C$28)),'Dual Model'!$C$25+'Dual Model'!$H$14*SQRT('Dual Model'!$H$12^2+'Dual Model'!$H$13^2))+'Dual Model'!$C$36 -> 82.22538462 | G56: =MAXA(3600*G15/('Dual Model'!$G$28)+'Dual Model'!$H$14*'Dual Model'!$H$12+MAXA(0,'Dual Model'!$C$14*3600*(1/'Dual Model'!$G$28-1/'Dual Model'!$C$28)),'Dual Model'!$C$25+'Dual Model'!$H$14*SQRT('Dual Model'!$H$12^2+'Dual Model'!$H$13^2))+'Dual Model'!$C$36 -> 80.27666667 | H56: =MAXA(3600*H15/('Dual Model'!$H$28)+'Dual Model'!$H$14*'Dual Model'!$H$12+MAXA(0,'Dual Model'!$C$14*3600*(1/'Dual Model'!$H$28-1/'Dual Model'!$C$28)),'Dual Model'!$C$25+'Dual Model'!$H$14*SQRT('Dual Model'!$H$12^2+'Dual Model'!$H$13^2))+'Dual Model'!$C$36 -> 78.46714286 | I56: =MAXA(3600*I15/('Dual Model'!$I$28)+'Dual Model'!$H$14*'Dual Model'!$H$12+MAXA(0,'Dual Model'!$C$14*3600*(1/'Dual Model'!$I$28-1/'Dual Model'!$C$28)),'Dual Model'!$C$25+'Dual Model'!$H$14*SQRT('Dual Model'!$H$12^2+'Dual Model'!$H$13^2))+'Dual Model'!$C$36 -> 75.21
B57: Small - T | C57: =MAXA(3600*C16/('Dual Model'!$C$28)+'Dual Model'!$H$14*'Dual Model'!$H$12+MAXA(0,'Dual Model'!$C$14*3600*(1/'Dual Model'!$C$28-1/'Dual Model'!$D$28)),'Dual Model'!$D$25+'Dual Model'!$H$14*SQRT('Dual Model'!$H$12^2+'Dual Model'!$H$13^2))+'Dual Model'!$C$36 -> 133.61 | D57: =MAXA(3600*D16/('Dual Model'!$D$28)+'Dual Model'!$H$14*'Dual Model'!$H$12+MAXA(0,'Dual Model'!$C$14*3600*(1/'Dual Model'!$D$28-1/'Dual Model'!$D$28)),'Dual Model'!$D$25+'Dual Model'!$H$14*SQRT('Dual Model'!$H$12^2+'Dual Model'!$H$13^2))+'Dual Model'!$C$36 -> 98.01 | E57: =MAXA(3600*E16/('Dual Model'!$E$28)+'Dual Model'!$H$14*'Dual Model'!$H$12+MAXA(0,'Dual Model'!$C$14*3600*(1/'Dual Model'!$E$28-1/'Dual Model'!$D$28)),'Dual Model'!$D$25+'Dual Model'!$H$14*SQRT('Dual Model'!$H$12^2+'Dual Model'!$H$13^2))+'Dual Model'!$C$36 -> 86.61 | F57: =MAXA(3600*F16/('Dual Model'!$F$28)+'Dual Model'!$H$14*'Dual Model'!$H$12+MAXA(0,'Dual Model'!$C$14*3600*(1/'Dual Model'!$F$28-1/'Dual Model'!$D$28)),'Dual Model'!$D$25+'Dual Model'!$H$14*SQRT('Dual Model'!$H$12^2+'Dual Model'!$H$13^2))+'Dual Model'!$C$36 -> 82.22538462 | G57: =MAXA(3600*G16/('Dual Model'!$G$28)+'Dual Model'!$H$14*'Dual Model'!$H$12+MAXA(0,'Dual Model'!$C$14*3600*(1/'Dual Model'!$G$28-1/'Dual Model'!$D$28)),'Dual Model'!$D$25+'Dual Model'!$H$14*SQRT('Dual Model'!$H$12^2+'Dual Model'!$H$13^2))+'Dual Model'!$C$36 -> 80.27666667 | H57: =MAXA(3600*H16/('Dual Model'!$H$28)+'Dual Model'!$H$14*'Dual Model'!$H$12+MAXA(0,'Dual Model'!$C$14*3600*(1/'Dual Model'!$H$28-1/'Dual Model'!$D$28)),'Dual Model'!$C$25+'Dual Model'!$H$14*SQRT('Dual Model'!$H$12^2+'Dual Model'!$H$13^2))+'Dual Model'!$C$36 -> 78.46714286 | I57: =MAXA(3600*I16/('Dual Model'!$I$28)+'Dual Model'!$H$14*'Dual Model'!$H$12+MAXA(0,'Dual Model'!$C$14*3600*(1/'Dual Model'!$I$28-1/'Dual Model'!$D$28)),'Dual Model'!$D$25+'Dual Model'!$H$14*SQRT('Dual Model'!$H$12^2+'Dual Model'!$H$13^2))+'Dual Model'!$C$36 -> 75.21
B58: Small + | C58: =MAXA(3600*C17/('Dual Model'!$C$28)+'Dual Model'!$H$14*'Dual Model'!$H$12+MAXA(0,'Dual Model'!$C$14*3600*(1/'Dual Model'!$C$28-1/'Dual Model'!$E$28)),'Dual Model'!$E$25+'Dual Model'!$H$14*SQRT('Dual Model'!$H$12^2+'Dual Model'!$H$13^2))+'Dual Model'!$C$36 -> 175.61 | D58: =MAXA(3600*D17/('Dual Model'!$D$28)+'Dual Model'!$H$14*'Dual Model'!$H$12+MAXA(0,'Dual Model'!$C$14*3600*(1/'Dual Model'!$D$28-1/'Dual Model'!$E$28)),'Dual Model'!$E$25+'Dual Model'!$H$14*SQRT('Dual Model'!$H$12^2+'Dual Model'!$H$13^2))+'Dual Model'!$C$36 -> 140.01 | E58: =MAXA(3600*E17/('Dual Model'!$E$28)+'Dual Model'!$H$14*'Dual Model'!$H$12+MAXA(0,'Dual Model'!$C$14*3600*(1/'Dual Model'!$E$28-1/'Dual Model'!$E$28)),'Dual Model'!$E$25+'Dual Model'!$H$14*SQRT('Dual Model'!$H$12^2+'Dual Model'!$H$13^2))+'Dual Model'!$C$36 -> 86.61 | F58: =MAXA(3600*F17/('Dual Model'!$F$28)+'Dual Model'!$H$14*'Dual Model'!$H$12+MAXA(0,'Dual Model'!$C$14*3600*(1/'Dual Model'!$F$28-1/'Dual Model'!$E$28)),'Dual Model'!$E$25+'Dual Model'!$H$14*SQRT('Dual Model'!$H$12^2+'Dual Model'!$H$13^2))+'Dual Model'!$C$36 -> 82.22538462 | G58: =MAXA(3600*G17/('Dual Model'!$G$28)+'Dual Model'!$H$14*'Dual Model'!$H$12+MAXA(0,'Dual Model'!$C$14*3600*(1/'Dual Model'!$G$28-1/'Dual Model'!$E$28)),'Dual Model'!$E$25+'Dual Model'!$H$14*SQRT('Dual Model'!$H$12^2+'Dual Model'!$H$13^2))+'Dual Model'!$C$36 -> 80.27666667 | H58: =MAXA(3600*H17/('Dual Model'!$H$28)+'Dual Model'!$H$14*'Dual Model'!$H$12+MAXA(0,'Dual Model'!$C$14*3600*(1/'Dual Model'!$H$28-1/'Dual Model'!$E$28)),'Dual Model'!$C$25+'Dual Model'!$H$14*SQRT('Dual Model'!$H$12^2+'Dual Model'!$H$13^2))+'Dual Model'!$C$36 -> 78.46714286 | I58: =MAXA(3600*I17/('Dual Model'!$I$28)+'Dual Model'!$H$14*'Dual Model'!$H$12+MAXA(0,'Dual Model'!$C$14*3600*(1/'Dual Model'!$I$28-1/'Dual Model'!$E$28)),'Dual Model'!$E$25+'Dual Model'!$H$14*SQRT('Dual Model'!$H$12^2+'Dual Model'!$H$13^2))+'Dual Model'!$C$36 -> 75.21
B59: Large-TP | C59: =MAXA(3600*C18/('Dual Model'!$C$28)+'Dual Model'!$H$14*'Dual Model'!$H$12+MAXA(0,'Dual Model'!$C$14*3600*(1/'Dual Model'!$C$28-1/'Dual Model'!$F$28)),'Dual Model'!$F$25+'Dual Model'!$H$14*SQRT('Dual Model'!$H$12^2+'Dual Model'!$H$13^2))+'Dual Model'!$C$36 -> 223.7638462 | D59: =MAXA(3600*D18/('Dual Model'!$D$28)+'Dual Model'!$H$14*'Dual Model'!$H$12+MAXA(0,'Dual Model'!$C$14*3600*(1/'Dual Model'!$D$28-1/'Dual Model'!$F$28)),'Dual Model'!$F$25+'Dual Model'!$H$14*SQRT('Dual Model'!$H$12^2+'Dual Model'!$H$13^2))+'Dual Model'!$C$36 -> 184.9638462 | E59: =MAXA(3600*E18/('Dual Model'!$E$28)+'Dual Model'!$H$14*'Dual Model'!$H$12+MAXA(0,'Dual Model'!$C$14*3600*(1/'Dual Model'!$E$28-1/'Dual Model'!$F$28)),'Dual Model'!$F$25+'Dual Model'!$H$14*SQRT('Dual Model'!$H$12^2+'Dual Model'!$H$13^2))+'Dual Model'!$C$36 -> 126.7638462 | F59: =MAXA(3600*F18/('Dual Model'!$F$28)+'Dual Model'!$H$14*'Dual Model'!$H$12+MAXA(0,'Dual Model'!$C$14*3600*(1/'Dual Model'!$F$28-1/'Dual Model'!$F$28)),'Dual Model'!$F$25+'Dual Model'!$H$14*SQRT('Dual Model'!$H$12^2+'Dual Model'!$H$13^2))+'Dual Model'!$C$36 -> 82.22538462 | G59: =MAXA(3600*G18/('Dual Model'!$G$28)+'Dual Model'!$H$14*'Dual Model'!$H$12+MAXA(0,'Dual Model'!$C$14*3600*(1/'Dual Model'!$G$28-1/'Dual Model'!$F$28)),'Dual Model'!$F$25+'Dual Model'!$H$14*SQRT('Dual Model'!$H$12^2+'Dual Model'!$H$13^2))+'Dual Model'!$C$36 -> 80.27666667 | H59: =MAXA(3600*H18/('Dual Model'!$H$28)+'Dual Model'!$H$14*'Dual Model'!$H$12+MAXA(0,'Dual Model'!$C$14*3600*(1/'Dual Model'!$H$28-1/'Dual Model'!$F$28)),'Dual Model'!$C$25+'Dual Model'!$H$14*SQRT('Dual Model'!$H$12^2+'Dual Model'!$H$13^2))+'Dual Model'!$C$36 -> 78.46714286 | I59: =MAXA(3600*I18/('Dual Model'!$I$28)+'Dual Model'!$H$14*'Dual Model'!$H$12+MAXA(0,'Dual Model'!$C$14*3600*(1/'Dual Model'!$I$28-1/'Dual Model'!$F$28)),'Dual Model'!$F$25+'Dual Model'!$H$14*SQRT('Dual Model'!$H$12^2+'Dual Model'!$H$13^2))+'Dual Model'!$C$36 -> 76.21168051
B60: Large-Jet | C60: =MAXA(3600*C19/('Dual Model'!$C$28)+'Dual Model'!$H$14*'Dual Model'!$H$12+MAXA(0,'Dual Model'!$C$14*3600*(1/'Dual Model'!$C$28-1/'Dual Model'!$G$28)),'Dual Model'!$G$25+'Dual Model'!$H$14*SQRT('Dual Model'!$H$12^2+'Dual Model'!$H$13^2))+'Dual Model'!$C$36 -> 230.9433333 | D60: =MAXA(3600*D19/('Dual Model'!$D$28)+'Dual Model'!$H$14*'Dual Model'!$H$12+MAXA(0,'Dual Model'!$C$14*3600*(1/'Dual Model'!$D$28-1/'Dual Model'!$G$28)),'Dual Model'!$G$25+'Dual Model'!$H$14*SQRT('Dual Model'!$H$12^2+'Dual Model'!$H$13^2))+'Dual Model'!$C$36 -> 192.1433333 | E60: =MAXA(3600*E19/('Dual Model'!$E$28)+'Dual Model'!$H$14*'Dual Model'!$H$12+MAXA(0,'Dual Model'!$C$14*3600*(1/'Dual Model'!$E$28-1/'Dual Model'!$G$28)),'Dual Model'!$G$25+'Dual Model'!$H$14*SQRT('Dual Model'!$H$12^2+'Dual Model'!$H$13^2))+'Dual Model'!$C$36 -> 133.9433333 | F60: =MAXA(3600*F19/('Dual Model'!$F$28)+'Dual Model'!$H$14*'Dual Model'!$H$12+MAXA(0,'Dual Model'!$C$14*3600*(1/'Dual Model'!$F$28-1/'Dual Model'!$G$28)),'Dual Model'!$G$25+'Dual Model'!$H$14*SQRT('Dual Model'!$H$12^2+'Dual Model'!$H$13^2))+'Dual Model'!$C$36 -> 89.40487179 | G60: =MAXA(3600*G19/('Dual Model'!$G$28)+'Dual Model'!$H$14*'Dual Model'!$H$12+MAXA(0,'Dual Model'!$C$14*3600*(1/'Dual Model'!$G$28-1/'Dual Model'!$G$28)),'Dual Model'!$G$25+'Dual Model'!$H$14*SQRT('Dual Model'!$H$12^2+'Dual Model'!$H$13^2))+'Dual Model'!$C$36 -> 80.27666667 | H60: =MAXA(3600*H19/('Dual Model'!$H$28)+'Dual Model'!$H$14*'Dual Model'!$H$12+MAXA(0,'Dual Model'!$C$14*3600*(1/'Dual Model'!$H$28-1/'Dual Model'!$G$28)),'Dual Model'!$C$25+'Dual Model'!$H$14*SQRT('Dual Model'!$H$12^2+'Dual Model'!$H$13^2))+'Dual Model'!$C$36 -> 78.46714286 | I60: =MAXA(3600*I19/('Dual Model'!$I$28)+'Dual Model'!$H$14*'Dual Model'!$H$12+MAXA(0,'Dual Model'!$C$14*3600*(1/'Dual Model'!$I$28-1/'Dual Model'!$G$28)),'Dual Model'!$G$25+'Dual Model'!$H$14*SQRT('Dual Model'!$H$12^2+'Dual Model'!$H$13^2))+'Dual Model'!$C$36 -> 77.21168051
B61: Large-757 | C61: =MAXA(3600*C20/('Dual Model'!$C$28)+'Dual Model'!$H$14*'Dual Model'!$H$12+MAXA(0,'Dual Model'!$C$14*3600*(1/'Dual Model'!$C$28-1/'Dual Model'!$H$28)),'Dual Model'!$G$25+'Dual Model'!$H$14*SQRT('Dual Model'!$H$12^2+'Dual Model'!$H$13^2))+'Dual Model'!$C$36 -> 277.61 | D61: =MAXA(3600*D20/('Dual Model'!$D$28)+'Dual Model'!$H$14*'Dual Model'!$H$12+MAXA(0,'Dual Model'!$C$14*3600*(1/'Dual Model'!$D$28-1/'Dual Model'!$H$28)),'Dual Model'!$G$25+'Dual Model'!$H$14*SQRT('Dual Model'!$H$12^2+'Dual Model'!$H$13^2))+'Dual Model'!$C$36 -> 234.81 | E61: =MAXA(3600*E20/('Dual Model'!$E$28)+'Dual Model'!$H$14*'Dual Model'!$H$12+MAXA(0,'Dual Model'!$C$14*3600*(1/'Dual Model'!$E$28-1/'Dual Model'!$H$28)),'Dual Model'!$G$25+'Dual Model'!$H$14*SQRT('Dual Model'!$H$12^2+'Dual Model'!$H$13^2))+'Dual Model'!$C$36 -> 170.61 | F61: =MAXA(3600*F20/('Dual Model'!$F$28)+'Dual Model'!$H$14*'Dual Model'!$H$12+MAXA(0,'Dual Model'!$C$14*3600*(1/'Dual Model'!$F$28-1/'Dual Model'!$H$28)),'Dual Model'!$G$25+'Dual Model'!$H$14*SQRT('Dual Model'!$H$12^2+'Dual Model'!$H$13^2))+'Dual Model'!$C$36 -> 118.2253846 | G61: =MAXA(3600*G20/('Dual Model'!$G$28)+'Dual Model'!$H$14*'Dual Model'!$H$12+MAXA(0,'Dual Model'!$C$14*3600*(1/'Dual Model'!$G$28-1/'Dual Model'!$H$28)),'Dual Model'!$G$25+'Dual Model'!$H$14*SQRT('Dual Model'!$H$12^2+'Dual Model'!$H$13^2))+'Dual Model'!$C$36 -> 108.2766667 | H61: =MAXA(3600*H20/('Dual Model'!$H$28)+'Dual Model'!$H$14*'Dual Model'!$H$12+MAXA(0,'Dual Model'!$C$14*3600*(1/'Dual Model'!$H$28-1/'Dual Model'!$H$28)),'Dual Model'!$C$25+'Dual Model'!$H$14*SQRT('Dual Model'!$H$12^2+'Dual Model'!$H$13^2))+'Dual Model'!$C$36 -> 99.03857143 | I61: =MAXA(3600*I20/('Dual Model'!$I$28)+'Dual Model'!$H$14*'Dual Model'!$H$12+MAXA(0,'Dual Model'!$C$14*3600*(1/'Dual Model'!$I$28-1/'Dual Model'!$H$28)),'Dual Model'!$G$25+'Dual Model'!$H$14*SQRT('Dual Model'!$H$12^2+'Dual Model'!$H$13^2))+'Dual Model'!$C$36 -> 94.41
B62: Heavy | C62: =MAXA(3600*C21/('Dual Model'!$C$28)+'Dual Model'!$H$14*'Dual Model'!$H$12+MAXA(0,'Dual Model'!$C$14*3600*(1/'Dual Model'!$C$28-1/'Dual Model'!$I$28)),'Dual Model'!$I$25+'Dual Model'!$H$14*SQRT('Dual Model'!$H$12^2+'Dual Model'!$H$13^2))+'Dual Model'!$C$36 -> 325.61 | D62: =MAXA(3600*D21/('Dual Model'!$D$28)+'Dual Model'!$H$14*'Dual Model'!$H$12+MAXA(0,'Dual Model'!$C$14*3600*(1/'Dual Model'!$D$28-1/'Dual Model'!$I$28)),'Dual Model'!$I$25+'Dual Model'!$H$14*SQRT('Dual Model'!$H$12^2+'Dual Model'!$H$13^2))+'Dual Model'!$C$36 -> 279.21 | E62: =MAXA(3600*E21/('Dual Model'!$E$28)+'Dual Model'!$H$14*'Dual Model'!$H$12+MAXA(0,'Dual Model'!$C$14*3600*(1/'Dual Model'!$E$28-1/'Dual Model'!$I$28)),'Dual Model'!$I$25+'Dual Model'!$H$14*SQRT('Dual Model'!$H$12^2+'Dual Model'!$H$13^2))+'Dual Model'!$C$36 -> 179.61 | F62: =MAXA(3600*F21/('Dual Model'!$F$28)+'Dual Model'!$H$14*'Dual Model'!$H$12+MAXA(0,'Dual Model'!$C$14*3600*(1/'Dual Model'!$F$28-1/'Dual Model'!$I$28)),'Dual Model'!$I$25+'Dual Model'!$H$14*SQRT('Dual Model'!$H$12^2+'Dual Model'!$H$13^2))+'Dual Model'!$C$36 -> 155.1484615 | G62: =MAXA(3600*G21/('Dual Model'!$G$28)+'Dual Model'!$H$14*'Dual Model'!$H$12+MAXA(0,'Dual Model'!$C$14*3600*(1/'Dual Model'!$G$28-1/'Dual Model'!$I$28)),'Dual Model'!$I$25+'Dual Model'!$H$14*SQRT('Dual Model'!$H$12^2+'Dual Model'!$H$13^2))+'Dual Model'!$C$36 -> 144.2766667 | H62: =MAXA(3600*H21/('Dual Model'!$H$28)+'Dual Model'!$H$14*'Dual Model'!$H$12+MAXA(0,'Dual Model'!$C$14*3600*(1/'Dual Model'!$H$28-1/'Dual Model'!$I$28)),'Dual Model'!$C$25+'Dual Model'!$H$14*SQRT('Dual Model'!$H$12^2+'Dual Model'!$H$13^2))+'Dual Model'!$C$36 -> 134.1814286 | I62: =MAXA(3600*I21/('Dual Model'!$I$28)+'Dual Model'!$H$14*'Dual Model'!$H$12+MAXA(0,'Dual Model'!$C$14*3600*(1/'Dual Model'!$I$28-1/'Dual Model'!$I$28)),'Dual Model'!$I$25+'Dual Model'!$H$14*SQRT('Dual Model'!$H$12^2+'Dual Model'!$H$13^2))+'Dual Model'!$C$36 -> 94.41
B64: IMC Required Separation for arrivals following an aircraft from each class | F64: Time in Seconds
C65: Small - S | D65: Small - T | E65: Small + | F65: Large-TP | G65: Large-Jet | H65: Large-757 | I65: Heavy
B66: Small - S | C66: =MAXA(3600*C25/('Dual Model'!$C$28)+'Dual Model'!$H$14*'Dual Model'!$H$12+MAXA(0,'Dual Model'!$C$14*3600*(1/'Dual Model'!$C$28-1/'Dual Model'!$C$28)),'Dual Model'!$C$25+'Dual Model'!$H$14*SQRT('Dual Model'!$H$12^2+'Dual Model'!$H$13^2))+'Dual Model'!$C$36 -> 149.61 | D66: =MAXA(3600*D25/('Dual Model'!$D$28)+'Dual Model'!$H$14*'Dual Model'!$H$12+MAXA(0,'Dual Model'!$C$14*3600*(1/'Dual Model'!$D$28-1/'Dual Model'!$C$28)),'Dual Model'!$C$25+'Dual Model'!$H$14*SQRT('Dual Model'!$H$12^2+'Dual Model'!$H$13^2))+'Dual Model'!$C$36 -> 137.61 | E66: =MAXA(3600*E25/('Dual Model'!$E$28)+'Dual Model'!$H$14*'Dual Model'!$H$12+MAXA(0,'Dual Model'!$C$14*3600*(1/'Dual Model'!$E$28-1/'Dual Model'!$C$28)),'Dual Model'!$C$25+'Dual Model'!$H$14*SQRT('Dual Model'!$H$12^2+'Dual Model'!$H$13^2))+'Dual Model'!$C$36 -> 119.61 | F66: =MAXA(3600*F25/('Dual Model'!$F$28)+'Dual Model'!$H$14*'Dual Model'!$H$12+MAXA(0,'Dual Model'!$C$14*3600*(1/'Dual Model'!$F$28-1/'Dual Model'!$C$28)),'Dual Model'!$C$25+'Dual Model'!$H$14*SQRT('Dual Model'!$H$12^2+'Dual Model'!$H$13^2))+'Dual Model'!$C$36 -> 112.6869231 | G66: =MAXA(3600*G25/('Dual Model'!$G$28)+'Dual Model'!$H$14*'Dual Model'!$H$12+MAXA(0,'Dual Model'!$C$14*3600*(1/'Dual Model'!$G$28-1/'Dual Model'!$C$28)),'Dual Model'!$C$25+'Dual Model'!$H$14*SQRT('Dual Model'!$H$12^2+'Dual Model'!$H$13^2))+'Dual Model'!$C$36 -> 109.61 | H66: =MAXA(3600*H25/('Dual Model'!$H$28)+'Dual Model'!$H$14*'Dual Model'!$H$12+MAXA(0,'Dual Model'!$C$14*3600*(1/'Dual Model'!$H$28-1/'Dual Model'!$C$28)),'Dual Model'!$C$25+'Dual Model'!$H$14*SQRT('Dual Model'!$H$12^2+'Dual Model'!$H$13^2))+'Dual Model'!$C$36 -> 106.7528571 | I66: =MAXA(3600*I25/('Dual Model'!$I$28)+'Dual Model'!$H$14*'Dual Model'!$H$12+MAXA(0,'Dual Model'!$C$14*3600*(1/'Dual Model'!$I$28-1/'Dual Model'!$C$28)),'Dual Model'!$C$25+'Dual Model'!$H$14*SQRT('Dual Model'!$H$12^2+'Dual Model'!$H$13^2))+'Dual Model'!$C$36 -> 101.61
B67: Small - T | C67: =MAXA(3600*C26/('Dual Model'!$C$28)+'Dual Model'!$H$14*'Dual Model'!$H$12+MAXA(0,'Dual Model'!$C$14*3600*(1/'Dual Model'!$C$28-1/'Dual Model'!$D$28)),'Dual Model'!$D$25+'Dual Model'!$H$14*SQRT('Dual Model'!$H$12^2+'Dual Model'!$H$13^2))+'Dual Model'!$C$36 -> 177.61 | D67: =MAXA(3600*D26/('Dual Model'!$D$28)+'Dual Model'!$H$14*'Dual Model'!$H$12+MAXA(0,'Dual Model'!$C$14*3600*(1/'Dual Model'!$D$28-1/'Dual Model'!$D$28)),'Dual Model'!$D$25+'Dual Model'!$H$14*SQRT('Dual Model'!$H$12^2+'Dual Model'!$H$13^2))+'Dual Model'!$C$36 -> 137.61 | E67: =MAXA(3600*E26/('Dual Model'!$E$28)+'Dual Model'!$H$14*'Dual Model'!$H$12+MAXA(0,'Dual Model'!$C$14*3600*(1/'Dual Model'!$E$28-1/'Dual Model'!$D$28)),'Dual Model'!$D$25+'Dual Model'!$H$14*SQRT('Dual Model'!$H$12^2+'Dual Model'!$H$13^2))+'Dual Model'!$C$36 -> 119.61 | F67: =MAXA(3600*F26/('Dual Model'!$F$28)+'Dual Model'!$H$14*'Dual Model'!$H$12+MAXA(0,'Dual Model'!$C$14*3600*(1/'Dual Model'!$F$28-1/'Dual Model'!$D$28)),'Dual Model'!$D$25+'Dual Model'!$H$14*SQRT('Dual Model'!$H$12^2+'Dual Model'!$H$13^2))+'Dual Model'!$C$36 -> 112.6869231 | G67: =MAXA(3600*G26/('Dual Model'!$G$28)+'Dual Model'!$H$14*'Dual Model'!$H$12+MAXA(0,'Dual Model'!$C$14*3600*(1/'Dual Model'!$G$28-1/'Dual Model'!$D$28)),'Dual Model'!$D$25+'Dual Model'!$H$14*SQRT('Dual Model'!$H$12^2+'Dual Model'!$H$13^2))+'Dual Model'!$C$36 -> 109.61 | H67: =MAXA(3600*H26/('Dual Model'!$H$28)+'Dual Model'!$H$14*'Dual Model'!$H$12+MAXA(0,'Dual Model'!$C$14*3600*(1/'Dual Model'!$H$28-1/'Dual Model'!$C$28)),'Dual Model'!$D$25+'Dual Model'!$H$14*SQRT('Dual Model'!$H$12^2+'Dual Model'!$H$13^2))+'Dual Model'!$C$36 -> 106.7528571 | I67: =MAXA(3600*I26/('Dual Model'!$I$28)+'Dual Model'!$H$14*'Dual Model'!$H$12+MAXA(0,'Dual Model'!$C$14*3600*(1/'Dual Model'!$I$28-1/'Dual Model'!$D$28)),'Dual Model'!$D$25+'Dual Model'!$H$14*SQRT('Dual Model'!$H$12^2+'Dual Model'!$H$13^2))+'Dual Model'!$C$36 -> 101.61
B68: Small + | C68: =MAXA(3600*C27/('Dual Model'!$C$28)+'Dual Model'!$H$14*'Dual Model'!$H$12+MAXA(0,'Dual Model'!$C$14*3600*(1/'Dual Model'!$C$28-1/'Dual Model'!$E$28)),'Dual Model'!$E$25+'Dual Model'!$H$14*SQRT('Dual Model'!$H$12^2+'Dual Model'!$H$13^2))+'Dual Model'!$C$36 -> 219.61 | D68: =MAXA(3600*D27/('Dual Model'!$D$28)+'Dual Model'!$H$14*'Dual Model'!$H$12+MAXA(0,'Dual Model'!$C$14*3600*(1/'Dual Model'!$D$28-1/'Dual Model'!$E$28)),'Dual Model'!$E$25+'Dual Model'!$H$14*SQRT('Dual Model'!$H$12^2+'Dual Model'!$H$13^2))+'Dual Model'!$C$36 -> 179.61 | E68: =MAXA(3600*E27/('Dual Model'!$E$28)+'Dual Model'!$H$14*'Dual Model'!$H$12+MAXA(0,'Dual Model'!$C$14*3600*(1/'Dual Model'!$E$28-1/'Dual Model'!$E$28)),'Dual Model'!$E$25+'Dual Model'!$H$14*SQRT('Dual Model'!$H$12^2+'Dual Model'!$H$13^2))+'Dual Model'!$C$36 -> 119.61 | F68: =MAXA(3600*F27/('Dual Model'!$F$28)+'Dual Model'!$H$14*'Dual Model'!$H$12+MAXA(0,'Dual Model'!$C$14*3600*(1/'Dual Model'!$F$28-1/'Dual Model'!$E$28)),'Dual Model'!$E$25+'Dual Model'!$H$14*SQRT('Dual Model'!$H$12^2+'Dual Model'!$H$13^2))+'Dual Model'!$C$36 -> 112.6869231 | G68: =MAXA(3600*G27/('Dual Model'!$G$28)+'Dual Model'!$H$14*'Dual Model'!$H$12+MAXA(0,'Dual Model'!$C$14*3600*(1/'Dual Model'!$G$28-1/'Dual Model'!$E$28)),'Dual Model'!$E$25+'Dual Model'!$H$14*SQRT('Dual Model'!$H$12^2+'Dual Model'!$H$13^2))+'Dual Model'!$C$36 -> 109.61 | H68: =MAXA(3600*H27/('Dual Model'!$H$28)+'Dual Model'!$H$14*'Dual Model'!$H$12+MAXA(0,'Dual Model'!$C$14*3600*(1/'Dual Model'!$H$28-1/'Dual Model'!$C$28)),'Dual Model'!$E$25+'Dual Model'!$H$14*SQRT('Dual Model'!$H$12^2+'Dual Model'!$H$13^2))+'Dual Model'!$C$36 -> 106.7528571 | I68: =MAXA(3600*I27/('Dual Model'!$I$28)+'Dual Model'!$H$14*'Dual Model'!$H$12+MAXA(0,'Dual Model'!$C$14*3600*(1/'Dual Model'!$I$28-1/'Dual Model'!$E$28)),'Dual Model'!$E$25+'Dual Model'!$H$14*SQRT('Dual Model'!$H$12^2+'Dual Model'!$H$13^2))+'Dual Model'!$C$36 -> 101.61
B69: Large-TP | C69: =MAXA(3600*C28/('Dual Model'!$C$28)+'Dual Model'!$H$14*'Dual Model'!$H$12+MAXA(0,'Dual Model'!$C$14*3600*(1/'Dual Model'!$C$28-1/'Dual Model'!$F$28)),'Dual Model'!$F$25+'Dual Model'!$H$14*SQRT('Dual Model'!$H$12^2+'Dual Model'!$H$13^2))+'Dual Model'!$C$36 -> 275.7638462 | D69: =MAXA(3600*D28/('Dual Model'!$D$28)+'Dual Model'!$H$14*'Dual Model'!$H$12+MAXA(0,'Dual Model'!$C$14*3600*(1/'Dual Model'!$D$28-1/'Dual Model'!$F$28)),'Dual Model'!$F$25+'Dual Model'!$H$14*SQRT('Dual Model'!$H$12^2+'Dual Model'!$H$13^2))+'Dual Model'!$C$36 -> 231.7638462 | E69: =MAXA(3600*E28/('Dual Model'!$E$28)+'Dual Model'!$H$14*'Dual Model'!$H$12+MAXA(0,'Dual Model'!$C$14*3600*(1/'Dual Model'!$E$28-1/'Dual Model'!$F$28)),'Dual Model'!$F$25+'Dual Model'!$H$14*SQRT('Dual Model'!$H$12^2+'Dual Model'!$H$13^2))+'Dual Model'!$C$36 -> 165.7638462 | F69: =MAXA(3600*F28/('Dual Model'!$F$28)+'Dual Model'!$H$14*'Dual Model'!$H$12+MAXA(0,'Dual Model'!$C$14*3600*(1/'Dual Model'!$F$28-1/'Dual Model'!$F$28)),'Dual Model'!$F$25+'Dual Model'!$H$14*SQRT('Dual Model'!$H$12^2+'Dual Model'!$H$13^2))+'Dual Model'!$C$36 -> 112.6869231 | G69: =MAXA(3600*G28/('Dual Model'!$G$28)+'Dual Model'!$H$14*'Dual Model'!$H$12+MAXA(0,'Dual Model'!$C$14*3600*(1/'Dual Model'!$G$28-1/'Dual Model'!$F$28)),'Dual Model'!$F$25+'Dual Model'!$H$14*SQRT('Dual Model'!$H$12^2+'Dual Model'!$H$13^2))+'Dual Model'!$C$36 -> 109.61 | H69: =MAXA(3600*H28/('Dual Model'!$H$28)+'Dual Model'!$H$14*'Dual Model'!$H$12+MAXA(0,'Dual Model'!$C$14*3600*(1/'Dual Model'!$H$28-1/'Dual Model'!$C$28)),'Dual Model'!$F$25+'Dual Model'!$H$14*SQRT('Dual Model'!$H$12^2+'Dual Model'!$H$13^2))+'Dual Model'!$C$36 -> 106.7528571 | I69: =MAXA(3600*I28/('Dual Model'!$I$28)+'Dual Model'!$H$14*'Dual Model'!$H$12+MAXA(0,'Dual Model'!$C$14*3600*(1/'Dual Model'!$I$28-1/'Dual Model'!$F$28)),'Dual Model'!$F$25+'Dual Model'!$H$14*SQRT('Dual Model'!$H$12^2+'Dual Model'!$H$13^2))+'Dual Model'!$C$36 -> 101.61
B70: Large-Jet | C70: =MAXA(3600*C29/('Dual Model'!$C$28)+'Dual Model'!$H$14*'Dual Model'!$H$12+MAXA(0,'Dual Model'!$C$14*3600*(1/'Dual Model'!$C$28-1/'Dual Model'!$G$28)),'Dual Model'!$G$25+'Dual Model'!$H$14*SQRT('Dual Model'!$H$12^2+'Dual Model'!$H$13^2))+'Dual Model'!$C$36 -> 282.9433333 | D70: =MAXA(3600*D29/('Dual Model'!$D$28)+'Dual Model'!$H$14*'Dual Model'!$H$12+MAXA(0,'Dual Model'!$C$14*3600*(1/'Dual Model'!$D$28-1/'Dual Model'!$G$28)),'Dual Model'!$H$25+'Dual Model'!$H$14*SQRT('Dual Model'!$H$12^2+'Dual Model'!$H$13^2))+'Dual Model'!$C$36 -> 238.9433333 | E70: =MAXA(3600*E29/('Dual Model'!$E$28)+'Dual Model'!$H$14*'Dual Model'!$H$12+MAXA(0,'Dual Model'!$C$14*3600*(1/'Dual Model'!$E$28-1/'Dual Model'!$G$28)),'Dual Model'!$G$25+'Dual Model'!$H$14*SQRT('Dual Model'!$H$12^2+'Dual Model'!$H$13^2))+'Dual Model'!$C$36 -> 172.9433333 | F70: =MAXA(3600*F29/('Dual Model'!$F$28)+'Dual Model'!$H$14*'Dual Model'!$H$12+MAXA(0,'Dual Model'!$C$14*3600*(1/'Dual Model'!$F$28-1/'Dual Model'!$G$28)),'Dual Model'!$G$25+'Dual Model'!$H$14*SQRT('Dual Model'!$H$12^2+'Dual Model'!$H$13^2))+'Dual Model'!$C$36 -> 119.8664103 | G70: =MAXA(3600*G29/('Dual Model'!$G$28)+'Dual Model'!$H$14*'Dual Model'!$H$12+MAXA(0,'Dual Model'!$C$14*3600*(1/'Dual Model'!$G$28-1/'Dual Model'!$G$28)),'Dual Model'!$G$25+'Dual Model'!$H$14*SQRT('Dual Model'!$H$12^2+'Dual Model'!$H$13^2))+'Dual Model'!$C$36 -> 109.61 | H70: =MAXA(3600*H29/('Dual Model'!$H$28)+'Dual Model'!$H$14*'Dual Model'!$H$12+MAXA(0,'Dual Model'!$C$14*3600*(1/'Dual Model'!$H$28-1/'Dual Model'!$C$28)),'Dual Model'!$G$25+'Dual Model'!$H$14*SQRT('Dual Model'!$H$12^2+'Dual Model'!$H$13^2))+'Dual Model'!$C$36 -> 106.7528571 | I70: =MAXA(3600*I29/('Dual Model'!$I$28)+'Dual Model'!$H$14*'Dual Model'!$H$12+MAXA(0,'Dual Model'!$C$14*3600*(1/'Dual Model'!$I$28-1/'Dual Model'!$G$28)),'Dual Model'!$G$25+'Dual Model'!$H$14*SQRT('Dual Model'!$H$12^2+'Dual Model'!$H$13^2))+'Dual Model'!$C$36 -> 101.61
B71: Large-757 | C71: =MAXA(3600*C30/('Dual Model'!$C$28)+'Dual Model'!$H$14*'Dual Model'!$H$12+MAXA(0,'Dual Model'!$C$14*3600*(1/'Dual Model'!$C$28-1/'Dual Model'!$H$28)),'Dual Model'!$G$25+'Dual Model'!$H$14*SQRT('Dual Model'!$H$12^2+'Dual Model'!$H$13^2))+'Dual Model'!$C$36 -> 329.61 | D71: =MAXA(3600*D30/('Dual Model'!$D$28)+'Dual Model'!$H$14*'Dual Model'!$H$12+MAXA(0,'Dual Model'!$C$14*3600*(1/'Dual Model'!$D$28-1/'Dual Model'!$G$28)),'Dual Model'!$G$25+'Dual Model'!$H$14*SQRT('Dual Model'!$H$12^2+'Dual Model'!$H$13^2))+'Dual Model'!$C$36 -> 274.9433333 | E71: =MAXA(3600*E30/('Dual Model'!$E$28)+'Dual Model'!$H$14*'Dual Model'!$H$12+MAXA(0,'Dual Model'!$C$14*3600*(1/'Dual Model'!$E$28-1/'Dual Model'!$G$28)),'Dual Model'!$H$25+'Dual Model'!$H$14*SQRT('Dual Model'!$H$12^2+'Dual Model'!$H$13^2))+'Dual Model'!$C$36 -> 202.9433333 | F71: =MAXA(3600*F30/('Dual Model'!$F$28)+'Dual Model'!$H$14*'Dual Model'!$H$12+MAXA(0,'Dual Model'!$C$14*3600*(1/'Dual Model'!$F$28-1/'Dual Model'!$G$28)),'Dual Model'!$H$25+'Dual Model'!$H$14*SQRT('Dual Model'!$H$12^2+'Dual Model'!$H$13^2))+'Dual Model'!$C$36 -> 147.5587179 | G71: =MAXA(3600*G30/('Dual Model'!$G$28)+'Dual Model'!$H$14*'Dual Model'!$H$12+MAXA(0,'Dual Model'!$C$14*3600*(1/'Dual Model'!$G$28-1/'Dual Model'!$G$28)),'Dual Model'!$H$25+'Dual Model'!$H$14*SQRT('Dual Model'!$H$12^2+'Dual Model'!$H$13^2))+'Dual Model'!$C$36 -> 136.2766667 | H71: =MAXA(3600*H30/('Dual Model'!$H$28)+'Dual Model'!$H$14*'Dual Model'!$H$12+MAXA(0,'Dual Model'!$C$14*3600*(1/'Dual Model'!$H$28-1/'Dual Model'!$C$28)),'Dual Model'!$H$25+'Dual Model'!$H$14*SQRT('Dual Model'!$H$12^2+'Dual Model'!$H$13^2))+'Dual Model'!$C$36 -> 132.4671429 | I71: =MAXA(3600*I30/('Dual Model'!$I$28)+'Dual Model'!$H$14*'Dual Model'!$H$12+MAXA(0,'Dual Model'!$C$14*3600*(1/'Dual Model'!$I$28-1/'Dual Model'!$G$28)),'Dual Model'!$H$25+'Dual Model'!$H$14*SQRT('Dual Model'!$H$12^2+'Dual Model'!$H$13^2))+'Dual Model'!$C$36 -> 125.61
B72: Heavy | C72: =MAXA(3600*C31/('Dual Model'!$C$28)+'Dual Model'!$H$14*'Dual Model'!$H$12+MAXA(0,'Dual Model'!$C$14*3600*(1/'Dual Model'!$C$28-1/'Dual Model'!$I$28)),'Dual Model'!$I$25+'Dual Model'!$H$14*SQRT('Dual Model'!$H$12^2+'Dual Model'!$H$13^2))+'Dual Model'!$C$36 -> 381.61 | D72: =MAXA(3600*D31/('Dual Model'!$D$28)+'Dual Model'!$H$14*'Dual Model'!$H$12+MAXA(0,'Dual Model'!$C$14*3600*(1/'Dual Model'!$D$28-1/'Dual Model'!$I$28)),'Dual Model'!$I$25+'Dual Model'!$H$14*SQRT('Dual Model'!$H$12^2+'Dual Model'!$H$13^2))+'Dual Model'!$C$36 -> 329.61 | E72: =MAXA(3600*E31/('Dual Model'!$E$28)+'Dual Model'!$H$14*'Dual Model'!$H$12+MAXA(0,'Dual Model'!$C$14*3600*(1/'Dual Model'!$E$28-1/'Dual Model'!$I$28)),'Dual Model'!$I$25+'Dual Model'!$H$14*SQRT('Dual Model'!$H$12^2+'Dual Model'!$H$13^2))+'Dual Model'!$C$36 -> 221.61 | F72: =MAXA(3600*F31/('Dual Model'!$F$28)+'Dual Model'!$H$14*'Dual Model'!$H$12+MAXA(0,'Dual Model'!$C$14*3600*(1/'Dual Model'!$F$28-1/'Dual Model'!$I$28)),'Dual Model'!$I$25+'Dual Model'!$H$14*SQRT('Dual Model'!$H$12^2+'Dual Model'!$H$13^2))+'Dual Model'!$C$36 -> 193.9176923 | G72: =MAXA(3600*G31/('Dual Model'!$G$28)+'Dual Model'!$H$14*'Dual Model'!$H$12+MAXA(0,'Dual Model'!$C$14*3600*(1/'Dual Model'!$G$28-1/'Dual Model'!$I$28)),'Dual Model'!$I$25+'Dual Model'!$H$14*SQRT('Dual Model'!$H$12^2+'Dual Model'!$H$13^2))+'Dual Model'!$C$36 -> 181.61 | H72: =MAXA(3600*H31/('Dual Model'!$H$28)+'Dual Model'!$H$14*'Dual Model'!$H$12+MAXA(0,'Dual Model'!$C$14*3600*(1/'Dual Model'!$H$28-1/'Dual Model'!$C$28)),'Dual Model'!$I$25+'Dual Model'!$H$14*SQRT('Dual Model'!$H$12^2+'Dual Model'!$H$13^2))+'Dual Model'!$C$36 -> 158.1814286 | I72: =MAXA(3600*I31/('Dual Model'!$I$28)+'Dual Model'!$H$14*'Dual Model'!$H$12+MAXA(0,'Dual Model'!$C$14*3600*(1/'Dual Model'!$I$28-1/'Dual Model'!$I$28)),'Dual Model'!$I$25+'Dual Model'!$H$14*SQRT('Dual Model'!$H$12^2+'Dual Model'!$H$13^2))+'Dual Model'!$C$36 -> 125.61
B74: VMC Average time between Arrivals | F74: Time in Seconds
C75: Small - S | D75: Small - T | E75: Small + | F75: Large-TP | G75: Large-Jet | H75: Large-757 | I75: Heavy
B76: Small - S | C76: =C5*C56 -> 0 | D76: =D5*D56 -> 0 | E76: 0 | F76: 0 | G76: 0 | H76: 0 | I76: 0 | K76: Average Arrival separation
B77: Small - T | C77: =C6*C57 -> 0 | D77: 0.9801 | E77: 0 | F77: 2.466761538 | G77: 4.013833333 | H77: 0.3923357143 | I77: 0.37605 | K77: =SUM(C76:I82) -> 96.55863865 | L77: seconds | M77: =(3600-'Dual Model'!$I$30)/K77 -> 37.28304428
B78: Small + | C78: =C7*C58 -> 0 | D78: 0 | E78: 0 | F78: 0 | G78: 0 | H78: 0 | I78: 0
B79: Large-TP | C79: =C8*C59 -> 0 | D79: 5.548915385 | E79: 0 | F79: 7.400284615 | G79: 12.0415 | H79: 1.177007143 | I79: 1.143175208
B80: Large-Jet | C80: =C9*C60 -> 0 | D80: 9.607166667 | E80: 0 | F80: 13.41073077 | G80: 20.06916667 | H80: 1.961678571 | I80: 1.930292013
B81: Large-757 | C81: =C10*C61 -> 0 | D81: 1.17405 | E81: 0 | F81: 1.773380769 | G81: 2.706916667 | H81: 0.2475964286 | I81: 0.236025
B82: Heavy | C82: =C11*C62 -> 0 | D82: 1.39605 | E82: 0 | F82: 2.327226923 | G82: 3.606916667 | H82: 0.3354535714 | I82: 0.236025
B84: VMC Average time between Departures | F84: Time in Seconds
C85: Small - S | D85: Small - T | E85: Small + | F85: Large-TP | G85: Large-Jet | H85: Large-757 | I85: Heavy
B86: Small - S | C86: =C5*C35 -> 0 | D86: =D5*D35 -> 0 | E86: 0 | F86: 0 | G86: 0 | H86: 0 | I86: 0 | K86: Average Departure separation
B87: Small - T | C87: =C6*C36 -> 0 | D87: 0.45 | E87: 0 | F87: 1.65 | G87: 2.75 | H87: 0.275 | I87: 0.3 | K87: =SUM(C86:I92) -> 75.875 | L87: seconds | M87: =(3600-'Dual Model'!$I$30)/K87 -> 47.44645799
B88: Small + | C88: =C7*C37 -> 0 | D88: 0 | E88: 0 | F88: 0 | G88: 0 | H88: 0 | I88: 0
B89: Large-TP | C89: =C8*C38 -> 0 | D89: 2.7 | E89: 0 | F89: 6.3 | G89: 10.5 | H89: 1.05 | I89: 1.05
B90: Large-Jet | C90: =C9*C39 -> 0 | D90: 4.5 | E90: 0 | F90: 10.5 | G90: 17.5 | H90: 1.75 | I90: 1.75
B91: Large-757 | C91: =C10*C40 -> 0 | D91: 0.65 | E91: 0 | F91: 1.95 | G91: 3.25 | H91: 0.325 | I91: 0.25
B92: Heavy | C92: =C11*C41 -> 0 | D92: 0.65 | E92: 0 | F92: 1.95 | G92: 3.25 | H92: 0.325 | I92: 0.25
B94: IMC Average time between Arrivals | F94: Time in Seconds
C95: Small - S | D95: Small - T | E95: Small + | F95: Large-TP | G95: Large-Jet | H95: Large-757 | I95: Heavy
B96: Small - S | C96: =C5*C66 -> 0 | D96: =D5*D66 -> 0 | E96: 0 | F96: 0 | G96: 0 | H96: 0 | I96: 0 | K96: Average Arrival separation
B97: Small - T | C97: =C6*C67 -> 0 | D97: 1.3761 | E97: 0 | F97: 3.380607692 | G97: 5.4805 | H97: 0.5337642857 | I97: 0.50805 | K97: =SUM(C96:I102) -> 127.9261538 | L97: seconds | M97: =(3600-'Dual Model'!$I$30)/K97 -> 28.14123533
B98: Small + | C98: =C7*C68 -> 0 | D98: 0 | E98: 0 | F98: 0 | G98: 0 | H98: 0 | I98: 0
B99: Large-TP | C99: =C8*C69 -> 0 | D99: 6.952915385 | E99: 0 | F99: 10.14182308 | G99: 16.4415 | H99: 1.601292857 | I99: 1.52415
B100: Large-Jet | C100: =C9*C70 -> 0 | D100: 11.94716667 | E100: 0 | F100: 17.97996154 | G100: 27.4025 | H100: 2.668821429 | I100: 2.54025
B101: Large-757 | C101: =C10*C71 -> 0 | D101: 1.374716667 | E101: 0 | F101: 2.213380769 | G101: 3.406916667 | H101: 0.3311678571 | I101: 0.314025
B102: Heavy | C102: =C11*C72 -> 0 | D102: 1.64805 | E102: 0 | F102: 2.908765385 | G102: 4.54025 | H102: 0.3954535714 | I102: 0.314025
B104: IMC Average time between Departures | F104: Time in Seconds
C105: Small - S | D105: Small - T | E105: Small + | F105: Large-TP | G105: Large-Jet | H105: Large-757 | I105: Heavy
B106: Small - S | C106: =C5*C45 -> 0 | D106: =D5*D45 -> 0 | E106: 0 | F106: 0 | G106: 0 | H106: 0 | I106: 0 | K106: Average Departure separation
B107: Small - T | C107: =C6*C46 -> 0 | D107: 0.7 | E107: 0 | F107: 2.1 | G107: 3.5 | H107: 0.35 | I107: 0.35 | K107: =SUM(C106:I112) -> 77.45 | L107: seconds | M107: =(3600-'Dual Model'!$I$30)/K107 -> 46.48160103
B108: Small + | C108: =C7*C47 -> 0 | D108: 0 | E108: 0 | F108: 0 | G108: 0 | H108: 0 | I108: 0
B109: Large-TP | C109: =C8*C48 -> 0 | D109: 2.7 | E109: 0 | F109: 6.3 | G109: 10.5 | H109: 1.05 | I109: 1.05
B110: Large-Jet | C110: =C9*C49 -> 0 | D110: 4.5 | E110: 0 | F110: 10.5 | G110: 17.5 | H110: 1.75 | I110: 1.75
B111: Large-757 | C111: =C10*C50 -> 0 | D111: 0.65 | E111: 0 | F111: 1.95 | G111: 3.25 | H111: 0.325 | I111: 0.25
B112: Heavy | C112: =C11*C51 -> 0 | D112: 0.65 | E112: 0 | F112: 1.95 | G112: 3.25 | H112: 0.325 | I112: 0.25
B114: VMC Average Time Required for Departure between Arrivals | F114: Time in Seconds
C115: Small - S | D115: Small - T | E115: Small + | F115: Large-TP | G115: Large-Jet | H115: Large-757 | I115: Heavy | J115: Includes the AROT in the Equation
B116: Small - S | C116: ='Dual Model'!$C$25+MAXA((3600*'Dual Model'!$C$12/('Dual Model'!C$28)),C$158) -> 112 | D116: ='Dual Model'!$C$25+MAXA((3600*'Dual Model'!$C$12/('Dual Model'!D$28)),D$158) -> 104 | E116: ='Dual Model'!$C$25+MAXA((3600*'Dual Model'!$C$12/('Dual Model'!E$28)),E$158) -> 92 | F116: ='Dual Model'!$C$25+MAXA((3600*'Dual Model'!$C$12/('Dual Model'!F$28)),F$158) -> 87.38461538 | G116: ='Dual Model'!$C$25+MAXA((3600*'Dual Model'!$C$12/('Dual Model'!G$28)),G$158) -> 85.33333333 | H116: ='Dual Model'!$C$25+MAXA((3600*'Dual Model'!$C$12/('Dual Model'!H$28)),H$158) -> 83.42857143 | I116: ='Dual Model'!$C$25+MAXA((3600*'Dual Model'!$C$12/('Dual Model'!I$28)),I$158) -> 83
B117: Small - T | C117: ='Dual Model'!$D$25+MAXA((3600*'Dual Model'!$C$12/('Dual Model'!C$28)),C$158) -> 120 | D117: ='Dual Model'!$D$25+MAXA((3600*'Dual Model'!$C$12/('Dual Model'!D$28)),D$158) -> 112 | E117: ='Dual Model'!$D$25+MAXA((3600*'Dual Model'!$C$12/('Dual Model'!E$28)),E$158) -> 100 | F117: ='Dual Model'!$D$25+MAXA((3600*'Dual Model'!$C$12/('Dual Model'!F$28)),F$158) -> 95.38461538 | G117: ='Dual Model'!$D$25+MAXA((3600*'Dual Model'!$C$12/('Dual Model'!G$28)),G$158) -> 93.33333333 | H117: ='Dual Model'!$D$25+MAXA((3600*'Dual Model'!$C$12/('Dual Model'!H$28)),H$158) -> 91.42857143 | I117: ='Dual Model'!$D$25+MAXA((3600*'Dual Model'!$C$12/('Dual Model'!I$28)),I$158) -> 91
B118: Small + | C118: ='Dual Model'!$E$25+MAXA((3600*'Dual Model'!$C$12/('Dual Model'!C$28)),C$158) -> 122 | D118: ='Dual Model'!$E$25+MAXA((3600*'Dual Model'!$C$12/('Dual Model'!D$28)),D$158) -> 114 | E118: ='Dual Model'!$E$25+MAXA((3600*'Dual Model'!$C$12/('Dual Model'!E$28)),E$158) -> 102 | F118: ='Dual Model'!$E$25+MAXA((3600*'Dual Model'!$C$12/('Dual Model'!F$28)),F$158) -> 97.38461538 | G118: ='Dual Model'!$E$25+MAXA((3600*'Dual Model'!$C$12/('Dual Model'!G$28)),G$158) -> 95.33333333 | H118: ='Dual Model'!$E$25+MAXA((3600*'Dual Model'!$C$12/('Dual Model'!H$28)),H$158) -> 93.42857143 | I118: ='Dual Model'!$E$25+MAXA((3600*'Dual Model'!$C$12/('Dual Model'!I$28)),I$158) -> 93
B119: Large-TP | C119: ='Dual Model'!$F$25+MAXA((3600*'Dual Model'!$C$12/('Dual Model'!C$28)),C$158) -> 125 | D119: ='Dual Model'!$F$25+MAXA((3600*'Dual Model'!$C$12/('Dual Model'!D$28)),D$158) -> 117 | E119: ='Dual Model'!$F$25+MAXA((3600*'Dual Model'!$C$12/('Dual Model'!E$28)),E$158) -> 105 | F119: ='Dual Model'!$F$25+MAXA((3600*'Dual Model'!$C$12/('Dual Model'!F$28)),F$158) -> 100.3846154 | G119: ='Dual Model'!$F$25+MAXA((3600*'Dual Model'!$C$12/('Dual Model'!G$28)),G$158) -> 98.33333333 | H119: ='Dual Model'!$F$25+MAXA((3600*'Dual Model'!$C$12/('Dual Model'!H$28)),H$158) -> 96.42857143 | I119: ='Dual Model'!$F$25+MAXA((3600*'Dual Model'!$C$12/('Dual Model'!I$28)),I$158) -> 96
B120: Large-Jet | C120: ='Dual Model'!$G$25+MAXA((3600*'Dual Model'!$C$12/('Dual Model'!C$28)),C$158) -> 126 | D120: ='Dual Model'!$G$25+MAXA((3600*'Dual Model'!$C$12/('Dual Model'!D$28)),D$158) -> 118 | E120: ='Dual Model'!$G$25+MAXA((3600*'Dual Model'!$C$12/('Dual Model'!E$28)),E$158) -> 106 | F120: ='Dual Model'!$G$25+MAXA((3600*'Dual Model'!$C$12/('Dual Model'!F$28)),F$158) -> 101.3846154 | G120: ='Dual Model'!$G$25+MAXA((3600*'Dual Model'!$C$12/('Dual Model'!G$28)),G$158) -> 99.33333333 | H120: ='Dual Model'!$G$25+MAXA((3600*'Dual Model'!$C$12/('Dual Model'!H$28)),H$158) -> 97.42857143 | I120: ='Dual Model'!$G$25+MAXA((3600*'Dual Model'!$C$12/('Dual Model'!I$28)),I$158) -> 97
B121: Large-757 | C121: ='Dual Model'!$H$25+MAXA((3600*'Dual Model'!$C$12/('Dual Model'!C$28)),C$158) -> 131 | D121: ='Dual Model'!$H$25+MAXA((3600*'Dual Model'!$C$12/('Dual Model'!D$28)),D$158) -> 123 | E121: ='Dual Model'!$H$25+MAXA((3600*'Dual Model'!$C$12/('Dual Model'!E$28)),E$158) -> 111 | F121: ='Dual Model'!$H$25+MAXA((3600*'Dual Model'!$C$12/('Dual Model'!F$28)),F$158) -> 106.3846154 | G121: ='Dual Model'!$H$25+MAXA((3600*'Dual Model'!$C$12/('Dual Model'!G$28)),G$158) -> 104.3333333 | H121: ='Dual Model'!$H$25+MAXA((3600*'Dual Model'!$C$12/('Dual Model'!H$28)),H$158) -> 102.4285714 | I121: ='Dual Model'!$H$25+MAXA((3600*'Dual Model'!$C$12/('Dual Model'!I$28)),I$158) -> 102
B122: Heavy | C122: ='Dual Model'!$I$25+MAXA((3600*'Dual Model'!$C$12/('Dual Model'!C$28)),C$158) -> 135 | D122: ='Dual Model'!$I$25+MAXA((3600*'Dual Model'!$C$12/('Dual Model'!D$28)),D$158) -> 127 | E122: ='Dual Model'!$I$25+MAXA((3600*'Dual Model'!$C$12/('Dual Model'!E$28)),E$158) -> 115 | F122: ='Dual Model'!$I$25+MAXA((3600*'Dual Model'!$C$12/('Dual Model'!F$28)),F$158) -> 110.3846154 | G122: ='Dual Model'!$I$25+MAXA((3600*'Dual Model'!$C$12/('Dual Model'!G$28)),G$158) -> 108.3333333 | H122: ='Dual Model'!$I$25+MAXA((3600*'Dual Model'!$C$12/('Dual Model'!H$28)),H$158) -> 106.4285714 | I122: ='Dual Model'!$I$25+MAXA((3600*'Dual Model'!$C$12/('Dual Model'!I$28)),I$158) -> 106
B124: IMC Average Time Required for Departure between Arrivals | F124: Time in Seconds
C125: Small - S | D125: Small - T | E125: Small + | F125: Large-TP | G125: Large-Jet | H125: Large-757 | I125: Heavy | J125: Includes the AROT in the Equation
B126: Small - S | C126: =IF('Dual Model'!$C$9="Yes",0,'Dual Model'!$C$25)+MAXA((3600*'Dual Model'!$C$13/('Dual Model'!C$28)),C$158) -> 80 | D126: =IF('Dual Model'!$C$9="Yes",0,'Dual Model'!$C$25)+MAXA((3600*'Dual Model'!$C$13/('Dual Model'!D$28)),D$158) -> 72 | E126: =IF('Dual Model'!$C$9="Yes",0,'Dual Model'!$C$25)+MAXA((3600*'Dual Model'!$C$13/('Dual Model'!E$28)),E$158) -> 60 | F126: =IF('Dual Model'!$C$9="Yes",0,'Dual Model'!$C$25)+MAXA((3600*'Dual Model'!$C$13/('Dual Model'!F$28)),F$158) -> 55.38461538 | G126: =IF('Dual Model'!$C$9="Yes",0,'Dual Model'!$C$25)+MAXA((3600*'Dual Model'!$C$13/('Dual Model'!G$28)),G$158) -> 53.33333333 | H126: =IF('Dual Model'!$C$9="Yes",0,'Dual Model'!$C$25)+MAXA((3600*'Dual Model'!$C$13/('Dual Model'!H$28)),H$158) -> 51.42857143 | I126: =IF('Dual Model'!$C$9="Yes",0,'Dual Model'!$C$25)+MAXA((3600*'Dual Model'!$C$13/('Dual Model'!I$28)),I$158) -> 51
B127: Small - T | C127: =IF('Dual Model'!$C$9="Yes",0,'Dual Model'!$D$25)+MAXA((3600*'Dual Model'!$C$13/('Dual Model'!C$28)),C$158) -> 80 | D127: =IF('Dual Model'!$C$9="Yes",0,'Dual Model'!$D$25)+MAXA((3600*'Dual Model'!$C$13/('Dual Model'!D$28)),D$158) -> 72 | E127: =IF('Dual Model'!$C$9="Yes",0,'Dual Model'!$D$25)+MAXA((3600*'Dual Model'!$C$13/('Dual Model'!E$28)),E$158) -> 60 | F127: =IF('Dual Model'!$C$9="Yes",0,'Dual Model'!$D$25)+MAXA((3600*'Dual Model'!$C$13/('Dual Model'!F$28)),F$158) -> 55.38461538 | G127: =IF('Dual Model'!$C$9="Yes",0,'Dual Model'!$D$25)+MAXA((3600*'Dual Model'!$C$13/('Dual Model'!G$28)),G$158) -> 53.33333333 | H127: =IF('Dual Model'!$C$9="Yes",0,'Dual Model'!$D$25)+MAXA((3600*'Dual Model'!$C$13/('Dual Model'!H$28)),H$158) -> 51.42857143 | I127: =IF('Dual Model'!$C$9="Yes",0,'Dual Model'!$D$25)+MAXA((3600*'Dual Model'!$C$13/('Dual Model'!I$28)),I$158) -> 51
B128: Small + | C128: =IF('Dual Model'!$C$9="Yes",0,'Dual Model'!$E$25)+MAXA((3600*'Dual Model'!$C$13/('Dual Model'!C$28)),C$158) -> 80 | D128: =IF('Dual Model'!$C$9="Yes",0,'Dual Model'!$E$25)+MAXA((3600*'Dual Model'!$C$13/('Dual Model'!D$28)),D$158) -> 72 | E128: =IF('Dual Model'!$C$9="Yes",0,'Dual Model'!$E$25)+MAXA((3600*'Dual Model'!$C$13/('Dual Model'!E$28)),E$158) -> 60 | F128: =IF('Dual Model'!$C$9="Yes",0,'Dual Model'!$E$25)+MAXA((3600*'Dual Model'!$C$13/('Dual Model'!F$28)),F$158) -> 55.38461538 | G128: =IF('Dual Model'!$C$9="Yes",0,'Dual Model'!$E$25)+MAXA((3600*'Dual Model'!$C$13/('Dual Model'!G$28)),G$158) -> 53.33333333 | H128: =IF('Dual Model'!$C$9="Yes",0,'Dual Model'!$E$25)+MAXA((3600*'Dual Model'!$C$13/('Dual Model'!H$28)),H$158) -> 51.42857143 | I128: =IF('Dual Model'!$C$9="Yes",0,'Dual Model'!$E$25)+MAXA((3600*'Dual Model'!$C$13/('Dual Model'!I$28)),I$158) -> 51
B129: Large-TP | C129: =IF('Dual Model'!$C$9="Yes",0,'Dual Model'!$F$25)+MAXA((3600*'Dual Model'!$C$13/('Dual Model'!C$28)),C$158) -> 80 | D129: =IF('Dual Model'!$C$9="Yes",0,'Dual Model'!$F$25)+MAXA((3600*'Dual Model'!$C$13/('Dual Model'!D$28)),D$158) -> 72 | E129: =IF('Dual Model'!$C$9="Yes",0,'Dual Model'!$F$25)+MAXA((3600*'Dual Model'!$C$13/('Dual Model'!E$28)),E$158) -> 60 | F129: =IF('Dual Model'!$C$9="Yes",0,'Dual Model'!$F$25)+MAXA((3600*'Dual Model'!$C$13/('Dual Model'!F$28)),F$158) -> 55.38461538 | G129: =IF('Dual Model'!$C$9="Yes",0,'Dual Model'!$F$25)+MAXA((3600*'Dual Model'!$C$13/('Dual Model'!G$28)),G$158) -> 53.33333333 | H129: =IF('Dual Model'!$C$9="Yes",0,'Dual Model'!$F$25)+MAXA((3600*'Dual Model'!$C$13/('Dual Model'!H$28)),H$158) -> 51.42857143 | I129: =IF('Dual Model'!$C$9="Yes",0,'Dual Model'!$F$25)+MAXA((3600*'Dual Model'!$C$13/('Dual Model'!I$28)),I$158) -> 51
B130: Large-Jet | C130: =IF('Dual Model'!$C$9="Yes",0,'Dual Model'!$G$25)+MAXA((3600*'Dual Model'!$C$13/('Dual Model'!C$28)),C$158) -> 80 | D130: =IF('Dual Model'!$C$9="Yes",0,'Dual Model'!$G$25)+MAXA((3600*'Dual Model'!$C$13/('Dual Model'!D$28)),D$158) -> 72 | E130: =IF('Dual Model'!$C$9="Yes",0,'Dual Model'!$G$25)+MAXA((3600*'Dual Model'!$C$13/('Dual Model'!E$28)),E$158) -> 60 | F130: =IF('Dual Model'!$C$9="Yes",0,'Dual Model'!$G$25)+MAXA((3600*'Dual Model'!$C$13/('Dual Model'!F$28)),F$158) -> 55.38461538 | G130: =IF('Dual Model'!$C$9="Yes",0,'Dual Model'!$G$25)+MAXA((3600*'Dual Model'!$C$13/('Dual Model'!G$28)),G$158) -> 53.33333333 | H130: =IF('Dual Model'!$C$9="Yes",0,'Dual Model'!$G$25)+MAXA((3600*'Dual Model'!$C$13/('Dual Model'!H$28)),H$158) -> 51.42857143 | I130: =IF('Dual Model'!$C$9="Yes",0,'Dual Model'!$G$25)+MAXA((3600*'Dual Model'!$C$13/('Dual Model'!I$28)),I$158) -> 51
B131: Large-757 | C131: =IF('Dual Model'!$C$9="Yes",0,'Dual Model'!$H$25)+MAXA((3600*'Dual Model'!$C$13/('Dual Model'!C$28)),C$158) -> 80 | D131: =IF('Dual Model'!$C$9="Yes",0,'Dual Model'!$H$25)+MAXA((3600*'Dual Model'!$C$13/('Dual Model'!D$28)),D$158) -> 72 | E131: =IF('Dual Model'!$C$9="Yes",0,'Dual Model'!$H$25)+MAXA((3600*'Dual Model'!$C$13/('Dual Model'!E$28)),E$158) -> 60 | F131: =IF('Dual Model'!$C$9="Yes",0,'Dual Model'!$H$25)+MAXA((3600*'Dual Model'!$C$13/('Dual Model'!F$28)),F$158) -> 55.38461538 | G131: =IF('Dual Model'!$C$9="Yes",0,'Dual Model'!$H$25)+MAXA((3600*'Dual Model'!$C$13/('Dual Model'!G$28)),G$158) -> 53.33333333 | H131: =IF('Dual Model'!$C$9="Yes",0,'Dual Model'!$H$25)+MAXA((3600*'Dual Model'!$C$13/('Dual Model'!H$28)),H$158) -> 51.42857143 | I131: =IF('Dual Model'!$C$9="Yes",0,'Dual Model'!$H$25)+MAXA((3600*'Dual Model'!$C$13/('Dual Model'!I$28)),I$158) -> 51
B132: Heavy | C132: =IF('Dual Model'!$C$9="Yes",0,'Dual Model'!$I$25)+MAXA((3600*'Dual Model'!$C$13/('Dual Model'!C$28)),C$158) -> 80 | D132: =IF('Dual Model'!$C$9="Yes",0,'Dual Model'!$I$25)+MAXA((3600*'Dual Model'!$C$13/('Dual Model'!D$28)),D$158) -> 72 | E132: =IF('Dual Model'!$C$9="Yes",0,'Dual Model'!$I$25)+MAXA((3600*'Dual Model'!$C$13/('Dual Model'!E$28)),E$158) -> 60 | F132: =IF('Dual Model'!$C$9="Yes",0,'Dual Model'!$I$25)+MAXA((3600*'Dual Model'!$C$13/('Dual Model'!F$28)),F$158) -> 55.38461538 | G132: =IF('Dual Model'!$C$9="Yes",0,'Dual Model'!$I$25)+MAXA((3600*'Dual Model'!$C$13/('Dual Model'!G$28)),G$158) -> 53.33333333 | H132: =IF('Dual Model'!$C$9="Yes",0,'Dual Model'!$I$25)+MAXA((3600*'Dual Model'!$C$13/('Dual Model'!H$28)),H$158) -> 51.42857143 | I132: =IF('Dual Model'!$C$9="Yes",0,'Dual Model'!$I$25)+MAXA((3600*'Dual Model'!$C$13/('Dual Model'!I$28)),I$158) -> 51
B134: VMC Average Required for Departure between Arrivals | F134: Time in Seconds
C135: Small - S | D135: Small - T | E135: Small + | F135: Large-TP | G135: Large-Jet | H135: Large-757 | I135: Heavy | L135: Departures between Arrivals on Runway 1 | O135: VMC
B136: Small - S | C136: =C56-C116 -> -6.39 | D136: =D56-D116 -> -5.99 | E136: -5.39 | F136: -5.159230769 | G136: -5.056666667 | H136: -4.961428571 | I136: -7.79 | L136: =SUMPRODUCT(L137:L143,C5:C11)+SUMPRODUCT(M137:M143,D5:D11)+SUMPRODUCT(N137:N143,E5:E11)+SUMPRODUCT(O137:O143,F5:F11)+SUMPRODUCT(P137:P143,G5:G11)+SUMPRODUCT(Q137:Q143,H5:H11)+SUMPRODUCT(R137:R143,I5:I11) -> 0.1875 | M136: =L136*M77 -> 6.990570802
B137: Small - T | C137: =C57-C117 -> 13.61 | D137: -13.99 | E137: -13.39 | F137: -13.15923077 | G137: -13.05666667 | H137: -12.96142857 | I137: -15.79 | L137: =IF(C136>=0,TRUNC(C136/$K$87,0)+1,0) -> 0 | M137: =IF(D136>=0,TRUNC(D136/$K$87,0)+1,0) -> 0 | N137: 0 | O137: 0 | P137: 0 | Q137: 0 | R137: 0
B138: Small + | C138: =C58-C118 -> 53.61 | D138: 26.01 | E138: -15.39 | F138: -15.15923077 | G138: -15.05666667 | H138: -14.96142857 | I138: -17.79 | L138: =IF(C137>=0,TRUNC(C137/$K$87,0)+1,0) -> 1 | M138: =IF(D137>=0,TRUNC(D137/$K$87,0)+1,0) -> 0 | N138: =IF(E137>=0,TRUNC(E137/$K$87,0)+1,0) -> 0 | O138: =IF(F137>=0,TRUNC(F137/$K$87,0)+1,0) -> 0 | P138: =IF(G137>=0,TRUNC(G137/$K$87,0)+1,0) -> 0 | Q138: =IF(H137>=0,TRUNC(H137/$K$87,0)+1,0) -> 0 | R138: =IF(I137>=0,TRUNC(I137/$K$87,0)+1,0) -> 0
B139: Large-TP | C139: =C59-C119 -> 98.76384615 | D139: 67.96384615 | E139: 21.76384615 | F139: -18.15923077 | G139: -18.05666667 | H139: -17.96142857 | I139: -19.78831949 | L139: 1 | M139: 1 | N139: 0 | O139: 0 | P139: 0 | Q139: 0 | R139: 0
B140: Large-Jet | C140: =C60-C120 -> 104.9433333 | D140: 74.14333333 | E140: 27.94333333 | F140: -11.97974359 | G140: -19.05666667 | H140: -18.96142857 | I140: -19.78831949 | L140: 2 | M140: 1 | N140: 1 | O140: 0 | P140: 0 | Q140: 0 | R140: 0
B141: Large-757 | C141: =C61-C121 -> 146.61 | D141: 111.81 | E141: 59.61 | F141: 11.84076923 | G141: 3.943333333 | H141: -3.39 | I141: -7.59 | L141: 2 | M141: 1 | N141: 1 | O141: 0 | P141: 0 | Q141: 0 | R141: 0
B142: Heavy | C142: =C62-C122 -> 190.61 | D142: 152.21 | E142: 64.61 | F142: 44.76384615 | G142: 35.94333333 | H142: 27.75285714 | I142: -11.59 | L142: 2 | M142: 2 | N142: 1 | O142: 1 | P142: 1 | Q142: 0 | R142: 0
L143: 3 | M143: 3 | N143: 1 | O143: 1 | P143: 1 | Q143: 1 | R143: 0
B144: IMC Average Required for Departure between Arrivals | F144: Time in Seconds
C145: Small - S | D145: Small - T | E145: Small + | F145: Large-TP | G145: Large-Jet | H145: Large-757 | I145: Heavy | L145: Departures between Arrivals on Runway 1 | O145: IMC
B146: Small - S | C146: =C66-C116 -> 37.61 | D146: =D66-D116 -> 33.61 | E146: 27.61 | F146: 25.30230769 | G146: 24.27666667 | H146: 23.32428571 | I146: 18.61 | L146: =SUMPRODUCT(L147:L153,C5:C11)+SUMPRODUCT(M147:M153,D5:D11)+SUMPRODUCT(N147:N153,E5:E11)+SUMPRODUCT(O147:O153,F5:F11)+SUMPRODUCT(P147:P153,G5:G11)+SUMPRODUCT(Q147:Q153,H5:H11)+SUMPRODUCT(R147:R153,I5:I11) -> 1.11 | M146: =L146*M97 -> 31.23677121
B147: Small - T | C147: =C67-C117 -> 57.61 | D147: 25.61 | E147: 19.61 | F147: 17.30230769 | G147: 16.27666667 | H147: 15.32428571 | I147: 10.61 | L147: =IF(C146>=0,TRUNC(C146/$K$107,0)+1,0) -> 1 | M147: =IF(D146>=0,TRUNC(D146/$K$107,0)+1,0) -> 1 | N147: 1 | O147: 1 | P147: 1 | Q147: 1 | R147: 1
B148: Small + | C148: =C68-C118 -> 97.61 | D148: 65.61 | E148: 17.61 | F148: 15.30230769 | G148: 14.27666667 | H148: 13.32428571 | I148: 8.61 | L148: =IF(C147>=0,TRUNC(C147/$K$107,0)+1,0) -> 1 | M148: =IF(D147>=0,TRUNC(D147/$K$107,0)+1,0) -> 1 | N148: =IF(E147>=0,TRUNC(E147/$K$107,0)+1,0) -> 1 | O148: =IF(F147>=0,TRUNC(F147/$K$107,0)+1,0) -> 1 | P148: =IF(G147>=0,TRUNC(G147/$K$107,0)+1,0) -> 1 | Q148: =IF(H147>=0,TRUNC(H147/$K$107,0)+1,0) -> 1 | R148: =IF(I147>=0,TRUNC(I147/$K$107,0)+1,0) -> 1
B149: Large-TP | C149: =C69-C119 -> 150.7638462 | D149: 114.7638462 | E149: 60.76384615 | F149: 12.30230769 | G149: 11.27666667 | H149: 10.32428571 | I149: 5.61 | L149: 2 | M149: 1 | N149: 1 | O149: 1 | P149: 1 | Q149: 1 | R149: 1
B150: Large-Jet | C150: =C70-C120 -> 156.9433333 | D150: 120.9433333 | E150: 66.94333333 | F150: 18.48179487 | G150: 10.27666667 | H150: 9.324285714 | I150: 4.61 | L150: 2 | M150: 2 | N150: 1 | O150: 1 | P150: 1 | Q150: 1 | R150: 1
B151: Large-757 | C151: =C71-C121 -> 198.61 | D151: 151.9433333 | E151: 91.94333333 | F151: 41.17410256 | G151: 31.94333333 | H151: 30.03857143 | I151: 23.61 | L151: 3 | M151: 2 | N151: 1 | O151: 1 | P151: 1 | Q151: 1 | R151: 1
B152: Heavy | C152: =C72-C122 -> 246.61 | D152: 202.61 | E152: 106.61 | F152: 83.53307692 | G152: 73.27666667 | H152: 51.75285714 | I152: 19.61 | L152: 3 | M152: 2 | N152: 2 | O152: 1 | P152: 1 | Q152: 1 | R152: 1
L153: 4 | M153: 3 | N153: 2 | O153: 2 | P153: 1 | Q153: 1 | R153: 1
C157: Small - S | D157: Small - T | E157: Small + | F157: Large-TP | G157: Large-Jet | H157: Large-757 | I157: Heavy
B158: Average Dep. Runway Occ. Times (sec) | C158: ='Single Work Tab'!$C$155 -> 34 | D158: ='Single Work Tab'!$D$155 -> 42 | E158: ='Single Work Tab'!$E$155 -> 34 | F158: ='Single Work Tab'!$F$155 -> 34 | G158: ='Single Work Tab'!$G$155 -> 46 | H158: ='Single Work Tab'!$H$155 -> 38 | I158: ='Single Work Tab'!$I$155 -> 51
C159: linked to Single Work Tab inputs

Sheet Dual Work Tab (3) (hidden)
B1: Dual Model Worksheet #3 with working Calculated Values
B3: Arrivals Pairing Probability Matrix | D3: (chance of landing behind an aircraft from each class) | K3: 0 | L3: Calculated Cells
C4: Small - S | D4: Small - T | E4: Small + | F4: Large-TP | G4: Large-Jet | H4: Large-757 | I4: Heavy | K4: 0 | L4: Linked Input Cells
B5: Small - S | C5: ='Dual Model'!$C22*'Dual Model'!C22 -> 0 | D5: ='Dual Model'!$C22*'Dual Model'!D22 -> 0 | E5: ='Dual Model'!$C22*'Dual Model'!E22 -> 0 | F5: ='Dual Model'!$C22*'Dual Model'!F22 -> 0 | G5: ='Dual Model'!$C22*'Dual Model'!G22 -> 0 | H5: ='Dual Model'!$C22*'Dual Model'!H22 -> 0 | I5: ='Dual Model'!$C22*'Dual Model'!I22 -> 0 | K5: 0 | L5: Linked Cells (within this worksheet)
B6: Small - T | C6: ='Dual Model'!$D22*'Dual Model'!C22 -> 0 | D6: ='Dual Model'!$D22*'Dual Model'!D22 -> 0.01 | E6: ='Dual Model'!$D22*'Dual Model'!E22 -> 0 | F6: ='Dual Model'!$D22*'Dual Model'!F22 -> 0.03 | G6: ='Dual Model'!$D22*'Dual Model'!G22 -> 0.05 | H6: ='Dual Model'!$D22*'Dual Model'!H22 -> 0.005 | I6: ='Dual Model'!$D22*'Dual Model'!I22 -> 0.005
B7: Small + | C7: ='Dual Model'!$E22*'Dual Model'!C22 -> 0 | D7: ='Dual Model'!$E22*'Dual Model'!D22 -> 0 | E7: ='Dual Model'!$E22*'Dual Model'!E22 -> 0 | F7: ='Dual Model'!$E22*'Dual Model'!F22 -> 0 | G7: ='Dual Model'!$E22*'Dual Model'!G22 -> 0 | H7: ='Dual Model'!$E22*'Dual Model'!H22 -> 0 | I7: ='Dual Model'!$E22*'Dual Model'!I22 -> 0
B8: Large-TP | C8: ='Dual Model'!$F22*'Dual Model'!C22 -> 0 | D8: ='Dual Model'!$F22*'Dual Model'!D22 -> 0.03 | E8: ='Dual Model'!$F22*'Dual Model'!E22 -> 0 | F8: ='Dual Model'!$F22*'Dual Model'!F22 -> 0.09 | G8: ='Dual Model'!$F22*'Dual Model'!G22 -> 0.15 | H8: ='Dual Model'!$F22*'Dual Model'!H22 -> 0.015 | I8: ='Dual Model'!$F22*'Dual Model'!I22 -> 0.015
B9: Large-Jet | C9: ='Dual Model'!$G22*'Dual Model'!C22 -> 0 | D9: ='Dual Model'!$G22*'Dual Model'!D22 -> 0.05 | E9: ='Dual Model'!$G22*'Dual Model'!E22 -> 0 | F9: ='Dual Model'!$G22*'Dual Model'!F22 -> 0.15 | G9: ='Dual Model'!$G22*'Dual Model'!G22 -> 0.25 | H9: ='Dual Model'!$G22*'Dual Model'!H22 -> 0.025 | I9: ='Dual Model'!$G22*'Dual Model'!I22 -> 0.025
B10: Large-757 | C10: ='Dual Model'!$H22*'Dual Model'!C22 -> 0 | D10: ='Dual Model'!$H22*'Dual Model'!D22 -> 0.005 | E10: ='Dual Model'!$H22*'Dual Model'!E22 -> 0 | F10: ='Dual Model'!$H22*'Dual Model'!F22 -> 0.015 | G10: ='Dual Model'!$H22*'Dual Model'!G22 -> 0.025 | H10: ='Dual Model'!$H22*'Dual Model'!H22 -> 0.0025 | I10: ='Dual Model'!$H22*'Dual Model'!I22 -> 0.0025 | J10: Summary Check
B11: Heavy | C11: ='Dual Model'!$I22*'Dual Model'!C22 -> 0 | D11: ='Dual Model'!$I22*'Dual Model'!D22 -> 0.005 | E11: ='Dual Model'!$I22*'Dual Model'!E22 -> 0 | F11: ='Dual Model'!$I22*'Dual Model'!F22 -> 0.015 | G11: ='Dual Model'!$I22*'Dual Model'!G22 -> 0.025 | H11: ='Dual Model'!$I22*'Dual Model'!H22 -> 0.0025 | I11: ='Dual Model'!$I22*'Dual Model'!I22 -> 0.0025 | J11: Total = | K11: =SUM(C5:I11) -> 1
B13: VMC Required Separation for arrivals following an aircraft from each class | F13: Distance in Nautical Miles | K13: separations are now referencing the 1.5 or 2.5 nm diagonal separation for dual arriving runways
C14: Small - S | D14: Small - T | E14: Small + | F14: Large-TP | G14: Large-Jet | H14: Large-757 | I14: Heavy
B15: Small - S | C15: ='Dual Model'!D41+'Dual Model'!$H$36 -> 1.9 | D15: =$C$15 -> 1.9 | E15: 1.9 | F15: 1.9 | G15: 1.9 | H15: 1.9 | I15: 1.9
B16: Small - T | C16: =$C$15 -> 1.9 | D16: 1.9 | E16: 1.9 | F16: 1.9 | G16: 1.9 | H16: 1.9 | I16: 1.9
B17: Small + | C17: ='Dual Model'!D42+'Dual Model'!$H$36 -> 1.9 | D17: =$C$17 -> 1.9 | E17: =$C$17 -> 1.9 | F17: ='Dual Model'!D43+'Dual Model'!$H$36 -> 1.9 | G17: =$F$17 -> 1.9 | H17: =$F$17 -> 1.9 | I17: =$F$17 -> 1.9
B18: Large-TP | C18: ='Dual Model'!D44+'Dual Model'!$H$36 -> 2.7 | D18: =$C$18 -> 2.7 | E18: =$C$18 -> 2.7 | F18: ='Dual Model'!D45+'Dual Model'!$H$36 -> 1.9 | G18: =$F$18 -> 1.9 | H18: 1.9 | I18: 1.9
B19: Large-Jet | C19: ='Dual Model'!D44+'Dual Model'!$H$36 -> 2.7 | D19: =$C$18 -> 2.7 | E19: =$C$18 -> 2.7 | F19: ='Dual Model'!D45+'Dual Model'!$H$36 -> 1.9 | G19: 1.9 | H19: 1.9 | I19: 1.9
B20: Large-757 | C20: ='Dual Model'!D46+'Dual Model'!$H$36 -> 3.7 | D20: =$C$20 -> 3.7 | E20: =$C$20 -> 3.7 | F20: ='Dual Model'!D47+'Dual Model'!$H$36 -> 2.7 | G20: =$F$20 -> 2.7 | H20: =$F$20 -> 2.7 | I20: =$F$20 -> 2.7
B21: Heavy | C21: ='Dual Model'!D48+'Dual Model'!$H$36 -> 4.6 | D21: =$C$21 -> 4.6 | E21: ='Dual Model'!D49+'Dual Model'!$H$36 -> 3.6 | F21: =$E$21 -> 3.6 | G21: =E21 -> 3.6 | H21: =F21 -> 3.6 | I21: ='Dual Model'!D50+'Dual Model'!$H$36 -> 2.7
B23: IMC Required Separation for arrivals following an aircraft from each class | F23: Distance in Nautical Miles
C24: Small - S | D24: Small - T | E24: Small + | F24: Large-TP | G24: Large-Jet | H24: Large-757 | I24: Heavy
B25: Small - S | C25: ='Dual Model'!E41+'Dual Model'!$H$36 -> 3 | D25: =$C$25 -> 3 | E25: 3 | F25: 3 | G25: 3 | H25: 3 | I25: 3
B26: Small - T | C26: =$C$25 -> 3 | D26: 3 | E26: 3 | F26: 3 | G26: 3 | H26: 3 | I26: 3
B27: Small + | C27: ='Dual Model'!E42+'Dual Model'!$H$36 -> 3 | D27: =$C$27 -> 3 | E27: =$C$27 -> 3 | F27: ='Dual Model'!E43+'Dual Model'!$H$36 -> 3 | G27: =$F$27 -> 3 | H27: =$F$27 -> 3 | I27: =$F$27 -> 3
B28: Large-TP | C28: ='Dual Model'!E44+'Dual Model'!$H$36 -> 4 | D28: =$C$28 -> 4 | E28: =$C$28 -> 4 | F28: ='Dual Model'!E45+'Dual Model'!$H$36 -> 3 | G28: =$F$28 -> 3 | H28: 3 | I28: 3
B29: Large-Jet | C29: ='Dual Model'!E44+'Dual Model'!$H$36 -> 4 | D29: =$C$28 -> 4 | E29: =$C$28 -> 4 | F29: ='Dual Model'!E45+'Dual Model'!$H$36 -> 3 | G29: 3 | H29: 3 | I29: 3
B30: Large-757 | C30: ='Dual Model'!E46+'Dual Model'!$H$36 -> 5 | D30: =$C$30 -> 5 | E30: =$C$30 -> 5 | F30: ='Dual Model'!E47+'Dual Model'!$H$36 -> 4 | G30: =$F$30 -> 4 | H30: =$F$30 -> 4 | I30: =$F$30 -> 4
B31: Heavy | C31: ='Dual Model'!E48+'Dual Model'!$H$36 -> 6 | D31: =$C$31 -> 6 | E31: ='Dual Model'!E49+'Dual Model'!$H$36 -> 5 | F31: =$E$31 -> 5 | G31: =$E$31 -> 5 | H31: =$E$31 -> 5 | I31: ='Dual Model'!E50+'Dual Model'!$H$36 -> 4
B33: VMC Required Separation for departures following an aircraft from each class | F33: Time in seconds
C34: Small - S | D34: Small - T | E34: Small + | F34: Large-TP | G34: Large-Jet | H34: Large-757 | I34: Heavy
B35: Small - S | C35: ='Dual Model'!$D$54+'Dual Model'!$C$37 -> 45 | D35: =$C$35 -> 45 | E35: =$C$35 -> 45 | F35: ='Dual Model'!$D$55+'Dual Model'!$C$37 -> 55 | G35: =$F$35 -> 55 | H35: 55 | I35: ='Dual Model'!$D$56+'Dual Model'!$C$37 -> 60
B36: Small - T | C36: =$C$35 -> 45 | D36: 45 | E36: 45 | F36: =$F$35 -> 55 | G36: 55 | H36: 55 | I36: =$I$35 -> 60
B37: Small + | C37: 45 | D37: 45 | E37: 45 | F37: =$F$35 -> 55 | G37: 55 | H37: 55 | I37: =$I$35 -> 60
B38: Large-TP | C38: ='Dual Model'!$D$57+'Dual Model'!$C$37 -> 90 | D38: =$C$38 -> 90 | E38: 90 | F38: ='Dual Model'!$D$58+'Dual Model'!$C$37 -> 70 | G38: =$F$38 -> 70 | H38: 70 | I38: 70
B39: Large-Jet | C39: =$C$38 -> 90 | D39: 90 | E39: 90 | F39: =$F$38 -> 70 | G39: 70 | H39: 70 | I39: 70
B40: Large-757 | C40: =$C$38 -> 90 | D40: 90 | E40: 90 | F40: =$F$38 -> 70 | G40: 70 | H40: 70 | I40: 70
B41: Heavy | C41: ='Dual Model'!$D$59+'Dual Model'!$C$37 -> 130 | D41: =$C$41 -> 130 | E41: =$C$41 -> 130 | F41: =$C$41 -> 130 | G41: =$C$41 -> 130 | H41: =$C$41 -> 130 | I41: ='Dual Model'!$D$60+'Dual Model'!$C$37 -> 100
B43: IMC Required Separation for departures following an aircraft from each class | F43: Time in seconds
C44: Small - S | D44: Small - T | E44: Small + | F44: Large-TP | G44: Large-Jet | H44: Large-757 | I44: Heavy
B45: Small - S | C45: ='Dual Model'!$E$54+'Dual Model'!$C$37 -> 70 | D45: =$C$45 -> 70 | E45: 70 | F45: ='Dual Model'!$E$55+'Dual Model'!$C$37 -> 70 | G45: =$F$45 -> 70 | H45: 70 | I45: ='Dual Model'!$E$56+'Dual Model'!$C$37 -> 70
B46: Small - T | C46: =$C$45 -> 70 | D46: 70 | E46: 70 | F46: =$F$45 -> 70 | G46: 70 | H46: 70 | I46: =$I$45 -> 70
B47: Small + | C47: =$C$45 -> 70 | D47: 70 | E47: 70 | F47: =$F$45 -> 70 | G47: 70 | H47: 70 | I47: =$I$45 -> 70
B48: Large-TP | C48: ='Dual Model'!$E$57+'Dual Model'!$C$37 -> 90 | D48: =$C$48 -> 90 | E48: 90 | F48: ='Dual Model'!$E$58+'Dual Model'!$C$37 -> 70 | G48: =$F$48 -> 70 | H48: 70 | I48: 70
B49: Large-Jet | C49: =$C$48 -> 90 | D49: 90 | E49: 90 | F49: =$F$48 -> 70 | G49: 70 | H49: 70 | I49: 70
B50: Large-757 | C50: =$C$48 -> 90 | D50: 90 | E50: 90 | F50: =$F$48 -> 70 | G50: 70 | H50: 70 | I50: 70
B51: Heavy | C51: ='Dual Model'!$E$59+'Dual Model'!$C$37 -> 130 | D51: =$C$51 -> 130 | E51: =$C$51 -> 130 | F51: =$C$51 -> 130 | G51: =$C$51 -> 130 | H51: =$C$51 -> 130 | I51: ='Dual Model'!$E$60+'Dual Model'!$C$37 -> 100
B54: VMC Required Separation for arrivals following an aircraft from each class | F54: Time in Seconds
C55: Small - S | D55: Small - T | E55: Small + | F55: Large-TP | G55: Large-Jet | H55: Large-757 | I55: Heavy
B56: Small - S | C56: =MAXA(3600*C15/('Dual Model'!$C$28)+'Dual Model'!$H$14*'Dual Model'!$H$12+MAXA(0,'Dual Model'!$C$14*3600*(1/'Dual Model'!$C$28-1/'Dual Model'!$C$28)),'Dual Model'!$C$25+'Dual Model'!$H$14*SQRT('Dual Model'!$H$12^2+'Dual Model'!$H$13^2))+'Dual Model'!$C$36 -> 105.61 | D56: =MAXA(3600*D15/('Dual Model'!$D$28)+'Dual Model'!$H$14*'Dual Model'!$H$12+MAXA(0,'Dual Model'!$C$14*3600*(1/'Dual Model'!$D$28-1/'Dual Model'!$C$28)),'Dual Model'!$C$25+'Dual Model'!$H$14*SQRT('Dual Model'!$H$12^2+'Dual Model'!$H$13^2))+'Dual Model'!$C$36 -> 98.01 | E56: =MAXA(3600*E15/('Dual Model'!$E$28)+'Dual Model'!$H$14*'Dual Model'!$H$12+MAXA(0,'Dual Model'!$C$14*3600*(1/'Dual Model'!$E$28-1/'Dual Model'!$C$28)),'Dual Model'!$C$25+'Dual Model'!$H$14*SQRT('Dual Model'!$H$12^2+'Dual Model'!$H$13^2))+'Dual Model'!$C$36 -> 86.61 | F56: =MAXA(3600*F15/('Dual Model'!$F$28)+'Dual Model'!$H$14*'Dual Model'!$H$12+MAXA(0,'Dual Model'!$C$14*3600*(1/'Dual Model'!$F$28-1/'Dual Model'!$C$28)),'Dual Model'!$C$25+'Dual Model'!$H$14*SQRT('Dual Model'!$H$12^2+'Dual Model'!$H$13^2))+'Dual Model'!$C$36 -> 82.22538462 | G56: =MAXA(3600*G15/('Dual Model'!$G$28)+'Dual Model'!$H$14*'Dual Model'!$H$12+MAXA(0,'Dual Model'!$C$14*3600*(1/'Dual Model'!$G$28-1/'Dual Model'!$C$28)),'Dual Model'!$C$25+'Dual Model'!$H$14*SQRT('Dual Model'!$H$12^2+'Dual Model'!$H$13^2))+'Dual Model'!$C$36 -> 80.27666667 | H56: =MAXA(3600*H15/('Dual Model'!$H$28)+'Dual Model'!$H$14*'Dual Model'!$H$12+MAXA(0,'Dual Model'!$C$14*3600*(1/'Dual Model'!$H$28-1/'Dual Model'!$C$28)),'Dual Model'!$C$25+'Dual Model'!$H$14*SQRT('Dual Model'!$H$12^2+'Dual Model'!$H$13^2))+'Dual Model'!$C$36 -> 78.46714286 | I56: =MAXA(3600*I15/('Dual Model'!$I$28)+'Dual Model'!$H$14*'Dual Model'!$H$12+MAXA(0,'Dual Model'!$C$14*3600*(1/'Dual Model'!$I$28-1/'Dual Model'!$C$28)),'Dual Model'!$C$25+'Dual Model'!$H$14*SQRT('Dual Model'!$H$12^2+'Dual Model'!$H$13^2))+'Dual Model'!$C$36 -> 75.21
B57: Small - T | C57: =MAXA(3600*C16/('Dual Model'!$C$28)+'Dual Model'!$H$14*'Dual Model'!$H$12+MAXA(0,'Dual Model'!$C$14*3600*(1/'Dual Model'!$C$28-1/'Dual Model'!$D$28)),'Dual Model'!$D$25+'Dual Model'!$H$14*SQRT('Dual Model'!$H$12^2+'Dual Model'!$H$13^2))+'Dual Model'!$C$36 -> 133.61 | D57: =MAXA(3600*D16/('Dual Model'!$D$28)+'Dual Model'!$H$14*'Dual Model'!$H$12+MAXA(0,'Dual Model'!$C$14*3600*(1/'Dual Model'!$D$28-1/'Dual Model'!$D$28)),'Dual Model'!$D$25+'Dual Model'!$H$14*SQRT('Dual Model'!$H$12^2+'Dual Model'!$H$13^2))+'Dual Model'!$C$36 -> 98.01 | E57: =MAXA(3600*E16/('Dual Model'!$E$28)+'Dual Model'!$H$14*'Dual Model'!$H$12+MAXA(0,'Dual Model'!$C$14*3600*(1/'Dual Model'!$E$28-1/'Dual Model'!$D$28)),'Dual Model'!$D$25+'Dual Model'!$H$14*SQRT('Dual Model'!$H$12^2+'Dual Model'!$H$13^2))+'Dual Model'!$C$36 -> 86.61 | F57: =MAXA(3600*F16/('Dual Model'!$F$28)+'Dual Model'!$H$14*'Dual Model'!$H$12+MAXA(0,'Dual Model'!$C$14*3600*(1/'Dual Model'!$F$28-1/'Dual Model'!$D$28)),'Dual Model'!$D$25+'Dual Model'!$H$14*SQRT('Dual Model'!$H$12^2+'Dual Model'!$H$13^2))+'Dual Model'!$C$36 -> 82.22538462 | G57: =MAXA(3600*G16/('Dual Model'!$G$28)+'Dual Model'!$H$14*'Dual Model'!$H$12+MAXA(0,'Dual Model'!$C$14*3600*(1/'Dual Model'!$G$28-1/'Dual Model'!$D$28)),'Dual Model'!$D$25+'Dual Model'!$H$14*SQRT('Dual Model'!$H$12^2+'Dual Model'!$H$13^2))+'Dual Model'!$C$36 -> 80.27666667 | H57: =MAXA(3600*H16/('Dual Model'!$H$28)+'Dual Model'!$H$14*'Dual Model'!$H$12+MAXA(0,'Dual Model'!$C$14*3600*(1/'Dual Model'!$H$28-1/'Dual Model'!$D$28)),'Dual Model'!$D$25+'Dual Model'!$H$14*SQRT('Dual Model'!$H$12^2+'Dual Model'!$H$13^2))+'Dual Model'!$C$36 -> 78.46714286 | I57: =MAXA(3600*I16/('Dual Model'!$I$28)+'Dual Model'!$H$14*'Dual Model'!$H$12+MAXA(0,'Dual Model'!$C$14*3600*(1/'Dual Model'!$I$28-1/'Dual Model'!$D$28)),'Dual Model'!$D$25+'Dual Model'!$H$14*SQRT('Dual Model'!$H$12^2+'Dual Model'!$H$13^2))+'Dual Model'!$C$36 -> 75.21
B58: Small + | C58: =MAXA(3600*C17/('Dual Model'!$C$28)+'Dual Model'!$H$14*'Dual Model'!$H$12+MAXA(0,'Dual Model'!$C$14*3600*(1/'Dual Model'!$C$28-1/'Dual Model'!$E$28)),'Dual Model'!$E$25+'Dual Model'!$H$14*SQRT('Dual Model'!$H$12^2+'Dual Model'!$H$13^2))+'Dual Model'!$C$36 -> 175.61 | D58: =MAXA(3600*D17/('Dual Model'!$D$28)+'Dual Model'!$H$14*'Dual Model'!$H$12+MAXA(0,'Dual Model'!$C$14*3600*(1/'Dual Model'!$D$28-1/'Dual Model'!$E$28)),'Dual Model'!$E$25+'Dual Model'!$H$14*SQRT('Dual Model'!$H$12^2+'Dual Model'!$H$13^2))+'Dual Model'!$C$36 -> 140.01 | E58: =MAXA(3600*E17/('Dual Model'!$E$28)+'Dual Model'!$H$14*'Dual Model'!$H$12+MAXA(0,'Dual Model'!$C$14*3600*(1/'Dual Model'!$E$28-1/'Dual Model'!$E$28)),'Dual Model'!$E$25+'Dual Model'!$H$14*SQRT('Dual Model'!$H$12^2+'Dual Model'!$H$13^2))+'Dual Model'!$C$36 -> 86.61 | F58: =MAXA(3600*F17/('Dual Model'!$F$28)+'Dual Model'!$H$14*'Dual Model'!$H$12+MAXA(0,'Dual Model'!$C$14*3600*(1/'Dual Model'!$F$28-1/'Dual Model'!$E$28)),'Dual Model'!$E$25+'Dual Model'!$H$14*SQRT('Dual Model'!$H$12^2+'Dual Model'!$H$13^2))+'Dual Model'!$C$36 -> 82.22538462 | G58: =MAXA(3600*G17/('Dual Model'!$G$28)+'Dual Model'!$H$14*'Dual Model'!$H$12+MAXA(0,'Dual Model'!$C$14*3600*(1/'Dual Model'!$G$28-1/'Dual Model'!$E$28)),'Dual Model'!$E$25+'Dual Model'!$H$14*SQRT('Dual Model'!$H$12^2+'Dual Model'!$H$13^2))+'Dual Model'!$C$36 -> 80.27666667 | H58: =MAXA(3600*H17/('Dual Model'!$H$28)+'Dual Model'!$H$14*'Dual Model'!$H$12+MAXA(0,'Dual Model'!$C$14*3600*(1/'Dual Model'!$H$28-1/'Dual Model'!$E$28)),'Dual Model'!$E$25+'Dual Model'!$H$14*SQRT('Dual Model'!$H$12^2+'Dual Model'!$H$13^2))+'Dual Model'!$C$36 -> 78.46714286 | I58: =MAXA(3600*I17/('Dual Model'!$I$28)+'Dual Model'!$H$14*'Dual Model'!$H$12+MAXA(0,'Dual Model'!$C$14*3600*(1/'Dual Model'!$I$28-1/'Dual Model'!$E$28)),'Dual Model'!$E$25+'Dual Model'!$H$14*SQRT('Dual Model'!$H$12^2+'Dual Model'!$H$13^2))+'Dual Model'!$C$36 -> 75.21
B59: Large-TP | C59: =MAXA(3600*C18/('Dual Model'!$C$28)+'Dual Model'!$H$14*'Dual Model'!$H$12+MAXA(0,'Dual Model'!$C$14*3600*(1/'Dual Model'!$C$28-1/'Dual Model'!$F$28)),'Dual Model'!$F$25+'Dual Model'!$H$14*SQRT('Dual Model'!$H$12^2+'Dual Model'!$H$13^2))+'Dual Model'!$C$36 -> 223.7638462 | D59: =MAXA(3600*D18/('Dual Model'!$D$28)+'Dual Model'!$H$14*'Dual Model'!$H$12+MAXA(0,'Dual Model'!$C$14*3600*(1/'Dual Model'!$D$28-1/'Dual Model'!$F$28)),'Dual Model'!$F$25+'Dual Model'!$H$14*SQRT('Dual Model'!$H$12^2+'Dual Model'!$H$13^2))+'Dual Model'!$C$36 -> 184.9638462 | E59: =MAXA(3600*E18/('Dual Model'!$E$28)+'Dual Model'!$H$14*'Dual Model'!$H$12+MAXA(0,'Dual Model'!$C$14*3600*(1/'Dual Model'!$E$28-1/'Dual Model'!$F$28)),'Dual Model'!$F$25+'Dual Model'!$H$14*SQRT('Dual Model'!$H$12^2+'Dual Model'!$H$13^2))+'Dual Model'!$C$36 -> 126.7638462 | F59: =MAXA(3600*F18/('Dual Model'!$F$28)+'Dual Model'!$H$14*'Dual Model'!$H$12+MAXA(0,'Dual Model'!$C$14*3600*(1/'Dual Model'!$F$28-1/'Dual Model'!$F$28)),'Dual Model'!$F$25+'Dual Model'!$H$14*SQRT('Dual Model'!$H$12^2+'Dual Model'!$H$13^2))+'Dual Model'!$C$36 -> 82.22538462 | G59: =MAXA(3600*G18/('Dual Model'!$G$28)+'Dual Model'!$H$14*'Dual Model'!$H$12+MAXA(0,'Dual Model'!$C$14*3600*(1/'Dual Model'!$G$28-1/'Dual Model'!$F$28)),'Dual Model'!$F$25+'Dual Model'!$H$14*SQRT('Dual Model'!$H$12^2+'Dual Model'!$H$13^2))+'Dual Model'!$C$36 -> 80.27666667 | H59: =MAXA(3600*H18/('Dual Model'!$H$28)+'Dual Model'!$H$14*'Dual Model'!$H$12+MAXA(0,'Dual Model'!$C$14*3600*(1/'Dual Model'!$H$28-1/'Dual Model'!$F$28)),'Dual Model'!$F$25+'Dual Model'!$H$14*SQRT('Dual Model'!$H$12^2+'Dual Model'!$H$13^2))+'Dual Model'!$C$36 -> 78.46714286 | I59: =MAXA(3600*I18/('Dual Model'!$I$28)+'Dual Model'!$H$14*'Dual Model'!$H$12+MAXA(0,'Dual Model'!$C$14*3600*(1/'Dual Model'!$I$28-1/'Dual Model'!$F$28)),'Dual Model'!$F$25+'Dual Model'!$H$14*SQRT('Dual Model'!$H$12^2+'Dual Model'!$H$13^2))+'Dual Model'!$C$36 -> 76.21168051
B60: Large-Jet | C60: =MAXA(3600*C19/('Dual Model'!$C$28)+'Dual Model'!$H$14*'Dual Model'!$H$12+MAXA(0,'Dual Model'!$C$14*3600*(1/'Dual Model'!$C$28-1/'Dual Model'!$G$28)),'Dual Model'!$G$25+'Dual Model'!$H$14*SQRT('Dual Model'!$H$12^2+'Dual Model'!$H$13^2))+'Dual Model'!$C$36 -> 230.9433333 | D60: =MAXA(3600*D19/('Dual Model'!$D$28)+'Dual Model'!$H$14*'Dual Model'!$H$12+MAXA(0,'Dual Model'!$C$14*3600*(1/'Dual Model'!$D$28-1/'Dual Model'!$G$28)),'Dual Model'!$G$25+'Dual Model'!$H$14*SQRT('Dual Model'!$H$12^2+'Dual Model'!$H$13^2))+'Dual Model'!$C$36 -> 192.1433333 | E60: =MAXA(3600*E19/('Dual Model'!$E$28)+'Dual Model'!$H$14*'Dual Model'!$H$12+MAXA(0,'Dual Model'!$C$14*3600*(1/'Dual Model'!$E$28-1/'Dual Model'!$G$28)),'Dual Model'!$G$25+'Dual Model'!$H$14*SQRT('Dual Model'!$H$12^2+'Dual Model'!$H$13^2))+'Dual Model'!$C$36 -> 133.9433333 | F60: =MAXA(3600*F19/('Dual Model'!$F$28)+'Dual Model'!$H$14*'Dual Model'!$H$12+MAXA(0,'Dual Model'!$C$14*3600*(1/'Dual Model'!$F$28-1/'Dual Model'!$G$28)),'Dual Model'!$G$25+'Dual Model'!$H$14*SQRT('Dual Model'!$H$12^2+'Dual Model'!$H$13^2))+'Dual Model'!$C$36 -> 89.40487179 | G60: =MAXA(3600*G19/('Dual Model'!$G$28)+'Dual Model'!$H$14*'Dual Model'!$H$12+MAXA(0,'Dual Model'!$C$14*3600*(1/'Dual Model'!$G$28-1/'Dual Model'!$G$28)),'Dual Model'!$G$25+'Dual Model'!$H$14*SQRT('Dual Model'!$H$12^2+'Dual Model'!$H$13^2))+'Dual Model'!$C$36 -> 80.27666667 | H60: =MAXA(3600*H19/('Dual Model'!$H$28)+'Dual Model'!$H$14*'Dual Model'!$H$12+MAXA(0,'Dual Model'!$C$14*3600*(1/'Dual Model'!$H$28-1/'Dual Model'!$G$28)),'Dual Model'!$G$25+'Dual Model'!$H$14*SQRT('Dual Model'!$H$12^2+'Dual Model'!$H$13^2))+'Dual Model'!$C$36 -> 78.46714286 | I60: =MAXA(3600*I19/('Dual Model'!$I$28)+'Dual Model'!$H$14*'Dual Model'!$H$12+MAXA(0,'Dual Model'!$C$14*3600*(1/'Dual Model'!$I$28-1/'Dual Model'!$G$28)),'Dual Model'!$G$25+'Dual Model'!$H$14*SQRT('Dual Model'!$H$12^2+'Dual Model'!$H$13^2))+'Dual Model'!$C$36 -> 77.21168051
B61: Large-757 | C61: =MAXA(3600*C20/('Dual Model'!$C$28)+'Dual Model'!$H$14*'Dual Model'!$H$12+MAXA(0,'Dual Model'!$C$14*3600*(1/'Dual Model'!$C$28-1/'Dual Model'!$H$28)),'Dual Model'!$H$25+'Dual Model'!$H$14*SQRT('Dual Model'!$H$12^2+'Dual Model'!$H$13^2))+'Dual Model'!$C$36 -> 277.61 | D61: =MAXA(3600*D20/('Dual Model'!$D$28)+'Dual Model'!$H$14*'Dual Model'!$H$12+MAXA(0,'Dual Model'!$C$14*3600*(1/'Dual Model'!$D$28-1/'Dual Model'!$H$28)),'Dual Model'!$H$25+'Dual Model'!$H$14*SQRT('Dual Model'!$H$12^2+'Dual Model'!$H$13^2))+'Dual Model'!$C$36 -> 234.81 | E61: =MAXA(3600*E20/('Dual Model'!$E$28)+'Dual Model'!$H$14*'Dual Model'!$H$12+MAXA(0,'Dual Model'!$C$14*3600*(1/'Dual Model'!$E$28-1/'Dual Model'!$H$28)),'Dual Model'!$H$25+'Dual Model'!$H$14*SQRT('Dual Model'!$H$12^2+'Dual Model'!$H$13^2))+'Dual Model'!$C$36 -> 170.61 | F61: =MAXA(3600*F20/('Dual Model'!$F$28)+'Dual Model'!$H$14*'Dual Model'!$H$12+MAXA(0,'Dual Model'!$C$14*3600*(1/'Dual Model'!$F$28-1/'Dual Model'!$H$28)),'Dual Model'!$H$25+'Dual Model'!$H$14*SQRT('Dual Model'!$H$12^2+'Dual Model'!$H$13^2))+'Dual Model'!$C$36 -> 118.2253846 | G61: =MAXA(3600*G20/('Dual Model'!$G$28)+'Dual Model'!$H$14*'Dual Model'!$H$12+MAXA(0,'Dual Model'!$C$14*3600*(1/'Dual Model'!$G$28-1/'Dual Model'!$H$28)),'Dual Model'!$H$25+'Dual Model'!$H$14*SQRT('Dual Model'!$H$12^2+'Dual Model'!$H$13^2))+'Dual Model'!$C$36 -> 108.2766667 | H61: =MAXA(3600*H20/('Dual Model'!$H$28)+'Dual Model'!$H$14*'Dual Model'!$H$12+MAXA(0,'Dual Model'!$C$14*3600*(1/'Dual Model'!$H$28-1/'Dual Model'!$H$28)),'Dual Model'!$H$25+'Dual Model'!$H$14*SQRT('Dual Model'!$H$12^2+'Dual Model'!$H$13^2))+'Dual Model'!$C$36 -> 99.03857143 | I61: =MAXA(3600*I20/('Dual Model'!$I$28)+'Dual Model'!$H$14*'Dual Model'!$H$12+MAXA(0,'Dual Model'!$C$14*3600*(1/'Dual Model'!$I$28-1/'Dual Model'!$H$28)),'Dual Model'!$H$25+'Dual Model'!$H$14*SQRT('Dual Model'!$H$12^2+'Dual Model'!$H$13^2))+'Dual Model'!$C$36 -> 94.41
B62: Heavy | C62: =MAXA(3600*C21/('Dual Model'!$C$28)+'Dual Model'!$H$14*'Dual Model'!$H$12+MAXA(0,'Dual Model'!$C$14*3600*(1/'Dual Model'!$C$28-1/'Dual Model'!$I$28)),'Dual Model'!$I$25+'Dual Model'!$H$14*SQRT('Dual Model'!$H$12^2+'Dual Model'!$H$13^2))+'Dual Model'!$C$36 -> 325.61 | D62: =MAXA(3600*D21/('Dual Model'!$D$28)+'Dual Model'!$H$14*'Dual Model'!$H$12+MAXA(0,'Dual Model'!$C$14*3600*(1/'Dual Model'!$D$28-1/'Dual Model'!$I$28)),'Dual Model'!$I$25+'Dual Model'!$H$14*SQRT('Dual Model'!$H$12^2+'Dual Model'!$H$13^2))+'Dual Model'!$C$36 -> 279.21 | E62: =MAXA(3600*E21/('Dual Model'!$E$28)+'Dual Model'!$H$14*'Dual Model'!$H$12+MAXA(0,'Dual Model'!$C$14*3600*(1/'Dual Model'!$E$28-1/'Dual Model'!$I$28)),'Dual Model'!$I$25+'Dual Model'!$H$14*SQRT('Dual Model'!$H$12^2+'Dual Model'!$H$13^2))+'Dual Model'!$C$36 -> 179.61 | F62: =MAXA(3600*F21/('Dual Model'!$F$28)+'Dual Model'!$H$14*'Dual Model'!$H$12+MAXA(0,'Dual Model'!$C$14*3600*(1/'Dual Model'!$F$28-1/'Dual Model'!$I$28)),'Dual Model'!$I$25+'Dual Model'!$H$14*SQRT('Dual Model'!$H$12^2+'Dual Model'!$H$13^2))+'Dual Model'!$C$36 -> 155.1484615 | G62: =MAXA(3600*G21/('Dual Model'!$G$28)+'Dual Model'!$H$14*'Dual Model'!$H$12+MAXA(0,'Dual Model'!$C$14*3600*(1/'Dual Model'!$G$28-1/'Dual Model'!$I$28)),'Dual Model'!$I$25+'Dual Model'!$H$14*SQRT('Dual Model'!$H$12^2+'Dual Model'!$H$13^2))+'Dual Model'!$C$36 -> 144.2766667 | H62: =MAXA(3600*H21/('Dual Model'!$H$28)+'Dual Model'!$H$14*'Dual Model'!$H$12+MAXA(0,'Dual Model'!$C$14*3600*(1/'Dual Model'!$H$28-1/'Dual Model'!$I$28)),'Dual Model'!$I$25+'Dual Model'!$H$14*SQRT('Dual Model'!$H$12^2+'Dual Model'!$H$13^2))+'Dual Model'!$C$36 -> 134.1814286 | I62: =MAXA(3600*I21/('Dual Model'!$I$28)+'Dual Model'!$H$14*'Dual Model'!$H$12+MAXA(0,'Dual Model'!$C$14*3600*(1/'Dual Model'!$I$28-1/'Dual Model'!$I$28)),'Dual Model'!$I$25+'Dual Model'!$H$14*SQRT('Dual Model'!$H$12^2+'Dual Model'!$H$13^2))+'Dual Model'!$C$36 -> 94.41
B64: IMC Required Separation for arrivals following an aircraft from each class | F64: Time in Seconds
C65: Small - S | D65: Small - T | E65: Small + | F65: Large-TP | G65: Large-Jet | H65: Large-757 | I65: Heavy
B66: Small - S | C66: =MAXA(3600*C25/('Dual Model'!$C$28)+'Dual Model'!$H$14*'Dual Model'!$H$12+MAXA(0,'Dual Model'!$C$14*3600*(1/'Dual Model'!$C$28-1/'Dual Model'!$C$28)),'Dual Model'!$C$25+'Dual Model'!$H$14*SQRT('Dual Model'!$H$12^2+'Dual Model'!$H$13^2))+'Dual Model'!$C$36 -> 149.61 | D66: =MAXA(3600*D25/('Dual Model'!$D$28)+'Dual Model'!$H$14*'Dual Model'!$H$12+MAXA(0,'Dual Model'!$C$14*3600*(1/'Dual Model'!$D$28-1/'Dual Model'!$C$28)),'Dual Model'!$C$25+'Dual Model'!$H$14*SQRT('Dual Model'!$H$12^2+'Dual Model'!$H$13^2))+'Dual Model'!$C$36 -> 137.61 | E66: =MAXA(3600*E25/('Dual Model'!$E$28)+'Dual Model'!$H$14*'Dual Model'!$H$12+MAXA(0,'Dual Model'!$C$14*3600*(1/'Dual Model'!$E$28-1/'Dual Model'!$C$28)),'Dual Model'!$C$25+'Dual Model'!$H$14*SQRT('Dual Model'!$H$12^2+'Dual Model'!$H$13^2))+'Dual Model'!$C$36 -> 119.61 | F66: =MAXA(3600*F25/('Dual Model'!$F$28)+'Dual Model'!$H$14*'Dual Model'!$H$12+MAXA(0,'Dual Model'!$C$14*3600*(1/'Dual Model'!$F$28-1/'Dual Model'!$C$28)),'Dual Model'!$C$25+'Dual Model'!$H$14*SQRT('Dual Model'!$H$12^2+'Dual Model'!$H$13^2))+'Dual Model'!$C$36 -> 112.6869231 | G66: =MAXA(3600*G25/('Dual Model'!$G$28)+'Dual Model'!$H$14*'Dual Model'!$H$12+MAXA(0,'Dual Model'!$C$14*3600*(1/'Dual Model'!$G$28-1/'Dual Model'!$C$28)),'Dual Model'!$C$25+'Dual Model'!$H$14*SQRT('Dual Model'!$H$12^2+'Dual Model'!$H$13^2))+'Dual Model'!$C$36 -> 109.61 | H66: =MAXA(3600*H25/('Dual Model'!$H$28)+'Dual Model'!$H$14*'Dual Model'!$H$12+MAXA(0,'Dual Model'!$C$14*3600*(1/'Dual Model'!$H$28-1/'Dual Model'!$C$28)),'Dual Model'!$C$25+'Dual Model'!$H$14*SQRT('Dual Model'!$H$12^2+'Dual Model'!$H$13^2))+'Dual Model'!$C$36 -> 106.7528571 | I66: =MAXA(3600*I25/('Dual Model'!$I$28)+'Dual Model'!$H$14*'Dual Model'!$H$12+MAXA(0,'Dual Model'!$C$14*3600*(1/'Dual Model'!$I$28-1/'Dual Model'!$C$28)),'Dual Model'!$C$25+'Dual Model'!$H$14*SQRT('Dual Model'!$H$12^2+'Dual Model'!$H$13^2))+'Dual Model'!$C$36 -> 101.61
B67: Small - T | C67: =MAXA(3600*C26/('Dual Model'!$C$28)+'Dual Model'!$H$14*'Dual Model'!$H$12+MAXA(0,'Dual Model'!$C$14*3600*(1/'Dual Model'!$C$28-1/'Dual Model'!$D$28)),'Dual Model'!$D$25+'Dual Model'!$H$14*SQRT('Dual Model'!$H$12^2+'Dual Model'!$H$13^2))+'Dual Model'!$C$36 -> 177.61 | D67: =MAXA(3600*D26/('Dual Model'!$D$28)+'Dual Model'!$H$14*'Dual Model'!$H$12+MAXA(0,'Dual Model'!$C$14*3600*(1/'Dual Model'!$D$28-1/'Dual Model'!$D$28)),'Dual Model'!$D$25+'Dual Model'!$H$14*SQRT('Dual Model'!$H$12^2+'Dual Model'!$H$13^2))+'Dual Model'!$C$36 -> 137.61 | E67: =MAXA(3600*E26/('Dual Model'!$E$28)+'Dual Model'!$H$14*'Dual Model'!$H$12+MAXA(0,'Dual Model'!$C$14*3600*(1/'Dual Model'!$E$28-1/'Dual Model'!$D$28)),'Dual Model'!$D$25+'Dual Model'!$H$14*SQRT('Dual Model'!$H$12^2+'Dual Model'!$H$13^2))+'Dual Model'!$C$36 -> 119.61 | F67: =MAXA(3600*F26/('Dual Model'!$F$28)+'Dual Model'!$H$14*'Dual Model'!$H$12+MAXA(0,'Dual Model'!$C$14*3600*(1/'Dual Model'!$F$28-1/'Dual Model'!$D$28)),'Dual Model'!$D$25+'Dual Model'!$H$14*SQRT('Dual Model'!$H$12^2+'Dual Model'!$H$13^2))+'Dual Model'!$C$36 -> 112.6869231 | G67: =MAXA(3600*G26/('Dual Model'!$G$28)+'Dual Model'!$H$14*'Dual Model'!$H$12+MAXA(0,'Dual Model'!$C$14*3600*(1/'Dual Model'!$G$28-1/'Dual Model'!$D$28)),'Dual Model'!$D$25+'Dual Model'!$H$14*SQRT('Dual Model'!$H$12^2+'Dual Model'!$H$13^2))+'Dual Model'!$C$36 -> 109.61 | H67: =MAXA(3600*H26/('Dual Model'!$H$28)+'Dual Model'!$H$14*'Dual Model'!$H$12+MAXA(0,'Dual Model'!$C$14*3600*(1/'Dual Model'!$H$28-1/'Dual Model'!$D$28)),'Dual Model'!$D$25+'Dual Model'!$H$14*SQRT('Dual Model'!$H$12^2+'Dual Model'!$H$13^2))+'Dual Model'!$C$36 -> 106.7528571 | I67: =MAXA(3600*I26/('Dual Model'!$I$28)+'Dual Model'!$H$14*'Dual Model'!$H$12+MAXA(0,'Dual Model'!$C$14*3600*(1/'Dual Model'!$I$28-1/'Dual Model'!$D$28)),'Dual Model'!$D$25+'Dual Model'!$H$14*SQRT('Dual Model'!$H$12^2+'Dual Model'!$H$13^2))+'Dual Model'!$C$36 -> 101.61
B68: Small + | C68: =MAXA(3600*C27/('Dual Model'!$C$28)+'Dual Model'!$H$14*'Dual Model'!$H$12+MAXA(0,'Dual Model'!$C$14*3600*(1/'Dual Model'!$C$28-1/'Dual Model'!$E$28)),'Dual Model'!$E$25+'Dual Model'!$H$14*SQRT('Dual Model'!$H$12^2+'Dual Model'!$H$13^2))+'Dual Model'!$C$36 -> 219.61 | D68: =MAXA(3600*D27/('Dual Model'!$D$28)+'Dual Model'!$H$14*'Dual Model'!$H$12+MAXA(0,'Dual Model'!$C$14*3600*(1/'Dual Model'!$D$28-1/'Dual Model'!$E$28)),'Dual Model'!$E$25+'Dual Model'!$H$14*SQRT('Dual Model'!$H$12^2+'Dual Model'!$H$13^2))+'Dual Model'!$C$36 -> 179.61 | E68: =MAXA(3600*E27/('Dual Model'!$E$28)+'Dual Model'!$H$14*'Dual Model'!$H$12+MAXA(0,'Dual Model'!$C$14*3600*(1/'Dual Model'!$E$28-1/'Dual Model'!$E$28)),'Dual Model'!$E$25+'Dual Model'!$H$14*SQRT('Dual Model'!$H$12^2+'Dual Model'!$H$13^2))+'Dual Model'!$C$36 -> 119.61 | F68: =MAXA(3600*F27/('Dual Model'!$F$28)+'Dual Model'!$H$14*'Dual Model'!$H$12+MAXA(0,'Dual Model'!$C$14*3600*(1/'Dual Model'!$F$28-1/'Dual Model'!$E$28)),'Dual Model'!$E$25+'Dual Model'!$H$14*SQRT('Dual Model'!$H$12^2+'Dual Model'!$H$13^2))+'Dual Model'!$C$36 -> 112.6869231 | G68: =MAXA(3600*G27/('Dual Model'!$G$28)+'Dual Model'!$H$14*'Dual Model'!$H$12+MAXA(0,'Dual Model'!$C$14*3600*(1/'Dual Model'!$G$28-1/'Dual Model'!$E$28)),'Dual Model'!$E$25+'Dual Model'!$H$14*SQRT('Dual Model'!$H$12^2+'Dual Model'!$H$13^2))+'Dual Model'!$C$36 -> 109.61 | H68: =MAXA(3600*H27/('Dual Model'!$H$28)+'Dual Model'!$H$14*'Dual Model'!$H$12+MAXA(0,'Dual Model'!$C$14*3600*(1/'Dual Model'!$H$28-1/'Dual Model'!$E$28)),'Dual Model'!$E$25+'Dual Model'!$H$14*SQRT('Dual Model'!$H$12^2+'Dual Model'!$H$13^2))+'Dual Model'!$C$36 -> 106.7528571 | I68: =MAXA(3600*I27/('Dual Model'!$I$28)+'Dual Model'!$H$14*'Dual Model'!$H$12+MAXA(0,'Dual Model'!$C$14*3600*(1/'Dual Model'!$I$28-1/'Dual Model'!$E$28)),'Dual Model'!$E$25+'Dual Model'!$H$14*SQRT('Dual Model'!$H$12^2+'Dual Model'!$H$13^2))+'Dual Model'!$C$36 -> 101.61
B69: Large-TP | C69: =MAXA(3600*C28/('Dual Model'!$C$28)+'Dual Model'!$H$14*'Dual Model'!$H$12+MAXA(0,'Dual Model'!$C$14*3600*(1/'Dual Model'!$C$28-1/'Dual Model'!$F$28)),'Dual Model'!$F$25+'Dual Model'!$H$14*SQRT('Dual Model'!$H$12^2+'Dual Model'!$H$13^2))+'Dual Model'!$C$36 -> 275.7638462 | D69: =MAXA(3600*D28/('Dual Model'!$D$28)+'Dual Model'!$H$14*'Dual Model'!$H$12+MAXA(0,'Dual Model'!$C$14*3600*(1/'Dual Model'!$D$28-1/'Dual Model'!$F$28)),'Dual Model'!$F$25+'Dual Model'!$H$14*SQRT('Dual Model'!$H$12^2+'Dual Model'!$H$13^2))+'Dual Model'!$C$36 -> 231.7638462 | E69: =MAXA(3600*E28/('Dual Model'!$E$28)+'Dual Model'!$H$14*'Dual Model'!$H$12+MAXA(0,'Dual Model'!$C$14*3600*(1/'Dual Model'!$E$28-1/'Dual Model'!$F$28)),'Dual Model'!$F$25+'Dual Model'!$H$14*SQRT('Dual Model'!$H$12^2+'Dual Model'!$H$13^2))+'Dual Model'!$C$36 -> 165.7638462 | F69: =MAXA(3600*F28/('Dual Model'!$F$28)+'Dual Model'!$H$14*'Dual Model'!$H$12+MAXA(0,'Dual Model'!$C$14*3600*(1/'Dual Model'!$F$28-1/'Dual Model'!$F$28)),'Dual Model'!$F$25+'Dual Model'!$H$14*SQRT('Dual Model'!$H$12^2+'Dual Model'!$H$13^2))+'Dual Model'!$C$36 -> 112.6869231 | G69: =MAXA(3600*G28/('Dual Model'!$G$28)+'Dual Model'!$H$14*'Dual Model'!$H$12+MAXA(0,'Dual Model'!$C$14*3600*(1/'Dual Model'!$G$28-1/'Dual Model'!$F$28)),'Dual Model'!$F$25+'Dual Model'!$H$14*SQRT('Dual Model'!$H$12^2+'Dual Model'!$H$13^2))+'Dual Model'!$C$36 -> 109.61 | H69: =MAXA(3600*H28/('Dual Model'!$H$28)+'Dual Model'!$H$14*'Dual Model'!$H$12+MAXA(0,'Dual Model'!$C$14*3600*(1/'Dual Model'!$H$28-1/'Dual Model'!$F$28)),'Dual Model'!$F$25+'Dual Model'!$H$14*SQRT('Dual Model'!$H$12^2+'Dual Model'!$H$13^2))+'Dual Model'!$C$36 -> 106.7528571 | I69: =MAXA(3600*I28/('Dual Model'!$I$28)+'Dual Model'!$H$14*'Dual Model'!$H$12+MAXA(0,'Dual Model'!$C$14*3600*(1/'Dual Model'!$I$28-1/'Dual Model'!$F$28)),'Dual Model'!$F$25+'Dual Model'!$H$14*SQRT('Dual Model'!$H$12^2+'Dual Model'!$H$13^2))+'Dual Model'!$C$36 -> 101.61
B70: Large-Jet | C70: =MAXA(3600*C29/('Dual Model'!$C$28)+'Dual Model'!$H$14*'Dual Model'!$H$12+MAXA(0,'Dual Model'!$C$14*3600*(1/'Dual Model'!$C$28-1/'Dual Model'!$G$28)),'Dual Model'!$G$25+'Dual Model'!$H$14*SQRT('Dual Model'!$H$12^2+'Dual Model'!$H$13^2))+'Dual Model'!$C$36 -> 282.9433333 | D70: =MAXA(3600*D29/('Dual Model'!$D$28)+'Dual Model'!$H$14*'Dual Model'!$H$12+MAXA(0,'Dual Model'!$C$14*3600*(1/'Dual Model'!$D$28-1/'Dual Model'!$G$28)),'Dual Model'!$G$25+'Dual Model'!$H$14*SQRT('Dual Model'!$H$12^2+'Dual Model'!$H$13^2))+'Dual Model'!$C$36 -> 238.9433333 | E70: =MAXA(3600*E29/('Dual Model'!$E$28)+'Dual Model'!$H$14*'Dual Model'!$H$12+MAXA(0,'Dual Model'!$C$14*3600*(1/'Dual Model'!$E$28-1/'Dual Model'!$G$28)),'Dual Model'!$G$25+'Dual Model'!$H$14*SQRT('Dual Model'!$H$12^2+'Dual Model'!$H$13^2))+'Dual Model'!$C$36 -> 172.9433333 | F70: =MAXA(3600*F29/('Dual Model'!$F$28)+'Dual Model'!$H$14*'Dual Model'!$H$12+MAXA(0,'Dual Model'!$C$14*3600*(1/'Dual Model'!$F$28-1/'Dual Model'!$G$28)),'Dual Model'!$G$25+'Dual Model'!$H$14*SQRT('Dual Model'!$H$12^2+'Dual Model'!$H$13^2))+'Dual Model'!$C$36 -> 119.8664103 | G70: =MAXA(3600*G29/('Dual Model'!$G$28)+'Dual Model'!$H$14*'Dual Model'!$H$12+MAXA(0,'Dual Model'!$C$14*3600*(1/'Dual Model'!$G$28-1/'Dual Model'!$G$28)),'Dual Model'!$G$25+'Dual Model'!$H$14*SQRT('Dual Model'!$H$12^2+'Dual Model'!$H$13^2))+'Dual Model'!$C$36 -> 109.61 | H70: =MAXA(3600*H29/('Dual Model'!$H$28)+'Dual Model'!$H$14*'Dual Model'!$H$12+MAXA(0,'Dual Model'!$C$14*3600*(1/'Dual Model'!$H$28-1/'Dual Model'!$G$28)),'Dual Model'!$G$25+'Dual Model'!$H$14*SQRT('Dual Model'!$H$12^2+'Dual Model'!$H$13^2))+'Dual Model'!$C$36 -> 106.7528571 | I70: =MAXA(3600*I29/('Dual Model'!$I$28)+'Dual Model'!$H$14*'Dual Model'!$H$12+MAXA(0,'Dual Model'!$C$14*3600*(1/'Dual Model'!$I$28-1/'Dual Model'!$G$28)),'Dual Model'!$G$25+'Dual Model'!$H$14*SQRT('Dual Model'!$H$12^2+'Dual Model'!$H$13^2))+'Dual Model'!$C$36 -> 101.61
B71: Large-757 | C71: =MAXA(3600*C30/('Dual Model'!$C$28)+'Dual Model'!$H$14*'Dual Model'!$H$12+MAXA(0,'Dual Model'!$C$14*3600*(1/'Dual Model'!$C$28-1/'Dual Model'!$H$28)),'Dual Model'!$H$25+'Dual Model'!$H$14*SQRT('Dual Model'!$H$12^2+'Dual Model'!$H$13^2))+'Dual Model'!$C$36 -> 329.61 | D71: =MAXA(3600*D30/('Dual Model'!$D$28)+'Dual Model'!$H$14*'Dual Model'!$H$12+MAXA(0,'Dual Model'!$C$14*3600*(1/'Dual Model'!$D$28-1/'Dual Model'!$H$28)),'Dual Model'!$H$25+'Dual Model'!$H$14*SQRT('Dual Model'!$H$12^2+'Dual Model'!$H$13^2))+'Dual Model'!$C$36 -> 281.61 | E71: =MAXA(3600*E30/('Dual Model'!$E$28)+'Dual Model'!$H$14*'Dual Model'!$H$12+MAXA(0,'Dual Model'!$C$14*3600*(1/'Dual Model'!$E$28-1/'Dual Model'!$H$28)),'Dual Model'!$H$25+'Dual Model'!$H$14*SQRT('Dual Model'!$H$12^2+'Dual Model'!$H$13^2))+'Dual Model'!$C$36 -> 209.61 | F71: =MAXA(3600*F30/('Dual Model'!$F$28)+'Dual Model'!$H$14*'Dual Model'!$H$12+MAXA(0,'Dual Model'!$C$14*3600*(1/'Dual Model'!$F$28-1/'Dual Model'!$H$28)),'Dual Model'!$H$25+'Dual Model'!$H$14*SQRT('Dual Model'!$H$12^2+'Dual Model'!$H$13^2))+'Dual Model'!$C$36 -> 154.2253846 | G71: =MAXA(3600*G30/('Dual Model'!$G$28)+'Dual Model'!$H$14*'Dual Model'!$H$12+MAXA(0,'Dual Model'!$C$14*3600*(1/'Dual Model'!$G$28-1/'Dual Model'!$H$28)),'Dual Model'!$H$25+'Dual Model'!$H$14*SQRT('Dual Model'!$H$12^2+'Dual Model'!$H$13^2))+'Dual Model'!$C$36 -> 142.9433333 | H71: =MAXA(3600*H30/('Dual Model'!$H$28)+'Dual Model'!$H$14*'Dual Model'!$H$12+MAXA(0,'Dual Model'!$C$14*3600*(1/'Dual Model'!$H$28-1/'Dual Model'!$H$28)),'Dual Model'!$H$25+'Dual Model'!$H$14*SQRT('Dual Model'!$H$12^2+'Dual Model'!$H$13^2))+'Dual Model'!$C$36 -> 132.4671429 | I71: =MAXA(3600*I30/('Dual Model'!$I$28)+'Dual Model'!$H$14*'Dual Model'!$H$12+MAXA(0,'Dual Model'!$C$14*3600*(1/'Dual Model'!$I$28-1/'Dual Model'!$H$28)),'Dual Model'!$H$25+'Dual Model'!$H$14*SQRT('Dual Model'!$H$12^2+'Dual Model'!$H$13^2))+'Dual Model'!$C$36 -> 125.61
B72: Heavy | C72: =MAXA(3600*C31/('Dual Model'!$C$28)+'Dual Model'!$H$14*'Dual Model'!$H$12+MAXA(0,'Dual Model'!$C$14*3600*(1/'Dual Model'!$C$28-1/'Dual Model'!$I$28)),'Dual Model'!$I$25+'Dual Model'!$H$14*SQRT('Dual Model'!$H$12^2+'Dual Model'!$H$13^2))+'Dual Model'!$C$36 -> 381.61 | D72: =MAXA(3600*D31/('Dual Model'!$D$28)+'Dual Model'!$H$14*'Dual Model'!$H$12+MAXA(0,'Dual Model'!$C$14*3600*(1/'Dual Model'!$D$28-1/'Dual Model'!$I$28)),'Dual Model'!$I$25+'Dual Model'!$H$14*SQRT('Dual Model'!$H$12^2+'Dual Model'!$H$13^2))+'Dual Model'!$C$36 -> 329.61 | E72: =MAXA(3600*E31/('Dual Model'!$E$28)+'Dual Model'!$H$14*'Dual Model'!$H$12+MAXA(0,'Dual Model'!$C$14*3600*(1/'Dual Model'!$E$28-1/'Dual Model'!$I$28)),'Dual Model'!$I$25+'Dual Model'!$H$14*SQRT('Dual Model'!$H$12^2+'Dual Model'!$H$13^2))+'Dual Model'!$C$36 -> 221.61 | F72: =MAXA(3600*F31/('Dual Model'!$F$28)+'Dual Model'!$H$14*'Dual Model'!$H$12+MAXA(0,'Dual Model'!$C$14*3600*(1/'Dual Model'!$F$28-1/'Dual Model'!$I$28)),'Dual Model'!$I$25+'Dual Model'!$H$14*SQRT('Dual Model'!$H$12^2+'Dual Model'!$H$13^2))+'Dual Model'!$C$36 -> 193.9176923 | G72: =MAXA(3600*G31/('Dual Model'!$G$28)+'Dual Model'!$H$14*'Dual Model'!$H$12+MAXA(0,'Dual Model'!$C$14*3600*(1/'Dual Model'!$G$28-1/'Dual Model'!$I$28)),'Dual Model'!$I$25+'Dual Model'!$H$14*SQRT('Dual Model'!$H$12^2+'Dual Model'!$H$13^2))+'Dual Model'!$C$36 -> 181.61 | H72: =MAXA(3600*H31/('Dual Model'!$H$28)+'Dual Model'!$H$14*'Dual Model'!$H$12+MAXA(0,'Dual Model'!$C$14*3600*(1/'Dual Model'!$H$28-1/'Dual Model'!$I$28)),'Dual Model'!$I$25+'Dual Model'!$H$14*SQRT('Dual Model'!$H$12^2+'Dual Model'!$H$13^2))+'Dual Model'!$C$36 -> 170.1814286 | I72: =MAXA(3600*I31/('Dual Model'!$I$28)+'Dual Model'!$H$14*'Dual Model'!$H$12+MAXA(0,'Dual Model'!$C$14*3600*(1/'Dual Model'!$I$28-1/'Dual Model'!$I$28)),'Dual Model'!$I$25+'Dual Model'!$H$14*SQRT('Dual Model'!$H$12^2+'Dual Model'!$H$13^2))+'Dual Model'!$C$36 -> 125.61
B74: VMC Average time between Arrivals | F74: Time in Seconds
C75: Small - S | D75: Small - T | E75: Small + | F75: Large-TP | G75: Large-Jet | H75: Large-757 | I75: Heavy
B76: Small - S | C76: =C5*C56 -> 0 | D76: =D5*D56 -> 0 | E76: 0 | F76: 0 | G76: 0 | H76: 0 | I76: 0 | K76: Average Arrival separation | N76: =(K77+'Dual Work Tab (1)'!K77)/2 -> 96.55863865 | P76: =(3600-'Dual Model'!$I$30)/N76 -> 37.28304428
B77: Small - T | C77: =C6*C57 -> 0 | D77: 0.9801 | E77: 0 | F77: 2.466761538 | G77: 4.013833333 | H77: 0.3923357143 | I77: 0.37605 | K77: =SUM(C76:I82) -> 96.55863865 | L77: seconds | M77: =(3600-'Dual Model'!$I$30)/K77 -> 37.28304428
B78: Small + | C78: =C7*C58 -> 0 | D78: 0 | E78: 0 | F78: 0 | G78: 0 | H78: 0 | I78: 0
B79: Large-TP | C79: =C8*C59 -> 0 | D79: 5.548915385 | E79: 0 | F79: 7.400284615 | G79: 12.0415 | H79: 1.177007143 | I79: 1.143175208
B80: Large-Jet | C80: =C9*C60 -> 0 | D80: 9.607166667 | E80: 0 | F80: 13.41073077 | G80: 20.06916667 | H80: 1.961678571 | I80: 1.930292013
B81: Large-757 | C81: =C10*C61 -> 0 | D81: 1.17405 | E81: 0 | F81: 1.773380769 | G81: 2.706916667 | H81: 0.2475964286 | I81: 0.236025
B82: Heavy | C82: =C11*C62 -> 0 | D82: 1.39605 | E82: 0 | F82: 2.327226923 | G82: 3.606916667 | H82: 0.3354535714 | I82: 0.236025
B84: VMC Average time between Departures | F84: Time in Seconds
C85: Small - S | D85: Small - T | E85: Small + | F85: Large-TP | G85: Large-Jet | H85: Large-757 | I85: Heavy
B86: Small - S | C86: =C5*C35 -> 0 | D86: =D5*D35 -> 0 | E86: 0 | F86: 0 | G86: 0 | H86: 0 | I86: 0 | K86: Average Departure separation
B87: Small - T | C87: =C6*C36 -> 0 | D87: 0.45 | E87: 0 | F87: 1.65 | G87: 2.75 | H87: 0.275 | I87: 0.3 | K87: =SUM(C86:I92) -> 73.05 | L87: seconds | M87: =(3600-'Dual Model'!$I$30)/K87 -> 49.28131417
B88: Small + | C88: =C7*C37 -> 0 | D88: 0 | E88: 0 | F88: 0 | G88: 0 | H88: 0 | I88: 0
B89: Large-TP | C89: =C8*C38 -> 0 | D89: 2.7 | E89: 0 | F89: 6.3 | G89: 10.5 | H89: 1.05 | I89: 1.05
B90: Large-Jet | C90: =C9*C39 -> 0 | D90: 4.5 | E90: 0 | F90: 10.5 | G90: 17.5 | H90: 1.75 | I90: 1.75
B91: Large-757 | C91: =C10*C40 -> 0 | D91: 0.45 | E91: 0 | F91: 1.05 | G91: 1.75 | H91: 0.175 | I91: 0.175
B92: Heavy | C92: =C11*C41 -> 0 | D92: 0.65 | E92: 0 | F92: 1.95 | G92: 3.25 | H92: 0.325 | I92: 0.25
B94: IMC Average time between Arrivals | F94: Time in Seconds
C95: Small - S | D95: Small - T | E95: Small + | F95: Large-TP | G95: Large-Jet | H95: Large-757 | I95: Heavy
B96: Small - S | C96: =C5*C66 -> 0 | D96: =D5*D66 -> 0 | E96: 0 | F96: 0 | G96: 0 | H96: 0 | I96: 0 | K96: Average Arrival separation | N96: =(K97+'Dual Work Tab (1)'!K97)/2 -> 128.2561538 | P96: =(3600-'Dual Model'!$I$30)/N96 -> 28.06882861
B97: Small - T | C97: =C6*C67 -> 0 | D97: 1.3761 | E97: 0 | F97: 3.380607692 | G97: 5.4805 | H97: 0.5337642857 | I97: 0.50805 | K97: =SUM(C96:I102) -> 128.2561538 | L97: seconds | M97: =(3600-'Dual Model'!$I$30)/K97 -> 28.06882861
B98: Small + | C98: =C7*C68 -> 0 | D98: 0 | E98: 0 | F98: 0 | G98: 0 | H98: 0 | I98: 0
B99: Large-TP | C99: =C8*C69 -> 0 | D99: 6.952915385 | E99: 0 | F99: 10.14182308 | G99: 16.4415 | H99: 1.601292857 | I99: 1.52415
B100: Large-Jet | C100: =C9*C70 -> 0 | D100: 11.94716667 | E100: 0 | F100: 17.97996154 | G100: 27.4025 | H100: 2.668821429 | I100: 2.54025
B101: Large-757 | C101: =C10*C71 -> 0 | D101: 1.40805 | E101: 0 | F101: 2.313380769 | G101: 3.573583333 | H101: 0.3311678571 | I101: 0.314025
B102: Heavy | C102: =C11*C72 -> 0 | D102: 1.64805 | E102: 0 | F102: 2.908765385 | G102: 4.54025 | H102: 0.4254535714 | I102: 0.314025
B104: IMC Average time between Departures | F104: Time in Seconds
C105: Small - S | D105: Small - T | E105: Small + | F105: Large-TP | G105: Large-Jet | H105: Large-757 | I105: Heavy
B106: Small - S | C106: =C5*C45 -> 0 | D106: =D5*D45 -> 0 | E106: 0 | F106: 0 | G106: 0 | H106: 0 | I106: 0 | K106: Average Departure separation
B107: Small - T | C107: =C6*C46 -> 0 | D107: 0.7 | E107: 0 | F107: 2.1 | G107: 3.5 | H107: 0.35 | I107: 0.35 | K107: =SUM(C106:I112) -> 74.625 | L107: seconds | M107: =(3600-'Dual Model'!$I$30)/K107 -> 48.24120603
B108: Small + | C108: =C7*C47 -> 0 | D108: 0 | E108: 0 | F108: 0 | G108: 0 | H108: 0 | I108: 0
B109: Large-TP | C109: =C8*C48 -> 0 | D109: 2.7 | E109: 0 | F109: 6.3 | G109: 10.5 | H109: 1.05 | I109: 1.05
B110: Large-Jet | C110: =C9*C49 -> 0 | D110: 4.5 | E110: 0 | F110: 10.5 | G110: 17.5 | H110: 1.75 | I110: 1.75
B111: Large-757 | C111: =C10*C50 -> 0 | D111: 0.45 | E111: 0 | F111: 1.05 | G111: 1.75 | H111: 0.175 | I111: 0.175
B112: Heavy | C112: =C11*C51 -> 0 | D112: 0.65 | E112: 0 | F112: 1.95 | G112: 3.25 | H112: 0.325 | I112: 0.25
B114: VMC Average Time Required for Departure between Arrivals | F114: Time in Seconds
C115: Small - S | D115: Small - T | E115: Small + | F115: Large-TP | G115: Large-Jet | H115: Large-757 | I115: Heavy
B116: Small - S | C116: ='Dual Model'!$C$25+MAXA((3600*'Dual Model'!$C$12/('Dual Model'!C$28)),C$157) -> 112 | D116: ='Dual Model'!$C$25+MAXA((3600*'Dual Model'!$C$12/('Dual Model'!D$28)),D$157) -> 104 | E116: ='Dual Model'!$C$25+MAXA((3600*'Dual Model'!$C$12/('Dual Model'!E$28)),E$157) -> 92 | F116: ='Dual Model'!$C$25+MAXA((3600*'Dual Model'!$C$12/('Dual Model'!F$28)),F$157) -> 87.38461538 | G116: ='Dual Model'!$C$25+MAXA((3600*'Dual Model'!$C$12/('Dual Model'!G$28)),G$157) -> 85.33333333 | H116: ='Dual Model'!$C$25+MAXA((3600*'Dual Model'!$C$12/('Dual Model'!H$28)),H$157) -> 83.42857143 | I116: ='Dual Model'!$C$25+MAXA((3600*'Dual Model'!$C$12/('Dual Model'!I$28)),I$157) -> 83 | K116: AROT should be 0, if no 15 degree minimum divergence
B117: Small - T | C117: ='Dual Model'!$D$25+MAXA((3600*'Dual Model'!$C$12/('Dual Model'!C$28)),C$157) -> 120 | D117: ='Dual Model'!$D$25+MAXA((3600*'Dual Model'!$C$12/('Dual Model'!D$28)),D$157) -> 112 | E117: ='Dual Model'!$D$25+MAXA((3600*'Dual Model'!$C$12/('Dual Model'!E$28)),E$157) -> 100 | F117: ='Dual Model'!$D$25+MAXA((3600*'Dual Model'!$C$12/('Dual Model'!F$28)),F$157) -> 95.38461538 | G117: ='Dual Model'!$D$25+MAXA((3600*'Dual Model'!$C$12/('Dual Model'!G$28)),G$157) -> 93.33333333 | H117: ='Dual Model'!$D$25+MAXA((3600*'Dual Model'!$C$12/('Dual Model'!H$28)),H$157) -> 91.42857143 | I117: ='Dual Model'!$D$25+MAXA((3600*'Dual Model'!$C$12/('Dual Model'!I$28)),I$157) -> 91
B118: Small + | C118: ='Dual Model'!$E$25+MAXA((3600*'Dual Model'!$C$12/('Dual Model'!C$28)),C$157) -> 122 | D118: ='Dual Model'!$E$25+MAXA((3600*'Dual Model'!$C$12/('Dual Model'!D$28)),D$157) -> 114 | E118: ='Dual Model'!$E$25+MAXA((3600*'Dual Model'!$C$12/('Dual Model'!E$28)),E$157) -> 102 | F118: ='Dual Model'!$E$25+MAXA((3600*'Dual Model'!$C$12/('Dual Model'!F$28)),F$157) -> 97.38461538 | G118: ='Dual Model'!$E$25+MAXA((3600*'Dual Model'!$C$12/('Dual Model'!G$28)),G$157) -> 95.33333333 | H118: ='Dual Model'!$E$25+MAXA((3600*'Dual Model'!$C$12/('Dual Model'!H$28)),H$157) -> 93.42857143 | I118: ='Dual Model'!$E$25+MAXA((3600*'Dual Model'!$C$12/('Dual Model'!I$28)),I$157) -> 93
B119: Large-TP | C119: ='Dual Model'!$F$25+MAXA((3600*'Dual Model'!$C$12/('Dual Model'!C$28)),C$157) -> 125 | D119: ='Dual Model'!$F$25+MAXA((3600*'Dual Model'!$C$12/('Dual Model'!D$28)),D$157) -> 117 | E119: ='Dual Model'!$F$25+MAXA((3600*'Dual Model'!$C$12/('Dual Model'!E$28)),E$157) -> 105 | F119: ='Dual Model'!$F$25+MAXA((3600*'Dual Model'!$C$12/('Dual Model'!F$28)),F$157) -> 100.3846154 | G119: ='Dual Model'!$F$25+MAXA((3600*'Dual Model'!$C$12/('Dual Model'!G$28)),G$157) -> 98.33333333 | H119: ='Dual Model'!$F$25+MAXA((3600*'Dual Model'!$C$12/('Dual Model'!H$28)),H$157) -> 96.42857143 | I119: ='Dual Model'!$F$25+MAXA((3600*'Dual Model'!$C$12/('Dual Model'!I$28)),I$157) -> 96
B120: Large-Jet | C120: ='Dual Model'!$G$25+MAXA((3600*'Dual Model'!$C$12/('Dual Model'!C$28)),C$157) -> 126 | D120: ='Dual Model'!$G$25+MAXA((3600*'Dual Model'!$C$12/('Dual Model'!D$28)),D$157) -> 118 | E120: ='Dual Model'!$G$25+MAXA((3600*'Dual Model'!$C$12/('Dual Model'!E$28)),E$157) -> 106 | F120: ='Dual Model'!$G$25+MAXA((3600*'Dual Model'!$C$12/('Dual Model'!F$28)),F$157) -> 101.3846154 | G120: ='Dual Model'!$G$25+MAXA((3600*'Dual Model'!$C$12/('Dual Model'!G$28)),G$157) -> 99.33333333 | H120: ='Dual Model'!$G$25+MAXA((3600*'Dual Model'!$C$12/('Dual Model'!H$28)),H$157) -> 97.42857143 | I120: ='Dual Model'!$G$25+MAXA((3600*'Dual Model'!$C$12/('Dual Model'!I$28)),I$157) -> 97
B121: Large-757 | C121: ='Dual Model'!$H$25+MAXA((3600*'Dual Model'!$C$12/('Dual Model'!C$28)),C$157) -> 131 | D121: ='Dual Model'!$H$25+MAXA((3600*'Dual Model'!$C$12/('Dual Model'!D$28)),D$157) -> 123 | E121: ='Dual Model'!$H$25+MAXA((3600*'Dual Model'!$C$12/('Dual Model'!E$28)),E$157) -> 111 | F121: ='Dual Model'!$H$25+MAXA((3600*'Dual Model'!$C$12/('Dual Model'!F$28)),F$157) -> 106.3846154 | G121: ='Dual Model'!$H$25+MAXA((3600*'Dual Model'!$C$12/('Dual Model'!G$28)),G$157) -> 104.3333333 | H121: ='Dual Model'!$H$25+MAXA((3600*'Dual Model'!$C$12/('Dual Model'!H$28)),H$157) -> 102.4285714 | I121: ='Dual Model'!$H$25+MAXA((3600*'Dual Model'!$C$12/('Dual Model'!I$28)),I$157) -> 102
B122: Heavy | C122: ='Dual Model'!$I$25+MAXA((3600*'Dual Model'!$C$12/('Dual Model'!C$28)),C$157) -> 135 | D122: ='Dual Model'!$I$25+MAXA((3600*'Dual Model'!$C$12/('Dual Model'!D$28)),D$157) -> 127 | E122: ='Dual Model'!$I$25+MAXA((3600*'Dual Model'!$C$12/('Dual Model'!E$28)),E$157) -> 115 | F122: ='Dual Model'!$I$25+MAXA((3600*'Dual Model'!$C$12/('Dual Model'!F$28)),F$157) -> 110.3846154 | G122: ='Dual Model'!$I$25+MAXA((3600*'Dual Model'!$C$12/('Dual Model'!G$28)),G$157) -> 108.3333333 | H122: ='Dual Model'!$I$25+MAXA((3600*'Dual Model'!$C$12/('Dual Model'!H$28)),H$157) -> 106.4285714 | I122: ='Dual Model'!$I$25+MAXA((3600*'Dual Model'!$C$12/('Dual Model'!I$28)),I$157) -> 106
B124: IMC Average Time Required for Departure between Arrivals | F124: Time in Seconds
C125: Small - S | D125: Small - T | E125: Small + | F125: Large-TP | G125: Large-Jet | H125: Large-757 | I125: Heavy
B126: Small - S | C126: ='Dual Model'!$C$25+MAXA((3600*'Dual Model'!$C$13/('Dual Model'!C$28)),C$157) -> 112 | D126: ='Dual Model'!$C$25+MAXA((3600*'Dual Model'!$C$13/('Dual Model'!D$28)),D$157) -> 104 | E126: ='Dual Model'!$C$25+MAXA((3600*'Dual Model'!$C$13/('Dual Model'!E$28)),E$157) -> 92 | F126: ='Dual Model'!$C$25+MAXA((3600*'Dual Model'!$C$13/('Dual Model'!F$28)),F$157) -> 87.38461538 | G126: ='Dual Model'!$C$25+MAXA((3600*'Dual Model'!$C$13/('Dual Model'!G$28)),G$157) -> 85.33333333 | H126: ='Dual Model'!$C$25+MAXA((3600*'Dual Model'!$C$13/('Dual Model'!H$28)),H$157) -> 83.42857143 | I126: ='Dual Model'!$C$25+MAXA((3600*'Dual Model'!$C$13/('Dual Model'!I$28)),I$157) -> 83
B127: Small - T | C127: ='Dual Model'!$D$25+MAXA((3600*'Dual Model'!$C$13/('Dual Model'!C$28)),C$157) -> 120 | D127: ='Dual Model'!$D$25+MAXA((3600*'Dual Model'!$C$13/('Dual Model'!D$28)),D$157) -> 112 | E127: ='Dual Model'!$D$25+MAXA((3600*'Dual Model'!$C$13/('Dual Model'!E$28)),E$157) -> 100 | F127: ='Dual Model'!$D$25+MAXA((3600*'Dual Model'!$C$13/('Dual Model'!F$28)),F$157) -> 95.38461538 | G127: ='Dual Model'!$D$25+MAXA((3600*'Dual Model'!$C$13/('Dual Model'!G$28)),G$157) -> 93.33333333 | H127: ='Dual Model'!$D$25+MAXA((3600*'Dual Model'!$C$13/('Dual Model'!H$28)),H$157) -> 91.42857143 | I127: ='Dual Model'!$D$25+MAXA((3600*'Dual Model'!$C$13/('Dual Model'!I$28)),I$157) -> 91
B128: Small + | C128: ='Dual Model'!$E$25+MAXA((3600*'Dual Model'!$C$13/('Dual Model'!C$28)),C$157) -> 122 | D128: ='Dual Model'!$E$25+MAXA((3600*'Dual Model'!$C$13/('Dual Model'!D$28)),D$157) -> 114 | E128: ='Dual Model'!$E$25+MAXA((3600*'Dual Model'!$C$13/('Dual Model'!E$28)),E$157) -> 102 | F128: ='Dual Model'!$E$25+MAXA((3600*'Dual Model'!$C$13/('Dual Model'!F$28)),F$157) -> 97.38461538 | G128: ='Dual Model'!$E$25+MAXA((3600*'Dual Model'!$C$13/('Dual Model'!G$28)),G$157) -> 95.33333333 | H128: ='Dual Model'!$E$25+MAXA((3600*'Dual Model'!$C$13/('Dual Model'!H$28)),H$157) -> 93.42857143 | I128: ='Dual Model'!$E$25+MAXA((3600*'Dual Model'!$C$13/('Dual Model'!I$28)),I$157) -> 93
B129: Large-TP | C129: ='Dual Model'!$F$25+MAXA((3600*'Dual Model'!$C$13/('Dual Model'!C$28)),C$157) -> 125 | D129: ='Dual Model'!$F$25+MAXA((3600*'Dual Model'!$C$13/('Dual Model'!D$28)),D$157) -> 117 | E129: ='Dual Model'!$F$25+MAXA((3600*'Dual Model'!$C$13/('Dual Model'!E$28)),E$157) -> 105 | F129: ='Dual Model'!$F$25+MAXA((3600*'Dual Model'!$C$13/('Dual Model'!F$28)),F$157) -> 100.3846154 | G129: ='Dual Model'!$F$25+MAXA((3600*'Dual Model'!$C$13/('Dual Model'!G$28)),G$157) -> 98.33333333 | H129: ='Dual Model'!$F$25+MAXA((3600*'Dual Model'!$C$13/('Dual Model'!H$28)),H$157) -> 96.42857143 | I129: ='Dual Model'!$F$25+MAXA((3600*'Dual Model'!$C$13/('Dual Model'!I$28)),I$157) -> 96
B130: Large-Jet | C130: ='Dual Model'!$G$25+MAXA((3600*'Dual Model'!$C$13/('Dual Model'!C$28)),C$157) -> 126 | D130: ='Dual Model'!$G$25+MAXA((3600*'Dual Model'!$C$13/('Dual Model'!D$28)),D$157) -> 118 | E130: ='Dual Model'!$G$25+MAXA((3600*'Dual Model'!$C$13/('Dual Model'!E$28)),E$157) -> 106 | F130: ='Dual Model'!$G$25+MAXA((3600*'Dual Model'!$C$13/('Dual Model'!F$28)),F$157) -> 101.3846154 | G130: ='Dual Model'!$G$25+MAXA((3600*'Dual Model'!$C$13/('Dual Model'!G$28)),G$157) -> 99.33333333 | H130: ='Dual Model'!$G$25+MAXA((3600*'Dual Model'!$C$13/('Dual Model'!H$28)),H$157) -> 97.42857143 | I130: ='Dual Model'!$G$25+MAXA((3600*'Dual Model'!$C$13/('Dual Model'!I$28)),I$157) -> 97
B131: Large-757 | C131: ='Dual Model'!$H$25+MAXA((3600*'Dual Model'!$C$13/('Dual Model'!C$28)),C$157) -> 131 | D131: ='Dual Model'!$H$25+MAXA((3600*'Dual Model'!$C$13/('Dual Model'!D$28)),D$157) -> 123 | E131: ='Dual Model'!$H$25+MAXA((3600*'Dual Model'!$C$13/('Dual Model'!E$28)),E$157) -> 111 | F131: ='Dual Model'!$H$25+MAXA((3600*'Dual Model'!$C$13/('Dual Model'!F$28)),F$157) -> 106.3846154 | G131: ='Dual Model'!$H$25+MAXA((3600*'Dual Model'!$C$13/('Dual Model'!G$28)),G$157) -> 104.3333333 | H131: ='Dual Model'!$H$25+MAXA((3600*'Dual Model'!$C$13/('Dual Model'!H$28)),H$157) -> 102.4285714 | I131: ='Dual Model'!$H$25+MAXA((3600*'Dual Model'!$C$13/('Dual Model'!I$28)),I$157) -> 102
B132: Heavy | C132: ='Dual Model'!$I$25+MAXA((3600*'Dual Model'!$C$13/('Dual Model'!C$28)),C$157) -> 135 | D132: ='Dual Model'!$I$25+MAXA((3600*'Dual Model'!$C$13/('Dual Model'!D$28)),D$157) -> 127 | E132: ='Dual Model'!$I$25+MAXA((3600*'Dual Model'!$C$13/('Dual Model'!E$28)),E$157) -> 115 | F132: ='Dual Model'!$I$25+MAXA((3600*'Dual Model'!$C$13/('Dual Model'!F$28)),F$157) -> 110.3846154 | G132: ='Dual Model'!$I$25+MAXA((3600*'Dual Model'!$C$13/('Dual Model'!G$28)),G$157) -> 108.3333333 | H132: ='Dual Model'!$I$25+MAXA((3600*'Dual Model'!$C$13/('Dual Model'!H$28)),H$157) -> 106.4285714 | I132: ='Dual Model'!$I$25+MAXA((3600*'Dual Model'!$C$13/('Dual Model'!I$28)),I$157) -> 106
A134: New | B134: VMC Average Required for Departure between Arrivals | F134: Time in Seconds
C135: Small - S | D135: Small - T | E135: Small + | F135: Large-TP | G135: Large-Jet | H135: Large-757 | I135: Heavy | L135: Departures between Arrivals on Runway 1 | O135: VMC
B136: Small - S | C136: =C56-C116 -> -6.39 | D136: =D56-D116 -> -5.99 | E136: -5.39 | F136: -5.159230769 | G136: -5.056666667 | H136: -4.961428571 | I136: -7.79 | L136: =SUMPRODUCT(L137:L143,C5:C11)+SUMPRODUCT(M137:M143,D5:D11)+SUMPRODUCT(N137:N143,E5:E11)+SUMPRODUCT(O137:O143,F5:F11)+SUMPRODUCT(P137:P143,G5:G11)+SUMPRODUCT(Q137:Q143,H5:H11)+SUMPRODUCT(R137:R143,I5:I11) -> 0.2375 | M136: =L136*M77 -> 8.854723016
B137: Small - T | C137: =C57-C117 -> 13.61 | D137: -13.99 | E137: -13.39 | F137: -13.15923077 | G137: -13.05666667 | H137: -12.96142857 | I137: -15.79 | L137: =IF(C136>=0,TRUNC(C136/$K$87,0)+1,0) -> 0 | M137: =IF(D136>=0,TRUNC(D136/$K$87,0)+1,0) -> 0 | N137: 0 | O137: 0 | P137: 0 | Q137: 0 | R137: 0
B138: Small + | C138: =C58-C118 -> 53.61 | D138: 26.01 | E138: -15.39 | F138: -15.15923077 | G138: -15.05666667 | H138: -14.96142857 | I138: -17.79 | L138: =IF(C137>=0,TRUNC(C137/$K$87,0)+1,0) -> 1 | M138: =IF(D137>=0,TRUNC(D137/$K$87,0)+1,0) -> 0 | N138: =IF(E137>=0,TRUNC(E137/$K$87,0)+1,0) -> 0 | O138: =IF(F137>=0,TRUNC(F137/$K$87,0)+1,0) -> 0 | P138: =IF(G137>=0,TRUNC(G137/$K$87,0)+1,0) -> 0 | Q138: =IF(H137>=0,TRUNC(H137/$K$87,0)+1,0) -> 0 | R138: =IF(I137>=0,TRUNC(I137/$K$87,0)+1,0) -> 0
B139: Large-TP | C139: =C59-C119 -> 98.76384615 | D139: 67.96384615 | E139: 21.76384615 | F139: -18.15923077 | G139: -18.05666667 | H139: -17.96142857 | I139: -19.78831949 | L139: 1 | M139: 1 | N139: 0 | O139: 0 | P139: 0 | Q139: 0 | R139: 0
B140: Large-Jet | C140: =C60-C120 -> 104.9433333 | D140: 74.14333333 | E140: 27.94333333 | F140: -11.97974359 | G140: -19.05666667 | H140: -18.96142857 | I140: -19.78831949 | L140: 2 | M140: 1 | N140: 1 | O140: 0 | P140: 0 | Q140: 0 | R140: 0
B141: Large-757 | C141: =C61-C121 -> 146.61 | D141: 111.81 | E141: 59.61 | F141: 11.84076923 | G141: 3.943333333 | H141: -3.39 | I141: -7.59 | L141: 2 | M141: 2 | N141: 1 | O141: 0 | P141: 0 | Q141: 0 | R141: 0
B142: Heavy | C142: =C62-C122 -> 190.61 | D142: 152.21 | E142: 64.61 | F142: 44.76384615 | G142: 35.94333333 | H142: 27.75285714 | I142: -11.59 | L142: 3 | M142: 2 | N142: 1 | O142: 1 | P142: 1 | Q142: 0 | R142: 0
L143: 3 | M143: 3 | N143: 1 | O143: 1 | P143: 1 | Q143: 1 | R143: 0
A144: New | B144: IMC Average Required for Departure between Arrivals | F144: Time in Seconds
C145: Small - S | D145: Small - T | E145: Small + | F145: Large-TP | G145: Large-Jet | H145: Large-757 | I145: Heavy | L145: Departures between Arrivals on Runway 1 | O145: IMC
B146: Small - S | C146: =C66-C116 -> 37.61 | D146: =D66-D116 -> 33.61 | E146: 27.61 | F146: 25.30230769 | G146: 24.27666667 | H146: 23.32428571 | I146: 18.61 | L146: =SUMPRODUCT(L147:L153,C5:C11)+SUMPRODUCT(M147:M153,D5:D11)+SUMPRODUCT(N147:N153,E5:E11)+SUMPRODUCT(O147:O153,F5:F11)+SUMPRODUCT(P147:P153,G5:G11)+SUMPRODUCT(Q147:Q153,H5:H11)+SUMPRODUCT(R147:R153,I5:I11) -> 1.115 | M146: =L146*M97 -> 31.2967439
B147: Small - T | C147: =C67-C117 -> 57.61 | D147: 25.61 | E147: 19.61 | F147: 17.30230769 | G147: 16.27666667 | H147: 15.32428571 | I147: 10.61 | L147: =IF(C146>=0,TRUNC(C146/$K$107,0)+1,0) -> 1 | M147: =IF(D146>=0,TRUNC(D146/$K$107,0)+1,0) -> 1 | N147: 1 | O147: 1 | P147: 1 | Q147: 1 | R147: 1
B148: Small + | C148: =C68-C118 -> 97.61 | D148: 65.61 | E148: 17.61 | F148: 15.30230769 | G148: 14.27666667 | H148: 13.32428571 | I148: 8.61 | L148: =IF(C147>=0,TRUNC(C147/$K$107,0)+1,0) -> 1 | M148: =IF(D147>=0,TRUNC(D147/$K$107,0)+1,0) -> 1 | N148: =IF(E147>=0,TRUNC(E147/$K$107,0)+1,0) -> 1 | O148: =IF(F147>=0,TRUNC(F147/$K$107,0)+1,0) -> 1 | P148: =IF(G147>=0,TRUNC(G147/$K$107,0)+1,0) -> 1 | Q148: =IF(H147>=0,TRUNC(H147/$K$107,0)+1,0) -> 1 | R148: =IF(I147>=0,TRUNC(I147/$K$107,0)+1,0) -> 1
B149: Large-TP | C149: =C69-C119 -> 150.7638462 | D149: 114.7638462 | E149: 60.76384615 | F149: 12.30230769 | G149: 11.27666667 | H149: 10.32428571 | I149: 5.61 | L149: 2 | M149: 1 | N149: 1 | O149: 1 | P149: 1 | Q149: 1 | R149: 1
B150: Large-Jet | C150: =C70-C120 -> 156.9433333 | D150: 120.9433333 | E150: 66.94333333 | F150: 18.48179487 | G150: 10.27666667 | H150: 9.324285714 | I150: 4.61 | L150: 3 | M150: 2 | N150: 1 | O150: 1 | P150: 1 | Q150: 1 | R150: 1
B151: Large-757 | C151: =C71-C121 -> 198.61 | D151: 158.61 | E151: 98.61 | F151: 47.84076923 | G151: 38.61 | H151: 30.03857143 | I151: 23.61 | L151: 3 | M151: 2 | N151: 1 | O151: 1 | P151: 1 | Q151: 1 | R151: 1
B152: Heavy | C152: =C72-C122 -> 246.61 | D152: 202.61 | E152: 106.61 | F152: 83.53307692 | G152: 73.27666667 | H152: 63.75285714 | I152: 19.61 | L152: 3 | M152: 3 | N152: 2 | O152: 1 | P152: 1 | Q152: 1 | R152: 1
L153: 4 | M153: 3 | N153: 2 | O153: 2 | P153: 1 | Q153: 1 | R153: 1
C156: Small - S | D156: Small - T | E156: Small + | F156: Large-TP | G156: Large-Jet | H156: Large-757 | I156: Heavy
B157: Average Dep. Runway Occ. Times (sec) | C157: ='Single Work Tab'!$C$155 -> 34 | D157: ='Single Work Tab'!$D$155 -> 42 | E157: ='Single Work Tab'!$E$155 -> 34 | F157: ='Single Work Tab'!$F$155 -> 34 | G157: ='Single Work Tab'!$G$155 -> 46 | H157: ='Single Work Tab'!$H$155 -> 38 | I157: ='Single Work Tab'!$I$155 -> 51
C158: linked to Single Work Tab inputs

Sheet Dual Work Tab (4) (hidden)
B1: Dual Model Worksheet #4 with working Calculated Values
B3: Arrivals Pairing Probability Matrix | D3: (chance of landing behind an aircraft from each class) | K3: 0 | L3: Calculated Cells
C4: Small - S | D4: Small - T | E4: Small + | F4: Large-TP | G4: Large-Jet | H4: Large-757 | I4: Heavy | K4: 0 | L4: Linked Input Cells
B5: Small - S | C5: ='Dual Model'!$C22*'Dual Model'!C22 -> 0 | D5: ='Dual Model'!$C22*'Dual Model'!D22 -> 0 | E5: ='Dual Model'!$C22*'Dual Model'!E22 -> 0 | F5: ='Dual Model'!$C22*'Dual Model'!F22 -> 0 | G5: ='Dual Model'!$C22*'Dual Model'!G22 -> 0 | H5: ='Dual Model'!$C22*'Dual Model'!H22 -> 0 | I5: ='Dual Model'!$C22*'Dual Model'!I22 -> 0 | K5: 0 | L5: Linked Cells (within this worksheet)
B6: Small - T | C6: ='Dual Model'!$D22*'Dual Model'!C22 -> 0 | D6: ='Dual Model'!$D22*'Dual Model'!D22 -> 0.01 | E6: ='Dual Model'!$D22*'Dual Model'!E22 -> 0 | F6: ='Dual Model'!$D22*'Dual Model'!F22 -> 0.03 | G6: ='Dual Model'!$D22*'Dual Model'!G22 -> 0.05 | H6: ='Dual Model'!$D22*'Dual Model'!H22 -> 0.005 | I6: ='Dual Model'!$D22*'Dual Model'!I22 -> 0.005
B7: Small + | C7: ='Dual Model'!$E22*'Dual Model'!C22 -> 0 | D7: ='Dual Model'!$E22*'Dual Model'!D22 -> 0 | E7: ='Dual Model'!$E22*'Dual Model'!E22 -> 0 | F7: ='Dual Model'!$E22*'Dual Model'!F22 -> 0 | G7: ='Dual Model'!$E22*'Dual Model'!G22 -> 0 | H7: ='Dual Model'!$E22*'Dual Model'!H22 -> 0 | I7: ='Dual Model'!$E22*'Dual Model'!I22 -> 0
B8: Large-TP | C8: ='Dual Model'!$F22*'Dual Model'!C22 -> 0 | D8: ='Dual Model'!$F22*'Dual Model'!D22 -> 0.03 | E8: ='Dual Model'!$F22*'Dual Model'!E22 -> 0 | F8: ='Dual Model'!$F22*'Dual Model'!F22 -> 0.09 | G8: ='Dual Model'!$F22*'Dual Model'!G22 -> 0.15 | H8: ='Dual Model'!$F22*'Dual Model'!H22 -> 0.015 | I8: ='Dual Model'!$F22*'Dual Model'!I22 -> 0.015 | M8: Diagonal Separation chosen on model work tab.
B9: Large-Jet | C9: ='Dual Model'!$G22*'Dual Model'!C22 -> 0 | D9: ='Dual Model'!$G22*'Dual Model'!D22 -> 0.05 | E9: ='Dual Model'!$G22*'Dual Model'!E22 -> 0 | F9: ='Dual Model'!$G22*'Dual Model'!F22 -> 0.15 | G9: ='Dual Model'!$G22*'Dual Model'!G22 -> 0.25 | H9: ='Dual Model'!$G22*'Dual Model'!H22 -> 0.025 | I9: ='Dual Model'!$G22*'Dual Model'!I22 -> 0.025 | M9: ='Dual Model'!$H$37 -> 1.5 | N9: nmiles | O9: ARR to ARR separation on each runway when operating under
B10: Large-757 | C10: ='Dual Model'!$H22*'Dual Model'!C22 -> 0 | D10: ='Dual Model'!$H22*'Dual Model'!D22 -> 0.005 | E10: ='Dual Model'!$H22*'Dual Model'!E22 -> 0 | F10: ='Dual Model'!$H22*'Dual Model'!F22 -> 0.015 | G10: ='Dual Model'!$H22*'Dual Model'!G22 -> 0.025 | H10: ='Dual Model'!$H22*'Dual Model'!H22 -> 0.0025 | I10: ='Dual Model'!$H22*'Dual Model'!I22 -> 0.0025 | J10: Summary Check | O10: diagonal separation rules
B11: Heavy | C11: ='Dual Model'!$I22*'Dual Model'!C22 -> 0 | D11: ='Dual Model'!$I22*'Dual Model'!D22 -> 0.005 | E11: ='Dual Model'!$I22*'Dual Model'!E22 -> 0 | F11: ='Dual Model'!$I22*'Dual Model'!F22 -> 0.015 | G11: ='Dual Model'!$I22*'Dual Model'!G22 -> 0.025 | H11: ='Dual Model'!$I22*'Dual Model'!H22 -> 0.0025 | I11: ='Dual Model'!$I22*'Dual Model'!I22 -> 0.0025 | J11: Total = | K11: =SUM(C5:I11) -> 1 | M11: =SQRT(M9^2-(('Dual Model'!$C$10/5280)/1.1508)^2)*2 -> 2.989825788 | N11: Linear separtation of diagonal (nm) (x2)
B13: VMC Required Separation for arrivals following an aircraft from each class | F13: Distance in Nautical Miles
C14: Small - S | D14: Small - T | E14: Small + | F14: Large-TP | G14: Large-Jet | H14: Large-757 | I14: Heavy | J14: Separations equals the larger of the linear portion of the diagonal separation or the standard separation
B15: Small - S | C15: =MAX('Dual Model'!$H$36+'Dual Model'!D41,$M$11) -> 2.989825788 | D15: =$C$15 -> 2.989825788 | E15: 2.989825788 | F15: 2.989825788 | G15: 2.989825788 | H15: 2.989825788 | I15: 2.989825788
B16: Small - T | C16: =$C$15 -> 2.989825788 | D16: 2.989825788 | E16: 2.989825788 | F16: 2.989825788 | G16: 2.989825788 | H16: 2.989825788 | I16: 2.989825788
B17: Small + | C17: =MAX('Dual Model'!$H$36+'Dual Model'!D42,$M$11) -> 2.989825788 | D17: =$C$17 -> 2.989825788 | E17: =$C$17 -> 2.989825788 | F17: =MAX('Dual Model'!$H$36+'Dual Model'!D43,$M$11) -> 2.989825788 | G17: =$F$17 -> 2.989825788 | H17: =$F$17 -> 2.989825788 | I17: =$F$17 -> 2.989825788
B18: Large-TP | C18: =MAX('Dual Model'!$H$36+'Dual Model'!D44,$M$11) -> 2.989825788 | D18: =$C$18 -> 2.989825788 | E18: =$C$18 -> 2.989825788 | F18: =MAX('Dual Model'!$H$36+'Dual Model'!D45,$M$11) -> 2.989825788 | G18: =$F$18 -> 2.989825788 | H18: 2.989825788 | I18: 2.989825788
B19: Large-Jet | C19: =MAX('Dual Model'!$H$36+'Dual Model'!D44,$M$11) -> 2.989825788 | D19: =$C$19 -> 2.989825788 | E19: =$C$19 -> 2.989825788 | F19: =$F$18 -> 2.989825788 | G19: 2.989825788 | H19: 2.989825788 | I19: 2.989825788
B20: Large-757 | C20: =MAX('Dual Model'!$H$36+'Dual Model'!D46,$M$11) -> 3.7 | D20: =$C$20 -> 3.7 | E20: =$C$20 -> 3.7 | F20: =MAX('Dual Model'!$H$36+'Dual Model'!D47,$M$11) -> 2.989825788 | G20: =$F$20 -> 2.989825788 | H20: =$F$20 -> 2.989825788 | I20: =$F$20 -> 2.989825788
B21: Heavy | C21: =MAX('Dual Model'!$H$36+'Dual Model'!D48,$M$11) -> 4.6 | D21: =$C$21 -> 4.6 | E21: =MAX('Dual Model'!$H$36+'Dual Model'!D49,$M$11) -> 3.6 | F21: =$E$21 -> 3.6 | G21: =$E$21 -> 3.6 | H21: =$E$21 -> 3.6 | I21: =MAX('Dual Model'!$H$36+'Dual Model'!D50,$M$11) -> 2.989825788
B23: IMC Required Separation for arrivals following an aircraft from each class | F23: Distance in Nautical Miles
C24: Small - S | D24: Small - T | E24: Small + | F24: Large-TP | G24: Large-Jet | H24: Large-757 | I24: Heavy | J24: Separations equals the larger of the linear portion of the diagonal separation or the standard separation
B25: Small - S | C25: =MAX('Dual Model'!$H$36+'Dual Model'!E41,$M$11) -> 3 | D25: =$C$25 -> 3 | E25: 3 | F25: 3 | G25: 3 | H25: 3 | I25: 3
B26: Small - T | C26: =$C$25 -> 3 | D26: 3 | E26: 3 | F26: 3 | G26: 3 | H26: 3 | I26: 3
B27: Small + | C27: =MAX('Dual Model'!$H$36+'Dual Model'!E42,$M$11) -> 3 | D27: =$C$27 -> 3 | E27: =$C$27 -> 3 | F27: =MAX('Dual Model'!$H$36+'Dual Model'!E43,$M$11) -> 3 | G27: =$F$27 -> 3 | H27: =$F$27 -> 3 | I27: =$F$27 -> 3
B28: Large-TP | C28: =MAX('Dual Model'!$H$36+'Dual Model'!E44,$M$11) -> 4 | D28: =$C$28 -> 4 | E28: =$C$28 -> 4 | F28: =MAX('Dual Model'!$H$36+'Dual Model'!E45,$M$11) -> 3 | G28: =$F$28 -> 3 | H28: 3 | I28: 3
B29: Large-Jet | C29: =MAX('Dual Model'!$H$36+'Dual Model'!E44,$M$11) -> 4 | D29: =$C$29 -> 4 | E29: =$C$29 -> 4 | F29: =$F$28 -> 3 | G29: 3 | H29: 3 | I29: 3
B30: Large-757 | C30: =MAX('Dual Model'!$H$36+'Dual Model'!E46,$M$11) -> 5 | D30: =$C$30 -> 5 | E30: =$C$30 -> 5 | F30: =MAX('Dual Model'!$H$36+'Dual Model'!E47,$M$11) -> 4 | G30: =$F$30 -> 4 | H30: =$F$30 -> 4 | I30: =$F$30 -> 4
B31: Heavy | C31: =MAX('Dual Model'!$H$36+'Dual Model'!E48,$M$11) -> 6 | D31: =$C$31 -> 6 | E31: =MAX('Dual Model'!$H$36+'Dual Model'!E49,$M$11) -> 5 | F31: =$E$31 -> 5 | G31: =$E$31 -> 5 | H31: =$E$31 -> 5 | I31: =MAX('Dual Model'!$H$36+'Dual Model'!E49,$M$11) -> 5
B33: VMC Required Separation for departures following an aircraft from each class | F33: Time in seconds
C34: Small - S | D34: Small - T | E34: Small + | F34: Large-TP | G34: Large-Jet | H34: Large-757 | I34: Heavy
B35: Small - S | C35: ='Dual Model'!$D$54+'Dual Model'!$C$37 -> 45 | D35: =$C$35 -> 45 | E35: =$C$35 -> 45 | F35: ='Dual Model'!$D$55+'Dual Model'!$C$37 -> 55 | G35: =$F$35 -> 55 | H35: 55 | I35: ='Dual Model'!$D$56+'Dual Model'!$C$37 -> 60
B36: Small - T | C36: =$C$35 -> 45 | D36: 45 | E36: 45 | F36: =$F$35 -> 55 | G36: 55 | H36: 55 | I36: =$I$35 -> 60
B37: Small + | C37: 45 | D37: 45 | E37: 45 | F37: =$F$35 -> 55 | G37: 55 | H37: 55 | I37: =$I$35 -> 60
B38: Large-TP | C38: ='Dual Model'!$D$57+'Dual Model'!$C$37 -> 90 | D38: =$C$38 -> 90 | E38: 90 | F38: ='Dual Model'!$D$58+'Dual Model'!$C$37 -> 70 | G38: =$F$38 -> 70 | H38: 70 | I38: 70
B39: Large-Jet | C39: =$C$38 -> 90 | D39: 90 | E39: 90 | F39: =$F$38 -> 70 | G39: 70 | H39: 70 | I39: 70
B40: Large-757 | C40: =$C$38 -> 90 | D40: 90 | E40: 90 | F40: =$F$38 -> 70 | G40: 70 | H40: 70 | I40: 70
B41: Heavy | C41: ='Dual Model'!$D$59+'Dual Model'!$C$37 -> 130 | D41: =$C$41 -> 130 | E41: =$C$41 -> 130 | F41: =$C$41 -> 130 | G41: =$C$41 -> 130 | H41: =$C$41 -> 130 | I41: ='Dual Model'!$D$60+'Dual Model'!$C$37 -> 100
B43: IMC Required Separation for departures following an aircraft from each class | F43: Time in seconds
C44: Small - S | D44: Small - T | E44: Small + | F44: Large-TP | G44: Large-Jet | H44: Large-757 | I44: Heavy
B45: Small - S | C45: ='Dual Model'!$E$54+'Dual Model'!$C$37 -> 70 | D45: =$C$45 -> 70 | E45: 70 | F45: ='Dual Model'!$E$55+'Dual Model'!$C$37 -> 70 | G45: =$F$45 -> 70 | H45: 70 | I45: ='Dual Model'!$E$56+'Dual Model'!$C$37 -> 70
B46: Small - T | C46: =$C$45 -> 70 | D46: 70 | E46: 70 | F46: =$F$45 -> 70 | G46: 70 | H46: 70 | I46: =$I$45 -> 70
B47: Small + | C47: =$C$45 -> 70 | D47: 70 | E47: 70 | F47: =$F$45 -> 70 | G47: 70 | H47: 70 | I47: =$I$45 -> 70
B48: Large-TP | C48: ='Dual Model'!$E$57+'Dual Model'!$C$37 -> 90 | D48: =$C$48 -> 90 | E48: 90 | F48: ='Dual Model'!$E$58+'Dual Model'!$C$37 -> 70 | G48: =$F$48 -> 70 | H48: 70 | I48: 70
B49: Large-Jet | C49: =$C$48 -> 90 | D49: 90 | E49: 90 | F49: =$F$48 -> 70 | G49: 70 | H49: 70 | I49: 70
B50: Large-757 | C50: =$C$48 -> 90 | D50: 90 | E50: 90 | F50: =$F$48 -> 70 | G50: 70 | H50: 70 | I50: 70
B51: Heavy | C51: ='Dual Model'!$E$59+'Dual Model'!$C$37 -> 130 | D51: =$C$51 -> 130 | E51: =$C$51 -> 130 | F51: =$C$51 -> 130 | G51: =$C$51 -> 130 | H51: =$C$51 -> 130 | I51: ='Dual Model'!$E$60+'Dual Model'!$C$37 -> 100
B54: VMC Required Separation for arrivals following an aircraft from each class | F54: Time in Seconds
C55: Small - S | D55: Small - T | E55: Small + | F55: Large-TP | G55: Large-Jet | H55: Large-757 | I55: Heavy
B56: Small - S | C56: =MAXA(3600*C15/('Dual Model'!$C$28)+'Dual Model'!$H$14*'Dual Model'!$H$12+MAXA(0,'Dual Model'!$C$14*3600*(1/'Dual Model'!$C$28-1/'Dual Model'!$C$28)),'Dual Model'!$C$25+'Dual Model'!$H$14*SQRT('Dual Model'!$H$12^2+'Dual Model'!$H$13^2))+'Dual Model'!$C$36 -> 149.2030315 | D56: =MAXA(3600*D15/('Dual Model'!$D$28)+'Dual Model'!$H$14*'Dual Model'!$H$12+MAXA(0,'Dual Model'!$C$14*3600*(1/'Dual Model'!$D$28-1/'Dual Model'!$C$28)),'Dual Model'!$C$25+'Dual Model'!$H$14*SQRT('Dual Model'!$H$12^2+'Dual Model'!$H$13^2))+'Dual Model'!$C$36 -> 137.2437284 | E56: =MAXA(3600*E15/('Dual Model'!$E$28)+'Dual Model'!$H$14*'Dual Model'!$H$12+MAXA(0,'Dual Model'!$C$14*3600*(1/'Dual Model'!$E$28-1/'Dual Model'!$C$28)),'Dual Model'!$C$25+'Dual Model'!$H$14*SQRT('Dual Model'!$H$12^2+'Dual Model'!$H$13^2))+'Dual Model'!$C$36 -> 119.3047736 | F56: =MAXA(3600*F15/('Dual Model'!$F$28)+'Dual Model'!$H$14*'Dual Model'!$H$12+MAXA(0,'Dual Model'!$C$14*3600*(1/'Dual Model'!$F$28-1/'Dual Model'!$C$28)),'Dual Model'!$C$25+'Dual Model'!$H$14*SQRT('Dual Model'!$H$12^2+'Dual Model'!$H$13^2))+'Dual Model'!$C$36 -> 112.4051757 | G56: =MAXA(3600*G15/('Dual Model'!$G$28)+'Dual Model'!$H$14*'Dual Model'!$H$12+MAXA(0,'Dual Model'!$C$14*3600*(1/'Dual Model'!$G$28-1/'Dual Model'!$C$28)),'Dual Model'!$C$25+'Dual Model'!$H$14*SQRT('Dual Model'!$H$12^2+'Dual Model'!$H$13^2))+'Dual Model'!$C$36 -> 109.3386877 | H56: =MAXA(3600*H15/('Dual Model'!$H$28)+'Dual Model'!$H$14*'Dual Model'!$H$12+MAXA(0,'Dual Model'!$C$14*3600*(1/'Dual Model'!$H$28-1/'Dual Model'!$C$28)),'Dual Model'!$C$25+'Dual Model'!$H$14*SQRT('Dual Model'!$H$12^2+'Dual Model'!$H$13^2))+'Dual Model'!$C$36 -> 106.4912346 | I56: =MAXA(3600*I15/('Dual Model'!$I$28)+'Dual Model'!$H$14*'Dual Model'!$H$12+MAXA(0,'Dual Model'!$C$14*3600*(1/'Dual Model'!$I$28-1/'Dual Model'!$C$28)),'Dual Model'!$C$25+'Dual Model'!$H$14*SQRT('Dual Model'!$H$12^2+'Dual Model'!$H$13^2))+'Dual Model'!$C$36 -> 101.3658189
B57: Small - T | C57: =MAXA(3600*C16/('Dual Model'!$C$28)+'Dual Model'!$H$14*'Dual Model'!$H$12+MAXA(0,'Dual Model'!$C$14*3600*(1/'Dual Model'!$C$28-1/'Dual Model'!$D$28)),'Dual Model'!$D$25+'Dual Model'!$H$14*SQRT('Dual Model'!$H$12^2+'Dual Model'!$H$13^2))+'Dual Model'!$C$36 -> 177.2030315 | D57: =MAXA(3600*D16/('Dual Model'!$D$28)+'Dual Model'!$H$14*'Dual Model'!$H$12+MAXA(0,'Dual Model'!$C$14*3600*(1/'Dual Model'!$D$28-1/'Dual Model'!$D$28)),'Dual Model'!$D$25+'Dual Model'!$H$14*SQRT('Dual Model'!$H$12^2+'Dual Model'!$H$13^2))+'Dual Model'!$C$36 -> 137.2437284 | E57: =MAXA(3600*E16/('Dual Model'!$E$28)+'Dual Model'!$H$14*'Dual Model'!$H$12+MAXA(0,'Dual Model'!$C$14*3600*(1/'Dual Model'!$E$28-1/'Dual Model'!$D$28)),'Dual Model'!$D$25+'Dual Model'!$H$14*SQRT('Dual Model'!$H$12^2+'Dual Model'!$H$13^2))+'Dual Model'!$C$36 -> 119.3047736 | F57: =MAXA(3600*F16/('Dual Model'!$F$28)+'Dual Model'!$H$14*'Dual Model'!$H$12+MAXA(0,'Dual Model'!$C$14*3600*(1/'Dual Model'!$F$28-1/'Dual Model'!$D$28)),'Dual Model'!$D$25+'Dual Model'!$H$14*SQRT('Dual Model'!$H$12^2+'Dual Model'!$H$13^2))+'Dual Model'!$C$36 -> 112.4051757 | G57: =MAXA(3600*G16/('Dual Model'!$G$28)+'Dual Model'!$H$14*'Dual Model'!$H$12+MAXA(0,'Dual Model'!$C$14*3600*(1/'Dual Model'!$G$28-1/'Dual Model'!$D$28)),'Dual Model'!$D$25+'Dual Model'!$H$14*SQRT('Dual Model'!$H$12^2+'Dual Model'!$H$13^2))+'Dual Model'!$C$36 -> 109.3386877 | H57: =MAXA(3600*H16/('Dual Model'!$H$28)+'Dual Model'!$H$14*'Dual Model'!$H$12+MAXA(0,'Dual Model'!$C$14*3600*(1/'Dual Model'!$H$28-1/'Dual Model'!$D$28)),'Dual Model'!$D$25+'Dual Model'!$H$14*SQRT('Dual Model'!$H$12^2+'Dual Model'!$H$13^2))+'Dual Model'!$C$36 -> 106.4912346 | I57: =MAXA(3600*I16/('Dual Model'!$I$28)+'Dual Model'!$H$14*'Dual Model'!$H$12+MAXA(0,'Dual Model'!$C$14*3600*(1/'Dual Model'!$I$28-1/'Dual Model'!$D$28)),'Dual Model'!$D$25+'Dual Model'!$H$14*SQRT('Dual Model'!$H$12^2+'Dual Model'!$H$13^2))+'Dual Model'!$C$36 -> 101.3658189
B58: Small + | C58: =MAXA(3600*C17/('Dual Model'!$C$28)+'Dual Model'!$H$14*'Dual Model'!$H$12+MAXA(0,'Dual Model'!$C$14*3600*(1/'Dual Model'!$C$28-1/'Dual Model'!$E$28)),'Dual Model'!$E$25+'Dual Model'!$H$14*SQRT('Dual Model'!$H$12^2+'Dual Model'!$H$13^2))+'Dual Model'!$C$36 -> 219.2030315 | D58: =MAXA(3600*D17/('Dual Model'!$D$28)+'Dual Model'!$H$14*'Dual Model'!$H$12+MAXA(0,'Dual Model'!$C$14*3600*(1/'Dual Model'!$D$28-1/'Dual Model'!$E$28)),'Dual Model'!$E$25+'Dual Model'!$H$14*SQRT('Dual Model'!$H$12^2+'Dual Model'!$H$13^2))+'Dual Model'!$C$36 -> 179.2437284 | E58: =MAXA(3600*E17/('Dual Model'!$E$28)+'Dual Model'!$H$14*'Dual Model'!$H$12+MAXA(0,'Dual Model'!$C$14*3600*(1/'Dual Model'!$E$28-1/'Dual Model'!$E$28)),'Dual Model'!$E$25+'Dual Model'!$H$14*SQRT('Dual Model'!$H$12^2+'Dual Model'!$H$13^2))+'Dual Model'!$C$36 -> 119.3047736 | F58: =MAXA(3600*F17/('Dual Model'!$F$28)+'Dual Model'!$H$14*'Dual Model'!$H$12+MAXA(0,'Dual Model'!$C$14*3600*(1/'Dual Model'!$F$28-1/'Dual Model'!$E$28)),'Dual Model'!$E$25+'Dual Model'!$H$14*SQRT('Dual Model'!$H$12^2+'Dual Model'!$H$13^2))+'Dual Model'!$C$36 -> 112.4051757 | G58: =MAXA(3600*G17/('Dual Model'!$G$28)+'Dual Model'!$H$14*'Dual Model'!$H$12+MAXA(0,'Dual Model'!$C$14*3600*(1/'Dual Model'!$G$28-1/'Dual Model'!$E$28)),'Dual Model'!$E$25+'Dual Model'!$H$14*SQRT('Dual Model'!$H$12^2+'Dual Model'!$H$13^2))+'Dual Model'!$C$36 -> 109.3386877 | H58: =MAXA(3600*H17/('Dual Model'!$H$28)+'Dual Model'!$H$14*'Dual Model'!$H$12+MAXA(0,'Dual Model'!$C$14*3600*(1/'Dual Model'!$H$28-1/'Dual Model'!$F$28)),'Dual Model'!$F$25+'Dual Model'!$H$14*SQRT('Dual Model'!$H$12^2+'Dual Model'!$H$13^2))+'Dual Model'!$C$36 -> 106.4912346 | I58: =MAXA(3600*I17/('Dual Model'!$I$28)+'Dual Model'!$H$14*'Dual Model'!$H$12+MAXA(0,'Dual Model'!$C$14*3600*(1/'Dual Model'!$I$28-1/'Dual Model'!$E$28)),'Dual Model'!$E$25+'Dual Model'!$H$14*SQRT('Dual Model'!$H$12^2+'Dual Model'!$H$13^2))+'Dual Model'!$C$36 -> 101.3658189
